Workbook

Sheet Sample Report (hidden)
A2: Date
A3: Hen
A4: Program
A5: Start at 999999
A6: Sequence component 1 | B6: Time 1 | C6: Seqeunce Component 2 | D6: Time 2 | E6: Seqeunce Component 3 | F6: Time 3 | G6: Correct 0 = No 1=Yes | J6: Seqeunce | K6: Time
A7: 12 | B7: 7 | C7: 12 | D7: 42 | E7: 13 | F7: 18 | G7: if 77 new line, if 31 or 41 = yes new line on 77, | J7: =string of Seqeunce compponent 1, 2 & 3 | K7: =time 3
A8: This continues until ther is a 1 on its own to indicate start of summary data
J9: 10-19 =1
A10: Summary Data | J10: 20-29 =2
A11: Correct | B11: Incorrect | C11: Rft | D11: total | E11: Av Correct | F11: Av Incorrect | G11: Percent correct | H11: Time | J11: in this example the seqeunce would be 111
A12: 40 | B12: 33 | C12: 40 | D12: 73 | E12: 23.95 | F12: 15 | G12: 54 | H12: 806

Sheet Summary
A2: Day | B2: Date | C2: Average Response Rate | D2: Target % | E2: RF for non correct sequence | F2: U Value | K2: Block 1 | L2: Block 2 | M2: Block 3 | N2: Block 4 | O2: Block 5 | P2: Block 6
A3: 1 | B3: ='!MA30A10.010'!B2:C2 -> <date> | C3: =('!MA30A10.010'!F75/60)/'!MA30A10.010'!Q3 -> 1.95410628 | D3: ='!MA30A10.010'!N20/'!MA30A10.010'!Q3 -> 0.5652173913 | E3: =SUM('!MA30A10.010'!L20:Q20)/'!MA30A10.010'!Q3 -> 3.956521739 | F3: ='!MA30A10.010'!Q16 -> 0.2921484086 | J3: Average Response Rate | K3: =AVERAGE(C3:C7) -> 2.00347368 | L3: =AVERAGE(C8:C12) -> 2.056282036 | M3: =AVERAGE(C13:C17) -> 1.992209483 | N3: =AVERAGE(C18:C22) -> 1.927203096 | O3: =AVERAGE(C23:C27) -> 1.965680055 | P3: =AVERAGE(C28:C32) -> 1.974011631
A4: 2 | B4: ='!MA31A50.010'!B2:C2 -> <date> | C4: =('!MA31A50.010'!F56/60)/'!MA31A50.010'!Q3 -> 1.933666667 | D4: ='!MA31A50.010'!N20/'!MA31A50.010'!Q3 -> 0.78 | E4: =SUM('!MA31A50.010'!L20:Q20)/'!MA31A50.010'!Q3 -> 3.34 | F4: ='!MA31A50.010'!Q16 -> 0.1684408544 | J4: Target % | K4: =AVERAGE(D3:D7) -> 0.7754735285 | L4: =AVERAGE(D8:D12) -> 0.5871755209 | M4: =AVERAGE(D13:D17) -> 0.7909566917 | N4: =AVERAGE(D18:D22) -> 0.7477874396 | O4: =AVERAGE(D23:D27) -> 0.7985812507 | P4: =AVERAGE(D28:D32) -> 0.8795734027
A5: 3 | B5: ='!MB01850.010'!B2:C2 -> <date> | C5: =('!MB01850.010'!F52/60)/'!MB01850.010'!Q3 -> 2.102898551 | D5: ='!MB01850.010'!N20/'!MB01850.010'!Q3 -> 0.8695652174 | E5: =SUM('!MB01850.010'!L20:Q20)/'!MB01850.010'!Q3 -> 5.782608696 | F5: ='!MB01850.010'!Q16 -> 0.1306919987 | J5: CCRF | K5: =AVERAGE(E3:E7) -> 4.87931815 | L5: =AVERAGE(E8:E12) -> 3.465527512 | M5: =AVERAGE(E13:E17) -> 4.938298665 | N5: =AVERAGE(E18:E22) -> 5.180797695 | O5: =AVERAGE(E23:E27) -> 5.529233791 | P5: =AVERAGE(E28:E32) -> 5.967175438
A6: 4 | B6: ='!MB02A00.010'!B2:C2 -> <date> | C6: =('!MB02A00.010'!F51/60)/'!MB02A00.010'!Q3 -> 2.01037037 | D6: ='!MB02A00.010'!N20/'!MB02A00.010'!Q3 -> 0.8666666667 | E6: =SUM('!MB02A00.010'!L20:Q20)/'!MB02A00.010'!Q3 -> 5.888888889 | F6: ='!MB02A00.010'!Q16 -> 0.1274329134 | J6: U Value | K6: =AVERAGE(F3:F7) -> 0.1791639565 | L6: =AVERAGE(F8:F12) -> 0.1902643785 | M6: =AVERAGE(F13:F17) -> 0.1729808179 | N6: =AVERAGE(F18:F22) -> 0.1746628552 | O6: =AVERAGE(F23:F27) -> 0.1652421566 | P6: =AVERAGE(F28:F32) -> 0.1173540217
A7: 5 | B7: ='!MB03840.010'!B2:C2 -> <date> | C7: =('!MB03840.010'!F55/60)/'!MB03840.010'!Q3 -> 2.016326531 | D7: ='!MB03840.010'!N20/'!MB03840.010'!Q3 -> 0.7959183673 | E7: =SUM('!MB03840.010'!L20:Q20)/'!MB03840.010'!Q3 -> 5.428571429 | F7: ='!MB03840.010'!Q16 -> 0.1771056076
A8: 6 | B8: ='!MB04920.010'!B2:C2 -> <date> | C8: =('!MB04920.010'!F79/60)/'!MB04920.010'!Q3 -> 2.006164384 | D8: ='!MB04920.010'!N20/'!MB04920.010'!Q3 -> 0.5342465753 | E8: =SUM('!MB04920.010'!L20:Q20)/'!MB04920.010'!Q3 -> 3.753424658 | F8: ='!MB04920.010'!Q16 -> 0.2603395075
A9: 7 | B9: ='!MB05930.010'!B2:C2 -> <date> | C9: =('!MB05930.010'!F57/60)/'!MB05930.010'!Q3 -> 2.065359477 | D9: ='!MB05930.010'!N20/'!MB05930.010'!Q3 -> 0.7647058824 | E9: =SUM('!MB05930.010'!L20:Q20)/'!MB05930.010'!Q3 -> 5.235294118 | F9: ='!MB05930.010'!Q16 -> 0.1724157653 | G9: =K3 -> 2.00347368 | H9: 2.056282036 | I9: 1.992209483 | J9: 1.927203096 | K9: 1.965680055 | L9: 1.974011631 | M9: =K4 -> 0.7754735285 | N9: 0.5871755209 | O9: 0.7909566917 | P9: 0.7477874396 | Q9: 0.7985812507 | R9: 0.8795734027 | S9: =K6 -> 0.1791639565 | T9: 0.1902643785 | U9: 0.1729808179 | V9: 0.1746628552 | W9: 0.1652421566 | X9: 0.1173540217
A10: 8 | B10: ='!MB06810.010'!B2:C2 -> <date> | C10: =('!MB06810.010'!F62/60)/'!MB06810.010'!Q3 -> 1.99375 | D10: ='!MB06810.010'!N20/'!MB06810.010'!Q3 -> 0.6964285714 | E10: =SUM('!MB06810.010'!L20:Q20)/'!MB06810.010'!Q3 -> 3.017857143 | F10: ='!MB06810.010'!Q16 -> 0.1693701652
A11: 9 | B11: ='!MB07950.010'!B2:C2 -> <date> | C11: =('!MB07950.010'!F102/60)/'!MB07950.010'!Q3 -> 2.098784722 | D11: ='!MB07950.010'!N20/'!MB07950.010'!Q3 -> 0.40625 | E11: =SUM('!MB07950.010'!L20:Q20)/'!MB07950.010'!Q3 -> 2.9375 | F11: ='!MB07950.010'!Q16 -> 0.159476101
A12: 10 | B12: ='!MB08910.010'!B2:C2 -> <date> | C12: =('!MB08910.010'!F79/60)/'!MB08910.010'!Q3 -> 2.117351598 | D12: ='!MB08910.010'!N20/'!MB08910.010'!Q3 -> 0.5342465753 | E12: =SUM('!MB08910.010'!L20:Q20)/'!MB08910.010'!Q3 -> 2.383561644 | F12: ='!MB08910.010'!Q16 -> 0.1897203533
A13: 11 | B13: ='!MB09950.010'!B2:C2 -> <date> | C13: =('!MB09950.010'!F61/60)/'!MB09950.010'!Q3 -> 2.03 | D13: ='!MB09950.010'!N20/'!MB09950.010'!Q3 -> 0.7090909091 | E13: =SUM('!MB09950.010'!L20:Q20)/'!MB09950.010'!Q3 -> 4.872727273 | F13: ='!MB09950.010'!Q16 -> 0.221194655
A14: 12 | B14: ='!MB10840.010'!B2:C2 -> <date> | C14: =('!MB10840.010'!F53/60)/'!MB10840.010'!Q3 -> 2.015248227 | D14: ='!MB10840.010'!N20/'!MB10840.010'!Q3 -> 0.829787234 | E14: =SUM('!MB10840.010'!L20:Q20)/'!MB10840.010'!Q3 -> 5.659574468 | F14: ='!MB10840.010'!Q16 -> 0.1721213994
A15: 13 | B15: ='!MB11750.010'!B2:C2 -> <date> | C15: =('!MB11750.010'!F54/60)/'!MB11750.010'!Q3 -> 2.015972222 | D15: ='!MB11750.010'!N20/'!MB11750.010'!Q3 -> 0.8125 | E15: =SUM('!MB11750.010'!L20:Q20)/'!MB11750.010'!Q3 -> 5.541666667 | F15: ='!MB11750.010'!Q16 -> 0.1554876562
A16: 14 | B16: ='!MB12840.010'!B2:C2 -> <date> | C16: =('!MB12840.010'!F49/60)/'!MB12840.010'!Q3 -> 1.969767442 | D16: ='!MB12840.010'!N20/'!MB12840.010'!Q3 -> 0.9069767442 | E16: =SUM('!MB12840.010'!L20:Q20)/'!MB12840.010'!Q3 -> 3.813953488 | F16: ='!MB12840.010'!Q16 -> 0.09618938681
A17: 15 | B17: ='!MB13940.010'!B2:C2 -> <date> | C17: =('!MB13940.010'!F62/60)/'!MB13940.010'!Q3 -> 1.930059524 | D17: ='!MB13940.010'!N20/'!MB13940.010'!Q3 -> 0.6964285714 | E17: =SUM('!MB13940.010'!L20:Q20)/'!MB13940.010'!Q3 -> 4.803571429 | F17: ='!MB13940.010'!Q16 -> 0.2199109923
A18: 16 | B18: ='!MB14820.010'!B2:C2 -> <date> | C18: =('!MB14820.010'!F52/60)/'!MB14820.010'!Q3 -> 1.942753623 | D18: ='!MB14820.010'!N20/'!MB14820.010'!Q3 -> 0.847826087 | E18: =SUM('!MB14820.010'!L20:Q20)/'!MB14820.010'!Q3 -> 5.760869565 | F18: ='!MB14820.010'!Q16 -> 0.1276877237
A19: 17 | B19: ='!MB15920.010'!B2:C2 -> <date> | C19: =('!MB15920.010'!F56/60)/'!MB15920.010'!Q3 -> 1.928333333 | D19: ='!MB15920.010'!N20/'!MB15920.010'!Q3 -> 0.78 | E19: =SUM('!MB15920.010'!L20:Q20)/'!MB15920.010'!Q3 -> 5.34 | F19: ='!MB15920.010'!Q16 -> 0.1774039638
A20: 18 | B20: ='!MB16930.010'!B2:C2 -> <date> | C20: =('!MB16930.010'!F60/60)/'!MB16930.010'!Q3 -> 1.867901235 | D20: ='!MB16930.010'!N20/'!MB16930.010'!Q3 -> 0.7222222222 | E20: =SUM('!MB16930.010'!L20:Q20)/'!MB16930.010'!Q3 -> 4.962962963 | F20: ='!MB16930.010'!Q16 -> 0.1481184781
A21: 19 | B21: ='!MB17A10.010'!B2:C2 -> <date> | C21: =('!MB17A10.010'!F63/60)/'!MB17A10.010'!Q3 -> 1.897953216 | D21: ='!MB17A10.010'!N20/'!MB17A10.010'!Q3 -> 0.6666666667 | E21: =SUM('!MB17A10.010'!L20:Q20)/'!MB17A10.010'!Q3 -> 4.877192982 | F21: ='!MB17A10.010'!Q16 -> 0.2016799446
A22: 20 | B22: ='!MB18A00.010'!B2:C2 -> <date> | C22: =('!MB18A00.010'!F60/60)/'!MB18A00.010'!Q3 -> 1.999074074 | D22: ='!MB18A00.010'!N20/'!MB18A00.010'!Q3 -> 0.7222222222 | E22: =SUM('!MB18A00.010'!L20:Q20)/'!MB18A00.010'!Q3 -> 4.962962963 | F22: ='!MB18A00.010'!Q16 -> 0.2184241657
A23: 21 | B23: ='!MB19910.010'!B2:C2 -> <date> | C23: =('!MB19910.010'!F57/60)/'!MB19910.010'!Q3 -> 1.912745098 | D23: ='!MB19910.010'!N20/'!MB19910.010'!Q3 -> 0.7647058824 | E23: =SUM('!MB19910.010'!L20:Q20)/'!MB19910.010'!Q3 -> 5.235294118 | F23: ='!MB19910.010'!Q16 -> 0.1975950648
A24: 22 | B24: ='!MB20A20.010'!B2:C2 -> <date> | C24: =('!MB20A20.010'!F58/60)/'!MB20A20.010'!Q3 -> 1.957051282 | D24: ='!MB20A20.010'!N20/'!MB20A20.010'!Q3 -> 0.75 | E24: =SUM('!MB20A20.010'!L20:Q20)/'!MB20A20.010'!Q3 -> 5.326923077 | F24: ='!MB20A20.010'!Q16 -> 0.1764978903
A25: 23 | B25: ='!MB21830.010'!B2:C2 -> <date> | C25: =('!MB21830.010'!F55/60)/'!MB21830.010'!Q3 -> 2.099319728 | D25: ='!MB21830.010'!N20/'!MB21830.010'!Q3 -> 0.7959183673 | E25: =SUM('!MB21830.010'!L20:Q20)/'!MB21830.010'!Q3 -> 5.632653061 | F25: ='!MB21830.010'!Q16 -> 0.1912816887
A26: 24 | B26: ='!MB22940.010'!B2:C2 -> <date> | C26: =('!MB22940.010'!F55/60)/'!MB22940.010'!Q3 -> 1.981632653 | D26: ='!MB22940.010'!N20/'!MB22940.010'!Q3 -> 0.7959183673 | E26: =SUM('!MB22940.010'!L20:Q20)/'!MB22940.010'!Q3 -> 5.428571429 | F26: ='!MB22940.010'!Q16 -> 0.1470654833
A27: 25 | B27: ='!MB23940.010'!B2:C2 -> <date> | C27: =('!MB23940.010'!F50/60)/'!MB23940.010'!Q3 -> 1.877651515 | D27: ='!MB23940.010'!N20/'!MB23940.010'!Q3 -> 0.8863636364 | E27: =SUM('!MB23940.010'!L20:Q20)/'!MB23940.010'!Q3 -> 6.022727273 | F27: ='!MB23940.010'!Q16 -> 0.1137706562
A28: 26 | B28: ='!MB24850.010'!B2:C2 -> <date> | C28: =('!MB24850.010'!F48/60)/'!MB24850.010'!Q3 -> 1.945238095 | D28: ='!MB24850.010'!N20/'!MB24850.010'!Q3 -> 0.9285714286 | E28: =SUM('!MB24850.010'!L20:Q20)/'!MB24850.010'!Q3 -> 6.285714286 | F28: ='!MB24850.010'!Q16 -> 0.08100874855
A29: 27 | B29: ='!MB25830.010'!B2:C2 -> <date> | C29: =('!MB25830.010'!F49/60)/'!MB25830.010'!Q3 -> 1.957364341 | D29: ='!MB25830.010'!N20/'!MB25830.010'!Q3 -> 0.9069767442 | E29: =SUM('!MB25830.010'!L20:Q20)/'!MB25830.010'!Q3 -> 6.139534884 | F29: ='!MB25830.010'!Q16 -> 0.1079962473
A30: 28 | B30: ='!MB26930.010'!B2:C2 -> <date> | C30: =('!MB26930.010'!F51/60)/'!MB26930.010'!Q3 -> 1.952962963 | D30: ='!MB26930.010'!N20/'!MB26930.010'!Q3 -> 0.8666666667 | E30: =SUM('!MB26930.010'!L20:Q20)/'!MB26930.010'!Q3 -> 5.888888889 | F30: ='!MB26930.010'!Q16 -> 0.1274329134
A31: 29 | B31: ='!MB27950.010'!B2:C2 -> <date> | C31: =('!MB27950.010'!F52/60)/'!MB27950.010'!Q3 -> 1.988768116 | D31: ='!MB27950.010'!N20/'!MB27950.010'!Q3 -> 0.847826087 | E31: =SUM('!MB27950.010'!L20:Q20)/'!MB27950.010'!Q3 -> 5.760869565 | F31: ='!MB27950.010'!Q16 -> 0.1351660996
A32: 30 | B32: ='!MB28A00.010'!B2:C2 -> <date> | C32: =('!MB28A00.010'!F52/60)/'!MB28A00.010'!Q3 -> 2.025724638 | D32: ='!MB28A00.010'!N20/'!MB28A00.010'!Q3 -> 0.847826087 | E32: =SUM('!MB28A00.010'!L20:Q20)/'!MB28A00.010'!Q3 -> 5.760869565 | F32: ='!MB28A00.010'!Q16 -> 0.1351660996

Sheet Start
F1: Use Folder 51 | H1: Auto Clean Up | J1: Correct sequence
F2: FALSE | H2: TRUE | J2: 211
A4: Working with Folder | G4: Process All/Or Pick A number: ALL or an integer
A5: E:\Hen Data\Raw Data\103_183\redo phase 1\ | G5: ALL
A6: Filenames:
A7: !MA31A50.010 | G7: Paint Cells
A8: !MA30A10.010 | G8: FALSE
A9: !MB01850.010
A10: !MB02A00.010
A11: !MB03840.010
A12: !MB04920.010
A13: !MB05930.010
A14: !MB06810.010
A15: !MB07950.010
A16: !MB08910.010
A17: !MB09950.010
A18: !MB10840.010
A19: !MB11750.010
A20: !MB12840.010
A21: !MB13940.010
A22: !MB14820.010
A23: !MB15920.010
A24: !MB16930.010
A25: !MB17A10.010
A26: !MB18A00.010
A27: !MB19910.010
A28: !MB20A20.010
A29: !MB21830.010
A30: !MB22940.010
A31: !MB23940.010
A32: !MB24850.010
A33: !MB25830.010
A34: !MB26930.010
A35: !MB27950.010
A36: !MB28A00.010

Sheet !MA30A10.010
A1: Report for:!MA30A10.010
A2: Date: | B2: <date>
A3: Hen: | B3: <hen> | F3: Correct Sequence | G3: =Start!J2 -> 211 | P3: Total Sequences in Data | Q3: =4994-COUNTBLANK(L7:L5000) -> 69 | V3: Total Sequences in Block Data | W3: =COUNTA(L7:L18) -> 12 | AA3: Total Sequences in Block Data | AB3: =COUNTA(L19:L29) -> 11 | AF3: Total Sequences in Block Data | AG3: =COUNTA(L30:L41) -> 12 | AK3: Total Sequences in Block Data | AL3: =COUNTA(L42:L52) -> 11 | AP3: Total Sequences in Block Data | AQ3: =COUNTA(L53:L64) -> 12 | AU3: Total Sequences in Block Data | AV3: =COUNTA(L65:L75) -> 11
P4: Total Sequences in Summary | Q4: =SUM(O7:O14) -> 69 | V4: Total Sequences in Block Summary | W4: =SUM(U7:U14) -> 12 | AA4: Total Sequences in Block Summary | AB4: =SUM(Z7:Z14) -> 11 | AF4: Total Sequences in Block Summary | AG4: =SUM(AE7:AE14) -> 12 | AK4: Total Sequences in Block Summary | AL4: =SUM(AJ7:AJ14) -> 11 | AP4: Total Sequences in Block Summary | AQ4: =SUM(AO7:AO14) -> 12 | AU4: Total Sequences in Block Summary | AV4: =SUM(AT7:AT14) -> 11
T5: Block 1 | Y5: Block 2 | AD5: Block 3 | AI5: Block 4 | AN5: Block 5 | AS5: Block 6
A6: Sequence Component 1 | B6: Time 1 | C6: Sequence Component 2 | D6: Time 2 | E6: Sequence Component 3 | F6: Time 3 | G6: Sequence Component 4 | H6: Time 4 | I6: Sequence Component 5 | J6: Time 5 | K6: Correct? 0=No 1=Yes | L6: Sequence | N6: Frequency | P6: Relative Frequency | Q6: Variability | T6: Frequency | V6: Relative Frequency | W6: Variability | Y6: Frequency | AA6: Relative Frequency | AB6: Variability | AD6: Frequency | AF6: Relative Frequency | AG6: Variability | AI6: Frequency | AK6: Relative Frequency | AL6: Variability | AN6: Frequency | AP6: Relative Frequency | AQ6: Variability | AS6: Frequency | AU6: Relative Frequency | AV6: Variability
A7: 12 | B7: 8 | C7: 24 | D7: 35 | E7: 24 | F7: 100 | K7: 0 | L7: 122 | N7: 111 | O7: =COUNTIF($L$7:$L$500,N7) -> 3 | P7: =O7/$Q$4 -> 0.04347826087 | Q7: =IF(P7=0,0,(P7*((LOG(P7))/LOG(2)))) -> -0.1966766068 | T7: =N7 -> 111 | U7: =COUNTIF(L7:L18,T7) -> 0 | V7: =U7/(W4-U11) -> 0 | W7: =IF(V7=0,0,(V7*((LOG(V7))/LOG(2)))) -> 0 | Y7: =N7 -> 111 | Z7: =COUNTIF(L19:L29,Y7) -> 0 | AA7: =Z7/(AB4-Z11) -> 0 | AB7: =IF(AA7=0,0,(AA7*((LOG(AA7))/LOG(2)))) -> 0 | AD7: =N7 -> 111 | AE7: =COUNTIF(L30:L41,AD7) -> 0 | AF7: =AE7/(AG4-AE11) -> 0 | AG7: =IF(AF7=0,0,(AF7*((LOG(AF7))/LOG(2)))) -> 0 | AI7: =N7 -> 111 | AJ7: =COUNTIF(L42:L52,AI7) -> 2 | AK7: =AJ7/(AL4-AJ11) -> 0.6666666667 | AL7: =IF(AK7=0,0,(AK7*((LOG(AK7))/LOG(2)))) -> -0.3899750005 | AN7: =N7 -> 111 | AO7: =COUNTIF(L53:L64,AN7) -> 1 | AP7: =AO7/(AQ4-AO11) -> 0.5 | AQ7: =IF(AP7=0,0,(AP7*((LOG(AP7))/LOG(2)))) -> -0.5 | AS7: =N7 -> 111 | AT7: =COUNTIF(L65:L75,AS7) -> 0 | AU7: =AT7/(AV4-AT11) -> 0 | AV7: =IF(AU7=0,0,(AU7*((LOG(AU7))/LOG(2)))) -> 0
A8: 12 | B8: 198 | C8: 24 | D8: 207 | E8: 13 | F8: 215 | K8: 0 | L8: 121 | N8: 112 | O8: =COUNTIF($L$7:$L$500,N8) -> 1 | P8: =O8/$Q$4 -> 0.01449275362 | Q8: =IF(P8=0,0,(P8*((LOG(P8))/LOG(2)))) -> -0.08852933995 | T8: =N8 -> 112 | U8: =COUNTIF(L7:L18,T8) -> 0 | V8: =U8/(W4-U11) -> 0 | W8: =IF(V8=0,0,(V8*((LOG(V8))/LOG(2)))) -> 0 | Y8: =N8 -> 112 | Z8: =COUNTIF(L19:L29,Y8) -> 0 | AA8: =Z8/(AB4-Z11) -> 0 | AB8: =IF(AA8=0,0,(AA8*((LOG(AA8))/LOG(2)))) -> 0 | AD8: =N8 -> 112 | AE8: =COUNTIF(L30:L41,AD8) -> 0 | AF8: =AE8/(AG4-AE11) -> 0 | AG8: =IF(AF8=0,0,(AF8*((LOG(AF8))/LOG(2)))) -> 0 | AI8: =N8 -> 112 | AJ8: =COUNTIF(L42:L52,AI8) -> 0 | AK8: =AJ8/(AL4-AJ11) -> 0 | AL8: =IF(AK8=0,0,(AK8*((LOG(AK8))/LOG(2)))) -> 0 | AN8: =N8 -> 112 | AO8: =COUNTIF(L53:L64,AN8) -> 1 | AP8: =AO8/(AQ4-AO11) -> 0.5 | AQ8: =IF(AP8=0,0,(AP8*((LOG(AP8))/LOG(2)))) -> -0.5 | AS8: =N8 -> 112 | AT8: =COUNTIF(L65:L75,AS8) -> 0 | AU8: =AT8/(AV4-AT11) -> 0 | AV8: =IF(AU8=0,0,(AU8*((LOG(AU8))/LOG(2)))) -> 0
A9: 21 | B9: 323 | C9: 11 | D9: 331 | E9: 22 | F9: 343 | K9: 0 | L9: 212 | N9: 121 | O9: =COUNTIF($L$7:$L$500,N9) -> 2 | P9: =O9/$Q$4 -> 0.02898550725 | Q9: =IF(P9=0,0,(P9*((LOG(P9))/LOG(2)))) -> -0.1480731727 | T9: =N9 -> 121 | U9: =COUNTIF(L7:L18,T9) -> 1 | V9: =U9/(W4-U11) -> 0.125 | W9: =IF(V9=0,0,(V9*((LOG(V9))/LOG(2)))) -> -0.375 | Y9: =N9 -> 121 | Z9: =COUNTIF(L19:L29,Y9) -> 1 | AA9: =Z9/(AB4-Z11) -> 0.1666666667 | AB9: =IF(AA9=0,0,(AA9*((LOG(AA9))/LOG(2)))) -> -0.4308270835 | AD9: =N9 -> 121 | AE9: =COUNTIF(L30:L41,AD9) -> 0 | AF9: =AE9/(AG4-AE11) -> 0 | AG9: =IF(AF9=0,0,(AF9*((LOG(AF9))/LOG(2)))) -> 0 | AI9: =N9 -> 121 | AJ9: =COUNTIF(L42:L52,AI9) -> 0 | AK9: =AJ9/(AL4-AJ11) -> 0 | AL9: =IF(AK9=0,0,(AK9*((LOG(AK9))/LOG(2)))) -> 0 | AN9: =N9 -> 121 | AO9: =COUNTIF(L53:L64,AN9) -> 0 | AP9: =AO9/(AQ4-AO11) -> 0 | AQ9: =IF(AP9=0,0,(AP9*((LOG(AP9))/LOG(2)))) -> 0 | AS9: =N9 -> 121 | AT9: =COUNTIF(L65:L75,AS9) -> 0 | AU9: =AT9/(AV4-AT11) -> 0 | AV9: =IF(AU9=0,0,(AU9*((LOG(AU9))/LOG(2)))) -> 0
A10: 21 | B10: 439 | C10: 11 | D10: 448 | E10: 11 | F10: 456 | K10: 0 | L10: 211 | N10: 122 | O10: =COUNTIF($L$7:$L$500,N10) -> 1 | P10: =O10/$Q$4 -> 0.01449275362 | Q10: =IF(P10=0,0,(P10*((LOG(P10))/LOG(2)))) -> -0.08852933995 | T10: =N10 -> 122 | U10: =COUNTIF(L7:L18,T10) -> 1 | V10: =U10/(W4-U11) -> 0.125 | W10: =IF(V10=0,0,(V10*((LOG(V10))/LOG(2)))) -> -0.375 | Y10: =N10 -> 122 | Z10: =COUNTIF(L19:L29,Y10) -> 0 | AA10: =Z10/(AB4-Z11) -> 0 | AB10: =IF(AA10=0,0,(AA10*((LOG(AA10))/LOG(2)))) -> 0 | AD10: =N10 -> 122 | AE10: =COUNTIF(L30:L41,AD10) -> 0 | AF10: =AE10/(AG4-AE11) -> 0 | AG10: =IF(AF10=0,0,(AF10*((LOG(AF10))/LOG(2)))) -> 0 | AI10: =N10 -> 122 | AJ10: =COUNTIF(L42:L52,AI10) -> 0 | AK10: =AJ10/(AL4-AJ11) -> 0 | AL10: =IF(AK10=0,0,(AK10*((LOG(AK10))/LOG(2)))) -> 0 | AN10: =N10 -> 122 | AO10: =COUNTIF(L53:L64,AN10) -> 0 | AP10: =AO10/(AQ4-AO11) -> 0 | AQ10: =IF(AP10=0,0,(AP10*((LOG(AP10))/LOG(2)))) -> 0 | AS10: =N10 -> 122 | AT10: =COUNTIF(L65:L75,AS10) -> 0 | AU10: =AT10/(AV4-AT11) -> 0 | AV10: =IF(AU10=0,0,(AU10*((LOG(AU10))/LOG(2)))) -> 0
A11: 21 | B11: 546 | C11: 11 | D11: 554 | E11: 11 | F11: 577 | K11: 0 | L11: 211 | N11: 211 | O11: =COUNTIF($L$7:$L$500,N11) -> 39 | P11: =O11/$Q$4 -> 0.5652173913 | Q11: =IF(P11=0,0,(P11*((LOG(P11))/LOG(2)))) -> -0.465243004 | T11: =N11 -> 211 | U11: =COUNTIF(L7:L18,T11) -> 4 | Y11: =N11 -> 211 | Z11: =COUNTIF(L19:L29,Y11) -> 5 | AD11: =N11 -> 211 | AE11: =COUNTIF(L30:L41,AD11) -> 5 | AI11: =N11 -> 211 | AJ11: =COUNTIF(L42:L52,AI11) -> 8 | AN11: =N11 -> 211 | AO11: =COUNTIF(L53:L64,AN11) -> 10 | AS11: =N11 -> 211 | AT11: =COUNTIF(L65:L75,AS11) -> 7
A12: 21 | B12: 675 | C12: 11 | D12: 683 | E12: 11 | F12: 694 | K12: 0 | L12: 211 | N12: 212 | O12: =COUNTIF($L$7:$L$500,N12) -> 19 | P12: =O12/$Q$4 -> 0.2753623188 | Q12: =IF(P12=0,0,(P12*((LOG(P12))/LOG(2)))) -> -0.5123382887 | T12: =N12 -> 212 | U12: =COUNTIF(L7:L18,T12) -> 6 | V12: =U12/(W4-U11) -> 0.75 | W12: =IF(V12=0,0,(V12*((LOG(V12))/LOG(2)))) -> -0.3112781245 | Y12: =N12 -> 212 | Z12: =COUNTIF(L19:L29,Y12) -> 5 | AA12: =Z12/(AB4-Z11) -> 0.8333333333 | AB12: =IF(AA12=0,0,(AA12*((LOG(AA12))/LOG(2)))) -> -0.2191953382 | AD12: =N12 -> 212 | AE12: =COUNTIF(L30:L41,AD12) -> 6 | AF12: =AE12/(AG4-AE11) -> 0.8571428571 | AG12: =IF(AF12=0,0,(AF12*((LOG(AF12))/LOG(2)))) -> -0.1906220754 | AI12: =N12 -> 212 | AJ12: =COUNTIF(L42:L52,AI12) -> 1 | AK12: =AJ12/(AL4-AJ11) -> 0.3333333333 | AL12: =IF(AK12=0,0,(AK12*((LOG(AK12))/LOG(2)))) -> -0.5283208336 | AN12: =N12 -> 212 | AO12: =COUNTIF(L53:L64,AN12) -> 0 | AP12: =AO12/(AQ4-AO11) -> 0 | AQ12: =IF(AP12=0,0,(AP12*((LOG(AP12))/LOG(2)))) -> 0 | AS12: =N12 -> 212 | AT12: =COUNTIF(L65:L75,AS12) -> 1 | AU12: =AT12/(AV4-AT11) -> 0.25 | AV12: =IF(AU12=0,0,(AU12*((LOG(AU12))/LOG(2)))) -> -0.5
A13: 21 | B13: 786 | C13: 11 | D13: 805 | E13: 22 | F13: 817 | K13: 0 | L13: 212 | N13: 221 | O13: =COUNTIF($L$7:$L$500,N13) -> 1 | P13: =O13/$Q$4 -> 0.01449275362 | Q13: =IF(P13=0,0,(P13*((LOG(P13))/LOG(2)))) -> -0.08852933995 | T13: =N13 -> 221 | U13: =COUNTIF(L7:L18,T13) -> 0 | V13: =U13/(W4-U11) -> 0 | W13: =IF(V13=0,0,(V13*((LOG(V13))/LOG(2)))) -> 0 | Y13: =N13 -> 221 | Z13: =COUNTIF(L19:L29,Y13) -> 0 | AA13: =Z13/(AB4-Z11) -> 0 | AB13: =IF(AA13=0,0,(AA13*((LOG(AA13))/LOG(2)))) -> 0 | AD13: =N13 -> 221 | AE13: =COUNTIF(L30:L41,AD13) -> 0 | AF13: =AE13/(AG4-AE11) -> 0 | AG13: =IF(AF13=0,0,(AF13*((LOG(AF13))/LOG(2)))) -> 0 | AI13: =N13 -> 221 | AJ13: =COUNTIF(L42:L52,AI13) -> 0 | AK13: =AJ13/(AL4-AJ11) -> 0 | AL13: =IF(AK13=0,0,(AK13*((LOG(AK13))/LOG(2)))) -> 0 | AN13: =N13 -> 221 | AO13: =COUNTIF(L53:L64,AN13) -> 0 | AP13: =AO13/(AQ4-AO11) -> 0 | AQ13: =IF(AP13=0,0,(AP13*((LOG(AP13))/LOG(2)))) -> 0 | AS13: =N13 -> 221 | AT13: =COUNTIF(L65:L75,AS13) -> 1 | AU13: =AT13/(AV4-AT11) -> 0.25 | AV13: =IF(AU13=0,0,(AU13*((LOG(AU13))/LOG(2)))) -> -0.5
A14: 21 | B14: 917 | C14: 11 | D14: 925 | E14: 22 | F14: 937 | K14: 0 | L14: 212 | N14: 222 | O14: =COUNTIF($L$7:$L$500,N14) -> 3 | P14: =O14/$Q$4 -> 0.04347826087 | Q14: =IF(P14=0,0,(P14*((LOG(P14))/LOG(2)))) -> -0.1966766068 | T14: =N14 -> 222 | U14: =COUNTIF(L7:L18,T14) -> 0 | V14: =U14/(W4-U11) -> 0 | W14: =IF(V14=0,0,(V14*((LOG(V14))/LOG(2)))) -> 0 | Y14: =N14 -> 222 | Z14: =COUNTIF(L19:L29,Y14) -> 0 | AA14: =Z14/(AB4-Z11) -> 0 | AB14: =IF(AA14=0,0,(AA14*((LOG(AA14))/LOG(2)))) -> 0 | AD14: =N14 -> 222 | AE14: =COUNTIF(L30:L41,AD14) -> 1 | AF14: =AE14/(AG4-AE11) -> 0.1428571429 | AG14: =IF(AF14=0,0,(AF14*((LOG(AF14))/LOG(2)))) -> -0.4010507032 | AI14: =N14 -> 222 | AJ14: =COUNTIF(L42:L52,AI14) -> 0 | AK14: =AJ14/(AL4-AJ11) -> 0 | AL14: =IF(AK14=0,0,(AK14*((LOG(AK14))/LOG(2)))) -> 0 | AN14: =N14 -> 222 | AO14: =COUNTIF(L53:L64,AN14) -> 0 | AP14: =AO14/(AQ4-AO11) -> 0 | AQ14: =IF(AP14=0,0,(AP14*((LOG(AP14))/LOG(2)))) -> 0 | AS14: =N14 -> 222 | AT14: =COUNTIF(L65:L75,AS14) -> 2 | AU14: =AT14/(AV4-AT11) -> 0.5 | AV14: =IF(AU14=0,0,(AU14*((LOG(AU14))/LOG(2)))) -> -0.5
A15: 21 | B15: 1033 | C15: 11 | D15: 1040 | E15: 11 | F15: 1063 | K15: 0 | L15: 211 | P15: =SUM(P7:P14) -> 1 | Q15: =-SUM(Q7:Q14) -> 1.784595699 | V15: =SUM(V7:V14) -> 1 | W15: =-SUM(W7:W14) -> 1.061278124 | AA15: =SUM(AA7:AA14) -> 1 | AB15: =-SUM(AB7:AB14) -> 0.6500224216 | AF15: =SUM(AF7:AF14) -> 1 | AG15: =-SUM(AG7:AG14) -> 0.5916727786 | AK15: =SUM(AK7:AK14) -> 1 | AL15: =-SUM(AL7:AL14) -> 0.9182958341 | AP15: =SUM(AP7:AP14) -> 1 | AQ15: =-SUM(AQ7:AQ14) -> 1 | AU15: =SUM(AU7:AU14) -> 1 | AV15: =-SUM(AV7:AV14) -> 1.5
A16: 21 | B16: 1153 | C16: 11 | D16: 1168 | E16: 22 | F16: 1180 | K16: 0 | L16: 212 | P16: U= | Q16: =Q15/(LOG(Q4)/LOG(2)) -> 0.2921484086 | V16: U1= | W16: =W15/(LOG(W4)/LOG(2)) -> 0.2960360462 | AA16: U2= | AB16: =AB15/(LOG(AB4)/LOG(2)) -> 0.1878986184 | AF16: U3= | AG16: =AG15/(LOG(AG4)/LOG(2)) -> 0.1650429477 | AK16: U4= | AL16: =AL15/(LOG(AL4)/LOG(2)) -> 0.2654470258 | AP16: U5= | AQ16: =AQ15/(LOG(AQ4)/LOG(2)) -> 0.2789429457 | AU16: U6= | AV16: =AV15/(LOG(AV4)/LOG(2)) -> 0.4335972395
A17: 21 | B17: 1276 | C17: 11 | D17: 1285 | E17: 22 | F17: 1296 | K17: 0 | L17: 212
A18: 21 | B18: 1392 | C18: 11 | D18: 1411 | E18: 22 | F18: 1422 | K18: 0 | L18: 212
A19: 21 | B19: 1520 | C19: 11 | D19: 1528 | E19: 22 | F19: 1539 | K19: 0 | L19: 212 | N19: Total Target Seq
A20: 21 | B20: 1641 | C20: 11 | D20: 1649 | E20: 11 | F20: 1667 | K20: 0 | L20: 211 | N20: =COUNTIF(L7:L75,G3) -> 39 | P20: 12 | Q20: 11 | R20: 12 | S20: 11 | T20: 12 | U20: 11
A21: 21 | B21: 1755 | C21: 11 | D21: 1763 | E21: 11 | F21: 1775 | K21: 0 | L21: 211 | P21: % of reinforcement given in 6 equal intervals based on number of trials
A22: 21 | B22: 1867 | C22: 11 | D22: 1892 | E22: 22 | F22: 1903 | K22: 0 | L22: 212 | P22: %_1 | Q22: %_2 | R22: %_3 | S22: %_4 | T22: %_5 | U22: %_6
A23: 21 | B23: 1998 | C23: 11 | D23: 2019 | E23: 22 | F23: 2029 | K23: 0 | L23: 212 | O23: target sequence | P23: =$G$3 -> 211 | Q23: =$G$3 -> 211 | R23: =$G$3 -> 211 | S23: =$G$3 -> 211 | T23: =$G$3 -> 211 | U23: =$G$3 -> 211
A24: 21 | B24: 2125 | C24: 11 | D24: 2132 | E24: 11 | F24: 2144 | K24: 0 | L24: 211 | O24: total reinforcement | P24: =U11 -> 4 | Q24: =Z11 -> 5 | R24: =AE11 -> 5 | S24: =AJ11 -> 8 | T24: =AO11 -> 10 | U24: =AT11 -> 7
A25: 21 | B25: 2232 | C25: 11 | D25: 2254 | E25: 22 | F25: 2265 | K25: 0 | L25: 212 | O25: % target
A26: 21 | B26: 2364 | C26: 11 | D26: 2372 | E26: 22 | F26: 2384 | K26: 0 | L26: 212 | O26: CCRF
A27: 12 | B27: 2511 | C27: 24 | D27: 2522 | E27: 13 | F27: 2532 | K27: 0 | L27: 121 | O27: % CCRf
A28: 21 | B28: 2629 | C28: 11 | D28: 2637 | E28: 11 | F28: 2660 | K28: 0 | L28: 211 | O28: average response rate | P28: =F18/P20 -> 118.5 | Q28: =(F29-F18)/Q20 -> 122.3636364 | R28: =(F41-F29)/R20 -> 117.75 | S28: =(F52-F41)/S20 -> 114.8181818 | T28: =(F64-F52)/T20 -> 113 | U28: =(F75-F64)/U20 -> 117.2727273
A29: 21 | B29: 2747 | C29: 11 | D29: 2755 | E29: 11 | F29: 2768 | K29: 0 | L29: 211
A30: 21 | B30: 2859 | C30: 11 | D30: 2867 | E30: 11 | F30: 2882 | K30: 0 | L30: 211
A31: 21 | B31: 2974 | C31: 11 | D31: 2981 | E31: 11 | F31: 2993 | K31: 0 | L31: 211
A32: 21 | B32: 3086 | C32: 11 | D32: 3107 | E32: 22 | F32: 3123 | K32: 0 | L32: 212
A33: 21 | B33: 3219 | C33: 11 | D33: 3227 | E33: 22 | F33: 3240 | K33: 0 | L33: 212
A34: 21 | B34: 3336 | C34: 11 | D34: 3344 | E34: 22 | F34: 3356 | K34: 0 | L34: 212
A35: 21 | B35: 3452 | C35: 22 | D35: 3457 | E35: 24 | F35: 3465 | K35: 0 | L35: 222
A36: 21 | B36: 3555 | C36: 11 | D36: 3573 | E36: 22 | F36: 3586 | K36: 0 | L36: 212
A37: 21 | B37: 3682 | C37: 11 | D37: 3689 | E37: 22 | F37: 3700 | K37: 0 | L37: 212
A38: 21 | B38: 3797 | C38: 11 | D38: 3805 | E38: 22 | F38: 3817 | K38: 0 | L38: 212
A39: 21 | B39: 3913 | C39: 11 | D39: 3921 | E39: 11 | F39: 3934 | K39: 0 | L39: 211
A40: 21 | B40: 4021 | C40: 11 | D40: 4028 | E40: 11 | F40: 4047 | K40: 0 | L40: 211
A41: 21 | B41: 4135 | C41: 11 | D41: 4154 | E41: 11 | F41: 4181 | K41: 0 | L41: 211
A42: 21 | B42: 4270 | C42: 11 | D42: 4294 | E42: 22 | F42: 4306 | K42: 0 | L42: 212
A43: 21 | B43: 4402 | C43: 11 | D43: 4410 | E43: 11 | F43: 4427 | K43: 0 | L43: 211
A44: 21 | B44: 4520 | C44: 11 | D44: 4533 | E44: 11 | F44: 4540 | K44: 0 | L44: 211
A45: 21 | B45: 4634 | C45: 11 | D45: 4648 | E45: 11 | F45: 4655 | K45: 0 | L45: 211
A46: 21 | B46: 4743 | C46: 11 | D46: 4751 | E46: 11 | F46: 4762 | K46: 0 | L46: 211
A47: 21 | B47: 4850 | C47: 11 | D47: 4858 | E47: 11 | F47: 4869 | K47: 0 | L47: 211
A48: 21 | B48: 4958 | C48: 11 | D48: 4970 | E48: 11 | F48: 4981 | K48: 0 | L48: 211
A49: 21 | B49: 5069 | C49: 11 | D49: 5080 | E49: 11 | F49: 5086 | K49: 0 | L49: 211
A50: 12 | B50: 5177 | C50: 13 | D50: 5192 | E50: 13 | F50: 5206 | K50: 0 | L50: 111
A51: 21 | B51: 5305 | C51: 11 | D51: 5313 | E51: 11 | F51: 5324 | K51: 0 | L51: 211
A52: 12 | B52: 5413 | C52: 13 | D52: 5426 | E52: 13 | F52: 5444 | K52: 0 | L52: 111
A53: 21 | B53: 5540 | C53: 11 | D53: 5549 | E53: 11 | F53: 5563 | K53: 0 | L53: 211
A54: 21 | B54: 5654 | C54: 11 | D54: 5661 | E54: 11 | F54: 5675 | K54: 0 | L54: 211
A55: 21 | B55: 5764 | C55: 11 | D55: 5772 | E55: 11 | F55: 5791 | K55: 0 | L55: 211
A56: 21 | B56: 5877 | C56: 11 | D56: 5885 | E56: 11 | F56: 5900 | K56: 0 | L56: 211
A57: 12 | B57: 5990 | C57: 13 | D57: 6007 | E57: 13 | F57: 6013 | K57: 0 | L57: 111
A58: 12 | B58: 6112 | C58: 13 | D58: 6122 | E58: 24 | F58: 6132 | K58: 0 | L58: 112
A59: 21 | B59: 6227 | C59: 11 | D59: 6234 | E59: 11 | F59: 6244 | K59: 0 | L59: 211
A60: 21 | B60: 6334 | C60: 11 | D60: 6351 | E60: 11 | F60: 6359 | K60: 0 | L60: 211
A61: 21 | B61: 6447 | C61: 11 | D61: 6454 | E61: 11 | F61: 6470 | K61: 0 | L61: 211
A62: 21 | B62: 6557 | C62: 11 | D62: 6573 | E62: 11 | F62: 6581 | K62: 0 | L62: 211
A63: 21 | B63: 6667 | C63: 11 | D63: 6675 | E63: 11 | F63: 6693 | K63: 0 | L63: 211
A64: 21 | B64: 6782 | C64: 11 | D64: 6793 | E64: 11 | F64: 6800 | K64: 0 | L64: 211
A65: 21 | B65: 6889 | C65: 11 | D65: 6915 | E65: 11 | F65: 6927 | K65: 0 | L65: 211
A66: 21 | B66: 7018 | C66: 11 | D66: 7025 | E66: 22 | F66: 7036 | K66: 0 | L66: 212
A67: 21 | B67: 7132 | C67: 11 | D67: 7140 | E67: 11 | F67: 7155 | K67: 0 | L67: 211
A68: 21 | B68: 7241 | C68: 11 | D68: 7248 | E68: 11 | F68: 7278 | K68: 0 | L68: 211
A69: 21 | B69: 7374 | C69: 11 | D69: 7393 | E69: 11 | F69: 7399 | K69: 0 | L69: 211
A70: 21 | B70: 7489 | C70: 22 | D70: 7496 | E70: 24 | F70: 7506 | K70: 0 | L70: 222
A71: 21 | B71: 7602 | C71: 11 | D71: 7608 | E71: 11 | F71: 7619 | K71: 0 | L71: 211
A72: 21 | B72: 7708 | C72: 22 | D72: 7711 | E72: 13 | F72: 7729 | K72: 0 | L72: 221
A73: 21 | B73: 7828 | C73: 11 | D73: 7836 | E73: 11 | F73: 7850 | K73: 0 | L73: 211
A74: 21 | B74: 7942 | C74: 22 | D74: 7950 | E74: 24 | F74: 7962 | K74: 0 | L74: 222
A75: 21 | B75: 8059 | C75: 11 | D75: 8067 | E75: 11 | F75: 8090 | K75: 1 | L75: 211

Sheet !MA31A50.010
A1: Report for:!MA31A50.010
A2: Date: | B2: <date>
A3: Hen: | B3: <hen> | F3: Correct Sequence | G3: =Start!J2 -> 211 | P3: Total Sequences in Data | Q3: =4994-COUNTBLANK(L7:L5000) -> 50 | V3: Total Sequences in Block Data | W3: =COUNTA(L7:L14) -> 8 | AA3: Total Sequences in Block Data | AB3: =COUNTA(L15:L23) -> 9 | AF3: Total Sequences in Block Data | AG3: =COUNTA(L24:L31) -> 8 | AK3: Total Sequences in Block Data | AL3: =COUNTA(L32:L39) -> 8 | AP3: Total Sequences in Block Data | AQ3: =COUNTA(L40:L48) -> 9 | AU3: Total Sequences in Block Data | AV3: =COUNTA(L49:L56) -> 8
P4: Total Sequences in Summary | Q4: =SUM(O7:O14) -> 50 | V4: Total Sequences in Block Summary | W4: =SUM(U7:U14) -> 8 | AA4: Total Sequences in Block Summary | AB4: =SUM(Z7:Z14) -> 9 | AF4: Total Sequences in Block Summary | AG4: =SUM(AE7:AE14) -> 8 | AK4: Total Sequences in Block Summary | AL4: =SUM(AJ7:AJ14) -> 8 | AP4: Total Sequences in Block Summary | AQ4: =SUM(AO7:AO14) -> 9 | AU4: Total Sequences in Block Summary | AV4: =SUM(AT7:AT14) -> 8
T5: Block 1 | Y5: Block 2 | AD5: Block 3 | AI5: Block 4 | AN5: Block 5 | AS5: Block 6
A6: Sequence Component 1 | B6: Time 1 | C6: Sequence Component 2 | D6: Time 2 | E6: Sequence Component 3 | F6: Time 3 | G6: Sequence Component 4 | H6: Time 4 | I6: Sequence Component 5 | J6: Time 5 | K6: Correct? 0=No 1=Yes | L6: Sequence | N6: Frequency | P6: Relative Frequency | Q6: Variability | T6: Frequency | V6: Relative Frequency | W6: Variability | Y6: Frequency | AA6: Relative Frequency | AB6: Variability | AD6: Frequency | AF6: Relative Frequency | AG6: Variability | AI6: Frequency | AK6: Relative Frequency | AL6: Variability | AN6: Frequency | AP6: Relative Frequency | AQ6: Variability | AS6: Frequency | AU6: Relative Frequency | AV6: Variability
A7: 21 | B7: 6 | C7: 11 | D7: 14 | E7: 11 | F7: 33 | K7: 0 | L7: 211 | N7: 111 | O7: =COUNTIF($L$7:$L$500,N7) -> 9 | P7: =O7/$Q$4 -> 0.18 | Q7: =IF(P7=0,0,(P7*((LOG(P7))/LOG(2)))) -> -0.4453076139 | T7: =N7 -> 111 | U7: =COUNTIF(L7:L14,T7) -> 2 | V7: =U7/(W4-U11) -> 0.6666666667 | W7: =IF(V7=0,0,(V7*((LOG(V7))/LOG(2)))) -> -0.3899750005 | Y7: =N7 -> 111 | Z7: =COUNTIF(L15:L23,Y7) -> 1 | AA7: =Z7/(AB4-Z11) -> 1 | AB7: =IF(AA7=0,0,(AA7*((LOG(AA7))/LOG(2)))) -> 0 | AD7: =N7 -> 111 | AE7: =COUNTIF(L24:L31,AD7) -> 1 | AF7: =AE7/(AG4-AE11) -> 1 | AG7: =IF(AF7=0,0,(AF7*((LOG(AF7))/LOG(2)))) -> 0 | AI7: =N7 -> 111 | AJ7: =COUNTIF(L32:L39,AI7) -> 4 | AK7: =AJ7/(AL4-AJ11) -> 1 | AL7: =IF(AK7=0,0,(AK7*((LOG(AK7))/LOG(2)))) -> 0 | AN7: =N7 -> 111 | AO7: =COUNTIF(L40:L48,AN7) -> 0 | AP7: =AO7/(AQ4-AO11) -> 0 | AQ7: =IF(AP7=0,0,(AP7*((LOG(AP7))/LOG(2)))) -> 0 | AS7: =N7 -> 111 | AT7: =COUNTIF(L49:L56,AS7) -> 1 | AU7: =AT7/(AV4-AT11) -> 1 | AV7: =IF(AU7=0,0,(AU7*((LOG(AU7))/LOG(2)))) -> 0
A8: 12 | B8: 129 | C8: 13 | D8: 143 | E8: 24 | F8: 157 | K8: 0 | L8: 112 | N8: 112 | O8: =COUNTIF($L$7:$L$500,N8) -> 1 | P8: =O8/$Q$4 -> 0.02 | Q8: =IF(P8=0,0,(P8*((LOG(P8))/LOG(2)))) -> -0.1128771238 | T8: =N8 -> 112 | U8: =COUNTIF(L7:L14,T8) -> 1 | V8: =U8/(W4-U11) -> 0.3333333333 | W8: =IF(V8=0,0,(V8*((LOG(V8))/LOG(2)))) -> -0.5283208336 | Y8: =N8 -> 112 | Z8: =COUNTIF(L15:L23,Y8) -> 0 | AA8: =Z8/(AB4-Z11) -> 0 | AB8: =IF(AA8=0,0,(AA8*((LOG(AA8))/LOG(2)))) -> 0 | AD8: =N8 -> 112 | AE8: =COUNTIF(L24:L31,AD8) -> 0 | AF8: =AE8/(AG4-AE11) -> 0 | AG8: =IF(AF8=0,0,(AF8*((LOG(AF8))/LOG(2)))) -> 0 | AI8: =N8 -> 112 | AJ8: =COUNTIF(L32:L39,AI8) -> 0 | AK8: =AJ8/(AL4-AJ11) -> 0 | AL8: =IF(AK8=0,0,(AK8*((LOG(AK8))/LOG(2)))) -> 0 | AN8: =N8 -> 112 | AO8: =COUNTIF(L40:L48,AN8) -> 0 | AP8: =AO8/(AQ4-AO11) -> 0 | AQ8: =IF(AP8=0,0,(AP8*((LOG(AP8))/LOG(2)))) -> 0 | AS8: =N8 -> 112 | AT8: =COUNTIF(L49:L56,AS8) -> 0 | AU8: =AT8/(AV4-AT11) -> 0 | AV8: =IF(AU8=0,0,(AU8*((LOG(AU8))/LOG(2)))) -> 0
A9: 21 | B9: 257 | C9: 11 | D9: 265 | E9: 11 | F9: 277 | K9: 0 | L9: 211 | N9: 121 | O9: =COUNTIF($L$7:$L$500,N9) -> 0 | P9: =O9/$Q$4 -> 0 | Q9: =IF(P9=0,0,(P9*((LOG(P9))/LOG(2)))) -> 0 | T9: =N9 -> 121 | U9: =COUNTIF(L7:L14,T9) -> 0 | V9: =U9/(W4-U11) -> 0 | W9: =IF(V9=0,0,(V9*((LOG(V9))/LOG(2)))) -> 0 | Y9: =N9 -> 121 | Z9: =COUNTIF(L15:L23,Y9) -> 0 | AA9: =Z9/(AB4-Z11) -> 0 | AB9: =IF(AA9=0,0,(AA9*((LOG(AA9))/LOG(2)))) -> 0 | AD9: =N9 -> 121 | AE9: =COUNTIF(L24:L31,AD9) -> 0 | AF9: =AE9/(AG4-AE11) -> 0 | AG9: =IF(AF9=0,0,(AF9*((LOG(AF9))/LOG(2)))) -> 0 | AI9: =N9 -> 121 | AJ9: =COUNTIF(L32:L39,AI9) -> 0 | AK9: =AJ9/(AL4-AJ11) -> 0 | AL9: =IF(AK9=0,0,(AK9*((LOG(AK9))/LOG(2)))) -> 0 | AN9: =N9 -> 121 | AO9: =COUNTIF(L40:L48,AN9) -> 0 | AP9: =AO9/(AQ4-AO11) -> 0 | AQ9: =IF(AP9=0,0,(AP9*((LOG(AP9))/LOG(2)))) -> 0 | AS9: =N9 -> 121 | AT9: =COUNTIF(L49:L56,AS9) -> 0 | AU9: =AT9/(AV4-AT11) -> 0 | AV9: =IF(AU9=0,0,(AU9*((LOG(AU9))/LOG(2)))) -> 0
A10: 12 | B10: 372 | C10: 13 | D10: 384 | E10: 13 | F10: 409 | K10: 0 | L10: 111 | N10: 122 | O10: =COUNTIF($L$7:$L$500,N10) -> 0 | P10: =O10/$Q$4 -> 0 | Q10: =IF(P10=0,0,(P10*((LOG(P10))/LOG(2)))) -> 0 | T10: =N10 -> 122 | U10: =COUNTIF(L7:L14,T10) -> 0 | V10: =U10/(W4-U11) -> 0 | W10: =IF(V10=0,0,(V10*((LOG(V10))/LOG(2)))) -> 0 | Y10: =N10 -> 122 | Z10: =COUNTIF(L15:L23,Y10) -> 0 | AA10: =Z10/(AB4-Z11) -> 0 | AB10: =IF(AA10=0,0,(AA10*((LOG(AA10))/LOG(2)))) -> 0 | AD10: =N10 -> 122 | AE10: =COUNTIF(L24:L31,AD10) -> 0 | AF10: =AE10/(AG4-AE11) -> 0 | AG10: =IF(AF10=0,0,(AF10*((LOG(AF10))/LOG(2)))) -> 0 | AI10: =N10 -> 122 | AJ10: =COUNTIF(L32:L39,AI10) -> 0 | AK10: =AJ10/(AL4-AJ11) -> 0 | AL10: =IF(AK10=0,0,(AK10*((LOG(AK10))/LOG(2)))) -> 0 | AN10: =N10 -> 122 | AO10: =COUNTIF(L40:L48,AN10) -> 0 | AP10: =AO10/(AQ4-AO11) -> 0 | AQ10: =IF(AP10=0,0,(AP10*((LOG(AP10))/LOG(2)))) -> 0 | AS10: =N10 -> 122 | AT10: =COUNTIF(L49:L56,AS10) -> 0 | AU10: =AT10/(AV4-AT11) -> 0 | AV10: =IF(AU10=0,0,(AU10*((LOG(AU10))/LOG(2)))) -> 0
A11: 21 | B11: 499 | C11: 11 | D11: 520 | E11: 11 | F11: 534 | K11: 0 | L11: 211 | N11: 211 | O11: =COUNTIF($L$7:$L$500,N11) -> 39 | P11: =O11/$Q$4 -> 0.78 | Q11: =IF(P11=0,0,(P11*((LOG(P11))/LOG(2)))) -> -0.2795940973 | T11: =N11 -> 211 | U11: =COUNTIF(L7:L14,T11) -> 5 | Y11: =N11 -> 211 | Z11: =COUNTIF(L15:L23,Y11) -> 8 | AD11: =N11 -> 211 | AE11: =COUNTIF(L24:L31,AD11) -> 7 | AI11: =N11 -> 211 | AJ11: =COUNTIF(L32:L39,AI11) -> 4 | AN11: =N11 -> 211 | AO11: =COUNTIF(L40:L48,AN11) -> 8 | AS11: =N11 -> 211 | AT11: =COUNTIF(L49:L56,AS11) -> 7
A12: 12 | B12: 652 | C12: 13 | D12: 666 | E12: 13 | F12: 674 | K12: 0 | L12: 111 | N12: 212 | O12: =COUNTIF($L$7:$L$500,N12) -> 0 | P12: =O12/$Q$4 -> 0 | Q12: =IF(P12=0,0,(P12*((LOG(P12))/LOG(2)))) -> 0 | T12: =N12 -> 212 | U12: =COUNTIF(L7:L14,T12) -> 0 | V12: =U12/(W4-U11) -> 0 | W12: =IF(V12=0,0,(V12*((LOG(V12))/LOG(2)))) -> 0 | Y12: =N12 -> 212 | Z12: =COUNTIF(L15:L23,Y12) -> 0 | AA12: =Z12/(AB4-Z11) -> 0 | AB12: =IF(AA12=0,0,(AA12*((LOG(AA12))/LOG(2)))) -> 0 | AD12: =N12 -> 212 | AE12: =COUNTIF(L24:L31,AD12) -> 0 | AF12: =AE12/(AG4-AE11) -> 0 | AG12: =IF(AF12=0,0,(AF12*((LOG(AF12))/LOG(2)))) -> 0 | AI12: =N12 -> 212 | AJ12: =COUNTIF(L32:L39,AI12) -> 0 | AK12: =AJ12/(AL4-AJ11) -> 0 | AL12: =IF(AK12=0,0,(AK12*((LOG(AK12))/LOG(2)))) -> 0 | AN12: =N12 -> 212 | AO12: =COUNTIF(L40:L48,AN12) -> 0 | AP12: =AO12/(AQ4-AO11) -> 0 | AQ12: =IF(AP12=0,0,(AP12*((LOG(AP12))/LOG(2)))) -> 0 | AS12: =N12 -> 212 | AT12: =COUNTIF(L49:L56,AS12) -> 0 | AU12: =AT12/(AV4-AT11) -> 0 | AV12: =IF(AU12=0,0,(AU12*((LOG(AU12))/LOG(2)))) -> 0
A13: 21 | B13: 772 | C13: 11 | D13: 787 | E13: 11 | F13: 813 | K13: 0 | L13: 211 | N13: 221 | O13: =COUNTIF($L$7:$L$500,N13) -> 1 | P13: =O13/$Q$4 -> 0.02 | Q13: =IF(P13=0,0,(P13*((LOG(P13))/LOG(2)))) -> -0.1128771238 | T13: =N13 -> 221 | U13: =COUNTIF(L7:L14,T13) -> 0 | V13: =U13/(W4-U11) -> 0 | W13: =IF(V13=0,0,(V13*((LOG(V13))/LOG(2)))) -> 0 | Y13: =N13 -> 221 | Z13: =COUNTIF(L15:L23,Y13) -> 0 | AA13: =Z13/(AB4-Z11) -> 0 | AB13: =IF(AA13=0,0,(AA13*((LOG(AA13))/LOG(2)))) -> 0 | AD13: =N13 -> 221 | AE13: =COUNTIF(L24:L31,AD13) -> 0 | AF13: =AE13/(AG4-AE11) -> 0 | AG13: =IF(AF13=0,0,(AF13*((LOG(AF13))/LOG(2)))) -> 0 | AI13: =N13 -> 221 | AJ13: =COUNTIF(L32:L39,AI13) -> 0 | AK13: =AJ13/(AL4-AJ11) -> 0 | AL13: =IF(AK13=0,0,(AK13*((LOG(AK13))/LOG(2)))) -> 0 | AN13: =N13 -> 221 | AO13: =COUNTIF(L40:L48,AN13) -> 1 | AP13: =AO13/(AQ4-AO11) -> 1 | AQ13: =IF(AP13=0,0,(AP13*((LOG(AP13))/LOG(2)))) -> 0 | AS13: =N13 -> 221 | AT13: =COUNTIF(L49:L56,AS13) -> 0 | AU13: =AT13/(AV4-AT11) -> 0 | AV13: =IF(AU13=0,0,(AU13*((LOG(AU13))/LOG(2)))) -> 0
A14: 21 | B14: 900 | C14: 11 | D14: 918 | E14: 11 | F14: 933 | K14: 0 | L14: 211 | N14: 222 | O14: =COUNTIF($L$7:$L$500,N14) -> 0 | P14: =O14/$Q$4 -> 0 | Q14: =IF(P14=0,0,(P14*((LOG(P14))/LOG(2)))) -> 0 | T14: =N14 -> 222 | U14: =COUNTIF(L7:L14,T14) -> 0 | V14: =U14/(W4-U11) -> 0 | W14: =IF(V14=0,0,(V14*((LOG(V14))/LOG(2)))) -> 0 | Y14: =N14 -> 222 | Z14: =COUNTIF(L15:L23,Y14) -> 0 | AA14: =Z14/(AB4-Z11) -> 0 | AB14: =IF(AA14=0,0,(AA14*((LOG(AA14))/LOG(2)))) -> 0 | AD14: =N14 -> 222 | AE14: =COUNTIF(L24:L31,AD14) -> 0 | AF14: =AE14/(AG4-AE11) -> 0 | AG14: =IF(AF14=0,0,(AF14*((LOG(AF14))/LOG(2)))) -> 0 | AI14: =N14 -> 222 | AJ14: =COUNTIF(L32:L39,AI14) -> 0 | AK14: =AJ14/(AL4-AJ11) -> 0 | AL14: =IF(AK14=0,0,(AK14*((LOG(AK14))/LOG(2)))) -> 0 | AN14: =N14 -> 222 | AO14: =COUNTIF(L40:L48,AN14) -> 0 | AP14: =AO14/(AQ4-AO11) -> 0 | AQ14: =IF(AP14=0,0,(AP14*((LOG(AP14))/LOG(2)))) -> 0 | AS14: =N14 -> 222 | AT14: =COUNTIF(L49:L56,AS14) -> 0 | AU14: =AT14/(AV4-AT11) -> 0 | AV14: =IF(AU14=0,0,(AU14*((LOG(AU14))/LOG(2)))) -> 0
A15: 21 | B15: 1021 | C15: 11 | D15: 1032 | E15: 11 | F15: 1054 | K15: 0 | L15: 211 | P15: =SUM(P7:P14) -> 1 | Q15: =-SUM(Q7:Q14) -> 0.9506559588 | V15: =SUM(V7:V14) -> 1 | W15: =-SUM(W7:W14) -> 0.9182958341 | AA15: =SUM(AA7:AA14) -> 1 | AB15: =-SUM(AB7:AB14) -> 0 | AF15: =SUM(AF7:AF14) -> 1 | AG15: =-SUM(AG7:AG14) -> 0 | AK15: =SUM(AK7:AK14) -> 1 | AL15: =-SUM(AL7:AL14) -> 0 | AP15: =SUM(AP7:AP14) -> 1 | AQ15: =-SUM(AQ7:AQ14) -> 0 | AU15: =SUM(AU7:AU14) -> 1 | AV15: =-SUM(AV7:AV14) -> 0
A16: 21 | B16: 1146 | C16: 11 | D16: 1164 | E16: 11 | F16: 1182 | K16: 0 | L16: 211 | P16: U= | Q16: =Q15/(LOG(Q4)/LOG(2)) -> 0.1684408544 | V16: U1= | W16: =W15/(LOG(W4)/LOG(2)) -> 0.3060986114 | AA16: U2= | AB16: =AB15/(LOG(AB4)/LOG(2)) -> 0 | AF16: U3= | AG16: =AG15/(LOG(AG4)/LOG(2)) -> 0 | AK16: U4= | AL16: =AL15/(LOG(AL4)/LOG(2)) -> 0 | AP16: U5= | AQ16: =AQ15/(LOG(AQ4)/LOG(2)) -> 0 | AU16: U6= | AV16: =AV15/(LOG(AV4)/LOG(2)) -> 0
A17: 21 | B17: 1270 | C17: 11 | D17: 1285 | E17: 11 | F17: 1296 | K17: 0 | L17: 211
A18: 21 | B18: 1384 | C18: 11 | D18: 1391 | E18: 11 | F18: 1405 | K18: 0 | L18: 211
A19: 21 | B19: 1499 | C19: 11 | D19: 1511 | E19: 11 | F19: 1521 | K19: 0 | L19: 211 | N19: Total Target Seq
A20: 12 | B20: 1618 | C20: 13 | D20: 1641 | E20: 13 | F20: 1652 | K20: 0 | L20: 111 | N20: =COUNTIF(L7:L56,G3) -> 39 | P20: 8 | Q20: 9 | R20: 8 | S20: 8 | T20: 9 | U20: 8
A21: 21 | B21: 1748 | C21: 11 | D21: 1755 | E21: 11 | F21: 1770 | K21: 0 | L21: 211 | P21: % of reinforcement given in 6 equal intervals based on number of trials
A22: 21 | B22: 1858 | C22: 11 | D22: 1868 | E22: 11 | F22: 1885 | K22: 0 | L22: 211 | P22: %_1 | Q22: %_2 | R22: %_3 | S22: %_4 | T22: %_5 | U22: %_6
A23: 21 | B23: 1976 | C23: 11 | D23: 1984 | E23: 11 | F23: 1994 | K23: 0 | L23: 211 | O23: target sequence | P23: =$G$3 -> 211 | Q23: =$G$3 -> 211 | R23: =$G$3 -> 211 | S23: =$G$3 -> 211 | T23: =$G$3 -> 211 | U23: =$G$3 -> 211
A24: 21 | B24: 2082 | C24: 11 | D24: 2089 | E24: 11 | F24: 2107 | K24: 0 | L24: 211 | O24: total reinforcement | P24: =U11 -> 5 | Q24: =Z11 -> 8 | R24: =AE11 -> 7 | S24: =AJ11 -> 4 | T24: =AO11 -> 8 | U24: =AT11 -> 7
A25: 21 | B25: 2195 | C25: 11 | D25: 2204 | E25: 11 | F25: 2212 | K25: 0 | L25: 211 | O25: % target
A26: 21 | B26: 2299 | C26: 11 | D26: 2312 | E26: 11 | F26: 2325 | K26: 0 | L26: 211 | O26: CCRF
A27: 21 | B27: 2415 | C27: 11 | D27: 2443 | E27: 11 | F27: 2472 | K27: 0 | L27: 211 | O27: % CCRf
A28: 21 | B28: 2559 | C28: 11 | D28: 2567 | E28: 11 | F28: 2580 | K28: 0 | L28: 211 | O28: average response rate | P28: =F14/P20 -> 116.625 | Q28: =(F23-F14)/Q20 -> 117.8888889 | R28: =(F31-F23)/R20 -> 119 | S28: =(F39-F31)/S20 -> 117.875 | T28: =(F48-F39)/T20 -> 112.3333333 | U28: =(F56-F48)/U20 -> 112.625
A29: 21 | B29: 2673 | C29: 11 | D29: 2680 | E29: 11 | F29: 2693 | K29: 0 | L29: 211
A30: 12 | B30: 2789 | C30: 13 | D30: 2802 | E30: 13 | F30: 2828 | K30: 0 | L30: 111
A31: 21 | B31: 2926 | C31: 11 | D31: 2933 | E31: 11 | F31: 2946 | K31: 0 | L31: 211
A32: 21 | B32: 3034 | C32: 11 | D32: 3041 | E32: 11 | F32: 3051 | K32: 0 | L32: 211
A33: 12 | B33: 3140 | C33: 13 | D33: 3149 | E33: 13 | F33: 3159 | K33: 0 | L33: 111
A34: 21 | B34: 3257 | C34: 11 | D34: 3264 | E34: 11 | F34: 3277 | K34: 0 | L34: 211
A35: 12 | B35: 3374 | C35: 13 | D35: 3384 | E35: 13 | F35: 3399 | K35: 0 | L35: 111
A36: 21 | B36: 3497 | C36: 11 | D36: 3505 | E36: 11 | F36: 3519 | K36: 0 | L36: 211
A37: 21 | B37: 3607 | C37: 11 | D37: 3613 | E37: 11 | F37: 3627 | K37: 0 | L37: 211
A38: 12 | B38: 3728 | C38: 13 | D38: 3747 | E38: 13 | F38: 3756 | K38: 0 | L38: 111
A39: 12 | B39: 3861 | C39: 13 | D39: 3875 | E39: 13 | F39: 3889 | K39: 0 | L39: 111
A40: 21 | B40: 3984 | C40: 11 | D40: 3991 | E40: 11 | F40: 4001 | K40: 0 | L40: 211
A41: 21 | B41: 4088 | C41: 11 | D41: 4095 | E41: 11 | F41: 4126 | K41: 0 | L41: 211
A42: 21 | B42: 4214 | C42: 11 | D42: 4221 | E42: 11 | F42: 4232 | K42: 0 | L42: 211
A43: 21 | B43: 4318 | C43: 11 | D43: 4326 | E43: 11 | F43: 4353 | K43: 0 | L43: 211
A44: 21 | B44: 4440 | C44: 11 | D44: 4447 | E44: 11 | F44: 4459 | K44: 0 | L44: 211
A45: 21 | B45: 4548 | C45: 11 | D45: 4555 | E45: 11 | F45: 4567 | K45: 0 | L45: 211
A46: 21 | B46: 4654 | C46: 11 | D46: 4661 | E46: 11 | F46: 4673 | K46: 0 | L46: 211
A47: 21 | B47: 4760 | C47: 11 | D47: 4767 | E47: 11 | F47: 4788 | K47: 0 | L47: 211
A48: 21 | B48: 4875 | C48: 22 | D48: 4885 | E48: 13 | F48: 4900 | K48: 0 | L48: 221
A49: 21 | B49: 4995 | C49: 11 | D49: 5002 | E49: 11 | F49: 5023 | K49: 0 | L49: 211
A50: 21 | B50: 5110 | C50: 11 | D50: 5117 | E50: 11 | F50: 5127 | K50: 0 | L50: 211
A51: 21 | B51: 5214 | C51: 11 | D51: 5221 | E51: 11 | F51: 5232 | K51: 0 | L51: 211
A52: 21 | B52: 5318 | C52: 11 | D52: 5325 | E52: 11 | F52: 5334 | K52: 0 | L52: 211
A53: 21 | B53: 5422 | C53: 11 | D53: 5440 | E53: 11 | F53: 5460 | K53: 0 | L53: 211
A54: 21 | B54: 5548 | C54: 11 | D54: 5554 | E54: 11 | F54: 5576 | K54: 0 | L54: 211
A55: 12 | B55: 5666 | C55: 13 | D55: 5677 | E55: 13 | F55: 5688 | K55: 0 | L55: 111
A56: 21 | B56: 5784 | C56: 11 | D56: 5791 | E56: 11 | F56: 5801 | K56: 1 | L56: 211

Sheet !MB01850.010
A1: Report for:!MB01850.010
A2: Date: | B2: <date>
A3: Hen: | B3: <hen> | F3: Correct Sequence | G3: =Start!J2 -> 211 | P3: Total Sequences in Data | Q3: =4994-COUNTBLANK(L7:L5000) -> 46 | V3: Total Sequences in Block Data | W3: =COUNTA(L7:L14) -> 8 | AA3: Total Sequences in Block Data | AB3: =COUNTA(L15:L21) -> 7 | AF3: Total Sequences in Block Data | AG3: =COUNTA(L22:L29) -> 8 | AK3: Total Sequences in Block Data | AL3: =COUNTA(L30:L37) -> 8 | AP3: Total Sequences in Block Data | AQ3: =COUNTA(L38:L44) -> 7 | AU3: Total Sequences in Block Data | AV3: =COUNTA(L45:L52) -> 8
P4: Total Sequences in Summary | Q4: =SUM(O7:O14) -> 46 | V4: Total Sequences in Block Summary | W4: =SUM(U7:U14) -> 8 | AA4: Total Sequences in Block Summary | AB4: =SUM(Z7:Z14) -> 7 | AF4: Total Sequences in Block Summary | AG4: =SUM(AE7:AE14) -> 8 | AK4: Total Sequences in Block Summary | AL4: =SUM(AJ7:AJ14) -> 8 | AP4: Total Sequences in Block Summary | AQ4: =SUM(AO7:AO14) -> 7 | AU4: Total Sequences in Block Summary | AV4: =SUM(AT7:AT14) -> 8
T5: Block 1 | Y5: Block 2 | AD5: Block 3 | AI5: Block 4 | AN5: Block 5 | AS5: Block 6
A6: Sequence Component 1 | B6: Time 1 | C6: Sequence Component 2 | D6: Time 2 | E6: Sequence Component 3 | F6: Time 3 | G6: Sequence Component 4 | H6: Time 4 | I6: Sequence Component 5 | J6: Time 5 | K6: Correct? 0=No 1=Yes | L6: Sequence | N6: Frequency | P6: Relative Frequency | Q6: Variability | T6: Frequency | V6: Relative Frequency | W6: Variability | Y6: Frequency | AA6: Relative Frequency | AB6: Variability | AD6: Frequency | AF6: Relative Frequency | AG6: Variability | AI6: Frequency | AK6: Relative Frequency | AL6: Variability | AN6: Frequency | AP6: Relative Frequency | AQ6: Variability | AS6: Frequency | AU6: Relative Frequency | AV6: Variability
A7: 21 | B7: 9 | C7: 11 | D7: 19 | E7: 11 | F7: 31 | K7: 0 | L7: 211 | N7: 111 | O7: =COUNTIF($L$7:$L$500,N7) -> 4 | P7: =O7/$Q$4 -> 0.08695652174 | Q7: =IF(P7=0,0,(P7*((LOG(P7))/LOG(2)))) -> -0.3063966918 | T7: =N7 -> 111 | U7: =COUNTIF(L7:L14,T7) -> 2 | V7: =U7/(W4-U11) -> 0.6666666667 | W7: =IF(V7=0,0,(V7*((LOG(V7))/LOG(2)))) -> -0.3899750005 | Y7: =N7 -> 111 | Z7: =COUNTIF(L15:L21,Y7) -> 1 | AA7: =Z7/(AB4-Z11) -> 1 | AB7: =IF(AA7=0,0,(AA7*((LOG(AA7))/LOG(2)))) -> 0 | AD7: =N7 -> 111 | AE7: =COUNTIF(L22:L29,AD7) -> 0 | AF7: =AE7/(AG4-AE11) ->  | AG7: =IF(AF7=0,0,(AF7*((LOG(AF7))/LOG(2)))) ->  | AI7: =N7 -> 111 | AJ7: =COUNTIF(L30:L37,AI7) -> 1 | AK7: =AJ7/(AL4-AJ11) -> 1 | AL7: =IF(AK7=0,0,(AK7*((LOG(AK7))/LOG(2)))) -> 0 | AN7: =N7 -> 111 | AO7: =COUNTIF(L38:L44,AN7) -> 0 | AP7: =AO7/(AQ4-AO11) ->  | AQ7: =IF(AP7=0,0,(AP7*((LOG(AP7))/LOG(2)))) ->  | AS7: =N7 -> 111 | AT7: =COUNTIF(L45:L52,AS7) -> 0 | AU7: =AT7/(AV4-AT11) -> 0 | AV7: =IF(AU7=0,0,(AU7*((LOG(AU7))/LOG(2)))) -> 0
A8: 21 | B8: 134 | C8: 22 | D8: 183 | E8: 24 | F8: 213 | K8: 0 | L8: 222 | N8: 112 | O8: =COUNTIF($L$7:$L$500,N8) -> 0 | P8: =O8/$Q$4 -> 0 | Q8: =IF(P8=0,0,(P8*((LOG(P8))/LOG(2)))) -> 0 | T8: =N8 -> 112 | U8: =COUNTIF(L7:L14,T8) -> 0 | V8: =U8/(W4-U11) -> 0 | W8: =IF(V8=0,0,(V8*((LOG(V8))/LOG(2)))) -> 0 | Y8: =N8 -> 112 | Z8: =COUNTIF(L15:L21,Y8) -> 0 | AA8: =Z8/(AB4-Z11) -> 0 | AB8: =IF(AA8=0,0,(AA8*((LOG(AA8))/LOG(2)))) -> 0 | AD8: =N8 -> 112 | AE8: =COUNTIF(L22:L29,AD8) -> 0 | AF8: =AE8/(AG4-AE11) ->  | AG8: =IF(AF8=0,0,(AF8*((LOG(AF8))/LOG(2)))) ->  | AI8: =N8 -> 112 | AJ8: =COUNTIF(L30:L37,AI8) -> 0 | AK8: =AJ8/(AL4-AJ11) -> 0 | AL8: =IF(AK8=0,0,(AK8*((LOG(AK8))/LOG(2)))) -> 0 | AN8: =N8 -> 112 | AO8: =COUNTIF(L38:L44,AN8) -> 0 | AP8: =AO8/(AQ4-AO11) ->  | AQ8: =IF(AP8=0,0,(AP8*((LOG(AP8))/LOG(2)))) ->  | AS8: =N8 -> 112 | AT8: =COUNTIF(L45:L52,AS8) -> 0 | AU8: =AT8/(AV4-AT11) -> 0 | AV8: =IF(AU8=0,0,(AU8*((LOG(AU8))/LOG(2)))) -> 0
A9: 21 | B9: 309 | C9: 11 | D9: 317 | E9: 11 | F9: 330 | K9: 0 | L9: 211 | N9: 121 | O9: =COUNTIF($L$7:$L$500,N9) -> 0 | P9: =O9/$Q$4 -> 0 | Q9: =IF(P9=0,0,(P9*((LOG(P9))/LOG(2)))) -> 0 | T9: =N9 -> 121 | U9: =COUNTIF(L7:L14,T9) -> 0 | V9: =U9/(W4-U11) -> 0 | W9: =IF(V9=0,0,(V9*((LOG(V9))/LOG(2)))) -> 0 | Y9: =N9 -> 121 | Z9: =COUNTIF(L15:L21,Y9) -> 0 | AA9: =Z9/(AB4-Z11) -> 0 | AB9: =IF(AA9=0,0,(AA9*((LOG(AA9))/LOG(2)))) -> 0 | AD9: =N9 -> 121 | AE9: =COUNTIF(L22:L29,AD9) -> 0 | AF9: =AE9/(AG4-AE11) ->  | AG9: =IF(AF9=0,0,(AF9*((LOG(AF9))/LOG(2)))) ->  | AI9: =N9 -> 121 | AJ9: =COUNTIF(L30:L37,AI9) -> 0 | AK9: =AJ9/(AL4-AJ11) -> 0 | AL9: =IF(AK9=0,0,(AK9*((LOG(AK9))/LOG(2)))) -> 0 | AN9: =N9 -> 121 | AO9: =COUNTIF(L38:L44,AN9) -> 0 | AP9: =AO9/(AQ4-AO11) ->  | AQ9: =IF(AP9=0,0,(AP9*((LOG(AP9))/LOG(2)))) ->  | AS9: =N9 -> 121 | AT9: =COUNTIF(L45:L52,AS9) -> 0 | AU9: =AT9/(AV4-AT11) -> 0 | AV9: =IF(AU9=0,0,(AU9*((LOG(AU9))/LOG(2)))) -> 0
A10: 12 | B10: 446 | C10: 13 | D10: 457 | E10: 13 | F10: 470 | K10: 0 | L10: 111 | N10: 122 | O10: =COUNTIF($L$7:$L$500,N10) -> 0 | P10: =O10/$Q$4 -> 0 | Q10: =IF(P10=0,0,(P10*((LOG(P10))/LOG(2)))) -> 0 | T10: =N10 -> 122 | U10: =COUNTIF(L7:L14,T10) -> 0 | V10: =U10/(W4-U11) -> 0 | W10: =IF(V10=0,0,(V10*((LOG(V10))/LOG(2)))) -> 0 | Y10: =N10 -> 122 | Z10: =COUNTIF(L15:L21,Y10) -> 0 | AA10: =Z10/(AB4-Z11) -> 0 | AB10: =IF(AA10=0,0,(AA10*((LOG(AA10))/LOG(2)))) -> 0 | AD10: =N10 -> 122 | AE10: =COUNTIF(L22:L29,AD10) -> 0 | AF10: =AE10/(AG4-AE11) ->  | AG10: =IF(AF10=0,0,(AF10*((LOG(AF10))/LOG(2)))) ->  | AI10: =N10 -> 122 | AJ10: =COUNTIF(L30:L37,AI10) -> 0 | AK10: =AJ10/(AL4-AJ11) -> 0 | AL10: =IF(AK10=0,0,(AK10*((LOG(AK10))/LOG(2)))) -> 0 | AN10: =N10 -> 122 | AO10: =COUNTIF(L38:L44,AN10) -> 0 | AP10: =AO10/(AQ4-AO11) ->  | AQ10: =IF(AP10=0,0,(AP10*((LOG(AP10))/LOG(2)))) ->  | AS10: =N10 -> 122 | AT10: =COUNTIF(L45:L52,AS10) -> 0 | AU10: =AT10/(AV4-AT11) -> 0 | AV10: =IF(AU10=0,0,(AU10*((LOG(AU10))/LOG(2)))) -> 0
A11: 21 | B11: 571 | C11: 11 | D11: 581 | E11: 11 | F11: 593 | K11: 0 | L11: 211 | N11: 211 | O11: =COUNTIF($L$7:$L$500,N11) -> 40 | P11: =O11/$Q$4 -> 0.8695652174 | Q11: =IF(P11=0,0,(P11*((LOG(P11))/LOG(2)))) -> -0.1753337923 | T11: =N11 -> 211 | U11: =COUNTIF(L7:L14,T11) -> 5 | Y11: =N11 -> 211 | Z11: =COUNTIF(L15:L21,Y11) -> 6 | AD11: =N11 -> 211 | AE11: =COUNTIF(L22:L29,AD11) -> 8 | AI11: =N11 -> 211 | AJ11: =COUNTIF(L30:L37,AI11) -> 7 | AN11: =N11 -> 211 | AO11: =COUNTIF(L38:L44,AN11) -> 7 | AS11: =N11 -> 211 | AT11: =COUNTIF(L45:L52,AS11) -> 7
A12: 12 | B12: 734 | C12: 13 | D12: 753 | E12: 13 | F12: 762 | K12: 0 | L12: 111 | N12: 212 | O12: =COUNTIF($L$7:$L$500,N12) -> 1 | P12: =O12/$Q$4 -> 0.02173913043 | Q12: =IF(P12=0,0,(P12*((LOG(P12))/LOG(2)))) -> -0.1200774338 | T12: =N12 -> 212 | U12: =COUNTIF(L7:L14,T12) -> 0 | V12: =U12/(W4-U11) -> 0 | W12: =IF(V12=0,0,(V12*((LOG(V12))/LOG(2)))) -> 0 | Y12: =N12 -> 212 | Z12: =COUNTIF(L15:L21,Y12) -> 0 | AA12: =Z12/(AB4-Z11) -> 0 | AB12: =IF(AA12=0,0,(AA12*((LOG(AA12))/LOG(2)))) -> 0 | AD12: =N12 -> 212 | AE12: =COUNTIF(L22:L29,AD12) -> 0 | AF12: =AE12/(AG4-AE11) ->  | AG12: =IF(AF12=0,0,(AF12*((LOG(AF12))/LOG(2)))) ->  | AI12: =N12 -> 212 | AJ12: =COUNTIF(L30:L37,AI12) -> 0 | AK12: =AJ12/(AL4-AJ11) -> 0 | AL12: =IF(AK12=0,0,(AK12*((LOG(AK12))/LOG(2)))) -> 0 | AN12: =N12 -> 212 | AO12: =COUNTIF(L38:L44,AN12) -> 0 | AP12: =AO12/(AQ4-AO11) ->  | AQ12: =IF(AP12=0,0,(AP12*((LOG(AP12))/LOG(2)))) ->  | AS12: =N12 -> 212 | AT12: =COUNTIF(L45:L52,AS12) -> 1 | AU12: =AT12/(AV4-AT11) -> 1 | AV12: =IF(AU12=0,0,(AU12*((LOG(AU12))/LOG(2)))) -> 0
A13: 21 | B13: 865 | C13: 11 | D13: 884 | E13: 11 | F13: 903 | K13: 0 | L13: 211 | N13: 221 | O13: =COUNTIF($L$7:$L$500,N13) -> 0 | P13: =O13/$Q$4 -> 0 | Q13: =IF(P13=0,0,(P13*((LOG(P13))/LOG(2)))) -> 0 | T13: =N13 -> 221 | U13: =COUNTIF(L7:L14,T13) -> 0 | V13: =U13/(W4-U11) -> 0 | W13: =IF(V13=0,0,(V13*((LOG(V13))/LOG(2)))) -> 0 | Y13: =N13 -> 221 | Z13: =COUNTIF(L15:L21,Y13) -> 0 | AA13: =Z13/(AB4-Z11) -> 0 | AB13: =IF(AA13=0,0,(AA13*((LOG(AA13))/LOG(2)))) -> 0 | AD13: =N13 -> 221 | AE13: =COUNTIF(L22:L29,AD13) -> 0 | AF13: =AE13/(AG4-AE11) ->  | AG13: =IF(AF13=0,0,(AF13*((LOG(AF13))/LOG(2)))) ->  | AI13: =N13 -> 221 | AJ13: =COUNTIF(L30:L37,AI13) -> 0 | AK13: =AJ13/(AL4-AJ11) -> 0 | AL13: =IF(AK13=0,0,(AK13*((LOG(AK13))/LOG(2)))) -> 0 | AN13: =N13 -> 221 | AO13: =COUNTIF(L38:L44,AN13) -> 0 | AP13: =AO13/(AQ4-AO11) ->  | AQ13: =IF(AP13=0,0,(AP13*((LOG(AP13))/LOG(2)))) ->  | AS13: =N13 -> 221 | AT13: =COUNTIF(L45:L52,AS13) -> 0 | AU13: =AT13/(AV4-AT11) -> 0 | AV13: =IF(AU13=0,0,(AU13*((LOG(AU13))/LOG(2)))) -> 0
A14: 21 | B14: 994 | C14: 11 | D14: 1006 | E14: 11 | F14: 1025 | K14: 0 | L14: 211 | N14: 222 | O14: =COUNTIF($L$7:$L$500,N14) -> 1 | P14: =O14/$Q$4 -> 0.02173913043 | Q14: =IF(P14=0,0,(P14*((LOG(P14))/LOG(2)))) -> -0.1200774338 | T14: =N14 -> 222 | U14: =COUNTIF(L7:L14,T14) -> 1 | V14: =U14/(W4-U11) -> 0.3333333333 | W14: =IF(V14=0,0,(V14*((LOG(V14))/LOG(2)))) -> -0.5283208336 | Y14: =N14 -> 222 | Z14: =COUNTIF(L15:L21,Y14) -> 0 | AA14: =Z14/(AB4-Z11) -> 0 | AB14: =IF(AA14=0,0,(AA14*((LOG(AA14))/LOG(2)))) -> 0 | AD14: =N14 -> 222 | AE14: =COUNTIF(L22:L29,AD14) -> 0 | AF14: =AE14/(AG4-AE11) ->  | AG14: =IF(AF14=0,0,(AF14*((LOG(AF14))/LOG(2)))) ->  | AI14: =N14 -> 222 | AJ14: =COUNTIF(L30:L37,AI14) -> 0 | AK14: =AJ14/(AL4-AJ11) -> 0 | AL14: =IF(AK14=0,0,(AK14*((LOG(AK14))/LOG(2)))) -> 0 | AN14: =N14 -> 222 | AO14: =COUNTIF(L38:L44,AN14) -> 0 | AP14: =AO14/(AQ4-AO11) ->  | AQ14: =IF(AP14=0,0,(AP14*((LOG(AP14))/LOG(2)))) ->  | AS14: =N14 -> 222 | AT14: =COUNTIF(L45:L52,AS14) -> 0 | AU14: =AT14/(AV4-AT11) -> 0 | AV14: =IF(AU14=0,0,(AU14*((LOG(AU14))/LOG(2)))) -> 0
A15: 12 | B15: 1123 | C15: 13 | D15: 1149 | E15: 13 | F15: 1163 | K15: 0 | L15: 111 | P15: =SUM(P7:P14) -> 1 | Q15: =-SUM(Q7:Q14) -> 0.7218853518 | V15: =SUM(V7:V14) -> 1 | W15: =-SUM(W7:W14) -> 0.9182958341 | AA15: =SUM(AA7:AA14) -> 1 | AB15: =-SUM(AB7:AB14) -> 0 | AF15: =SUM(AF7:AF14) ->  | AG15: =-SUM(AG7:AG14) ->  | AK15: =SUM(AK7:AK14) -> 1 | AL15: =-SUM(AL7:AL14) -> 0 | AP15: =SUM(AP7:AP14) ->  | AQ15: =-SUM(AQ7:AQ14) ->  | AU15: =SUM(AU7:AU14) -> 1 | AV15: =-SUM(AV7:AV14) -> 0
A16: 21 | B16: 1259 | C16: 11 | D16: 1269 | E16: 11 | F16: 1300 | K16: 0 | L16: 211 | P16: U= | Q16: =Q15/(LOG(Q4)/LOG(2)) -> 0.1306919987 | V16: U1= | W16: =W15/(LOG(W4)/LOG(2)) -> 0.3060986114 | AA16: U2= | AB16: =AB15/(LOG(AB4)/LOG(2)) -> 0 | AF16: U3= | AG16: =AG15/(LOG(AG4)/LOG(2)) ->  | AK16: U4= | AL16: =AL15/(LOG(AL4)/LOG(2)) -> 0 | AP16: U5= | AQ16: =AQ15/(LOG(AQ4)/LOG(2)) ->  | AU16: U6= | AV16: =AV15/(LOG(AV4)/LOG(2)) -> 0
A17: 21 | B17: 1395 | C17: 11 | D17: 1404 | E17: 11 | F17: 1447 | K17: 0 | L17: 211
A18: 21 | B18: 1541 | C18: 11 | D18: 1549 | E18: 11 | F18: 1560 | K18: 0 | L18: 211
A19: 21 | B19: 1650 | C19: 11 | D19: 1660 | E19: 11 | F19: 1674 | K19: 0 | L19: 211 | N19: Total Target Seq
A20: 21 | B20: 1763 | C20: 11 | D20: 1772 | E20: 11 | F20: 1791 | K20: 0 | L20: 211 | N20: =COUNTIF(L7:L52,G3) -> 40 | P20: 8 | Q20: 7 | R20: 8 | S20: 8 | T20: 7 | U20: 8
A21: 21 | B21: 1881 | C21: 11 | D21: 1898 | E21: 11 | F21: 1911 | K21: 0 | L21: 211 | P21: % of reinforcement given in 6 equal intervals based on number of trials
A22: 21 | B22: 1999 | C22: 11 | D22: 2007 | E22: 11 | F22: 2022 | K22: 0 | L22: 211 | P22: %_1 | Q22: %_2 | R22: %_3 | S22: %_4 | T22: %_5 | U22: %_6
A23: 21 | B23: 2110 | C23: 11 | D23: 2126 | E23: 11 | F23: 2144 | K23: 0 | L23: 211 | O23: target sequence | P23: =$G$3 -> 211 | Q23: =$G$3 -> 211 | R23: =$G$3 -> 211 | S23: =$G$3 -> 211 | T23: =$G$3 -> 211 | U23: =$G$3 -> 211
A24: 21 | B24: 2233 | C24: 11 | D24: 2241 | E24: 11 | F24: 2261 | K24: 0 | L24: 211 | O24: total reinforcement | P24: =U11 -> 5 | Q24: =Z11 -> 6 | R24: =AE11 -> 8 | S24: =AJ11 -> 7 | T24: =AO11 -> 7 | U24: =AT11 -> 7
A25: 21 | B25: 2350 | C25: 11 | D25: 2364 | E25: 11 | F25: 2383 | K25: 0 | L25: 211 | O25: % target
A26: 21 | B26: 2469 | C26: 11 | D26: 2484 | E26: 11 | F26: 2511 | K26: 0 | L26: 211 | O26: CCRF
A27: 21 | B27: 2600 | C27: 11 | D27: 2636 | E27: 11 | F27: 2644 | K27: 0 | L27: 211 | O27: % CCRf
A28: 21 | B28: 2733 | C28: 11 | D28: 2741 | E28: 11 | F28: 2757 | K28: 0 | L28: 211 | O28: average response rate | P28: =F14/P20 -> 128.125 | Q28: =(F21-F14)/Q20 -> 126.5714286 | R28: =(F29-F21)/R20 -> 121.5 | S28: =(F37-F29)/S20 -> 129.125 | T28: =(F44-F37)/T20 -> 126.5714286 | U28: =(F52-F44)/U20 -> 125.25
A29: 21 | B29: 2845 | C29: 11 | D29: 2872 | E29: 11 | F29: 2883 | K29: 0 | L29: 211
A30: 21 | B30: 2972 | C30: 11 | D30: 3008 | E30: 11 | F30: 3035 | K30: 0 | L30: 211
A31: 21 | B31: 3123 | C31: 11 | D31: 3152 | E31: 11 | F31: 3163 | K31: 0 | L31: 211
A32: 21 | B32: 3256 | C32: 11 | D32: 3284 | E32: 11 | F32: 3293 | K32: 0 | L32: 211
A33: 21 | B33: 3379 | C33: 11 | D33: 3390 | E33: 11 | F33: 3423 | K33: 0 | L33: 211
A34: 21 | B34: 3511 | C34: 11 | D34: 3522 | E34: 11 | F34: 3538 | K34: 0 | L34: 211
A35: 21 | B35: 3629 | C35: 11 | D35: 3645 | E35: 11 | F35: 3656 | K35: 0 | L35: 211
A36: 12 | B36: 3759 | C36: 13 | D36: 3779 | E36: 13 | F36: 3790 | K36: 0 | L36: 111
A37: 21 | B37: 3891 | C37: 11 | D37: 3899 | E37: 11 | F37: 3916 | K37: 0 | L37: 211
A38: 21 | B38: 4005 | C38: 11 | D38: 4014 | E38: 11 | F38: 4026 | K38: 0 | L38: 211
A39: 21 | B39: 4113 | C39: 11 | D39: 4127 | E39: 11 | F39: 4144 | K39: 0 | L39: 211
A40: 21 | B40: 4233 | C40: 11 | D40: 4243 | E40: 11 | F40: 4256 | K40: 0 | L40: 211
A41: 21 | B41: 4345 | C41: 11 | D41: 4362 | E41: 11 | F41: 4380 | K41: 0 | L41: 211
A42: 21 | B42: 4467 | C42: 11 | D42: 4476 | E42: 11 | F42: 4527 | K42: 0 | L42: 211
A43: 21 | B43: 4615 | C43: 11 | D43: 4629 | E43: 11 | F43: 4661 | K43: 0 | L43: 211
A44: 21 | B44: 4749 | C44: 11 | D44: 4758 | E44: 11 | F44: 4802 | K44: 0 | L44: 211
A45: 21 | B45: 4894 | C45: 11 | D45: 4902 | E45: 11 | F45: 4914 | K45: 0 | L45: 211
A46: 21 | B46: 5002 | C46: 11 | D46: 5017 | E46: 11 | F46: 5024 | K46: 0 | L46: 211
A47: 21 | B47: 5112 | C47: 11 | D47: 5122 | E47: 11 | F47: 5157 | K47: 0 | L47: 211
A48: 21 | B48: 5246 | C48: 11 | D48: 5261 | E48: 11 | F48: 5271 | K48: 0 | L48: 211
A49: 21 | B49: 5359 | C49: 11 | D49: 5366 | E49: 11 | F49: 5392 | K49: 0 | L49: 211
A50: 21 | B50: 5481 | C50: 11 | D50: 5503 | E50: 22 | F50: 5550 | K50: 0 | L50: 212
A51: 21 | B51: 5646 | C51: 11 | D51: 5654 | E51: 11 | F51: 5666 | K51: 0 | L51: 211
A52: 21 | B52: 5756 | C52: 11 | D52: 5770 | E52: 11 | F52: 5804 | K52: 1 | L52: 211

Sheet !MB02A00.010
A1: Report for:!MB02A00.010
A2: Date: | B2: <date>
A3: Hen: | B3: <hen> | F3: Correct Sequence | G3: =Start!J2 -> 211 | P3: Total Sequences in Data | Q3: =4994-COUNTBLANK(L7:L5000) -> 45 | V3: Total Sequences in Block Data | W3: =COUNTA(L7:L14) -> 8 | AA3: Total Sequences in Block Data | AB3: =COUNTA(L15:L21) -> 7 | AF3: Total Sequences in Block Data | AG3: =COUNTA(L22:L29) -> 8 | AK3: Total Sequences in Block Data | AL3: =COUNTA(L30:L36) -> 7 | AP3: Total Sequences in Block Data | AQ3: =COUNTA(L37:L44) -> 8 | AU3: Total Sequences in Block Data | AV3: =COUNTA(L45:L51) -> 7
P4: Total Sequences in Summary | Q4: =SUM(O7:O14) -> 45 | V4: Total Sequences in Block Summary | W4: =SUM(U7:U14) -> 8 | AA4: Total Sequences in Block Summary | AB4: =SUM(Z7:Z14) -> 7 | AF4: Total Sequences in Block Summary | AG4: =SUM(AE7:AE14) -> 8 | AK4: Total Sequences in Block Summary | AL4: =SUM(AJ7:AJ14) -> 7 | AP4: Total Sequences in Block Summary | AQ4: =SUM(AO7:AO14) -> 8 | AU4: Total Sequences in Block Summary | AV4: =SUM(AT7:AT14) -> 7
T5: Block 1 | Y5: Block 2 | AD5: Block 3 | AI5: Block 4 | AN5: Block 5 | AS5: Block 6
A6: Sequence Component 1 | B6: Time 1 | C6: Sequence Component 2 | D6: Time 2 | E6: Sequence Component 3 | F6: Time 3 | G6: Sequence Component 4 | H6: Time 4 | I6: Sequence Component 5 | J6: Time 5 | K6: Correct? 0=No 1=Yes | L6: Sequence | N6: Frequency | P6: Relative Frequency | Q6: Variability | T6: Frequency | V6: Relative Frequency | W6: Variability | Y6: Frequency | AA6: Relative Frequency | AB6: Variability | AD6: Frequency | AF6: Relative Frequency | AG6: Variability | AI6: Frequency | AK6: Relative Frequency | AL6: Variability | AN6: Frequency | AP6: Relative Frequency | AQ6: Variability | AS6: Frequency | AU6: Relative Frequency | AV6: Variability
A7: 21 | B7: 6 | C7: 11 | D7: 13 | E7: 11 | F7: 24 | K7: 0 | L7: 211 | N7: 111 | O7: =COUNTIF($L$7:$L$500,N7) -> 3 | P7: =O7/$Q$4 -> 0.06666666667 | Q7: =IF(P7=0,0,(P7*((LOG(P7))/LOG(2)))) -> -0.260459373 | T7: =N7 -> 111 | U7: =COUNTIF(L7:L14,T7) -> 1 | V7: =U7/(W4-U11) -> 1 | W7: =IF(V7=0,0,(V7*((LOG(V7))/LOG(2)))) -> 0 | Y7: =N7 -> 111 | Z7: =COUNTIF(L15:L21,Y7) -> 1 | AA7: =Z7/(AB4-Z11) -> 0.5 | AB7: =IF(AA7=0,0,(AA7*((LOG(AA7))/LOG(2)))) -> -0.5 | AD7: =N7 -> 111 | AE7: =COUNTIF(L22:L29,AD7) -> 1 | AF7: =AE7/(AG4-AE11) -> 0.5 | AG7: =IF(AF7=0,0,(AF7*((LOG(AF7))/LOG(2)))) -> -0.5 | AI7: =N7 -> 111 | AJ7: =COUNTIF(L30:L36,AI7) -> 0 | AK7: =AJ7/(AL4-AJ11) ->  | AL7: =IF(AK7=0,0,(AK7*((LOG(AK7))/LOG(2)))) ->  | AN7: =N7 -> 111 | AO7: =COUNTIF(L37:L44,AN7) -> 0 | AP7: =AO7/(AQ4-AO11) ->  | AQ7: =IF(AP7=0,0,(AP7*((LOG(AP7))/LOG(2)))) ->  | AS7: =N7 -> 111 | AT7: =COUNTIF(L45:L51,AS7) -> 0 | AU7: =AT7/(AV4-AT11) -> 0 | AV7: =IF(AU7=0,0,(AU7*((LOG(AU7))/LOG(2)))) -> 0
A8: 21 | B8: 111 | C8: 11 | D8: 131 | E8: 11 | F8: 155 | K8: 0 | L8: 211 | N8: 112 | O8: =COUNTIF($L$7:$L$500,N8) -> 0 | P8: =O8/$Q$4 -> 0 | Q8: =IF(P8=0,0,(P8*((LOG(P8))/LOG(2)))) -> 0 | T8: =N8 -> 112 | U8: =COUNTIF(L7:L14,T8) -> 0 | V8: =U8/(W4-U11) -> 0 | W8: =IF(V8=0,0,(V8*((LOG(V8))/LOG(2)))) -> 0 | Y8: =N8 -> 112 | Z8: =COUNTIF(L15:L21,Y8) -> 0 | AA8: =Z8/(AB4-Z11) -> 0 | AB8: =IF(AA8=0,0,(AA8*((LOG(AA8))/LOG(2)))) -> 0 | AD8: =N8 -> 112 | AE8: =COUNTIF(L22:L29,AD8) -> 0 | AF8: =AE8/(AG4-AE11) -> 0 | AG8: =IF(AF8=0,0,(AF8*((LOG(AF8))/LOG(2)))) -> 0 | AI8: =N8 -> 112 | AJ8: =COUNTIF(L30:L36,AI8) -> 0 | AK8: =AJ8/(AL4-AJ11) ->  | AL8: =IF(AK8=0,0,(AK8*((LOG(AK8))/LOG(2)))) ->  | AN8: =N8 -> 112 | AO8: =COUNTIF(L37:L44,AN8) -> 0 | AP8: =AO8/(AQ4-AO11) ->  | AQ8: =IF(AP8=0,0,(AP8*((LOG(AP8))/LOG(2)))) ->  | AS8: =N8 -> 112 | AT8: =COUNTIF(L45:L51,AS8) -> 0 | AU8: =AT8/(AV4-AT11) -> 0 | AV8: =IF(AU8=0,0,(AU8*((LOG(AU8))/LOG(2)))) -> 0
A9: 21 | B9: 248 | C9: 11 | D9: 262 | E9: 11 | F9: 287 | K9: 0 | L9: 211 | N9: 121 | O9: =COUNTIF($L$7:$L$500,N9) -> 0 | P9: =O9/$Q$4 -> 0 | Q9: =IF(P9=0,0,(P9*((LOG(P9))/LOG(2)))) -> 0 | T9: =N9 -> 121 | U9: =COUNTIF(L7:L14,T9) -> 0 | V9: =U9/(W4-U11) -> 0 | W9: =IF(V9=0,0,(V9*((LOG(V9))/LOG(2)))) -> 0 | Y9: =N9 -> 121 | Z9: =COUNTIF(L15:L21,Y9) -> 0 | AA9: =Z9/(AB4-Z11) -> 0 | AB9: =IF(AA9=0,0,(AA9*((LOG(AA9))/LOG(2)))) -> 0 | AD9: =N9 -> 121 | AE9: =COUNTIF(L22:L29,AD9) -> 0 | AF9: =AE9/(AG4-AE11) -> 0 | AG9: =IF(AF9=0,0,(AF9*((LOG(AF9))/LOG(2)))) -> 0 | AI9: =N9 -> 121 | AJ9: =COUNTIF(L30:L36,AI9) -> 0 | AK9: =AJ9/(AL4-AJ11) ->  | AL9: =IF(AK9=0,0,(AK9*((LOG(AK9))/LOG(2)))) ->  | AN9: =N9 -> 121 | AO9: =COUNTIF(L37:L44,AN9) -> 0 | AP9: =AO9/(AQ4-AO11) ->  | AQ9: =IF(AP9=0,0,(AP9*((LOG(AP9))/LOG(2)))) ->  | AS9: =N9 -> 121 | AT9: =COUNTIF(L45:L51,AS9) -> 0 | AU9: =AT9/(AV4-AT11) -> 0 | AV9: =IF(AU9=0,0,(AU9*((LOG(AU9))/LOG(2)))) -> 0
A10: 12 | B10: 398 | C10: 13 | D10: 405 | E10: 13 | F10: 416 | K10: 0 | L10: 111 | N10: 122 | O10: =COUNTIF($L$7:$L$500,N10) -> 0 | P10: =O10/$Q$4 -> 0 | Q10: =IF(P10=0,0,(P10*((LOG(P10))/LOG(2)))) -> 0 | T10: =N10 -> 122 | U10: =COUNTIF(L7:L14,T10) -> 0 | V10: =U10/(W4-U11) -> 0 | W10: =IF(V10=0,0,(V10*((LOG(V10))/LOG(2)))) -> 0 | Y10: =N10 -> 122 | Z10: =COUNTIF(L15:L21,Y10) -> 0 | AA10: =Z10/(AB4-Z11) -> 0 | AB10: =IF(AA10=0,0,(AA10*((LOG(AA10))/LOG(2)))) -> 0 | AD10: =N10 -> 122 | AE10: =COUNTIF(L22:L29,AD10) -> 0 | AF10: =AE10/(AG4-AE11) -> 0 | AG10: =IF(AF10=0,0,(AF10*((LOG(AF10))/LOG(2)))) -> 0 | AI10: =N10 -> 122 | AJ10: =COUNTIF(L30:L36,AI10) -> 0 | AK10: =AJ10/(AL4-AJ11) ->  | AL10: =IF(AK10=0,0,(AK10*((LOG(AK10))/LOG(2)))) ->  | AN10: =N10 -> 122 | AO10: =COUNTIF(L37:L44,AN10) -> 0 | AP10: =AO10/(AQ4-AO11) ->  | AQ10: =IF(AP10=0,0,(AP10*((LOG(AP10))/LOG(2)))) ->  | AS10: =N10 -> 122 | AT10: =COUNTIF(L45:L51,AS10) -> 0 | AU10: =AT10/(AV4-AT11) -> 0 | AV10: =IF(AU10=0,0,(AU10*((LOG(AU10))/LOG(2)))) -> 0
A11: 21 | B11: 524 | C11: 11 | D11: 533 | E11: 11 | F11: 554 | K11: 0 | L11: 211 | N11: 211 | O11: =COUNTIF($L$7:$L$500,N11) -> 39 | P11: =O11/$Q$4 -> 0.8666666667 | Q11: =IF(P11=0,0,(P11*((LOG(P11))/LOG(2)))) -> -0.1789240938 | T11: =N11 -> 211 | U11: =COUNTIF(L7:L14,T11) -> 7 | Y11: =N11 -> 211 | Z11: =COUNTIF(L15:L21,Y11) -> 5 | AD11: =N11 -> 211 | AE11: =COUNTIF(L22:L29,AD11) -> 6 | AI11: =N11 -> 211 | AJ11: =COUNTIF(L30:L36,AI11) -> 7 | AN11: =N11 -> 211 | AO11: =COUNTIF(L37:L44,AN11) -> 8 | AS11: =N11 -> 211 | AT11: =COUNTIF(L45:L51,AS11) -> 6
A12: 21 | B12: 643 | C12: 11 | D12: 656 | E12: 11 | F12: 668 | K12: 0 | L12: 211 | N12: 212 | O12: =COUNTIF($L$7:$L$500,N12) -> 0 | P12: =O12/$Q$4 -> 0 | Q12: =IF(P12=0,0,(P12*((LOG(P12))/LOG(2)))) -> 0 | T12: =N12 -> 212 | U12: =COUNTIF(L7:L14,T12) -> 0 | V12: =U12/(W4-U11) -> 0 | W12: =IF(V12=0,0,(V12*((LOG(V12))/LOG(2)))) -> 0 | Y12: =N12 -> 212 | Z12: =COUNTIF(L15:L21,Y12) -> 0 | AA12: =Z12/(AB4-Z11) -> 0 | AB12: =IF(AA12=0,0,(AA12*((LOG(AA12))/LOG(2)))) -> 0 | AD12: =N12 -> 212 | AE12: =COUNTIF(L22:L29,AD12) -> 0 | AF12: =AE12/(AG4-AE11) -> 0 | AG12: =IF(AF12=0,0,(AF12*((LOG(AF12))/LOG(2)))) -> 0 | AI12: =N12 -> 212 | AJ12: =COUNTIF(L30:L36,AI12) -> 0 | AK12: =AJ12/(AL4-AJ11) ->  | AL12: =IF(AK12=0,0,(AK12*((LOG(AK12))/LOG(2)))) ->  | AN12: =N12 -> 212 | AO12: =COUNTIF(L37:L44,AN12) -> 0 | AP12: =AO12/(AQ4-AO11) ->  | AQ12: =IF(AP12=0,0,(AP12*((LOG(AP12))/LOG(2)))) ->  | AS12: =N12 -> 212 | AT12: =COUNTIF(L45:L51,AS12) -> 0 | AU12: =AT12/(AV4-AT11) -> 0 | AV12: =IF(AU12=0,0,(AU12*((LOG(AU12))/LOG(2)))) -> 0
A13: 21 | B13: 755 | C13: 11 | D13: 764 | E13: 11 | F13: 772 | K13: 0 | L13: 211 | N13: 221 | O13: =COUNTIF($L$7:$L$500,N13) -> 3 | P13: =O13/$Q$4 -> 0.06666666667 | Q13: =IF(P13=0,0,(P13*((LOG(P13))/LOG(2)))) -> -0.260459373 | T13: =N13 -> 221 | U13: =COUNTIF(L7:L14,T13) -> 0 | V13: =U13/(W4-U11) -> 0 | W13: =IF(V13=0,0,(V13*((LOG(V13))/LOG(2)))) -> 0 | Y13: =N13 -> 221 | Z13: =COUNTIF(L15:L21,Y13) -> 1 | AA13: =Z13/(AB4-Z11) -> 0.5 | AB13: =IF(AA13=0,0,(AA13*((LOG(AA13))/LOG(2)))) -> -0.5 | AD13: =N13 -> 221 | AE13: =COUNTIF(L22:L29,AD13) -> 1 | AF13: =AE13/(AG4-AE11) -> 0.5 | AG13: =IF(AF13=0,0,(AF13*((LOG(AF13))/LOG(2)))) -> -0.5 | AI13: =N13 -> 221 | AJ13: =COUNTIF(L30:L36,AI13) -> 0 | AK13: =AJ13/(AL4-AJ11) ->  | AL13: =IF(AK13=0,0,(AK13*((LOG(AK13))/LOG(2)))) ->  | AN13: =N13 -> 221 | AO13: =COUNTIF(L37:L44,AN13) -> 0 | AP13: =AO13/(AQ4-AO11) ->  | AQ13: =IF(AP13=0,0,(AP13*((LOG(AP13))/LOG(2)))) ->  | AS13: =N13 -> 221 | AT13: =COUNTIF(L45:L51,AS13) -> 1 | AU13: =AT13/(AV4-AT11) -> 1 | AV13: =IF(AU13=0,0,(AU13*((LOG(AU13))/LOG(2)))) -> 0
A14: 21 | B14: 861 | C14: 11 | D14: 874 | E14: 11 | F14: 881 | K14: 0 | L14: 211 | N14: 222 | O14: =COUNTIF($L$7:$L$500,N14) -> 0 | P14: =O14/$Q$4 -> 0 | Q14: =IF(P14=0,0,(P14*((LOG(P14))/LOG(2)))) -> 0 | T14: =N14 -> 222 | U14: =COUNTIF(L7:L14,T14) -> 0 | V14: =U14/(W4-U11) -> 0 | W14: =IF(V14=0,0,(V14*((LOG(V14))/LOG(2)))) -> 0 | Y14: =N14 -> 222 | Z14: =COUNTIF(L15:L21,Y14) -> 0 | AA14: =Z14/(AB4-Z11) -> 0 | AB14: =IF(AA14=0,0,(AA14*((LOG(AA14))/LOG(2)))) -> 0 | AD14: =N14 -> 222 | AE14: =COUNTIF(L22:L29,AD14) -> 0 | AF14: =AE14/(AG4-AE11) -> 0 | AG14: =IF(AF14=0,0,(AF14*((LOG(AF14))/LOG(2)))) -> 0 | AI14: =N14 -> 222 | AJ14: =COUNTIF(L30:L36,AI14) -> 0 | AK14: =AJ14/(AL4-AJ11) ->  | AL14: =IF(AK14=0,0,(AK14*((LOG(AK14))/LOG(2)))) ->  | AN14: =N14 -> 222 | AO14: =COUNTIF(L37:L44,AN14) -> 0 | AP14: =AO14/(AQ4-AO11) ->  | AQ14: =IF(AP14=0,0,(AP14*((LOG(AP14))/LOG(2)))) ->  | AS14: =N14 -> 222 | AT14: =COUNTIF(L45:L51,AS14) -> 0 | AU14: =AT14/(AV4-AT11) -> 0 | AV14: =IF(AU14=0,0,(AU14*((LOG(AU14))/LOG(2)))) -> 0
A15: 12 | B15: 993 | C15: 13 | D15: 1006 | E15: 13 | F15: 1016 | K15: 0 | L15: 111 | P15: =SUM(P7:P14) -> 1 | Q15: =-SUM(Q7:Q14) -> 0.6998428399 | V15: =SUM(V7:V14) -> 1 | W15: =-SUM(W7:W14) -> 0 | AA15: =SUM(AA7:AA14) -> 1 | AB15: =-SUM(AB7:AB14) -> 1 | AF15: =SUM(AF7:AF14) -> 1 | AG15: =-SUM(AG7:AG14) -> 1 | AK15: =SUM(AK7:AK14) ->  | AL15: =-SUM(AL7:AL14) ->  | AP15: =SUM(AP7:AP14) ->  | AQ15: =-SUM(AQ7:AQ14) ->  | AU15: =SUM(AU7:AU14) -> 1 | AV15: =-SUM(AV7:AV14) -> 0
A16: 21 | B16: 1112 | C16: 11 | D16: 1155 | E16: 11 | F16: 1183 | K16: 0 | L16: 211 | P16: U= | Q16: =Q15/(LOG(Q4)/LOG(2)) -> 0.1274329134 | V16: U1= | W16: =W15/(LOG(W4)/LOG(2)) -> 0 | AA16: U2= | AB16: =AB15/(LOG(AB4)/LOG(2)) -> 0.3562071871 | AF16: U3= | AG16: =AG15/(LOG(AG4)/LOG(2)) -> 0.3333333333 | AK16: U4= | AL16: =AL15/(LOG(AL4)/LOG(2)) ->  | AP16: U5= | AQ16: =AQ15/(LOG(AQ4)/LOG(2)) ->  | AU16: U6= | AV16: =AV15/(LOG(AV4)/LOG(2)) -> 0
A17: 21 | B17: 1270 | C17: 11 | D17: 1288 | E17: 11 | F17: 1309 | K17: 0 | L17: 211
A18: 21 | B18: 1398 | C18: 11 | D18: 1416 | E18: 11 | F18: 1431 | K18: 0 | L18: 211
A19: 21 | B19: 1518 | C19: 22 | D19: 1529 | E19: 13 | F19: 1543 | K19: 0 | L19: 221 | N19: Total Target Seq
A20: 21 | B20: 1630 | C20: 11 | D20: 1640 | E20: 11 | F20: 1659 | K20: 0 | L20: 211 | N20: =COUNTIF(L7:L51,G3) -> 39 | P20: 8 | Q20: 7 | R20: 8 | S20: 7 | T20: 8 | U20: 7
A21: 21 | B21: 1746 | C21: 11 | D21: 1760 | E21: 11 | F21: 1766 | K21: 0 | L21: 211 | P21: % of reinforcement given in 6 equal intervals based on number of trials
A22: 21 | B22: 1855 | C22: 11 | D22: 1903 | E22: 11 | F22: 1918 | K22: 0 | L22: 211 | P22: %_1 | Q22: %_2 | R22: %_3 | S22: %_4 | T22: %_5 | U22: %_6
A23: 21 | B23: 2005 | C23: 11 | D23: 2018 | E23: 11 | F23: 2032 | K23: 0 | L23: 211 | O23: target sequence | P23: =$G$3 -> 211 | Q23: =$G$3 -> 211 | R23: =$G$3 -> 211 | S23: =$G$3 -> 211 | T23: =$G$3 -> 211 | U23: =$G$3 -> 211
A24: 21 | B24: 2119 | C24: 11 | D24: 2164 | E24: 11 | F24: 2175 | K24: 0 | L24: 211 | O24: total reinforcement | P24: =U11 -> 7 | Q24: =Z11 -> 5 | R24: =AE11 -> 6 | S24: =AJ11 -> 7 | T24: =AO11 -> 8 | U24: =AT11 -> 6
A25: 21 | B25: 2261 | C25: 11 | D25: 2286 | E25: 11 | F25: 2296 | K25: 0 | L25: 211 | O25: % target
A26: 21 | B26: 2385 | C26: 11 | D26: 2409 | E26: 11 | F26: 2431 | K26: 0 | L26: 211 | O26: CCRF
A27: 12 | B27: 2565 | C27: 13 | D27: 2574 | E27: 13 | F27: 2582 | K27: 0 | L27: 111 | O27: % CCRf
A28: 21 | B28: 2678 | C28: 11 | D28: 2702 | E28: 11 | F28: 2709 | K28: 0 | L28: 211 | O28: average response rate | P28: =F14/P20 -> 110.125 | Q28: =(F21-F14)/Q20 -> 126.4285714 | R28: =(F29-F21)/R20 -> 131.5 | S28: =(F36-F29)/S20 -> 124 | T28: =(F44-F36)/T20 -> 111.875 | U28: =(F51-F44)/U20 -> 121
A29: 21 | B29: 2799 | C29: 22 | D29: 2805 | E29: 13 | F29: 2818 | K29: 0 | L29: 221
A30: 21 | B30: 2914 | C30: 11 | D30: 2924 | E30: 11 | F30: 2934 | K30: 0 | L30: 211
A31: 21 | B31: 3021 | C31: 11 | D31: 3031 | E31: 11 | F31: 3042 | K31: 0 | L31: 211
A32: 21 | B32: 3130 | C32: 11 | D32: 3156 | E32: 11 | F32: 3167 | K32: 0 | L32: 211
A33: 21 | B33: 3255 | C33: 11 | D33: 3305 | E33: 11 | F33: 3312 | K33: 0 | L33: 211
A34: 21 | B34: 3401 | C34: 11 | D34: 3449 | E34: 11 | F34: 3464 | K34: 0 | L34: 211
A35: 21 | B35: 3552 | C35: 11 | D35: 3566 | E35: 11 | F35: 3572 | K35: 0 | L35: 211
A36: 21 | B36: 3659 | C36: 11 | D36: 3676 | E36: 11 | F36: 3686 | K36: 0 | L36: 211
A37: 21 | B37: 3772 | C37: 11 | D37: 3783 | E37: 11 | F37: 3793 | K37: 0 | L37: 211
A38: 21 | B38: 3883 | C38: 11 | D38: 3892 | E38: 11 | F38: 3901 | K38: 0 | L38: 211
A39: 21 | B39: 3989 | C39: 11 | D39: 4005 | E39: 11 | F39: 4029 | K39: 0 | L39: 211
A40: 21 | B40: 4117 | C40: 11 | D40: 4131 | E40: 11 | F40: 4138 | K40: 0 | L40: 211
A41: 21 | B41: 4226 | C41: 11 | D41: 4235 | E41: 11 | F41: 4244 | K41: 0 | L41: 211
A42: 21 | B42: 4336 | C42: 11 | D42: 4359 | E42: 11 | F42: 4369 | K42: 0 | L42: 211
A43: 21 | B43: 4456 | C43: 11 | D43: 4469 | E43: 11 | F43: 4476 | K43: 0 | L43: 211
A44: 21 | B44: 4562 | C44: 11 | D44: 4572 | E44: 11 | F44: 4581 | K44: 0 | L44: 211
A45: 21 | B45: 4668 | C45: 11 | D45: 4686 | E45: 11 | F45: 4712 | K45: 0 | L45: 211
A46: 21 | B46: 4799 | C46: 11 | D46: 4818 | E46: 11 | F46: 4824 | K46: 0 | L46: 211
A47: 21 | B47: 4911 | C47: 11 | D47: 4934 | E47: 11 | F47: 4945 | K47: 0 | L47: 211
A48: 21 | B48: 5031 | C48: 11 | D48: 5057 | E48: 11 | F48: 5069 | K48: 0 | L48: 211
A49: 21 | B49: 5160 | C49: 11 | D49: 5187 | E49: 11 | F49: 5198 | K49: 0 | L49: 211
A50: 21 | B50: 5285 | C50: 22 | D50: 5289 | E50: 13 | F50: 5306 | K50: 0 | L50: 221
A51: 21 | B51: 5402 | C51: 11 | D51: 5419 | E51: 11 | F51: 5428 | K51: 1 | L51: 211

Sheet !MB03840.010
A1: Report for:!MB03840.010
A2: Date: | B2: <date>
A3: Hen: | B3: <hen> | F3: Correct Sequence | G3: =Start!J2 -> 211 | P3: Total Sequences in Data | Q3: =4994-COUNTBLANK(L7:L5000) -> 49 | V3: Total Sequences in Block Data | W3: =COUNTA(L7:L14) -> 8 | AA3: Total Sequences in Block Data | AB3: =COUNTA(L15:L22) -> 8 | AF3: Total Sequences in Block Data | AG3: =COUNTA(L23:L31) -> 9 | AK3: Total Sequences in Block Data | AL3: =COUNTA(L32:L39) -> 8 | AP3: Total Sequences in Block Data | AQ3: =COUNTA(L40:L47) -> 8 | AU3: Total Sequences in Block Data | AV3: =COUNTA(L48:L55) -> 8
P4: Total Sequences in Summary | Q4: =SUM(O7:O14) -> 49 | V4: Total Sequences in Block Summary | W4: =SUM(U7:U14) -> 8 | AA4: Total Sequences in Block Summary | AB4: =SUM(Z7:Z14) -> 8 | AF4: Total Sequences in Block Summary | AG4: =SUM(AE7:AE14) -> 9 | AK4: Total Sequences in Block Summary | AL4: =SUM(AJ7:AJ14) -> 8 | AP4: Total Sequences in Block Summary | AQ4: =SUM(AO7:AO14) -> 8 | AU4: Total Sequences in Block Summary | AV4: =SUM(AT7:AT14) -> 8
T5: Block 1 | Y5: Block 2 | AD5: Block 3 | AI5: Block 4 | AN5: Block 5 | AS5: Block 6
A6: Sequence Component 1 | B6: Time 1 | C6: Sequence Component 2 | D6: Time 2 | E6: Sequence Component 3 | F6: Time 3 | G6: Sequence Component 4 | H6: Time 4 | I6: Sequence Component 5 | J6: Time 5 | K6: Correct? 0=No 1=Yes | L6: Sequence | N6: Frequency | P6: Relative Frequency | Q6: Variability | T6: Frequency | V6: Relative Frequency | W6: Variability | Y6: Frequency | AA6: Relative Frequency | AB6: Variability | AD6: Frequency | AF6: Relative Frequency | AG6: Variability | AI6: Frequency | AK6: Relative Frequency | AL6: Variability | AN6: Frequency | AP6: Relative Frequency | AQ6: Variability | AS6: Frequency | AU6: Relative Frequency | AV6: Variability
A7: 12 | B7: 105 | C7: 24 | D7: 123 | E7: 13 | F7: 140 | K7: 0 | L7: 121 | N7: 111 | O7: =COUNTIF($L$7:$L$500,N7) -> 6 | P7: =O7/$Q$4 -> 0.1224489796 | Q7: =IF(P7=0,0,(P7*((LOG(P7))/LOG(2)))) -> -0.3709894706 | T7: =N7 -> 111 | U7: =COUNTIF(L7:L14,T7) -> 3 | V7: =U7/(W4-U11) -> 0.75 | W7: =IF(V7=0,0,(V7*((LOG(V7))/LOG(2)))) -> -0.3112781245 | Y7: =N7 -> 111 | Z7: =COUNTIF(L15:L22,Y7) -> 0 | AA7: =Z7/(AB4-Z11) -> 0 | AB7: =IF(AA7=0,0,(AA7*((LOG(AA7))/LOG(2)))) -> 0 | AD7: =N7 -> 111 | AE7: =COUNTIF(L23:L31,AD7) -> 0 | AF7: =AE7/(AG4-AE11) ->  | AG7: =IF(AF7=0,0,(AF7*((LOG(AF7))/LOG(2)))) ->  | AI7: =N7 -> 111 | AJ7: =COUNTIF(L32:L39,AI7) -> 0 | AK7: =AJ7/(AL4-AJ11) -> 0 | AL7: =IF(AK7=0,0,(AK7*((LOG(AK7))/LOG(2)))) -> 0 | AN7: =N7 -> 111 | AO7: =COUNTIF(L40:L47,AN7) -> 1 | AP7: =AO7/(AQ4-AO11) -> 0.5 | AQ7: =IF(AP7=0,0,(AP7*((LOG(AP7))/LOG(2)))) -> -0.5 | AS7: =N7 -> 111 | AT7: =COUNTIF(L48:L55,AS7) -> 2 | AU7: =AT7/(AV4-AT11) -> 1 | AV7: =IF(AU7=0,0,(AU7*((LOG(AU7))/LOG(2)))) -> 0
A8: 21 | B8: 237 | C8: 11 | D8: 247 | E8: 11 | F8: 266 | K8: 0 | L8: 211 | N8: 112 | O8: =COUNTIF($L$7:$L$500,N8) -> 0 | P8: =O8/$Q$4 -> 0 | Q8: =IF(P8=0,0,(P8*((LOG(P8))/LOG(2)))) -> 0 | T8: =N8 -> 112 | U8: =COUNTIF(L7:L14,T8) -> 0 | V8: =U8/(W4-U11) -> 0 | W8: =IF(V8=0,0,(V8*((LOG(V8))/LOG(2)))) -> 0 | Y8: =N8 -> 112 | Z8: =COUNTIF(L15:L22,Y8) -> 0 | AA8: =Z8/(AB4-Z11) -> 0 | AB8: =IF(AA8=0,0,(AA8*((LOG(AA8))/LOG(2)))) -> 0 | AD8: =N8 -> 112 | AE8: =COUNTIF(L23:L31,AD8) -> 0 | AF8: =AE8/(AG4-AE11) ->  | AG8: =IF(AF8=0,0,(AF8*((LOG(AF8))/LOG(2)))) ->  | AI8: =N8 -> 112 | AJ8: =COUNTIF(L32:L39,AI8) -> 0 | AK8: =AJ8/(AL4-AJ11) -> 0 | AL8: =IF(AK8=0,0,(AK8*((LOG(AK8))/LOG(2)))) -> 0 | AN8: =N8 -> 112 | AO8: =COUNTIF(L40:L47,AN8) -> 0 | AP8: =AO8/(AQ4-AO11) -> 0 | AQ8: =IF(AP8=0,0,(AP8*((LOG(AP8))/LOG(2)))) -> 0 | AS8: =N8 -> 112 | AT8: =COUNTIF(L48:L55,AS8) -> 0 | AU8: =AT8/(AV4-AT11) -> 0 | AV8: =IF(AU8=0,0,(AU8*((LOG(AU8))/LOG(2)))) -> 0
A9: 12 | B9: 374 | C9: 13 | D9: 392 | E9: 13 | F9: 409 | K9: 0 | L9: 111 | N9: 121 | O9: =COUNTIF($L$7:$L$500,N9) -> 1 | P9: =O9/$Q$4 -> 0.02040816327 | Q9: =IF(P9=0,0,(P9*((LOG(P9))/LOG(2)))) -> -0.1145859152 | T9: =N9 -> 121 | U9: =COUNTIF(L7:L14,T9) -> 1 | V9: =U9/(W4-U11) -> 0.25 | W9: =IF(V9=0,0,(V9*((LOG(V9))/LOG(2)))) -> -0.5 | Y9: =N9 -> 121 | Z9: =COUNTIF(L15:L22,Y9) -> 0 | AA9: =Z9/(AB4-Z11) -> 0 | AB9: =IF(AA9=0,0,(AA9*((LOG(AA9))/LOG(2)))) -> 0 | AD9: =N9 -> 121 | AE9: =COUNTIF(L23:L31,AD9) -> 0 | AF9: =AE9/(AG4-AE11) ->  | AG9: =IF(AF9=0,0,(AF9*((LOG(AF9))/LOG(2)))) ->  | AI9: =N9 -> 121 | AJ9: =COUNTIF(L32:L39,AI9) -> 0 | AK9: =AJ9/(AL4-AJ11) -> 0 | AL9: =IF(AK9=0,0,(AK9*((LOG(AK9))/LOG(2)))) -> 0 | AN9: =N9 -> 121 | AO9: =COUNTIF(L40:L47,AN9) -> 0 | AP9: =AO9/(AQ4-AO11) -> 0 | AQ9: =IF(AP9=0,0,(AP9*((LOG(AP9))/LOG(2)))) -> 0 | AS9: =N9 -> 121 | AT9: =COUNTIF(L48:L55,AS9) -> 0 | AU9: =AT9/(AV4-AT11) -> 0 | AV9: =IF(AU9=0,0,(AU9*((LOG(AU9))/LOG(2)))) -> 0
A10: 21 | B10: 503 | C10: 11 | D10: 521 | E10: 11 | F10: 541 | K10: 0 | L10: 211 | N10: 122 | O10: =COUNTIF($L$7:$L$500,N10) -> 0 | P10: =O10/$Q$4 -> 0 | Q10: =IF(P10=0,0,(P10*((LOG(P10))/LOG(2)))) -> 0 | T10: =N10 -> 122 | U10: =COUNTIF(L7:L14,T10) -> 0 | V10: =U10/(W4-U11) -> 0 | W10: =IF(V10=0,0,(V10*((LOG(V10))/LOG(2)))) -> 0 | Y10: =N10 -> 122 | Z10: =COUNTIF(L15:L22,Y10) -> 0 | AA10: =Z10/(AB4-Z11) -> 0 | AB10: =IF(AA10=0,0,(AA10*((LOG(AA10))/LOG(2)))) -> 0 | AD10: =N10 -> 122 | AE10: =COUNTIF(L23:L31,AD10) -> 0 | AF10: =AE10/(AG4-AE11) ->  | AG10: =IF(AF10=0,0,(AF10*((LOG(AF10))/LOG(2)))) ->  | AI10: =N10 -> 122 | AJ10: =COUNTIF(L32:L39,AI10) -> 0 | AK10: =AJ10/(AL4-AJ11) -> 0 | AL10: =IF(AK10=0,0,(AK10*((LOG(AK10))/LOG(2)))) -> 0 | AN10: =N10 -> 122 | AO10: =COUNTIF(L40:L47,AN10) -> 0 | AP10: =AO10/(AQ4-AO11) -> 0 | AQ10: =IF(AP10=0,0,(AP10*((LOG(AP10))/LOG(2)))) -> 0 | AS10: =N10 -> 122 | AT10: =COUNTIF(L48:L55,AS10) -> 0 | AU10: =AT10/(AV4-AT11) -> 0 | AV10: =IF(AU10=0,0,(AU10*((LOG(AU10))/LOG(2)))) -> 0
A11: 12 | B11: 655 | C11: 13 | D11: 682 | E11: 13 | F11: 693 | K11: 0 | L11: 111 | N11: 211 | O11: =COUNTIF($L$7:$L$500,N11) -> 39 | P11: =O11/$Q$4 -> 0.7959183673 | Q11: =IF(P11=0,0,(P11*((LOG(P11))/LOG(2)))) -> -0.2621019874 | T11: =N11 -> 211 | U11: =COUNTIF(L7:L14,T11) -> 4 | Y11: =N11 -> 211 | Z11: =COUNTIF(L15:L22,Y11) -> 7 | AD11: =N11 -> 211 | AE11: =COUNTIF(L23:L31,AD11) -> 9 | AI11: =N11 -> 211 | AJ11: =COUNTIF(L32:L39,AI11) -> 7 | AN11: =N11 -> 211 | AO11: =COUNTIF(L40:L47,AN11) -> 6 | AS11: =N11 -> 211 | AT11: =COUNTIF(L48:L55,AS11) -> 6
A12: 21 | B12: 790 | C12: 11 | D12: 801 | E12: 11 | F12: 813 | K12: 0 | L12: 211 | N12: 212 | O12: =COUNTIF($L$7:$L$500,N12) -> 0 | P12: =O12/$Q$4 -> 0 | Q12: =IF(P12=0,0,(P12*((LOG(P12))/LOG(2)))) -> 0 | T12: =N12 -> 212 | U12: =COUNTIF(L7:L14,T12) -> 0 | V12: =U12/(W4-U11) -> 0 | W12: =IF(V12=0,0,(V12*((LOG(V12))/LOG(2)))) -> 0 | Y12: =N12 -> 212 | Z12: =COUNTIF(L15:L22,Y12) -> 0 | AA12: =Z12/(AB4-Z11) -> 0 | AB12: =IF(AA12=0,0,(AA12*((LOG(AA12))/LOG(2)))) -> 0 | AD12: =N12 -> 212 | AE12: =COUNTIF(L23:L31,AD12) -> 0 | AF12: =AE12/(AG4-AE11) ->  | AG12: =IF(AF12=0,0,(AF12*((LOG(AF12))/LOG(2)))) ->  | AI12: =N12 -> 212 | AJ12: =COUNTIF(L32:L39,AI12) -> 0 | AK12: =AJ12/(AL4-AJ11) -> 0 | AL12: =IF(AK12=0,0,(AK12*((LOG(AK12))/LOG(2)))) -> 0 | AN12: =N12 -> 212 | AO12: =COUNTIF(L40:L47,AN12) -> 0 | AP12: =AO12/(AQ4-AO11) -> 0 | AQ12: =IF(AP12=0,0,(AP12*((LOG(AP12))/LOG(2)))) -> 0 | AS12: =N12 -> 212 | AT12: =COUNTIF(L48:L55,AS12) -> 0 | AU12: =AT12/(AV4-AT11) -> 0 | AV12: =IF(AU12=0,0,(AU12*((LOG(AU12))/LOG(2)))) -> 0
A13: 21 | B13: 901 | C13: 11 | D13: 909 | E13: 11 | F13: 922 | K13: 0 | L13: 211 | N13: 221 | O13: =COUNTIF($L$7:$L$500,N13) -> 3 | P13: =O13/$Q$4 -> 0.0612244898 | Q13: =IF(P13=0,0,(P13*((LOG(P13))/LOG(2)))) -> -0.2467192251 | T13: =N13 -> 221 | U13: =COUNTIF(L7:L14,T13) -> 0 | V13: =U13/(W4-U11) -> 0 | W13: =IF(V13=0,0,(V13*((LOG(V13))/LOG(2)))) -> 0 | Y13: =N13 -> 221 | Z13: =COUNTIF(L15:L22,Y13) -> 1 | AA13: =Z13/(AB4-Z11) -> 1 | AB13: =IF(AA13=0,0,(AA13*((LOG(AA13))/LOG(2)))) -> 0 | AD13: =N13 -> 221 | AE13: =COUNTIF(L23:L31,AD13) -> 0 | AF13: =AE13/(AG4-AE11) ->  | AG13: =IF(AF13=0,0,(AF13*((LOG(AF13))/LOG(2)))) ->  | AI13: =N13 -> 221 | AJ13: =COUNTIF(L32:L39,AI13) -> 1 | AK13: =AJ13/(AL4-AJ11) -> 1 | AL13: =IF(AK13=0,0,(AK13*((LOG(AK13))/LOG(2)))) -> 0 | AN13: =N13 -> 221 | AO13: =COUNTIF(L40:L47,AN13) -> 1 | AP13: =AO13/(AQ4-AO11) -> 0.5 | AQ13: =IF(AP13=0,0,(AP13*((LOG(AP13))/LOG(2)))) -> -0.5 | AS13: =N13 -> 221 | AT13: =COUNTIF(L48:L55,AS13) -> 0 | AU13: =AT13/(AV4-AT11) -> 0 | AV13: =IF(AU13=0,0,(AU13*((LOG(AU13))/LOG(2)))) -> 0
A14: 12 | B14: 1023 | C14: 13 | D14: 1050 | E14: 13 | F14: 1117 | K14: 0 | L14: 111 | N14: 222 | O14: =COUNTIF($L$7:$L$500,N14) -> 0 | P14: =O14/$Q$4 -> 0 | Q14: =IF(P14=0,0,(P14*((LOG(P14))/LOG(2)))) -> 0 | T14: =N14 -> 222 | U14: =COUNTIF(L7:L14,T14) -> 0 | V14: =U14/(W4-U11) -> 0 | W14: =IF(V14=0,0,(V14*((LOG(V14))/LOG(2)))) -> 0 | Y14: =N14 -> 222 | Z14: =COUNTIF(L15:L22,Y14) -> 0 | AA14: =Z14/(AB4-Z11) -> 0 | AB14: =IF(AA14=0,0,(AA14*((LOG(AA14))/LOG(2)))) -> 0 | AD14: =N14 -> 222 | AE14: =COUNTIF(L23:L31,AD14) -> 0 | AF14: =AE14/(AG4-AE11) ->  | AG14: =IF(AF14=0,0,(AF14*((LOG(AF14))/LOG(2)))) ->  | AI14: =N14 -> 222 | AJ14: =COUNTIF(L32:L39,AI14) -> 0 | AK14: =AJ14/(AL4-AJ11) -> 0 | AL14: =IF(AK14=0,0,(AK14*((LOG(AK14))/LOG(2)))) -> 0 | AN14: =N14 -> 222 | AO14: =COUNTIF(L40:L47,AN14) -> 0 | AP14: =AO14/(AQ4-AO11) -> 0 | AQ14: =IF(AP14=0,0,(AP14*((LOG(AP14))/LOG(2)))) -> 0 | AS14: =N14 -> 222 | AT14: =COUNTIF(L48:L55,AS14) -> 0 | AU14: =AT14/(AV4-AT11) -> 0 | AV14: =IF(AU14=0,0,(AU14*((LOG(AU14))/LOG(2)))) -> 0
A15: 21 | B15: 1214 | C15: 11 | D15: 1222 | E15: 11 | F15: 1242 | K15: 0 | L15: 211 | P15: =SUM(P7:P14) -> 1 | Q15: =-SUM(Q7:Q14) -> 0.9943965984 | V15: =SUM(V7:V14) -> 1 | W15: =-SUM(W7:W14) -> 0.8112781245 | AA15: =SUM(AA7:AA14) -> 1 | AB15: =-SUM(AB7:AB14) -> 0 | AF15: =SUM(AF7:AF14) ->  | AG15: =-SUM(AG7:AG14) ->  | AK15: =SUM(AK7:AK14) -> 1 | AL15: =-SUM(AL7:AL14) -> 0 | AP15: =SUM(AP7:AP14) -> 1 | AQ15: =-SUM(AQ7:AQ14) -> 1 | AU15: =SUM(AU7:AU14) -> 1 | AV15: =-SUM(AV7:AV14) -> 0
A16: 21 | B16: 1330 | C16: 22 | D16: 1334 | E16: 13 | F16: 1345 | K16: 0 | L16: 221 | P16: U= | Q16: =Q15/(LOG(Q4)/LOG(2)) -> 0.1771056076 | V16: U1= | W16: =W15/(LOG(W4)/LOG(2)) -> 0.2704260415 | AA16: U2= | AB16: =AB15/(LOG(AB4)/LOG(2)) -> 0 | AF16: U3= | AG16: =AG15/(LOG(AG4)/LOG(2)) ->  | AK16: U4= | AL16: =AL15/(LOG(AL4)/LOG(2)) -> 0 | AP16: U5= | AQ16: =AQ15/(LOG(AQ4)/LOG(2)) -> 0.3333333333 | AU16: U6= | AV16: =AV15/(LOG(AV4)/LOG(2)) -> 0
A17: 21 | B17: 1433 | C17: 11 | D17: 1441 | E17: 11 | F17: 1455 | K17: 0 | L17: 211
A18: 21 | B18: 1542 | C18: 11 | D18: 1557 | E18: 11 | F18: 1585 | K18: 0 | L18: 211
A19: 21 | B19: 1674 | C19: 11 | D19: 1683 | E19: 11 | F19: 1699 | K19: 0 | L19: 211 | N19: Total Target Seq
A20: 21 | B20: 1788 | C20: 11 | D20: 1801 | E20: 11 | F20: 1822 | K20: 0 | L20: 211 | N20: =COUNTIF(L7:L55,G3) -> 39 | P20: 8 | Q20: 8 | R20: 9 | S20: 8 | T20: 8 | U20: 8
A21: 21 | B21: 1910 | C21: 11 | D21: 1918 | E21: 11 | F21: 1928 | K21: 0 | L21: 211 | P21: % of reinforcement given in 6 equal intervals based on number of trials
A22: 21 | B22: 2015 | C22: 11 | D22: 2024 | E22: 11 | F22: 2036 | K22: 0 | L22: 211 | P22: %_1 | Q22: %_2 | R22: %_3 | S22: %_4 | T22: %_5 | U22: %_6
A23: 21 | B23: 2127 | C23: 11 | D23: 2140 | E23: 11 | F23: 2163 | K23: 0 | L23: 211 | O23: target sequence | P23: =$G$3 -> 211 | Q23: =$G$3 -> 211 | R23: =$G$3 -> 211 | S23: =$G$3 -> 211 | T23: =$G$3 -> 211 | U23: =$G$3 -> 211
A24: 21 | B24: 2251 | C24: 11 | D24: 2265 | E24: 11 | F24: 2284 | K24: 0 | L24: 211 | O24: total reinforcement | P24: =U11 -> 4 | Q24: =Z11 -> 7 | R24: =AE11 -> 9 | S24: =AJ11 -> 7 | T24: =AO11 -> 6 | U24: =AT11 -> 6
A25: 21 | B25: 2376 | C25: 11 | D25: 2412 | E25: 11 | F25: 2421 | K25: 0 | L25: 211 | O25: % target
A26: 21 | B26: 2509 | C26: 11 | D26: 2531 | E26: 11 | F26: 2538 | K26: 0 | L26: 211 | O26: CCRF
A27: 21 | B27: 2625 | C27: 11 | D27: 2635 | E27: 11 | F27: 2645 | K27: 0 | L27: 211 | O27: % CCRf
A28: 21 | B28: 2732 | C28: 11 | D28: 2741 | E28: 11 | F28: 2748 | K28: 0 | L28: 211 | O28: average response rate | P28: =F14/P20 -> 139.625 | Q28: =(F22-F14)/Q20 -> 114.875 | R28: =(F31-F22)/R20 -> 125 | S28: =(F39-F31)/S20 -> 112.25 | T28: =(F47-F39)/T20 -> 116.5 | U28: =(F55-F47)/U20 -> 117.125
A29: 21 | B29: 2835 | C29: 11 | D29: 2864 | E29: 11 | F29: 2909 | K29: 0 | L29: 211
A30: 21 | B30: 2996 | C30: 11 | D30: 3022 | E30: 11 | F30: 3054 | K30: 0 | L30: 211
A31: 21 | B31: 3143 | C31: 11 | D31: 3152 | E31: 11 | F31: 3161 | K31: 0 | L31: 211
A32: 21 | B32: 3252 | C32: 11 | D32: 3266 | E32: 11 | F32: 3273 | K32: 0 | L32: 211
A33: 21 | B33: 3361 | C33: 22 | D33: 3365 | E33: 13 | F33: 3380 | K33: 0 | L33: 221
A34: 21 | B34: 3476 | C34: 11 | D34: 3486 | E34: 11 | F34: 3495 | K34: 0 | L34: 211
A35: 21 | B35: 3582 | C35: 11 | D35: 3596 | E35: 11 | F35: 3616 | K35: 0 | L35: 211
A36: 21 | B36: 3707 | C36: 11 | D36: 3725 | E36: 11 | F36: 3733 | K36: 0 | L36: 211
A37: 21 | B37: 3820 | C37: 11 | D37: 3828 | E37: 11 | F37: 3839 | K37: 0 | L37: 211
A38: 21 | B38: 3927 | C38: 11 | D38: 3934 | E38: 11 | F38: 3944 | K38: 0 | L38: 211
A39: 21 | B39: 4031 | C39: 11 | D39: 4039 | E39: 11 | F39: 4059 | K39: 0 | L39: 211
A40: 12 | B40: 4173 | C40: 13 | D40: 4195 | E40: 13 | F40: 4203 | K40: 0 | L40: 111
A41: 21 | B41: 4303 | C41: 11 | D41: 4310 | E41: 11 | F41: 4317 | K41: 0 | L41: 211
A42: 21 | B42: 4405 | C42: 11 | D42: 4414 | E42: 11 | F42: 4424 | K42: 0 | L42: 211
A43: 21 | B43: 4513 | C43: 11 | D43: 4537 | E43: 11 | F43: 4545 | K43: 0 | L43: 211
A44: 21 | B44: 4632 | C44: 11 | D44: 4639 | E44: 11 | F44: 4657 | K44: 0 | L44: 211
A45: 21 | B45: 4746 | C45: 22 | D45: 4751 | E45: 13 | F45: 4777 | K45: 0 | L45: 221
A46: 21 | B46: 4874 | C46: 11 | D46: 4881 | E46: 11 | F46: 4890 | K46: 0 | L46: 211
A47: 21 | B47: 4979 | C47: 11 | D47: 4986 | E47: 11 | F47: 4991 | K47: 0 | L47: 211
A48: 21 | B48: 5079 | C48: 11 | D48: 5086 | E48: 11 | F48: 5096 | K48: 0 | L48: 211
A49: 12 | B49: 5206 | C49: 13 | D49: 5217 | E49: 13 | F49: 5230 | K49: 0 | L49: 111
A50: 12 | B50: 5337 | C50: 13 | D50: 5354 | E50: 13 | F50: 5361 | K50: 0 | L50: 111
A51: 21 | B51: 5459 | C51: 11 | D51: 5481 | E51: 11 | F51: 5491 | K51: 0 | L51: 211
A52: 21 | B52: 5580 | C52: 11 | D52: 5587 | E52: 11 | F52: 5596 | K52: 0 | L52: 211
A53: 21 | B53: 5686 | C53: 11 | D53: 5694 | E53: 11 | F53: 5703 | K53: 0 | L53: 211
A54: 21 | B54: 5790 | C54: 11 | D54: 5813 | E54: 11 | F54: 5827 | K54: 0 | L54: 211
A55: 21 | B55: 5913 | C55: 11 | D55: 5921 | E55: 11 | F55: 5928 | K55: 1 | L55: 211

Sheet !MB04920.010
A1: Report for:!MB04920.010
A2: Date: | B2: <date>
A3: Hen: | B3: <hen> | F3: Correct Sequence | G3: =Start!J2 -> 211 | P3: Total Sequences in Data | Q3: =4994-COUNTBLANK(L7:L5000) -> 73 | V3: Total Sequences in Block Data | W3: =COUNTA(L7:L18) -> 12 | AA3: Total Sequences in Block Data | AB3: =COUNTA(L19:L30) -> 12 | AF3: Total Sequences in Block Data | AG3: =COUNTA(L31:L43) -> 13 | AK3: Total Sequences in Block Data | AL3: =COUNTA(L44:L55) -> 12 | AP3: Total Sequences in Block Data | AQ3: =COUNTA(L56:L67) -> 12 | AU3: Total Sequences in Block Data | AV3: =COUNTA(L68:L79) -> 12
P4: Total Sequences in Summary | Q4: =SUM(O7:O14) -> 73 | V4: Total Sequences in Block Summary | W4: =SUM(U7:U14) -> 12 | AA4: Total Sequences in Block Summary | AB4: =SUM(Z7:Z14) -> 12 | AF4: Total Sequences in Block Summary | AG4: =SUM(AE7:AE14) -> 13 | AK4: Total Sequences in Block Summary | AL4: =SUM(AJ7:AJ14) -> 12 | AP4: Total Sequences in Block Summary | AQ4: =SUM(AO7:AO14) -> 12 | AU4: Total Sequences in Block Summary | AV4: =SUM(AT7:AT14) -> 12
T5: Block 1 | Y5: Block 2 | AD5: Block 3 | AI5: Block 4 | AN5: Block 5 | AS5: Block 6
A6: Sequence Component 1 | B6: Time 1 | C6: Sequence Component 2 | D6: Time 2 | E6: Sequence Component 3 | F6: Time 3 | G6: Sequence Component 4 | H6: Time 4 | I6: Sequence Component 5 | J6: Time 5 | K6: Correct? 0=No 1=Yes | L6: Sequence | N6: Frequency | P6: Relative Frequency | Q6: Variability | T6: Frequency | V6: Relative Frequency | W6: Variability | Y6: Frequency | AA6: Relative Frequency | AB6: Variability | AD6: Frequency | AF6: Relative Frequency | AG6: Variability | AI6: Frequency | AK6: Relative Frequency | AL6: Variability | AN6: Frequency | AP6: Relative Frequency | AQ6: Variability | AS6: Frequency | AU6: Relative Frequency | AV6: Variability
A7: 12 | B7: 13 | C7: 13 | D7: 25 | E7: 13 | F7: 53 | K7: 0 | L7: 111 | N7: 111 | O7: =COUNTIF($L$7:$L$500,N7) -> 15 | P7: =O7/$Q$4 -> 0.2054794521 | Q7: =IF(P7=0,0,(P7*((LOG(P7))/LOG(2)))) -> -0.4690960199 | T7: =N7 -> 111 | U7: =COUNTIF(L7:L18,T7) -> 4 | V7: =U7/(W4-U11) -> 0.6666666667 | W7: =IF(V7=0,0,(V7*((LOG(V7))/LOG(2)))) -> -0.3899750005 | Y7: =N7 -> 111 | Z7: =COUNTIF(L19:L30,Y7) -> 3 | AA7: =Z7/(AB4-Z11) -> 0.75 | AB7: =IF(AA7=0,0,(AA7*((LOG(AA7))/LOG(2)))) -> -0.3112781245 | AD7: =N7 -> 111 | AE7: =COUNTIF(L31:L43,AD7) -> 0 | AF7: =AE7/(AG4-AE11) -> 0 | AG7: =IF(AF7=0,0,(AF7*((LOG(AF7))/LOG(2)))) -> 0 | AI7: =N7 -> 111 | AJ7: =COUNTIF(L44:L55,AI7) -> 2 | AK7: =AJ7/(AL4-AJ11) -> 0.2857142857 | AL7: =IF(AK7=0,0,(AK7*((LOG(AK7))/LOG(2)))) -> -0.5163871206 | AN7: =N7 -> 111 | AO7: =COUNTIF(L56:L67,AN7) -> 5 | AP7: =AO7/(AQ4-AO11) -> 0.8333333333 | AQ7: =IF(AP7=0,0,(AP7*((LOG(AP7))/LOG(2)))) -> -0.2191953382 | AS7: =N7 -> 111 | AT7: =COUNTIF(L68:L79,AS7) -> 1 | AU7: =AT7/(AV4-AT11) -> 0.1666666667 | AV7: =IF(AU7=0,0,(AU7*((LOG(AU7))/LOG(2)))) -> -0.4308270835
A8: 21 | B8: 149 | C8: 11 | D8: 159 | E8: 11 | F8: 175 | K8: 0 | L8: 211 | N8: 112 | O8: =COUNTIF($L$7:$L$500,N8) -> 1 | P8: =O8/$Q$4 -> 0.01369863014 | Q8: =IF(P8=0,0,(P8*((LOG(P8))/LOG(2)))) -> -0.08479211724 | T8: =N8 -> 112 | U8: =COUNTIF(L7:L18,T8) -> 1 | V8: =U8/(W4-U11) -> 0.1666666667 | W8: =IF(V8=0,0,(V8*((LOG(V8))/LOG(2)))) -> -0.4308270835 | Y8: =N8 -> 112 | Z8: =COUNTIF(L19:L30,Y8) -> 0 | AA8: =Z8/(AB4-Z11) -> 0 | AB8: =IF(AA8=0,0,(AA8*((LOG(AA8))/LOG(2)))) -> 0 | AD8: =N8 -> 112 | AE8: =COUNTIF(L31:L43,AD8) -> 0 | AF8: =AE8/(AG4-AE11) -> 0 | AG8: =IF(AF8=0,0,(AF8*((LOG(AF8))/LOG(2)))) -> 0 | AI8: =N8 -> 112 | AJ8: =COUNTIF(L44:L55,AI8) -> 0 | AK8: =AJ8/(AL4-AJ11) -> 0 | AL8: =IF(AK8=0,0,(AK8*((LOG(AK8))/LOG(2)))) -> 0 | AN8: =N8 -> 112 | AO8: =COUNTIF(L56:L67,AN8) -> 0 | AP8: =AO8/(AQ4-AO11) -> 0 | AQ8: =IF(AP8=0,0,(AP8*((LOG(AP8))/LOG(2)))) -> 0 | AS8: =N8 -> 112 | AT8: =COUNTIF(L68:L79,AS8) -> 0 | AU8: =AT8/(AV4-AT11) -> 0 | AV8: =IF(AU8=0,0,(AU8*((LOG(AU8))/LOG(2)))) -> 0
A9: 12 | B9: 298 | C9: 13 | D9: 317 | E9: 13 | F9: 332 | K9: 0 | L9: 111 | N9: 121 | O9: =COUNTIF($L$7:$L$500,N9) -> 0 | P9: =O9/$Q$4 -> 0 | Q9: =IF(P9=0,0,(P9*((LOG(P9))/LOG(2)))) -> 0 | T9: =N9 -> 121 | U9: =COUNTIF(L7:L18,T9) -> 0 | V9: =U9/(W4-U11) -> 0 | W9: =IF(V9=0,0,(V9*((LOG(V9))/LOG(2)))) -> 0 | Y9: =N9 -> 121 | Z9: =COUNTIF(L19:L30,Y9) -> 0 | AA9: =Z9/(AB4-Z11) -> 0 | AB9: =IF(AA9=0,0,(AA9*((LOG(AA9))/LOG(2)))) -> 0 | AD9: =N9 -> 121 | AE9: =COUNTIF(L31:L43,AD9) -> 0 | AF9: =AE9/(AG4-AE11) -> 0 | AG9: =IF(AF9=0,0,(AF9*((LOG(AF9))/LOG(2)))) -> 0 | AI9: =N9 -> 121 | AJ9: =COUNTIF(L44:L55,AI9) -> 0 | AK9: =AJ9/(AL4-AJ11) -> 0 | AL9: =IF(AK9=0,0,(AK9*((LOG(AK9))/LOG(2)))) -> 0 | AN9: =N9 -> 121 | AO9: =COUNTIF(L56:L67,AN9) -> 0 | AP9: =AO9/(AQ4-AO11) -> 0 | AQ9: =IF(AP9=0,0,(AP9*((LOG(AP9))/LOG(2)))) -> 0 | AS9: =N9 -> 121 | AT9: =COUNTIF(L68:L79,AS9) -> 0 | AU9: =AT9/(AV4-AT11) -> 0 | AV9: =IF(AU9=0,0,(AU9*((LOG(AU9))/LOG(2)))) -> 0
A10: 21 | B10: 427 | C10: 11 | D10: 436 | E10: 11 | F10: 454 | K10: 0 | L10: 211 | N10: 122 | O10: =COUNTIF($L$7:$L$500,N10) -> 0 | P10: =O10/$Q$4 -> 0 | Q10: =IF(P10=0,0,(P10*((LOG(P10))/LOG(2)))) -> 0 | T10: =N10 -> 122 | U10: =COUNTIF(L7:L18,T10) -> 0 | V10: =U10/(W4-U11) -> 0 | W10: =IF(V10=0,0,(V10*((LOG(V10))/LOG(2)))) -> 0 | Y10: =N10 -> 122 | Z10: =COUNTIF(L19:L30,Y10) -> 0 | AA10: =Z10/(AB4-Z11) -> 0 | AB10: =IF(AA10=0,0,(AA10*((LOG(AA10))/LOG(2)))) -> 0 | AD10: =N10 -> 122 | AE10: =COUNTIF(L31:L43,AD10) -> 0 | AF10: =AE10/(AG4-AE11) -> 0 | AG10: =IF(AF10=0,0,(AF10*((LOG(AF10))/LOG(2)))) -> 0 | AI10: =N10 -> 122 | AJ10: =COUNTIF(L44:L55,AI10) -> 0 | AK10: =AJ10/(AL4-AJ11) -> 0 | AL10: =IF(AK10=0,0,(AK10*((LOG(AK10))/LOG(2)))) -> 0 | AN10: =N10 -> 122 | AO10: =COUNTIF(L56:L67,AN10) -> 0 | AP10: =AO10/(AQ4-AO11) -> 0 | AQ10: =IF(AP10=0,0,(AP10*((LOG(AP10))/LOG(2)))) -> 0 | AS10: =N10 -> 122 | AT10: =COUNTIF(L68:L79,AS10) -> 0 | AU10: =AT10/(AV4-AT11) -> 0 | AV10: =IF(AU10=0,0,(AU10*((LOG(AU10))/LOG(2)))) -> 0
A11: 21 | B11: 542 | C11: 11 | D11: 577 | E11: 11 | F11: 585 | K11: 0 | L11: 211 | N11: 211 | O11: =COUNTIF($L$7:$L$500,N11) -> 39 | P11: =O11/$Q$4 -> 0.5342465753 | Q11: =IF(P11=0,0,(P11*((LOG(P11))/LOG(2)))) -> -0.4831845378 | T11: =N11 -> 211 | U11: =COUNTIF(L7:L18,T11) -> 6 | Y11: =N11 -> 211 | Z11: =COUNTIF(L19:L30,Y11) -> 8 | AD11: =N11 -> 211 | AE11: =COUNTIF(L31:L43,AD11) -> 8 | AI11: =N11 -> 211 | AJ11: =COUNTIF(L44:L55,AI11) -> 5 | AN11: =N11 -> 211 | AO11: =COUNTIF(L56:L67,AN11) -> 6 | AS11: =N11 -> 211 | AT11: =COUNTIF(L68:L79,AS11) -> 6
A12: 21 | B12: 672 | C12: 11 | D12: 682 | E12: 11 | F12: 708 | K12: 0 | L12: 211 | N12: 212 | O12: =COUNTIF($L$7:$L$500,N12) -> 0 | P12: =O12/$Q$4 -> 0 | Q12: =IF(P12=0,0,(P12*((LOG(P12))/LOG(2)))) -> 0 | T12: =N12 -> 212 | U12: =COUNTIF(L7:L18,T12) -> 0 | V12: =U12/(W4-U11) -> 0 | W12: =IF(V12=0,0,(V12*((LOG(V12))/LOG(2)))) -> 0 | Y12: =N12 -> 212 | Z12: =COUNTIF(L19:L30,Y12) -> 0 | AA12: =Z12/(AB4-Z11) -> 0 | AB12: =IF(AA12=0,0,(AA12*((LOG(AA12))/LOG(2)))) -> 0 | AD12: =N12 -> 212 | AE12: =COUNTIF(L31:L43,AD12) -> 0 | AF12: =AE12/(AG4-AE11) -> 0 | AG12: =IF(AF12=0,0,(AF12*((LOG(AF12))/LOG(2)))) -> 0 | AI12: =N12 -> 212 | AJ12: =COUNTIF(L44:L55,AI12) -> 0 | AK12: =AJ12/(AL4-AJ11) -> 0 | AL12: =IF(AK12=0,0,(AK12*((LOG(AK12))/LOG(2)))) -> 0 | AN12: =N12 -> 212 | AO12: =COUNTIF(L56:L67,AN12) -> 0 | AP12: =AO12/(AQ4-AO11) -> 0 | AQ12: =IF(AP12=0,0,(AP12*((LOG(AP12))/LOG(2)))) -> 0 | AS12: =N12 -> 212 | AT12: =COUNTIF(L68:L79,AS12) -> 0 | AU12: =AT12/(AV4-AT11) -> 0 | AV12: =IF(AU12=0,0,(AU12*((LOG(AU12))/LOG(2)))) -> 0
A13: 21 | B13: 797 | C13: 11 | D13: 817 | E13: 11 | F13: 827 | K13: 0 | L13: 211 | N13: 221 | O13: =COUNTIF($L$7:$L$500,N13) -> 17 | P13: =O13/$Q$4 -> 0.2328767123 | Q13: =IF(P13=0,0,(P13*((LOG(P13))/LOG(2)))) -> -0.4895910849 | T13: =N13 -> 221 | U13: =COUNTIF(L7:L18,T13) -> 1 | V13: =U13/(W4-U11) -> 0.1666666667 | W13: =IF(V13=0,0,(V13*((LOG(V13))/LOG(2)))) -> -0.4308270835 | Y13: =N13 -> 221 | Z13: =COUNTIF(L19:L30,Y13) -> 1 | AA13: =Z13/(AB4-Z11) -> 0.25 | AB13: =IF(AA13=0,0,(AA13*((LOG(AA13))/LOG(2)))) -> -0.5 | AD13: =N13 -> 221 | AE13: =COUNTIF(L31:L43,AD13) -> 5 | AF13: =AE13/(AG4-AE11) -> 1 | AG13: =IF(AF13=0,0,(AF13*((LOG(AF13))/LOG(2)))) -> 0 | AI13: =N13 -> 221 | AJ13: =COUNTIF(L44:L55,AI13) -> 5 | AK13: =AJ13/(AL4-AJ11) -> 0.7142857143 | AL13: =IF(AK13=0,0,(AK13*((LOG(AK13))/LOG(2)))) -> -0.346733448 | AN13: =N13 -> 221 | AO13: =COUNTIF(L56:L67,AN13) -> 1 | AP13: =AO13/(AQ4-AO11) -> 0.1666666667 | AQ13: =IF(AP13=0,0,(AP13*((LOG(AP13))/LOG(2)))) -> -0.4308270835 | AS13: =N13 -> 221 | AT13: =COUNTIF(L68:L79,AS13) -> 4 | AU13: =AT13/(AV4-AT11) -> 0.6666666667 | AV13: =IF(AU13=0,0,(AU13*((LOG(AU13))/LOG(2)))) -> -0.3899750005
A14: 12 | B14: 937 | C14: 13 | D14: 965 | E14: 13 | F14: 975 | K14: 0 | L14: 111 | N14: 222 | O14: =COUNTIF($L$7:$L$500,N14) -> 1 | P14: =O14/$Q$4 -> 0.01369863014 | Q14: =IF(P14=0,0,(P14*((LOG(P14))/LOG(2)))) -> -0.08479211724 | T14: =N14 -> 222 | U14: =COUNTIF(L7:L18,T14) -> 0 | V14: =U14/(W4-U11) -> 0 | W14: =IF(V14=0,0,(V14*((LOG(V14))/LOG(2)))) -> 0 | Y14: =N14 -> 222 | Z14: =COUNTIF(L19:L30,Y14) -> 0 | AA14: =Z14/(AB4-Z11) -> 0 | AB14: =IF(AA14=0,0,(AA14*((LOG(AA14))/LOG(2)))) -> 0 | AD14: =N14 -> 222 | AE14: =COUNTIF(L31:L43,AD14) -> 0 | AF14: =AE14/(AG4-AE11) -> 0 | AG14: =IF(AF14=0,0,(AF14*((LOG(AF14))/LOG(2)))) -> 0 | AI14: =N14 -> 222 | AJ14: =COUNTIF(L44:L55,AI14) -> 0 | AK14: =AJ14/(AL4-AJ11) -> 0 | AL14: =IF(AK14=0,0,(AK14*((LOG(AK14))/LOG(2)))) -> 0 | AN14: =N14 -> 222 | AO14: =COUNTIF(L56:L67,AN14) -> 0 | AP14: =AO14/(AQ4-AO11) -> 0 | AQ14: =IF(AP14=0,0,(AP14*((LOG(AP14))/LOG(2)))) -> 0 | AS14: =N14 -> 222 | AT14: =COUNTIF(L68:L79,AS14) -> 1 | AU14: =AT14/(AV4-AT11) -> 0.1666666667 | AV14: =IF(AU14=0,0,(AU14*((LOG(AU14))/LOG(2)))) -> -0.4308270835
A15: 21 | B15: 1071 | C15: 11 | D15: 1112 | E15: 11 | F15: 1169 | K15: 0 | L15: 211 | P15: =SUM(P7:P14) -> 1 | Q15: =-SUM(Q7:Q14) -> 1.611455877 | V15: =SUM(V7:V14) -> 1 | W15: =-SUM(W7:W14) -> 1.251629167 | AA15: =SUM(AA7:AA14) -> 1 | AB15: =-SUM(AB7:AB14) -> 0.8112781245 | AF15: =SUM(AF7:AF14) -> 1 | AG15: =-SUM(AG7:AG14) -> 0 | AK15: =SUM(AK7:AK14) -> 1 | AL15: =-SUM(AL7:AL14) -> 0.8631205686 | AP15: =SUM(AP7:AP14) -> 1 | AQ15: =-SUM(AQ7:AQ14) -> 0.6500224216 | AU15: =SUM(AU7:AU14) -> 1 | AV15: =-SUM(AV7:AV14) -> 1.251629167
A16: 12 | B16: 1274 | C16: 13 | D16: 1287 | E16: 24 | F16: 1300 | K16: 0 | L16: 112 | P16: U= | Q16: =Q15/(LOG(Q4)/LOG(2)) -> 0.2603395075 | V16: U1= | W16: =W15/(LOG(W4)/LOG(2)) -> 0.3491331268 | AA16: U2= | AB16: =AB15/(LOG(AB4)/LOG(2)) -> 0.2263003098 | AF16: U3= | AG16: =AG15/(LOG(AG4)/LOG(2)) -> 0 | AK16: U4= | AL16: =AL15/(LOG(AL4)/LOG(2)) -> 0.2407613938 | AP16: U5= | AQ16: =AQ15/(LOG(AQ4)/LOG(2)) -> 0.181319169 | AU16: U6= | AV16: =AV15/(LOG(AV4)/LOG(2)) -> 0.3491331268
A17: 12 | B17: 1394 | C17: 13 | D17: 1406 | E17: 13 | F17: 1422 | K17: 0 | L17: 111
A18: 21 | B18: 1518 | C18: 22 | D18: 1527 | E18: 13 | F18: 1546 | K18: 0 | L18: 221
A19: 21 | B19: 1642 | C19: 11 | D19: 1649 | E19: 11 | F19: 1663 | K19: 0 | L19: 211 | N19: Total Target Seq
A20: 21 | B20: 1766 | C20: 11 | D20: 1784 | E20: 11 | F20: 1791 | K20: 0 | L20: 211 | N20: =COUNTIF(L7:L79,G3) -> 39 | P20: 12 | Q20: 12 | R20: 13 | S20: 12 | T20: 12 | U20: 12
A21: 21 | B21: 1879 | C21: 11 | D21: 1887 | E21: 11 | F21: 1901 | K21: 0 | L21: 211 | P21: % of reinforcement given in 6 equal intervals based on number of trials
A22: 21 | B22: 1999 | C22: 11 | D22: 2021 | E22: 11 | F22: 2029 | K22: 0 | L22: 211 | P22: %_1 | Q22: %_2 | R22: %_3 | S22: %_4 | T22: %_5 | U22: %_6
A23: 12 | B23: 2136 | C23: 13 | D23: 2142 | E23: 13 | F23: 2150 | K23: 0 | L23: 111 | O23: target sequence | P23: =$G$3 -> 211 | Q23: =$G$3 -> 211 | R23: =$G$3 -> 211 | S23: =$G$3 -> 211 | T23: =$G$3 -> 211 | U23: =$G$3 -> 211
A24: 21 | B24: 2245 | C24: 22 | D24: 2250 | E24: 13 | F24: 2269 | K24: 0 | L24: 221 | O24: total reinforcement | P24: =U11 -> 6 | Q24: =Z11 -> 8 | R24: =AE11 -> 8 | S24: =AJ11 -> 5 | T24: =AO11 -> 6 | U24: =AT11 -> 6
A25: 21 | B25: 2365 | C25: 11 | D25: 2373 | E25: 11 | F25: 2380 | K25: 0 | L25: 211 | O25: % target
A26: 21 | B26: 2469 | C26: 11 | D26: 2477 | E26: 11 | F26: 2490 | K26: 0 | L26: 211 | O26: CCRF
A27: 12 | B27: 2593 | C27: 13 | D27: 2606 | E27: 13 | F27: 2613 | K27: 0 | L27: 111 | O27: % CCRf
A28: 21 | B28: 2713 | C28: 11 | D28: 2722 | E28: 11 | F28: 2743 | K28: 0 | L28: 211 | O28: average response rate | P28: =F18/P20 -> 128.8333333 | Q28: =(F30-F18)/Q20 -> 120.1666667 | R28: =(F43-F30)/R20 -> 113.5384615 | S28: =(F55-F43)/S20 -> 119.3333333 | T28: =(F67-F55)/T20 -> 121 | U28: =(F79-F67)/U20 -> 119.9166667
A29: 21 | B29: 2833 | C29: 11 | D29: 2843 | E29: 11 | F29: 2857 | K29: 0 | L29: 211
A30: 12 | B30: 2964 | C30: 13 | D30: 2981 | E30: 13 | F30: 2988 | K30: 0 | L30: 111
A31: 21 | B31: 3083 | C31: 22 | D31: 3087 | E31: 13 | F31: 3102 | K31: 0 | L31: 221
A32: 21 | B32: 3197 | C32: 22 | D32: 3201 | E32: 13 | F32: 3221 | K32: 0 | L32: 221
A33: 21 | B33: 3316 | C33: 11 | D33: 3324 | E33: 11 | F33: 3331 | K33: 0 | L33: 211
A34: 21 | B34: 3420 | C34: 11 | D34: 3428 | E34: 11 | F34: 3437 | K34: 0 | L34: 211
A35: 21 | B35: 3524 | C35: 22 | D35: 3528 | E35: 13 | F35: 3544 | K35: 0 | L35: 221
A36: 21 | B36: 3639 | C36: 22 | D36: 3643 | E36: 13 | F36: 3661 | K36: 0 | L36: 221
A37: 21 | B37: 3756 | C37: 11 | D37: 3763 | E37: 11 | F37: 3774 | K37: 0 | L37: 211
A38: 21 | B38: 3860 | C38: 22 | D38: 3864 | E38: 13 | F38: 3875 | K38: 0 | L38: 221
A39: 21 | B39: 3971 | C39: 11 | D39: 3978 | E39: 11 | F39: 4004 | K39: 0 | L39: 211
A40: 21 | B40: 4092 | C40: 11 | D40: 4100 | E40: 11 | F40: 4121 | K40: 0 | L40: 211
A41: 21 | B41: 4208 | C41: 11 | D41: 4219 | E41: 11 | F41: 4229 | K41: 0 | L41: 211
A42: 21 | B42: 4316 | C42: 11 | D42: 4326 | E42: 11 | F42: 4362 | K42: 0 | L42: 211
A43: 21 | B43: 4449 | C43: 11 | D43: 4456 | E43: 11 | F43: 4464 | K43: 0 | L43: 211
A44: 21 | B44: 4552 | C44: 22 | D44: 4557 | E44: 13 | F44: 4571 | K44: 0 | L44: 221
A45: 21 | B45: 4677 | C45: 22 | D45: 4688 | E45: 13 | F45: 4703 | K45: 0 | L45: 221
A46: 21 | B46: 4811 | C46: 11 | D46: 4830 | E46: 11 | F46: 4841 | K46: 0 | L46: 211
A47: 21 | B47: 4927 | C47: 22 | D47: 4930 | E47: 13 | F47: 4938 | K47: 0 | L47: 221
A48: 21 | B48: 5034 | C48: 22 | D48: 5038 | E48: 13 | F48: 5064 | K48: 0 | L48: 221
A49: 21 | B49: 5160 | C49: 11 | D49: 5184 | E49: 11 | F49: 5194 | K49: 0 | L49: 211
A50: 12 | B50: 5283 | C50: 13 | D50: 5301 | E50: 13 | F50: 5314 | K50: 0 | L50: 111
A51: 21 | B51: 5410 | C51: 11 | D51: 5417 | E51: 11 | F51: 5440 | K51: 0 | L51: 211
A52: 12 | B52: 5529 | C52: 13 | D52: 5551 | E52: 13 | F52: 5555 | K52: 0 | L52: 111
A53: 21 | B53: 5651 | C53: 11 | D53: 5659 | E53: 11 | F53: 5669 | K53: 0 | L53: 211
A54: 21 | B54: 5768 | C54: 11 | D54: 5785 | E54: 11 | F54: 5792 | K54: 0 | L54: 211
A55: 21 | B55: 5884 | C55: 22 | D55: 5888 | E55: 13 | F55: 5896 | K55: 0 | L55: 221
A56: 21 | B56: 5996 | C56: 11 | D56: 6011 | E56: 11 | F56: 6025 | K56: 0 | L56: 211
A57: 12 | B57: 6120 | C57: 13 | D57: 6134 | E57: 13 | F57: 6144 | K57: 0 | L57: 111
A58: 21 | B58: 6242 | C58: 11 | D58: 6258 | E58: 11 | F58: 6270 | K58: 0 | L58: 211
A59: 12 | B59: 6358 | C59: 13 | D59: 6373 | E59: 13 | F59: 6383 | K59: 0 | L59: 111
A60: 12 | B60: 6494 | C60: 13 | D60: 6508 | E60: 13 | F60: 6524 | K60: 0 | L60: 111
A61: 21 | B61: 6623 | C61: 11 | D61: 6632 | E61: 11 | F61: 6654 | K61: 0 | L61: 211
A62: 21 | B62: 6741 | C62: 11 | D62: 6749 | E62: 11 | F62: 6764 | K62: 0 | L62: 211
A63: 21 | B63: 6852 | C63: 11 | D63: 6869 | E63: 11 | F63: 6876 | K63: 0 | L63: 211
A64: 12 | B64: 6965 | C64: 13 | D64: 6991 | E64: 13 | F64: 7001 | K64: 0 | L64: 111
A65: 21 | B65: 7097 | C65: 22 | D65: 7100 | E65: 13 | F65: 7108 | K65: 0 | L65: 221
A66: 21 | B66: 7204 | C66: 11 | D66: 7217 | E66: 11 | F66: 7227 | K66: 0 | L66: 211
A67: 12 | B67: 7326 | C67: 13 | D67: 7335 | E67: 13 | F67: 7348 | K67: 0 | L67: 111
A68: 21 | B68: 7444 | C68: 22 | D68: 7447 | E68: 13 | F68: 7455 | K68: 0 | L68: 221
A69: 21 | B69: 7551 | C69: 22 | D69: 7554 | E69: 13 | F69: 7578 | K69: 0 | L69: 221
A70: 21 | B70: 7673 | C70: 11 | D70: 7681 | E70: 11 | F70: 7704 | K70: 0 | L70: 211
A71: 12 | B71: 7796 | C71: 13 | D71: 7813 | E71: 13 | F71: 7839 | K71: 0 | L71: 111
A72: 21 | B72: 7934 | C72: 11 | D72: 7941 | E72: 11 | F72: 7952 | K72: 0 | L72: 211
A73: 21 | B73: 8040 | C73: 22 | D73: 8045 | E73: 24 | F73: 8055 | K73: 0 | L73: 222
A74: 21 | B74: 8152 | C74: 11 | D74: 8160 | E74: 11 | F74: 8181 | K74: 0 | L74: 211
A75: 21 | B75: 8281 | C75: 11 | D75: 8293 | E75: 11 | F75: 8303 | K75: 0 | L75: 211
A76: 21 | B76: 8391 | C76: 22 | D76: 8405 | E76: 13 | F76: 8433 | K76: 0 | L76: 221
A77: 21 | B77: 8533 | C77: 11 | D77: 8541 | E77: 11 | F77: 8562 | K77: 0 | L77: 211
A78: 21 | B78: 8653 | C78: 22 | D78: 8656 | E78: 13 | F78: 8663 | K78: 0 | L78: 221
A79: 21 | B79: 8759 | C79: 11 | D79: 8767 | E79: 11 | F79: 8787 | K79: 1 | L79: 211

Sheet !MB05930.010
A1: Report for:!MB05930.010
A2: Date: | B2: <date>
A3: Hen: | B3: <hen> | F3: Correct Sequence | G3: =Start!J2 -> 211 | P3: Total Sequences in Data | Q3: =4994-COUNTBLANK(L7:L5000) -> 51 | V3: Total Sequences in Block Data | W3: =COUNTA(L7:L15) -> 9 | AA3: Total Sequences in Block Data | AB3: =COUNTA(L16:L23) -> 8 | AF3: Total Sequences in Block Data | AG3: =COUNTA(L24:L32) -> 9 | AK3: Total Sequences in Block Data | AL3: =COUNTA(L33:L40) -> 8 | AP3: Total Sequences in Block Data | AQ3: =COUNTA(L41:L49) -> 9 | AU3: Total Sequences in Block Data | AV3: =COUNTA(L50:L57) -> 8
P4: Total Sequences in Summary | Q4: =SUM(O7:O14) -> 51 | V4: Total Sequences in Block Summary | W4: =SUM(U7:U14) -> 9 | AA4: Total Sequences in Block Summary | AB4: =SUM(Z7:Z14) -> 8 | AF4: Total Sequences in Block Summary | AG4: =SUM(AE7:AE14) -> 9 | AK4: Total Sequences in Block Summary | AL4: =SUM(AJ7:AJ14) -> 8 | AP4: Total Sequences in Block Summary | AQ4: =SUM(AO7:AO14) -> 9 | AU4: Total Sequences in Block Summary | AV4: =SUM(AT7:AT14) -> 8
T5: Block 1 | Y5: Block 2 | AD5: Block 3 | AI5: Block 4 | AN5: Block 5 | AS5: Block 6
A6: Sequence Component 1 | B6: Time 1 | C6: Sequence Component 2 | D6: Time 2 | E6: Sequence Component 3 | F6: Time 3 | G6: Sequence Component 4 | H6: Time 4 | I6: Sequence Component 5 | J6: Time 5 | K6: Correct? 0=No 1=Yes | L6: Sequence | N6: Frequency | P6: Relative Frequency | Q6: Variability | T6: Frequency | V6: Relative Frequency | W6: Variability | Y6: Frequency | AA6: Relative Frequency | AB6: Variability | AD6: Frequency | AF6: Relative Frequency | AG6: Variability | AI6: Frequency | AK6: Relative Frequency | AL6: Variability | AN6: Frequency | AP6: Relative Frequency | AQ6: Variability | AS6: Frequency | AU6: Relative Frequency | AV6: Variability
A7: 21 | B7: 5 | C7: 11 | D7: 21 | E7: 11 | F7: 35 | K7: 0 | L7: 211 | N7: 111 | O7: =COUNTIF($L$7:$L$500,N7) -> 9 | P7: =O7/$Q$4 -> 0.1764705882 | Q7: =IF(P7=0,0,(P7*((LOG(P7))/LOG(2)))) -> -0.4416177072 | T7: =N7 -> 111 | U7: =COUNTIF(L7:L15,T7) -> 2 | V7: =U7/(W4-U11) -> 1 | W7: =IF(V7=0,0,(V7*((LOG(V7))/LOG(2)))) -> 0 | Y7: =N7 -> 111 | Z7: =COUNTIF(L16:L23,Y7) -> 0 | AA7: =Z7/(AB4-Z11) -> 0 | AB7: =IF(AA7=0,0,(AA7*((LOG(AA7))/LOG(2)))) -> 0 | AD7: =N7 -> 111 | AE7: =COUNTIF(L24:L32,AD7) -> 4 | AF7: =AE7/(AG4-AE11) -> 1 | AG7: =IF(AF7=0,0,(AF7*((LOG(AF7))/LOG(2)))) -> 0 | AI7: =N7 -> 111 | AJ7: =COUNTIF(L33:L40,AI7) -> 1 | AK7: =AJ7/(AL4-AJ11) -> 1 | AL7: =IF(AK7=0,0,(AK7*((LOG(AK7))/LOG(2)))) -> 0 | AN7: =N7 -> 111 | AO7: =COUNTIF(L41:L49,AN7) -> 1 | AP7: =AO7/(AQ4-AO11) -> 1 | AQ7: =IF(AP7=0,0,(AP7*((LOG(AP7))/LOG(2)))) -> 0 | AS7: =N7 -> 111 | AT7: =COUNTIF(L50:L57,AS7) -> 1 | AU7: =AT7/(AV4-AT11) -> 0.5 | AV7: =IF(AU7=0,0,(AU7*((LOG(AU7))/LOG(2)))) -> -0.5
A8: 12 | B8: 178 | C8: 13 | D8: 228 | E8: 13 | F8: 261 | K8: 0 | L8: 111 | N8: 112 | O8: =COUNTIF($L$7:$L$500,N8) -> 0 | P8: =O8/$Q$4 -> 0 | Q8: =IF(P8=0,0,(P8*((LOG(P8))/LOG(2)))) -> 0 | T8: =N8 -> 112 | U8: =COUNTIF(L7:L15,T8) -> 0 | V8: =U8/(W4-U11) -> 0 | W8: =IF(V8=0,0,(V8*((LOG(V8))/LOG(2)))) -> 0 | Y8: =N8 -> 112 | Z8: =COUNTIF(L16:L23,Y8) -> 0 | AA8: =Z8/(AB4-Z11) -> 0 | AB8: =IF(AA8=0,0,(AA8*((LOG(AA8))/LOG(2)))) -> 0 | AD8: =N8 -> 112 | AE8: =COUNTIF(L24:L32,AD8) -> 0 | AF8: =AE8/(AG4-AE11) -> 0 | AG8: =IF(AF8=0,0,(AF8*((LOG(AF8))/LOG(2)))) -> 0 | AI8: =N8 -> 112 | AJ8: =COUNTIF(L33:L40,AI8) -> 0 | AK8: =AJ8/(AL4-AJ11) -> 0 | AL8: =IF(AK8=0,0,(AK8*((LOG(AK8))/LOG(2)))) -> 0 | AN8: =N8 -> 112 | AO8: =COUNTIF(L41:L49,AN8) -> 0 | AP8: =AO8/(AQ4-AO11) -> 0 | AQ8: =IF(AP8=0,0,(AP8*((LOG(AP8))/LOG(2)))) -> 0 | AS8: =N8 -> 112 | AT8: =COUNTIF(L50:L57,AS8) -> 0 | AU8: =AT8/(AV4-AT11) -> 0 | AV8: =IF(AU8=0,0,(AU8*((LOG(AU8))/LOG(2)))) -> 0
A9: 21 | B9: 356 | C9: 11 | D9: 373 | E9: 11 | F9: 387 | K9: 0 | L9: 211 | N9: 121 | O9: =COUNTIF($L$7:$L$500,N9) -> 0 | P9: =O9/$Q$4 -> 0 | Q9: =IF(P9=0,0,(P9*((LOG(P9))/LOG(2)))) -> 0 | T9: =N9 -> 121 | U9: =COUNTIF(L7:L15,T9) -> 0 | V9: =U9/(W4-U11) -> 0 | W9: =IF(V9=0,0,(V9*((LOG(V9))/LOG(2)))) -> 0 | Y9: =N9 -> 121 | Z9: =COUNTIF(L16:L23,Y9) -> 0 | AA9: =Z9/(AB4-Z11) -> 0 | AB9: =IF(AA9=0,0,(AA9*((LOG(AA9))/LOG(2)))) -> 0 | AD9: =N9 -> 121 | AE9: =COUNTIF(L24:L32,AD9) -> 0 | AF9: =AE9/(AG4-AE11) -> 0 | AG9: =IF(AF9=0,0,(AF9*((LOG(AF9))/LOG(2)))) -> 0 | AI9: =N9 -> 121 | AJ9: =COUNTIF(L33:L40,AI9) -> 0 | AK9: =AJ9/(AL4-AJ11) -> 0 | AL9: =IF(AK9=0,0,(AK9*((LOG(AK9))/LOG(2)))) -> 0 | AN9: =N9 -> 121 | AO9: =COUNTIF(L41:L49,AN9) -> 0 | AP9: =AO9/(AQ4-AO11) -> 0 | AQ9: =IF(AP9=0,0,(AP9*((LOG(AP9))/LOG(2)))) -> 0 | AS9: =N9 -> 121 | AT9: =COUNTIF(L50:L57,AS9) -> 0 | AU9: =AT9/(AV4-AT11) -> 0 | AV9: =IF(AU9=0,0,(AU9*((LOG(AU9))/LOG(2)))) -> 0
A10: 21 | B10: 479 | C10: 11 | D10: 514 | E10: 11 | F10: 524 | K10: 0 | L10: 211 | N10: 122 | O10: =COUNTIF($L$7:$L$500,N10) -> 0 | P10: =O10/$Q$4 -> 0 | Q10: =IF(P10=0,0,(P10*((LOG(P10))/LOG(2)))) -> 0 | T10: =N10 -> 122 | U10: =COUNTIF(L7:L15,T10) -> 0 | V10: =U10/(W4-U11) -> 0 | W10: =IF(V10=0,0,(V10*((LOG(V10))/LOG(2)))) -> 0 | Y10: =N10 -> 122 | Z10: =COUNTIF(L16:L23,Y10) -> 0 | AA10: =Z10/(AB4-Z11) -> 0 | AB10: =IF(AA10=0,0,(AA10*((LOG(AA10))/LOG(2)))) -> 0 | AD10: =N10 -> 122 | AE10: =COUNTIF(L24:L32,AD10) -> 0 | AF10: =AE10/(AG4-AE11) -> 0 | AG10: =IF(AF10=0,0,(AF10*((LOG(AF10))/LOG(2)))) -> 0 | AI10: =N10 -> 122 | AJ10: =COUNTIF(L33:L40,AI10) -> 0 | AK10: =AJ10/(AL4-AJ11) -> 0 | AL10: =IF(AK10=0,0,(AK10*((LOG(AK10))/LOG(2)))) -> 0 | AN10: =N10 -> 122 | AO10: =COUNTIF(L41:L49,AN10) -> 0 | AP10: =AO10/(AQ4-AO11) -> 0 | AQ10: =IF(AP10=0,0,(AP10*((LOG(AP10))/LOG(2)))) -> 0 | AS10: =N10 -> 122 | AT10: =COUNTIF(L50:L57,AS10) -> 0 | AU10: =AT10/(AV4-AT11) -> 0 | AV10: =IF(AU10=0,0,(AU10*((LOG(AU10))/LOG(2)))) -> 0
A11: 21 | B11: 612 | C11: 11 | D11: 627 | E11: 11 | F11: 657 | K11: 0 | L11: 211 | N11: 211 | O11: =COUNTIF($L$7:$L$500,N11) -> 39 | P11: =O11/$Q$4 -> 0.7647058824 | Q11: =IF(P11=0,0,(P11*((LOG(P11))/LOG(2)))) -> -0.2959588588 | T11: =N11 -> 211 | U11: =COUNTIF(L7:L15,T11) -> 7 | Y11: =N11 -> 211 | Z11: =COUNTIF(L16:L23,Y11) -> 6 | AD11: =N11 -> 211 | AE11: =COUNTIF(L24:L32,AD11) -> 5 | AI11: =N11 -> 211 | AJ11: =COUNTIF(L33:L40,AI11) -> 7 | AN11: =N11 -> 211 | AO11: =COUNTIF(L41:L49,AN11) -> 8 | AS11: =N11 -> 211 | AT11: =COUNTIF(L50:L57,AS11) -> 6
A12: 21 | B12: 745 | C12: 11 | D12: 785 | E12: 11 | F12: 791 | K12: 0 | L12: 211 | N12: 212 | O12: =COUNTIF($L$7:$L$500,N12) -> 0 | P12: =O12/$Q$4 -> 0 | Q12: =IF(P12=0,0,(P12*((LOG(P12))/LOG(2)))) -> 0 | T12: =N12 -> 212 | U12: =COUNTIF(L7:L15,T12) -> 0 | V12: =U12/(W4-U11) -> 0 | W12: =IF(V12=0,0,(V12*((LOG(V12))/LOG(2)))) -> 0 | Y12: =N12 -> 212 | Z12: =COUNTIF(L16:L23,Y12) -> 0 | AA12: =Z12/(AB4-Z11) -> 0 | AB12: =IF(AA12=0,0,(AA12*((LOG(AA12))/LOG(2)))) -> 0 | AD12: =N12 -> 212 | AE12: =COUNTIF(L24:L32,AD12) -> 0 | AF12: =AE12/(AG4-AE11) -> 0 | AG12: =IF(AF12=0,0,(AF12*((LOG(AF12))/LOG(2)))) -> 0 | AI12: =N12 -> 212 | AJ12: =COUNTIF(L33:L40,AI12) -> 0 | AK12: =AJ12/(AL4-AJ11) -> 0 | AL12: =IF(AK12=0,0,(AK12*((LOG(AK12))/LOG(2)))) -> 0 | AN12: =N12 -> 212 | AO12: =COUNTIF(L41:L49,AN12) -> 0 | AP12: =AO12/(AQ4-AO11) -> 0 | AQ12: =IF(AP12=0,0,(AP12*((LOG(AP12))/LOG(2)))) -> 0 | AS12: =N12 -> 212 | AT12: =COUNTIF(L50:L57,AS12) -> 0 | AU12: =AT12/(AV4-AT11) -> 0 | AV12: =IF(AU12=0,0,(AU12*((LOG(AU12))/LOG(2)))) -> 0
A13: 21 | B13: 879 | C13: 11 | D13: 900 | E13: 11 | F13: 920 | K13: 0 | L13: 211 | N13: 221 | O13: =COUNTIF($L$7:$L$500,N13) -> 3 | P13: =O13/$Q$4 -> 0.05882352941 | Q13: =IF(P13=0,0,(P13*((LOG(P13))/LOG(2)))) -> -0.2404389907 | T13: =N13 -> 221 | U13: =COUNTIF(L7:L15,T13) -> 0 | V13: =U13/(W4-U11) -> 0 | W13: =IF(V13=0,0,(V13*((LOG(V13))/LOG(2)))) -> 0 | Y13: =N13 -> 221 | Z13: =COUNTIF(L16:L23,Y13) -> 2 | AA13: =Z13/(AB4-Z11) -> 1 | AB13: =IF(AA13=0,0,(AA13*((LOG(AA13))/LOG(2)))) -> 0 | AD13: =N13 -> 221 | AE13: =COUNTIF(L24:L32,AD13) -> 0 | AF13: =AE13/(AG4-AE11) -> 0 | AG13: =IF(AF13=0,0,(AF13*((LOG(AF13))/LOG(2)))) -> 0 | AI13: =N13 -> 221 | AJ13: =COUNTIF(L33:L40,AI13) -> 0 | AK13: =AJ13/(AL4-AJ11) -> 0 | AL13: =IF(AK13=0,0,(AK13*((LOG(AK13))/LOG(2)))) -> 0 | AN13: =N13 -> 221 | AO13: =COUNTIF(L41:L49,AN13) -> 0 | AP13: =AO13/(AQ4-AO11) -> 0 | AQ13: =IF(AP13=0,0,(AP13*((LOG(AP13))/LOG(2)))) -> 0 | AS13: =N13 -> 221 | AT13: =COUNTIF(L50:L57,AS13) -> 1 | AU13: =AT13/(AV4-AT11) -> 0.5 | AV13: =IF(AU13=0,0,(AU13*((LOG(AU13))/LOG(2)))) -> -0.5
A14: 21 | B14: 1013 | C14: 11 | D14: 1034 | E14: 11 | F14: 1051 | K14: 0 | L14: 211 | N14: 222 | O14: =COUNTIF($L$7:$L$500,N14) -> 0 | P14: =O14/$Q$4 -> 0 | Q14: =IF(P14=0,0,(P14*((LOG(P14))/LOG(2)))) -> 0 | T14: =N14 -> 222 | U14: =COUNTIF(L7:L15,T14) -> 0 | V14: =U14/(W4-U11) -> 0 | W14: =IF(V14=0,0,(V14*((LOG(V14))/LOG(2)))) -> 0 | Y14: =N14 -> 222 | Z14: =COUNTIF(L16:L23,Y14) -> 0 | AA14: =Z14/(AB4-Z11) -> 0 | AB14: =IF(AA14=0,0,(AA14*((LOG(AA14))/LOG(2)))) -> 0 | AD14: =N14 -> 222 | AE14: =COUNTIF(L24:L32,AD14) -> 0 | AF14: =AE14/(AG4-AE11) -> 0 | AG14: =IF(AF14=0,0,(AF14*((LOG(AF14))/LOG(2)))) -> 0 | AI14: =N14 -> 222 | AJ14: =COUNTIF(L33:L40,AI14) -> 0 | AK14: =AJ14/(AL4-AJ11) -> 0 | AL14: =IF(AK14=0,0,(AK14*((LOG(AK14))/LOG(2)))) -> 0 | AN14: =N14 -> 222 | AO14: =COUNTIF(L41:L49,AN14) -> 0 | AP14: =AO14/(AQ4-AO11) -> 0 | AQ14: =IF(AP14=0,0,(AP14*((LOG(AP14))/LOG(2)))) -> 0 | AS14: =N14 -> 222 | AT14: =COUNTIF(L50:L57,AS14) -> 0 | AU14: =AT14/(AV4-AT11) -> 0 | AV14: =IF(AU14=0,0,(AU14*((LOG(AU14))/LOG(2)))) -> 0
A15: 12 | B15: 1155 | C15: 13 | D15: 1173 | E15: 13 | F15: 1190 | K15: 0 | L15: 111 | P15: =SUM(P7:P14) -> 1 | Q15: =-SUM(Q7:Q14) -> 0.9780155567 | V15: =SUM(V7:V14) -> 1 | W15: =-SUM(W7:W14) -> 0 | AA15: =SUM(AA7:AA14) -> 1 | AB15: =-SUM(AB7:AB14) -> 0 | AF15: =SUM(AF7:AF14) -> 1 | AG15: =-SUM(AG7:AG14) -> 0 | AK15: =SUM(AK7:AK14) -> 1 | AL15: =-SUM(AL7:AL14) -> 0 | AP15: =SUM(AP7:AP14) -> 1 | AQ15: =-SUM(AQ7:AQ14) -> 0 | AU15: =SUM(AU7:AU14) -> 1 | AV15: =-SUM(AV7:AV14) -> 1
A16: 21 | B16: 1286 | C16: 22 | D16: 1290 | E16: 13 | F16: 1306 | K16: 0 | L16: 221 | P16: U= | Q16: =Q15/(LOG(Q4)/LOG(2)) -> 0.1724157653 | V16: U1= | W16: =W15/(LOG(W4)/LOG(2)) -> 0 | AA16: U2= | AB16: =AB15/(LOG(AB4)/LOG(2)) -> 0 | AF16: U3= | AG16: =AG15/(LOG(AG4)/LOG(2)) -> 0 | AK16: U4= | AL16: =AL15/(LOG(AL4)/LOG(2)) -> 0 | AP16: U5= | AQ16: =AQ15/(LOG(AQ4)/LOG(2)) -> 0 | AU16: U6= | AV16: =AV15/(LOG(AV4)/LOG(2)) -> 0.3333333333
A17: 21 | B17: 1397 | C17: 11 | D17: 1407 | E17: 11 | F17: 1434 | K17: 0 | L17: 211
A18: 21 | B18: 1522 | C18: 11 | D18: 1531 | E18: 11 | F18: 1562 | K18: 0 | L18: 211
A19: 21 | B19: 1650 | C19: 11 | D19: 1682 | E19: 11 | F19: 1689 | K19: 0 | L19: 211 | N19: Total Target Seq
A20: 21 | B20: 1778 | C20: 11 | D20: 1796 | E20: 11 | F20: 1806 | K20: 0 | L20: 211 | N20: =COUNTIF(L7:L57,G3) -> 39 | P20: 9 | Q20: 8 | R20: 9 | S20: 8 | T20: 9 | U20: 8
A21: 21 | B21: 1893 | C21: 11 | D21: 1905 | E21: 11 | F21: 1931 | K21: 0 | L21: 211 | P21: % of reinforcement given in 6 equal intervals based on number of trials
A22: 21 | B22: 2017 | C22: 22 | D22: 2022 | E22: 13 | F22: 2054 | K22: 0 | L22: 221 | P22: %_1 | Q22: %_2 | R22: %_3 | S22: %_4 | T22: %_5 | U22: %_6
A23: 21 | B23: 2149 | C23: 11 | D23: 2178 | E23: 11 | F23: 2185 | K23: 0 | L23: 211 | O23: target sequence | P23: =$G$3 -> 211 | Q23: =$G$3 -> 211 | R23: =$G$3 -> 211 | S23: =$G$3 -> 211 | T23: =$G$3 -> 211 | U23: =$G$3 -> 211
A24: 12 | B24: 2298 | C24: 13 | D24: 2302 | E24: 13 | F24: 2312 | K24: 0 | L24: 111 | O24: total reinforcement | P24: =U11 -> 7 | Q24: =Z11 -> 6 | R24: =AE11 -> 5 | S24: =AJ11 -> 7 | T24: =AO11 -> 8 | U24: =AT11 -> 6
A25: 12 | B25: 2444 | C25: 13 | D25: 2451 | E25: 13 | F25: 2458 | K25: 0 | L25: 111 | O25: % target
A26: 21 | B26: 2554 | C26: 11 | D26: 2566 | E26: 11 | F26: 2591 | K26: 0 | L26: 211 | O26: CCRF
A27: 21 | B27: 2680 | C27: 11 | D27: 2689 | E27: 11 | F27: 2699 | K27: 0 | L27: 211 | O27: % CCRf
A28: 12 | B28: 2809 | C28: 13 | D28: 2819 | E28: 13 | F28: 2842 | K28: 0 | L28: 111 | O28: average response rate | P28: =F15/P20 -> 132.2222222 | Q28: =(F23-F15)/Q20 -> 124.375 | R28: =(F32-F23)/R20 -> 130 | S28: =(F40-F32)/S20 -> 119.75 | T28: =(F49-F40)/T20 -> 115.4444444 | U28: =(F57-F49)/U20 -> 121
A29: 21 | B29: 2937 | C29: 11 | D29: 2947 | E29: 11 | F29: 2967 | K29: 0 | L29: 211
A30: 12 | B30: 3077 | C30: 13 | D30: 3087 | E30: 13 | F30: 3103 | K30: 0 | L30: 111
A31: 21 | B31: 3199 | C31: 11 | D31: 3205 | E31: 11 | F31: 3221 | K31: 0 | L31: 211
A32: 21 | B32: 3309 | C32: 11 | D32: 3345 | E32: 11 | F32: 3355 | K32: 0 | L32: 211
A33: 21 | B33: 3453 | C33: 11 | D33: 3491 | E33: 11 | F33: 3500 | K33: 0 | L33: 211
A34: 21 | B34: 3591 | C34: 11 | D34: 3598 | E34: 11 | F34: 3610 | K34: 0 | L34: 211
A35: 21 | B35: 3697 | C35: 11 | D35: 3705 | E35: 11 | F35: 3731 | K35: 0 | L35: 211
A36: 21 | B36: 3820 | C36: 11 | D36: 3827 | E36: 11 | F36: 3840 | K36: 0 | L36: 211
A37: 21 | B37: 3928 | C37: 11 | D37: 3935 | E37: 11 | F37: 3950 | K37: 0 | L37: 211
A38: 12 | B38: 4051 | C38: 13 | D38: 4061 | E38: 13 | F38: 4074 | K38: 0 | L38: 111
A39: 21 | B39: 4172 | C39: 11 | D39: 4179 | E39: 11 | F39: 4189 | K39: 0 | L39: 211
A40: 21 | B40: 4279 | C40: 11 | D40: 4289 | E40: 11 | F40: 4313 | K40: 0 | L40: 211
A41: 21 | B41: 4401 | C41: 11 | D41: 4407 | E41: 11 | F41: 4428 | K41: 0 | L41: 211
A42: 21 | B42: 4514 | C42: 11 | D42: 4527 | E42: 11 | F42: 4538 | K42: 0 | L42: 211
A43: 21 | B43: 4625 | C43: 11 | D43: 4651 | E43: 11 | F43: 4663 | K43: 0 | L43: 211
A44: 21 | B44: 4751 | C44: 11 | D44: 4761 | E44: 11 | F44: 4770 | K44: 0 | L44: 211
A45: 21 | B45: 4861 | C45: 11 | D45: 4875 | E45: 11 | F45: 4881 | K45: 0 | L45: 211
A46: 12 | B46: 4974 | C46: 13 | D46: 4995 | E46: 13 | F46: 5005 | K46: 0 | L46: 111
A47: 21 | B47: 5110 | C47: 11 | D47: 5126 | E47: 11 | F47: 5135 | K47: 0 | L47: 211
A48: 21 | B48: 5222 | C48: 11 | D48: 5229 | E48: 11 | F48: 5236 | K48: 0 | L48: 211
A49: 21 | B49: 5326 | C49: 11 | D49: 5345 | E49: 11 | F49: 5352 | K49: 0 | L49: 211
A50: 21 | B50: 5443 | C50: 11 | D50: 5451 | E50: 11 | F50: 5467 | K50: 0 | L50: 211
A51: 21 | B51: 5554 | C51: 11 | D51: 5578 | E51: 11 | F51: 5588 | K51: 0 | L51: 211
A52: 21 | B52: 5675 | C52: 22 | D52: 5682 | E52: 13 | F52: 5696 | K52: 0 | L52: 221
A53: 21 | B53: 5791 | C53: 11 | D53: 5798 | E53: 11 | F53: 5833 | K53: 0 | L53: 211
A54: 12 | B54: 5941 | C54: 13 | D54: 5949 | E54: 13 | F54: 5956 | K54: 0 | L54: 111
A55: 21 | B55: 6052 | C55: 11 | D55: 6059 | E55: 11 | F55: 6090 | K55: 0 | L55: 211
A56: 21 | B56: 6177 | C56: 11 | D56: 6184 | E56: 11 | F56: 6206 | K56: 0 | L56: 211
A57: 21 | B57: 6294 | C57: 11 | D57: 6300 | E57: 11 | F57: 6320 | K57: 1 | L57: 211

Sheet !MB06810.010
A1: Report for:!MB06810.010
A2: Date: | B2: <date>
A3: Hen: | B3: <hen> | F3: Correct Sequence | G3: =Start!J2 -> 211 | P3: Total Sequences in Data | Q3: =4994-COUNTBLANK(L7:L5000) -> 56 | V3: Total Sequences in Block Data | W3: =COUNTA(L7:L15) -> 9 | AA3: Total Sequences in Block Data | AB3: =COUNTA(L16:L25) -> 10 | AF3: Total Sequences in Block Data | AG3: =COUNTA(L26:L34) -> 9 | AK3: Total Sequences in Block Data | AL3: =COUNTA(L35:L43) -> 9 | AP3: Total Sequences in Block Data | AQ3: =COUNTA(L44:L53) -> 10 | AU3: Total Sequences in Block Data | AV3: =COUNTA(L54:L62) -> 9
P4: Total Sequences in Summary | Q4: =SUM(O7:O14) -> 56 | V4: Total Sequences in Block Summary | W4: =SUM(U7:U14) -> 9 | AA4: Total Sequences in Block Summary | AB4: =SUM(Z7:Z14) -> 10 | AF4: Total Sequences in Block Summary | AG4: =SUM(AE7:AE14) -> 9 | AK4: Total Sequences in Block Summary | AL4: =SUM(AJ7:AJ14) -> 9 | AP4: Total Sequences in Block Summary | AQ4: =SUM(AO7:AO14) -> 10 | AU4: Total Sequences in Block Summary | AV4: =SUM(AT7:AT14) -> 9
T5: Block 1 | Y5: Block 2 | AD5: Block 3 | AI5: Block 4 | AN5: Block 5 | AS5: Block 6
A6: Sequence Component 1 | B6: Time 1 | C6: Sequence Component 2 | D6: Time 2 | E6: Sequence Component 3 | F6: Time 3 | G6: Sequence Component 4 | H6: Time 4 | I6: Sequence Component 5 | J6: Time 5 | K6: Correct? 0=No 1=Yes | L6: Sequence | N6: Frequency | P6: Relative Frequency | Q6: Variability | T6: Frequency | V6: Relative Frequency | W6: Variability | Y6: Frequency | AA6: Relative Frequency | AB6: Variability | AD6: Frequency | AF6: Relative Frequency | AG6: Variability | AI6: Frequency | AK6: Relative Frequency | AL6: Variability | AN6: Frequency | AP6: Relative Frequency | AQ6: Variability | AS6: Frequency | AU6: Relative Frequency | AV6: Variability
A7: 12 | B7: 13 | C7: 13 | D7: 28 | E7: 13 | F7: 46 | K7: 0 | L7: 111 | N7: 111 | O7: =COUNTIF($L$7:$L$500,N7) -> 16 | P7: =O7/$Q$4 -> 0.2857142857 | Q7: =IF(P7=0,0,(P7*((LOG(P7))/LOG(2)))) -> -0.5163871206 | T7: =N7 -> 111 | U7: =COUNTIF(L7:L15,T7) -> 2 | V7: =U7/(W4-U11) -> 0.6666666667 | W7: =IF(V7=0,0,(V7*((LOG(V7))/LOG(2)))) -> -0.3899750005 | Y7: =N7 -> 111 | Z7: =COUNTIF(L16:L25,Y7) -> 4 | AA7: =Z7/(AB4-Z11) -> 1 | AB7: =IF(AA7=0,0,(AA7*((LOG(AA7))/LOG(2)))) -> 0 | AD7: =N7 -> 111 | AE7: =COUNTIF(L26:L34,AD7) -> 0 | AF7: =AE7/(AG4-AE11) ->  | AG7: =IF(AF7=0,0,(AF7*((LOG(AF7))/LOG(2)))) ->  | AI7: =N7 -> 111 | AJ7: =COUNTIF(L35:L43,AI7) -> 4 | AK7: =AJ7/(AL4-AJ11) -> 1 | AL7: =IF(AK7=0,0,(AK7*((LOG(AK7))/LOG(2)))) -> 0 | AN7: =N7 -> 111 | AO7: =COUNTIF(L44:L53,AN7) -> 4 | AP7: =AO7/(AQ4-AO11) -> 1 | AQ7: =IF(AP7=0,0,(AP7*((LOG(AP7))/LOG(2)))) -> 0 | AS7: =N7 -> 111 | AT7: =COUNTIF(L54:L62,AS7) -> 2 | AU7: =AT7/(AV4-AT11) -> 1 | AV7: =IF(AU7=0,0,(AU7*((LOG(AU7))/LOG(2)))) -> 0
A8: 12 | B8: 145 | C8: 13 | D8: 156 | E8: 13 | F8: 168 | K8: 0 | L8: 111 | N8: 112 | O8: =COUNTIF($L$7:$L$500,N8) -> 0 | P8: =O8/$Q$4 -> 0 | Q8: =IF(P8=0,0,(P8*((LOG(P8))/LOG(2)))) -> 0 | T8: =N8 -> 112 | U8: =COUNTIF(L7:L15,T8) -> 0 | V8: =U8/(W4-U11) -> 0 | W8: =IF(V8=0,0,(V8*((LOG(V8))/LOG(2)))) -> 0 | Y8: =N8 -> 112 | Z8: =COUNTIF(L16:L25,Y8) -> 0 | AA8: =Z8/(AB4-Z11) -> 0 | AB8: =IF(AA8=0,0,(AA8*((LOG(AA8))/LOG(2)))) -> 0 | AD8: =N8 -> 112 | AE8: =COUNTIF(L26:L34,AD8) -> 0 | AF8: =AE8/(AG4-AE11) ->  | AG8: =IF(AF8=0,0,(AF8*((LOG(AF8))/LOG(2)))) ->  | AI8: =N8 -> 112 | AJ8: =COUNTIF(L35:L43,AI8) -> 0 | AK8: =AJ8/(AL4-AJ11) -> 0 | AL8: =IF(AK8=0,0,(AK8*((LOG(AK8))/LOG(2)))) -> 0 | AN8: =N8 -> 112 | AO8: =COUNTIF(L44:L53,AN8) -> 0 | AP8: =AO8/(AQ4-AO11) -> 0 | AQ8: =IF(AP8=0,0,(AP8*((LOG(AP8))/LOG(2)))) -> 0 | AS8: =N8 -> 112 | AT8: =COUNTIF(L54:L62,AS8) -> 0 | AU8: =AT8/(AV4-AT11) -> 0 | AV8: =IF(AU8=0,0,(AU8*((LOG(AU8))/LOG(2)))) -> 0
A9: 21 | B9: 269 | C9: 11 | D9: 277 | E9: 11 | F9: 285 | K9: 0 | L9: 211 | N9: 121 | O9: =COUNTIF($L$7:$L$500,N9) -> 0 | P9: =O9/$Q$4 -> 0 | Q9: =IF(P9=0,0,(P9*((LOG(P9))/LOG(2)))) -> 0 | T9: =N9 -> 121 | U9: =COUNTIF(L7:L15,T9) -> 0 | V9: =U9/(W4-U11) -> 0 | W9: =IF(V9=0,0,(V9*((LOG(V9))/LOG(2)))) -> 0 | Y9: =N9 -> 121 | Z9: =COUNTIF(L16:L25,Y9) -> 0 | AA9: =Z9/(AB4-Z11) -> 0 | AB9: =IF(AA9=0,0,(AA9*((LOG(AA9))/LOG(2)))) -> 0 | AD9: =N9 -> 121 | AE9: =COUNTIF(L26:L34,AD9) -> 0 | AF9: =AE9/(AG4-AE11) ->  | AG9: =IF(AF9=0,0,(AF9*((LOG(AF9))/LOG(2)))) ->  | AI9: =N9 -> 121 | AJ9: =COUNTIF(L35:L43,AI9) -> 0 | AK9: =AJ9/(AL4-AJ11) -> 0 | AL9: =IF(AK9=0,0,(AK9*((LOG(AK9))/LOG(2)))) -> 0 | AN9: =N9 -> 121 | AO9: =COUNTIF(L44:L53,AN9) -> 0 | AP9: =AO9/(AQ4-AO11) -> 0 | AQ9: =IF(AP9=0,0,(AP9*((LOG(AP9))/LOG(2)))) -> 0 | AS9: =N9 -> 121 | AT9: =COUNTIF(L54:L62,AS9) -> 0 | AU9: =AT9/(AV4-AT11) -> 0 | AV9: =IF(AU9=0,0,(AU9*((LOG(AU9))/LOG(2)))) -> 0
A10: 21 | B10: 375 | C10: 11 | D10: 383 | E10: 11 | F10: 409 | K10: 0 | L10: 211 | N10: 122 | O10: =COUNTIF($L$7:$L$500,N10) -> 0 | P10: =O10/$Q$4 -> 0 | Q10: =IF(P10=0,0,(P10*((LOG(P10))/LOG(2)))) -> 0 | T10: =N10 -> 122 | U10: =COUNTIF(L7:L15,T10) -> 0 | V10: =U10/(W4-U11) -> 0 | W10: =IF(V10=0,0,(V10*((LOG(V10))/LOG(2)))) -> 0 | Y10: =N10 -> 122 | Z10: =COUNTIF(L16:L25,Y10) -> 0 | AA10: =Z10/(AB4-Z11) -> 0 | AB10: =IF(AA10=0,0,(AA10*((LOG(AA10))/LOG(2)))) -> 0 | AD10: =N10 -> 122 | AE10: =COUNTIF(L26:L34,AD10) -> 0 | AF10: =AE10/(AG4-AE11) ->  | AG10: =IF(AF10=0,0,(AF10*((LOG(AF10))/LOG(2)))) ->  | AI10: =N10 -> 122 | AJ10: =COUNTIF(L35:L43,AI10) -> 0 | AK10: =AJ10/(AL4-AJ11) -> 0 | AL10: =IF(AK10=0,0,(AK10*((LOG(AK10))/LOG(2)))) -> 0 | AN10: =N10 -> 122 | AO10: =COUNTIF(L44:L53,AN10) -> 0 | AP10: =AO10/(AQ4-AO11) -> 0 | AQ10: =IF(AP10=0,0,(AP10*((LOG(AP10))/LOG(2)))) -> 0 | AS10: =N10 -> 122 | AT10: =COUNTIF(L54:L62,AS10) -> 0 | AU10: =AT10/(AV4-AT11) -> 0 | AV10: =IF(AU10=0,0,(AU10*((LOG(AU10))/LOG(2)))) -> 0
A11: 21 | B11: 497 | C11: 11 | D11: 528 | E11: 11 | F11: 560 | K11: 0 | L11: 211 | N11: 211 | O11: =COUNTIF($L$7:$L$500,N11) -> 39 | P11: =O11/$Q$4 -> 0.6964285714 | Q11: =IF(P11=0,0,(P11*((LOG(P11))/LOG(2)))) -> -0.3635027754 | T11: =N11 -> 211 | U11: =COUNTIF(L7:L15,T11) -> 6 | Y11: =N11 -> 211 | Z11: =COUNTIF(L16:L25,Y11) -> 6 | AD11: =N11 -> 211 | AE11: =COUNTIF(L26:L34,AD11) -> 9 | AI11: =N11 -> 211 | AJ11: =COUNTIF(L35:L43,AI11) -> 5 | AN11: =N11 -> 211 | AO11: =COUNTIF(L44:L53,AN11) -> 6 | AS11: =N11 -> 211 | AT11: =COUNTIF(L54:L62,AS11) -> 7
A12: 21 | B12: 647 | C12: 11 | D12: 655 | E12: 11 | F12: 672 | K12: 0 | L12: 211 | N12: 212 | O12: =COUNTIF($L$7:$L$500,N12) -> 0 | P12: =O12/$Q$4 -> 0 | Q12: =IF(P12=0,0,(P12*((LOG(P12))/LOG(2)))) -> 0 | T12: =N12 -> 212 | U12: =COUNTIF(L7:L15,T12) -> 0 | V12: =U12/(W4-U11) -> 0 | W12: =IF(V12=0,0,(V12*((LOG(V12))/LOG(2)))) -> 0 | Y12: =N12 -> 212 | Z12: =COUNTIF(L16:L25,Y12) -> 0 | AA12: =Z12/(AB4-Z11) -> 0 | AB12: =IF(AA12=0,0,(AA12*((LOG(AA12))/LOG(2)))) -> 0 | AD12: =N12 -> 212 | AE12: =COUNTIF(L26:L34,AD12) -> 0 | AF12: =AE12/(AG4-AE11) ->  | AG12: =IF(AF12=0,0,(AF12*((LOG(AF12))/LOG(2)))) ->  | AI12: =N12 -> 212 | AJ12: =COUNTIF(L35:L43,AI12) -> 0 | AK12: =AJ12/(AL4-AJ11) -> 0 | AL12: =IF(AK12=0,0,(AK12*((LOG(AK12))/LOG(2)))) -> 0 | AN12: =N12 -> 212 | AO12: =COUNTIF(L44:L53,AN12) -> 0 | AP12: =AO12/(AQ4-AO11) -> 0 | AQ12: =IF(AP12=0,0,(AP12*((LOG(AP12))/LOG(2)))) -> 0 | AS12: =N12 -> 212 | AT12: =COUNTIF(L54:L62,AS12) -> 0 | AU12: =AT12/(AV4-AT11) -> 0 | AV12: =IF(AU12=0,0,(AU12*((LOG(AU12))/LOG(2)))) -> 0
A13: 21 | B13: 762 | C13: 11 | D13: 771 | E13: 11 | F13: 786 | K13: 0 | L13: 211 | N13: 221 | O13: =COUNTIF($L$7:$L$500,N13) -> 1 | P13: =O13/$Q$4 -> 0.01785714286 | Q13: =IF(P13=0,0,(P13*((LOG(P13))/LOG(2)))) -> -0.1037027665 | T13: =N13 -> 221 | U13: =COUNTIF(L7:L15,T13) -> 1 | V13: =U13/(W4-U11) -> 0.3333333333 | W13: =IF(V13=0,0,(V13*((LOG(V13))/LOG(2)))) -> -0.5283208336 | Y13: =N13 -> 221 | Z13: =COUNTIF(L16:L25,Y13) -> 0 | AA13: =Z13/(AB4-Z11) -> 0 | AB13: =IF(AA13=0,0,(AA13*((LOG(AA13))/LOG(2)))) -> 0 | AD13: =N13 -> 221 | AE13: =COUNTIF(L26:L34,AD13) -> 0 | AF13: =AE13/(AG4-AE11) ->  | AG13: =IF(AF13=0,0,(AF13*((LOG(AF13))/LOG(2)))) ->  | AI13: =N13 -> 221 | AJ13: =COUNTIF(L35:L43,AI13) -> 0 | AK13: =AJ13/(AL4-AJ11) -> 0 | AL13: =IF(AK13=0,0,(AK13*((LOG(AK13))/LOG(2)))) -> 0 | AN13: =N13 -> 221 | AO13: =COUNTIF(L44:L53,AN13) -> 0 | AP13: =AO13/(AQ4-AO11) -> 0 | AQ13: =IF(AP13=0,0,(AP13*((LOG(AP13))/LOG(2)))) -> 0 | AS13: =N13 -> 221 | AT13: =COUNTIF(L54:L62,AS13) -> 0 | AU13: =AT13/(AV4-AT11) -> 0 | AV13: =IF(AU13=0,0,(AU13*((LOG(AU13))/LOG(2)))) -> 0
A14: 21 | B14: 882 | C14: 22 | D14: 898 | E14: 13 | F14: 914 | K14: 0 | L14: 221 | N14: 222 | O14: =COUNTIF($L$7:$L$500,N14) -> 0 | P14: =O14/$Q$4 -> 0 | Q14: =IF(P14=0,0,(P14*((LOG(P14))/LOG(2)))) -> 0 | T14: =N14 -> 222 | U14: =COUNTIF(L7:L15,T14) -> 0 | V14: =U14/(W4-U11) -> 0 | W14: =IF(V14=0,0,(V14*((LOG(V14))/LOG(2)))) -> 0 | Y14: =N14 -> 222 | Z14: =COUNTIF(L16:L25,Y14) -> 0 | AA14: =Z14/(AB4-Z11) -> 0 | AB14: =IF(AA14=0,0,(AA14*((LOG(AA14))/LOG(2)))) -> 0 | AD14: =N14 -> 222 | AE14: =COUNTIF(L26:L34,AD14) -> 0 | AF14: =AE14/(AG4-AE11) ->  | AG14: =IF(AF14=0,0,(AF14*((LOG(AF14))/LOG(2)))) ->  | AI14: =N14 -> 222 | AJ14: =COUNTIF(L35:L43,AI14) -> 0 | AK14: =AJ14/(AL4-AJ11) -> 0 | AL14: =IF(AK14=0,0,(AK14*((LOG(AK14))/LOG(2)))) -> 0 | AN14: =N14 -> 222 | AO14: =COUNTIF(L44:L53,AN14) -> 0 | AP14: =AO14/(AQ4-AO11) -> 0 | AQ14: =IF(AP14=0,0,(AP14*((LOG(AP14))/LOG(2)))) -> 0 | AS14: =N14 -> 222 | AT14: =COUNTIF(L54:L62,AS14) -> 0 | AU14: =AT14/(AV4-AT11) -> 0 | AV14: =IF(AU14=0,0,(AU14*((LOG(AU14))/LOG(2)))) -> 0
A15: 21 | B15: 1003 | C15: 11 | D15: 1014 | E15: 11 | F15: 1031 | K15: 0 | L15: 211 | P15: =SUM(P7:P14) -> 1 | Q15: =-SUM(Q7:Q14) -> 0.9835926625 | V15: =SUM(V7:V14) -> 1 | W15: =-SUM(W7:W14) -> 0.9182958341 | AA15: =SUM(AA7:AA14) -> 1 | AB15: =-SUM(AB7:AB14) -> 0 | AF15: =SUM(AF7:AF14) ->  | AG15: =-SUM(AG7:AG14) ->  | AK15: =SUM(AK7:AK14) -> 1 | AL15: =-SUM(AL7:AL14) -> 0 | AP15: =SUM(AP7:AP14) -> 1 | AQ15: =-SUM(AQ7:AQ14) -> 0 | AU15: =SUM(AU7:AU14) -> 1 | AV15: =-SUM(AV7:AV14) -> 0
A16: 12 | B16: 1138 | C16: 13 | D16: 1152 | E16: 13 | F16: 1160 | K16: 0 | L16: 111 | P16: U= | Q16: =Q15/(LOG(Q4)/LOG(2)) -> 0.1693701652 | V16: U1= | W16: =W15/(LOG(W4)/LOG(2)) -> 0.2896900821 | AA16: U2= | AB16: =AB15/(LOG(AB4)/LOG(2)) -> 0 | AF16: U3= | AG16: =AG15/(LOG(AG4)/LOG(2)) ->  | AK16: U4= | AL16: =AL15/(LOG(AL4)/LOG(2)) -> 0 | AP16: U5= | AQ16: =AQ15/(LOG(AQ4)/LOG(2)) -> 0 | AU16: U6= | AV16: =AV15/(LOG(AV4)/LOG(2)) -> 0
A17: 12 | B17: 1264 | C17: 13 | D17: 1279 | E17: 13 | F17: 1291 | K17: 0 | L17: 111
A18: 21 | B18: 1387 | C18: 11 | D18: 1396 | E18: 11 | F18: 1413 | K18: 0 | L18: 211
A19: 21 | B19: 1501 | C19: 11 | D19: 1509 | E19: 11 | F19: 1523 | K19: 0 | L19: 211 | N19: Total Target Seq
A20: 12 | B20: 1623 | C20: 13 | D20: 1651 | E20: 13 | F20: 1665 | K20: 0 | L20: 111 | N20: =COUNTIF(L7:L62,G3) -> 39 | P20: 9 | Q20: 10 | R20: 9 | S20: 9 | T20: 10 | U20: 9
A21: 12 | B21: 1768 | C21: 13 | D21: 1776 | E21: 13 | F21: 1787 | K21: 0 | L21: 111 | P21: % of reinforcement given in 6 equal intervals based on number of trials
A22: 21 | B22: 1882 | C22: 11 | D22: 1893 | E22: 11 | F22: 1908 | K22: 0 | L22: 211 | P22: %_1 | Q22: %_2 | R22: %_3 | S22: %_4 | T22: %_5 | U22: %_6
A23: 21 | B23: 1997 | C23: 11 | D23: 2005 | E23: 11 | F23: 2021 | K23: 0 | L23: 211 | O23: target sequence | P23: =$G$3 -> 211 | Q23: =$G$3 -> 211 | R23: =$G$3 -> 211 | S23: =$G$3 -> 211 | T23: =$G$3 -> 211 | U23: =$G$3 -> 211
A24: 21 | B24: 2109 | C24: 11 | D24: 2116 | E24: 11 | F24: 2145 | K24: 0 | L24: 211 | O24: total reinforcement | P24: =U11 -> 6 | Q24: =Z11 -> 6 | R24: =AE11 -> 9 | S24: =AJ11 -> 5 | T24: =AO11 -> 6 | U24: =AT11 -> 7
A25: 21 | B25: 2239 | C25: 11 | D25: 2251 | E25: 11 | F25: 2261 | K25: 0 | L25: 211 | O25: % target
A26: 21 | B26: 2349 | C26: 11 | D26: 2357 | E26: 11 | F26: 2375 | K26: 0 | L26: 211 | O26: CCRF
A27: 21 | B27: 2464 | C27: 11 | D27: 2471 | E27: 11 | F27: 2493 | K27: 0 | L27: 211 | O27: % CCRf
A28: 21 | B28: 2580 | C28: 11 | D28: 2589 | E28: 11 | F28: 2609 | K28: 0 | L28: 211 | O28: average response rate | P28: =F15/P20 -> 114.5555556 | Q28: =(F25-F15)/Q20 -> 123 | R28: =(F34-F25)/R20 -> 115 | S28: =(F43-F34)/S20 -> 121.6666667 | T28: =(F53-F43)/T20 -> 127.1 | U28: =(F62-F53)/U20 -> 115.2222222
A29: 21 | B29: 2696 | C29: 11 | D29: 2703 | E29: 11 | F29: 2717 | K29: 0 | L29: 211
A30: 21 | B30: 2810 | C30: 11 | D30: 2818 | E30: 11 | F30: 2836 | K30: 0 | L30: 211
A31: 21 | B31: 2923 | C31: 11 | D31: 2930 | E31: 11 | F31: 2946 | K31: 0 | L31: 211
A32: 21 | B32: 3034 | C32: 11 | D32: 3053 | E32: 11 | F32: 3063 | K32: 0 | L32: 211
A33: 21 | B33: 3150 | C33: 11 | D33: 3157 | E33: 11 | F33: 3179 | K33: 0 | L33: 211
A34: 21 | B34: 3264 | C34: 11 | D34: 3285 | E34: 11 | F34: 3296 | K34: 0 | L34: 211
A35: 21 | B35: 3383 | C35: 11 | D35: 3390 | E35: 11 | F35: 3408 | K35: 0 | L35: 211
A36: 12 | B36: 3503 | C36: 13 | D36: 3519 | E36: 13 | F36: 3530 | K36: 0 | L36: 111
A37: 12 | B37: 3633 | C37: 13 | D37: 3655 | E37: 13 | F37: 3669 | K37: 0 | L37: 111
A38: 12 | B38: 3771 | C38: 13 | D38: 3778 | E38: 13 | F38: 3791 | K38: 0 | L38: 111
A39: 21 | B39: 3887 | C39: 11 | D39: 3894 | E39: 11 | F39: 3902 | K39: 0 | L39: 211
A40: 12 | B40: 4017 | C40: 13 | D40: 4027 | E40: 13 | F40: 4041 | K40: 0 | L40: 111
A41: 21 | B41: 4136 | C41: 11 | D41: 4143 | E41: 11 | F41: 4171 | K41: 0 | L41: 211
A42: 21 | B42: 4258 | C42: 11 | D42: 4265 | E42: 11 | F42: 4284 | K42: 0 | L42: 211
A43: 21 | B43: 4371 | C43: 11 | D43: 4379 | E43: 11 | F43: 4391 | K43: 0 | L43: 211
A44: 21 | B44: 4478 | C44: 11 | D44: 4485 | E44: 11 | F44: 4503 | K44: 0 | L44: 211
A45: 12 | B45: 4597 | C45: 13 | D45: 4625 | E45: 13 | F45: 4633 | K45: 0 | L45: 111
A46: 21 | B46: 4729 | C46: 11 | D46: 4736 | E46: 11 | F46: 4744 | K46: 0 | L46: 211
A47: 21 | B47: 4833 | C47: 11 | D47: 4840 | E47: 11 | F47: 4857 | K47: 0 | L47: 211
A48: 12 | B48: 4952 | C48: 13 | D48: 4971 | E48: 13 | F48: 4988 | K48: 0 | L48: 111
A49: 21 | B49: 5083 | C49: 11 | D49: 5091 | E49: 11 | F49: 5099 | K49: 0 | L49: 211
A50: 21 | B50: 5187 | C50: 11 | D50: 5194 | E50: 11 | F50: 5216 | K50: 0 | L50: 211
A51: 12 | B51: 5311 | C51: 13 | D51: 5321 | E51: 13 | F51: 5331 | K51: 0 | L51: 111
A52: 12 | B52: 5434 | C52: 13 | D52: 5480 | E52: 13 | F52: 5517 | K52: 0 | L52: 111
A53: 21 | B53: 5612 | C53: 11 | D53: 5620 | E53: 11 | F53: 5662 | K53: 0 | L53: 211
A54: 21 | B54: 5750 | C54: 11 | D54: 5756 | E54: 11 | F54: 5764 | K54: 0 | L54: 211
A55: 21 | B55: 5852 | C55: 11 | D55: 5859 | E55: 11 | F55: 5877 | K55: 0 | L55: 211
A56: 12 | B56: 5971 | C56: 13 | D56: 5979 | E56: 13 | F56: 5996 | K56: 0 | L56: 111
A57: 21 | B57: 6092 | C57: 11 | D57: 6099 | E57: 11 | F57: 6115 | K57: 0 | L57: 211
A58: 21 | B58: 6202 | C58: 11 | D58: 6209 | E58: 11 | F58: 6216 | K58: 0 | L58: 211
A59: 12 | B59: 6311 | C59: 13 | D59: 6330 | E59: 13 | F59: 6346 | K59: 0 | L59: 111
A60: 21 | B60: 6442 | C60: 11 | D60: 6448 | E60: 11 | F60: 6464 | K60: 0 | L60: 211
A61: 21 | B61: 6553 | C61: 11 | D61: 6560 | E61: 11 | F61: 6600 | K61: 0 | L61: 211
A62: 21 | B62: 6687 | C62: 11 | D62: 6693 | E62: 11 | F62: 6699 | K62: 1 | L62: 211

Sheet !MB07950.010
A1: Report for:!MB07950.010
A2: Date: | B2: <date>
A3: Hen: | B3: <hen> | F3: Correct Sequence | G3: =Start!J2 -> 211 | P3: Total Sequences in Data | Q3: =4994-COUNTBLANK(L7:L5000) -> 96 | V3: Total Sequences in Block Data | W3: =COUNTA(L7:L22) -> 16 | AA3: Total Sequences in Block Data | AB3: =COUNTA(L23:L38) -> 16 | AF3: Total Sequences in Block Data | AG3: =COUNTA(L39:L54) -> 16 | AK3: Total Sequences in Block Data | AL3: =COUNTA(L55:L70) -> 16 | AP3: Total Sequences in Block Data | AQ3: =COUNTA(L71:L86) -> 16 | AU3: Total Sequences in Block Data | AV3: =COUNTA(L87:L102) -> 16
P4: Total Sequences in Summary | Q4: =SUM(O7:O14) -> 96 | V4: Total Sequences in Block Summary | W4: =SUM(U7:U14) -> 16 | AA4: Total Sequences in Block Summary | AB4: =SUM(Z7:Z14) -> 16 | AF4: Total Sequences in Block Summary | AG4: =SUM(AE7:AE14) -> 16 | AK4: Total Sequences in Block Summary | AL4: =SUM(AJ7:AJ14) -> 16 | AP4: Total Sequences in Block Summary | AQ4: =SUM(AO7:AO14) -> 16 | AU4: Total Sequences in Block Summary | AV4: =SUM(AT7:AT14) -> 16
T5: Block 1 | Y5: Block 2 | AD5: Block 3 | AI5: Block 4 | AN5: Block 5 | AS5: Block 6
A6: Sequence Component 1 | B6: Time 1 | C6: Sequence Component 2 | D6: Time 2 | E6: Sequence Component 3 | F6: Time 3 | G6: Sequence Component 4 | H6: Time 4 | I6: Sequence Component 5 | J6: Time 5 | K6: Correct? 0=No 1=Yes | L6: Sequence | N6: Frequency | P6: Relative Frequency | Q6: Variability | T6: Frequency | V6: Relative Frequency | W6: Variability | Y6: Frequency | AA6: Relative Frequency | AB6: Variability | AD6: Frequency | AF6: Relative Frequency | AG6: Variability | AI6: Frequency | AK6: Relative Frequency | AL6: Variability | AN6: Frequency | AP6: Relative Frequency | AQ6: Variability | AS6: Frequency | AU6: Relative Frequency | AV6: Variability
A7: 12 | B7: 10 | C7: 13 | D7: 21 | E7: 13 | F7: 60 | K7: 0 | L7: 111 | N7: 111 | O7: =COUNTIF($L$7:$L$500,N7) -> 56 | P7: =O7/$Q$4 -> 0.5833333333 | Q7: =IF(P7=0,0,(P7*((LOG(P7))/LOG(2)))) -> -0.4536044209 | T7: =N7 -> 111 | U7: =COUNTIF(L7:L22,T7) -> 9 | V7: =U7/(W4-U11) -> 0.9 | W7: =IF(V7=0,0,(V7*((LOG(V7))/LOG(2)))) -> -0.1368027841 | Y7: =N7 -> 111 | Z7: =COUNTIF(L23:L38,Y7) -> 8 | AA7: =Z7/(AB4-Z11) -> 1 | AB7: =IF(AA7=0,0,(AA7*((LOG(AA7))/LOG(2)))) -> 0 | AD7: =N7 -> 111 | AE7: =COUNTIF(L39:L54,AD7) -> 7 | AF7: =AE7/(AG4-AE11) -> 1 | AG7: =IF(AF7=0,0,(AF7*((LOG(AF7))/LOG(2)))) -> 0 | AI7: =N7 -> 111 | AJ7: =COUNTIF(L55:L70,AI7) -> 11 | AK7: =AJ7/(AL4-AJ11) -> 1 | AL7: =IF(AK7=0,0,(AK7*((LOG(AK7))/LOG(2)))) -> 0 | AN7: =N7 -> 111 | AO7: =COUNTIF(L71:L86,AN7) -> 11 | AP7: =AO7/(AQ4-AO11) -> 1 | AQ7: =IF(AP7=0,0,(AP7*((LOG(AP7))/LOG(2)))) -> 0 | AS7: =N7 -> 111 | AT7: =COUNTIF(L87:L102,AS7) -> 10 | AU7: =AT7/(AV4-AT11) -> 1 | AV7: =IF(AU7=0,0,(AU7*((LOG(AU7))/LOG(2)))) -> 0
A8: 21 | B8: 156 | C8: 11 | D8: 163 | E8: 11 | F8: 172 | K8: 0 | L8: 211 | N8: 112 | O8: =COUNTIF($L$7:$L$500,N8) -> 1 | P8: =O8/$Q$4 -> 0.01041666667 | Q8: =IF(P8=0,0,(P8*((LOG(P8))/LOG(2)))) -> -0.06859335938 | T8: =N8 -> 112 | U8: =COUNTIF(L7:L22,T8) -> 1 | V8: =U8/(W4-U11) -> 0.1 | W8: =IF(V8=0,0,(V8*((LOG(V8))/LOG(2)))) -> -0.3321928095 | Y8: =N8 -> 112 | Z8: =COUNTIF(L23:L38,Y8) -> 0 | AA8: =Z8/(AB4-Z11) -> 0 | AB8: =IF(AA8=0,0,(AA8*((LOG(AA8))/LOG(2)))) -> 0 | AD8: =N8 -> 112 | AE8: =COUNTIF(L39:L54,AD8) -> 0 | AF8: =AE8/(AG4-AE11) -> 0 | AG8: =IF(AF8=0,0,(AF8*((LOG(AF8))/LOG(2)))) -> 0 | AI8: =N8 -> 112 | AJ8: =COUNTIF(L55:L70,AI8) -> 0 | AK8: =AJ8/(AL4-AJ11) -> 0 | AL8: =IF(AK8=0,0,(AK8*((LOG(AK8))/LOG(2)))) -> 0 | AN8: =N8 -> 112 | AO8: =COUNTIF(L71:L86,AN8) -> 0 | AP8: =AO8/(AQ4-AO11) -> 0 | AQ8: =IF(AP8=0,0,(AP8*((LOG(AP8))/LOG(2)))) -> 0 | AS8: =N8 -> 112 | AT8: =COUNTIF(L87:L102,AS8) -> 0 | AU8: =AT8/(AV4-AT11) -> 0 | AV8: =IF(AU8=0,0,(AU8*((LOG(AU8))/LOG(2)))) -> 0
A9: 12 | B9: 271 | C9: 13 | D9: 286 | E9: 13 | F9: 298 | K9: 0 | L9: 111 | N9: 121 | O9: =COUNTIF($L$7:$L$500,N9) -> 0 | P9: =O9/$Q$4 -> 0 | Q9: =IF(P9=0,0,(P9*((LOG(P9))/LOG(2)))) -> 0 | T9: =N9 -> 121 | U9: =COUNTIF(L7:L22,T9) -> 0 | V9: =U9/(W4-U11) -> 0 | W9: =IF(V9=0,0,(V9*((LOG(V9))/LOG(2)))) -> 0 | Y9: =N9 -> 121 | Z9: =COUNTIF(L23:L38,Y9) -> 0 | AA9: =Z9/(AB4-Z11) -> 0 | AB9: =IF(AA9=0,0,(AA9*((LOG(AA9))/LOG(2)))) -> 0 | AD9: =N9 -> 121 | AE9: =COUNTIF(L39:L54,AD9) -> 0 | AF9: =AE9/(AG4-AE11) -> 0 | AG9: =IF(AF9=0,0,(AF9*((LOG(AF9))/LOG(2)))) -> 0 | AI9: =N9 -> 121 | AJ9: =COUNTIF(L55:L70,AI9) -> 0 | AK9: =AJ9/(AL4-AJ11) -> 0 | AL9: =IF(AK9=0,0,(AK9*((LOG(AK9))/LOG(2)))) -> 0 | AN9: =N9 -> 121 | AO9: =COUNTIF(L71:L86,AN9) -> 0 | AP9: =AO9/(AQ4-AO11) -> 0 | AQ9: =IF(AP9=0,0,(AP9*((LOG(AP9))/LOG(2)))) -> 0 | AS9: =N9 -> 121 | AT9: =COUNTIF(L87:L102,AS9) -> 0 | AU9: =AT9/(AV4-AT11) -> 0 | AV9: =IF(AU9=0,0,(AU9*((LOG(AU9))/LOG(2)))) -> 0
A10: 12 | B10: 400 | C10: 13 | D10: 407 | E10: 13 | F10: 422 | K10: 0 | L10: 111 | N10: 122 | O10: =COUNTIF($L$7:$L$500,N10) -> 0 | P10: =O10/$Q$4 -> 0 | Q10: =IF(P10=0,0,(P10*((LOG(P10))/LOG(2)))) -> 0 | T10: =N10 -> 122 | U10: =COUNTIF(L7:L22,T10) -> 0 | V10: =U10/(W4-U11) -> 0 | W10: =IF(V10=0,0,(V10*((LOG(V10))/LOG(2)))) -> 0 | Y10: =N10 -> 122 | Z10: =COUNTIF(L23:L38,Y10) -> 0 | AA10: =Z10/(AB4-Z11) -> 0 | AB10: =IF(AA10=0,0,(AA10*((LOG(AA10))/LOG(2)))) -> 0 | AD10: =N10 -> 122 | AE10: =COUNTIF(L39:L54,AD10) -> 0 | AF10: =AE10/(AG4-AE11) -> 0 | AG10: =IF(AF10=0,0,(AF10*((LOG(AF10))/LOG(2)))) -> 0 | AI10: =N10 -> 122 | AJ10: =COUNTIF(L55:L70,AI10) -> 0 | AK10: =AJ10/(AL4-AJ11) -> 0 | AL10: =IF(AK10=0,0,(AK10*((LOG(AK10))/LOG(2)))) -> 0 | AN10: =N10 -> 122 | AO10: =COUNTIF(L71:L86,AN10) -> 0 | AP10: =AO10/(AQ4-AO11) -> 0 | AQ10: =IF(AP10=0,0,(AP10*((LOG(AP10))/LOG(2)))) -> 0 | AS10: =N10 -> 122 | AT10: =COUNTIF(L87:L102,AS10) -> 0 | AU10: =AT10/(AV4-AT11) -> 0 | AV10: =IF(AU10=0,0,(AU10*((LOG(AU10))/LOG(2)))) -> 0
A11: 21 | B11: 518 | C11: 11 | D11: 526 | E11: 11 | F11: 577 | K11: 0 | L11: 211 | N11: 211 | O11: =COUNTIF($L$7:$L$500,N11) -> 39 | P11: =O11/$Q$4 -> 0.40625 | Q11: =IF(P11=0,0,(P11*((LOG(P11))/LOG(2)))) -> -0.5279463645 | T11: =N11 -> 211 | U11: =COUNTIF(L7:L22,T11) -> 6 | Y11: =N11 -> 211 | Z11: =COUNTIF(L23:L38,Y11) -> 8 | AD11: =N11 -> 211 | AE11: =COUNTIF(L39:L54,AD11) -> 9 | AI11: =N11 -> 211 | AJ11: =COUNTIF(L55:L70,AI11) -> 5 | AN11: =N11 -> 211 | AO11: =COUNTIF(L71:L86,AN11) -> 5 | AS11: =N11 -> 211 | AT11: =COUNTIF(L87:L102,AS11) -> 6
A12: 12 | B12: 678 | C12: 13 | D12: 688 | E12: 13 | F12: 705 | K12: 0 | L12: 111 | N12: 212 | O12: =COUNTIF($L$7:$L$500,N12) -> 0 | P12: =O12/$Q$4 -> 0 | Q12: =IF(P12=0,0,(P12*((LOG(P12))/LOG(2)))) -> 0 | T12: =N12 -> 212 | U12: =COUNTIF(L7:L22,T12) -> 0 | V12: =U12/(W4-U11) -> 0 | W12: =IF(V12=0,0,(V12*((LOG(V12))/LOG(2)))) -> 0 | Y12: =N12 -> 212 | Z12: =COUNTIF(L23:L38,Y12) -> 0 | AA12: =Z12/(AB4-Z11) -> 0 | AB12: =IF(AA12=0,0,(AA12*((LOG(AA12))/LOG(2)))) -> 0 | AD12: =N12 -> 212 | AE12: =COUNTIF(L39:L54,AD12) -> 0 | AF12: =AE12/(AG4-AE11) -> 0 | AG12: =IF(AF12=0,0,(AF12*((LOG(AF12))/LOG(2)))) -> 0 | AI12: =N12 -> 212 | AJ12: =COUNTIF(L55:L70,AI12) -> 0 | AK12: =AJ12/(AL4-AJ11) -> 0 | AL12: =IF(AK12=0,0,(AK12*((LOG(AK12))/LOG(2)))) -> 0 | AN12: =N12 -> 212 | AO12: =COUNTIF(L71:L86,AN12) -> 0 | AP12: =AO12/(AQ4-AO11) -> 0 | AQ12: =IF(AP12=0,0,(AP12*((LOG(AP12))/LOG(2)))) -> 0 | AS12: =N12 -> 212 | AT12: =COUNTIF(L87:L102,AS12) -> 0 | AU12: =AT12/(AV4-AT11) -> 0 | AV12: =IF(AU12=0,0,(AU12*((LOG(AU12))/LOG(2)))) -> 0
A13: 12 | B13: 828 | C13: 13 | D13: 847 | E13: 24 | F13: 859 | K13: 0 | L13: 112 | N13: 221 | O13: =COUNTIF($L$7:$L$500,N13) -> 0 | P13: =O13/$Q$4 -> 0 | Q13: =IF(P13=0,0,(P13*((LOG(P13))/LOG(2)))) -> 0 | T13: =N13 -> 221 | U13: =COUNTIF(L7:L22,T13) -> 0 | V13: =U13/(W4-U11) -> 0 | W13: =IF(V13=0,0,(V13*((LOG(V13))/LOG(2)))) -> 0 | Y13: =N13 -> 221 | Z13: =COUNTIF(L23:L38,Y13) -> 0 | AA13: =Z13/(AB4-Z11) -> 0 | AB13: =IF(AA13=0,0,(AA13*((LOG(AA13))/LOG(2)))) -> 0 | AD13: =N13 -> 221 | AE13: =COUNTIF(L39:L54,AD13) -> 0 | AF13: =AE13/(AG4-AE11) -> 0 | AG13: =IF(AF13=0,0,(AF13*((LOG(AF13))/LOG(2)))) -> 0 | AI13: =N13 -> 221 | AJ13: =COUNTIF(L55:L70,AI13) -> 0 | AK13: =AJ13/(AL4-AJ11) -> 0 | AL13: =IF(AK13=0,0,(AK13*((LOG(AK13))/LOG(2)))) -> 0 | AN13: =N13 -> 221 | AO13: =COUNTIF(L71:L86,AN13) -> 0 | AP13: =AO13/(AQ4-AO11) -> 0 | AQ13: =IF(AP13=0,0,(AP13*((LOG(AP13))/LOG(2)))) -> 0 | AS13: =N13 -> 221 | AT13: =COUNTIF(L87:L102,AS13) -> 0 | AU13: =AT13/(AV4-AT11) -> 0 | AV13: =IF(AU13=0,0,(AU13*((LOG(AU13))/LOG(2)))) -> 0
A14: 12 | B14: 957 | C14: 13 | D14: 982 | E14: 13 | F14: 989 | K14: 0 | L14: 111 | N14: 222 | O14: =COUNTIF($L$7:$L$500,N14) -> 0 | P14: =O14/$Q$4 -> 0 | Q14: =IF(P14=0,0,(P14*((LOG(P14))/LOG(2)))) -> 0 | T14: =N14 -> 222 | U14: =COUNTIF(L7:L22,T14) -> 0 | V14: =U14/(W4-U11) -> 0 | W14: =IF(V14=0,0,(V14*((LOG(V14))/LOG(2)))) -> 0 | Y14: =N14 -> 222 | Z14: =COUNTIF(L23:L38,Y14) -> 0 | AA14: =Z14/(AB4-Z11) -> 0 | AB14: =IF(AA14=0,0,(AA14*((LOG(AA14))/LOG(2)))) -> 0 | AD14: =N14 -> 222 | AE14: =COUNTIF(L39:L54,AD14) -> 0 | AF14: =AE14/(AG4-AE11) -> 0 | AG14: =IF(AF14=0,0,(AF14*((LOG(AF14))/LOG(2)))) -> 0 | AI14: =N14 -> 222 | AJ14: =COUNTIF(L55:L70,AI14) -> 0 | AK14: =AJ14/(AL4-AJ11) -> 0 | AL14: =IF(AK14=0,0,(AK14*((LOG(AK14))/LOG(2)))) -> 0 | AN14: =N14 -> 222 | AO14: =COUNTIF(L71:L86,AN14) -> 0 | AP14: =AO14/(AQ4-AO11) -> 0 | AQ14: =IF(AP14=0,0,(AP14*((LOG(AP14))/LOG(2)))) -> 0 | AS14: =N14 -> 222 | AT14: =COUNTIF(L87:L102,AS14) -> 0 | AU14: =AT14/(AV4-AT11) -> 0 | AV14: =IF(AU14=0,0,(AU14*((LOG(AU14))/LOG(2)))) -> 0
A15: 12 | B15: 1098 | C15: 13 | D15: 1112 | E15: 13 | F15: 1127 | K15: 0 | L15: 111 | P15: =SUM(P7:P14) -> 1 | Q15: =-SUM(Q7:Q14) -> 1.050144145 | V15: =SUM(V7:V14) -> 1 | W15: =-SUM(W7:W14) -> 0.4689955936 | AA15: =SUM(AA7:AA14) -> 1 | AB15: =-SUM(AB7:AB14) -> 0 | AF15: =SUM(AF7:AF14) -> 1 | AG15: =-SUM(AG7:AG14) -> 0 | AK15: =SUM(AK7:AK14) -> 1 | AL15: =-SUM(AL7:AL14) -> 0 | AP15: =SUM(AP7:AP14) -> 1 | AQ15: =-SUM(AQ7:AQ14) -> 0 | AU15: =SUM(AU7:AU14) -> 1 | AV15: =-SUM(AV7:AV14) -> 0
A16: 12 | B16: 1230 | C16: 13 | D16: 1245 | E16: 13 | F16: 1252 | K16: 0 | L16: 111 | P16: U= | Q16: =Q15/(LOG(Q4)/LOG(2)) -> 0.159476101 | V16: U1= | W16: =W15/(LOG(W4)/LOG(2)) -> 0.1172488984 | AA16: U2= | AB16: =AB15/(LOG(AB4)/LOG(2)) -> 0 | AF16: U3= | AG16: =AG15/(LOG(AG4)/LOG(2)) -> 0 | AK16: U4= | AL16: =AL15/(LOG(AL4)/LOG(2)) -> 0 | AP16: U5= | AQ16: =AQ15/(LOG(AQ4)/LOG(2)) -> 0 | AU16: U6= | AV16: =AV15/(LOG(AV4)/LOG(2)) -> 0
A17: 21 | B17: 1347 | C17: 11 | D17: 1354 | E17: 11 | F17: 1373 | K17: 0 | L17: 211
A18: 21 | B18: 1461 | C18: 11 | D18: 1477 | E18: 11 | F18: 1503 | K18: 0 | L18: 211
A19: 21 | B19: 1590 | C19: 11 | D19: 1633 | E19: 11 | F19: 1643 | K19: 0 | L19: 211 | N19: Total Target Seq
A20: 21 | B20: 1730 | C20: 11 | D20: 1738 | E20: 11 | F20: 1751 | K20: 0 | L20: 211 | N20: =COUNTIF(L7:L102,G3) -> 39 | P20: 16 | Q20: 16 | R20: 16 | S20: 16 | T20: 16 | U20: 16
A21: 12 | B21: 1848 | C21: 13 | D21: 1864 | E21: 13 | F21: 1878 | K21: 0 | L21: 111 | P21: % of reinforcement given in 6 equal intervals based on number of trials
A22: 12 | B22: 1979 | C22: 13 | D22: 1994 | E22: 13 | F22: 2005 | K22: 0 | L22: 111 | P22: %_1 | Q22: %_2 | R22: %_3 | S22: %_4 | T22: %_5 | U22: %_6
A23: 21 | B23: 2104 | C23: 11 | D23: 2111 | E23: 11 | F23: 2123 | K23: 0 | L23: 211 | O23: target sequence | P23: =$G$3 -> 211 | Q23: =$G$3 -> 211 | R23: =$G$3 -> 211 | S23: =$G$3 -> 211 | T23: =$G$3 -> 211 | U23: =$G$3 -> 211
A24: 21 | B24: 2210 | C24: 11 | D24: 2229 | E24: 11 | F24: 2236 | K24: 0 | L24: 211 | O24: total reinforcement | P24: =U11 -> 6 | Q24: =Z11 -> 8 | R24: =AE11 -> 9 | S24: =AJ11 -> 5 | T24: =AO11 -> 5 | U24: =AT11 -> 6
A25: 21 | B25: 2322 | C25: 11 | D25: 2330 | E25: 11 | F25: 2346 | K25: 0 | L25: 211 | O25: % target
A26: 12 | B26: 2441 | C26: 13 | D26: 2463 | E26: 13 | F26: 2479 | K26: 0 | L26: 111 | O26: CCRF
A27: 12 | B27: 2599 | C27: 13 | D27: 2619 | E27: 13 | F27: 2627 | K27: 0 | L27: 111 | O27: % CCRf
A28: 21 | B28: 2722 | C28: 11 | D28: 2729 | E28: 11 | F28: 2745 | K28: 0 | L28: 211 | O28: average response rate | P28: =F22/P20 -> 125.3125 | Q28: =(F38-F22)/Q20 -> 124.5 | R28: =(F54-F38)/R20 -> 122.875 | S28: =(F70-F54)/S20 -> 132.1875 | T28: =(F86-F70)/T20 -> 122.0625 | U28: =(F102-F86)/U20 -> 128.625
A29: 21 | B29: 2832 | C29: 11 | D29: 2852 | E29: 11 | F29: 2855 | K29: 0 | L29: 211
A30: 12 | B30: 2950 | C30: 13 | D30: 2964 | E30: 13 | F30: 2975 | K30: 0 | L30: 111
A31: 12 | B31: 3079 | C31: 13 | D31: 3098 | E31: 13 | F31: 3107 | K31: 0 | L31: 111
A32: 12 | B32: 3231 | C32: 13 | D32: 3238 | E32: 13 | F32: 3250 | K32: 0 | L32: 111
A33: 12 | B33: 3352 | C33: 13 | D33: 3364 | E33: 13 | F33: 3374 | K33: 0 | L33: 111
A34: 12 | B34: 3487 | C34: 13 | D34: 3498 | E34: 13 | F34: 3506 | K34: 0 | L34: 111
A35: 21 | B35: 3602 | C35: 11 | D35: 3610 | E35: 11 | F35: 3635 | K35: 0 | L35: 211
A36: 21 | B36: 3722 | C36: 11 | D36: 3729 | E36: 11 | F36: 3750 | K36: 0 | L36: 211
A37: 21 | B37: 3846 | C37: 11 | D37: 3862 | E37: 11 | F37: 3872 | K37: 0 | L37: 211
A38: 12 | B38: 3975 | C38: 13 | D38: 3989 | E38: 13 | F38: 3997 | K38: 0 | L38: 111
A39: 21 | B39: 4092 | C39: 11 | D39: 4100 | E39: 11 | F39: 4119 | K39: 0 | L39: 211
A40: 21 | B40: 4208 | C40: 11 | D40: 4215 | E40: 11 | F40: 4229 | K40: 0 | L40: 211
A41: 21 | B41: 4318 | C41: 11 | D41: 4327 | E41: 11 | F41: 4345 | K41: 0 | L41: 211
A42: 12 | B42: 4440 | C42: 13 | D42: 4447 | E42: 13 | F42: 4454 | K42: 0 | L42: 111
A43: 12 | B43: 4556 | C43: 13 | D43: 4578 | E43: 13 | F43: 4587 | K43: 0 | L43: 111
A44: 12 | B44: 4705 | C44: 13 | D44: 4715 | E44: 13 | F44: 4725 | K44: 0 | L44: 111
A45: 21 | B45: 4821 | C45: 11 | D45: 4828 | E45: 11 | F45: 4849 | K45: 0 | L45: 211
A46: 21 | B46: 4937 | C46: 11 | D46: 4945 | E46: 11 | F46: 4983 | K46: 0 | L46: 211
A47: 21 | B47: 5070 | C47: 11 | D47: 5077 | E47: 11 | F47: 5093 | K47: 0 | L47: 211
A48: 12 | B48: 5194 | C48: 13 | D48: 5207 | E48: 13 | F48: 5217 | K48: 0 | L48: 111
A49: 21 | B49: 5313 | C49: 11 | D49: 5320 | E49: 11 | F49: 5334 | K49: 0 | L49: 211
A50: 21 | B50: 5423 | C50: 11 | D50: 5430 | E50: 11 | F50: 5449 | K50: 0 | L50: 211
A51: 12 | B51: 5543 | C51: 13 | D51: 5553 | E51: 13 | F51: 5564 | K51: 0 | L51: 111
A52: 21 | B52: 5660 | C52: 11 | D52: 5667 | E52: 11 | F52: 5682 | K52: 0 | L52: 211
A53: 12 | B53: 5805 | C53: 13 | D53: 5812 | E53: 13 | F53: 5822 | K53: 0 | L53: 111
A54: 12 | B54: 5926 | C54: 13 | D54: 5952 | E54: 13 | F54: 5963 | K54: 0 | L54: 111
A55: 21 | B55: 6059 | C55: 11 | D55: 6066 | E55: 11 | F55: 6103 | K55: 0 | L55: 211
A56: 12 | B56: 6198 | C56: 13 | D56: 6218 | E56: 13 | F56: 6231 | K56: 0 | L56: 111
A57: 12 | B57: 6345 | C57: 13 | D57: 6362 | E57: 13 | F57: 6374 | K57: 0 | L57: 111
A58: 12 | B58: 6485 | C58: 13 | D58: 6497 | E58: 13 | F58: 6507 | K58: 0 | L58: 111
A59: 12 | B59: 6627 | C59: 13 | D59: 6637 | E59: 13 | F59: 6648 | K59: 0 | L59: 111
A60: 21 | B60: 6743 | C60: 11 | D60: 6750 | E60: 11 | F60: 6802 | K60: 0 | L60: 211
A61: 12 | B61: 6898 | C61: 13 | D61: 6916 | E61: 13 | F61: 6922 | K61: 0 | L61: 111
A62: 12 | B62: 7024 | C62: 13 | D62: 7038 | E62: 13 | F62: 7050 | K62: 0 | L62: 111
A63: 21 | B63: 7146 | C63: 11 | D63: 7153 | E63: 11 | F63: 7172 | K63: 0 | L63: 211
A64: 12 | B64: 7270 | C64: 13 | D64: 7291 | E64: 13 | F64: 7302 | K64: 0 | L64: 111
A65: 12 | B65: 7399 | C65: 13 | D65: 7415 | E65: 13 | F65: 7444 | K65: 0 | L65: 111
A66: 21 | B66: 7547 | C66: 11 | D66: 7555 | E66: 11 | F66: 7577 | K66: 0 | L66: 211
A67: 12 | B67: 7685 | C67: 13 | D67: 7691 | E67: 13 | F67: 7706 | K67: 0 | L67: 111
A68: 21 | B68: 7802 | C68: 11 | D68: 7808 | E68: 11 | F68: 7817 | K68: 0 | L68: 211
A69: 12 | B69: 7912 | C69: 13 | D69: 7929 | E69: 13 | F69: 7948 | K69: 0 | L69: 111
A70: 12 | B70: 8050 | C70: 13 | D70: 8068 | E70: 13 | F70: 8078 | K70: 0 | L70: 111
A71: 12 | B71: 8180 | C71: 13 | D71: 8197 | E71: 13 | F71: 8207 | K71: 0 | L71: 111
A72: 21 | B72: 8302 | C72: 11 | D72: 8309 | E72: 11 | F72: 8323 | K72: 0 | L72: 211
A73: 12 | B73: 8421 | C73: 13 | D73: 8434 | E73: 13 | F73: 8450 | K73: 0 | L73: 111
A74: 12 | B74: 8548 | C74: 13 | D74: 8560 | E74: 13 | F74: 8573 | K74: 0 | L74: 111
A75: 21 | B75: 8668 | C75: 11 | D75: 8675 | E75: 11 | F75: 8682 | K75: 0 | L75: 211
A76: 12 | B76: 8770 | C76: 13 | D76: 8784 | E76: 13 | F76: 8792 | K76: 0 | L76: 111
A77: 12 | B77: 8894 | C77: 13 | D77: 8907 | E77: 13 | F77: 8917 | K77: 0 | L77: 111
A78: 21 | B78: 9012 | C78: 11 | D78: 9019 | E78: 11 | F78: 9038 | K78: 0 | L78: 211
A79: 21 | B79: 9126 | C79: 11 | D79: 9133 | E79: 11 | F79: 9144 | K79: 0 | L79: 211
A80: 12 | B80: 9241 | C80: 13 | D80: 9265 | E80: 13 | F80: 9275 | K80: 0 | L80: 111
A81: 21 | B81: 9370 | C81: 11 | D81: 9377 | E81: 11 | F81: 9390 | K81: 0 | L81: 211
A82: 12 | B82: 9481 | C82: 13 | D82: 9495 | E82: 13 | F82: 9502 | K82: 0 | L82: 111
A83: 12 | B83: 9604 | C83: 13 | D83: 9611 | E83: 13 | F83: 9631 | K83: 0 | L83: 111
A84: 12 | B84: 9733 | C84: 13 | D84: 9748 | E84: 13 | F84: 9767 | K84: 0 | L84: 111
A85: 12 | B85: 9874 | C85: 13 | D85: 9889 | E85: 13 | F85: 9906 | K85: 0 | L85: 111
A86: 12 | B86: 10008 | C86: 13 | D86: 10023 | E86: 13 | F86: 10031 | K86: 0 | L86: 111
A87: 12 | B87: 10132 | C87: 13 | D87: 10139 | E87: 13 | F87: 10157 | K87: 0 | L87: 111
A88: 21 | B88: 10252 | C88: 11 | D88: 10259 | E88: 11 | F88: 10267 | K88: 0 | L88: 211
A89: 12 | B89: 10363 | C89: 13 | D89: 10378 | E89: 13 | F89: 10400 | K89: 0 | L89: 111
A90: 12 | B90: 10501 | C90: 13 | D90: 10530 | E90: 13 | F90: 10541 | K90: 0 | L90: 111
A91: 12 | B91: 10661 | C91: 13 | D91: 10670 | E91: 13 | F91: 10683 | K91: 0 | L91: 111
A92: 21 | B92: 10778 | C92: 11 | D92: 10785 | E92: 11 | F92: 10796 | K92: 0 | L92: 211
A93: 12 | B93: 10904 | C93: 13 | D93: 10951 | E93: 13 | F93: 10959 | K93: 0 | L93: 111
A94: 12 | B94: 11063 | C94: 13 | D94: 11089 | E94: 13 | F94: 11099 | K94: 0 | L94: 111
A95: 21 | B95: 11194 | C95: 11 | D95: 11201 | E95: 11 | F95: 11208 | K95: 0 | L95: 211
A96: 21 | B96: 11296 | C96: 11 | D96: 11302 | E96: 11 | F96: 11312 | K96: 0 | L96: 211
A97: 12 | B97: 11405 | C97: 13 | D97: 11421 | E97: 13 | F97: 11435 | K97: 0 | L97: 111
A98: 12 | B98: 11536 | C98: 13 | D98: 11553 | E98: 13 | F98: 11585 | K98: 0 | L98: 111
A99: 12 | B99: 11687 | C99: 13 | D99: 11702 | E99: 13 | F99: 11712 | K99: 0 | L99: 111
A100: 12 | B100: 11827 | C100: 13 | D100: 11837 | E100: 13 | F100: 11858 | K100: 0 | L100: 111
A101: 21 | B101: 11953 | C101: 11 | D101: 11960 | E101: 11 | F101: 11978 | K101: 0 | L101: 211
A102: 21 | B102: 12065 | C102: 11 | D102: 12072 | E102: 11 | F102: 12089 | K102: 1 | L102: 211

Sheet !MB08910.010
A1: Report for:!MB08910.010
A2: Date: | B2: <date>
A3: Hen: | B3: <hen> | F3: Correct Sequence | G3: =Start!J2 -> 211 | P3: Total Sequences in Data | Q3: =4994-COUNTBLANK(L7:L5000) -> 73 | V3: Total Sequences in Block Data | W3: =COUNTA(L7:L18) -> 12 | AA3: Total Sequences in Block Data | AB3: =COUNTA(L19:L30) -> 12 | AF3: Total Sequences in Block Data | AG3: =COUNTA(L31:L43) -> 13 | AK3: Total Sequences in Block Data | AL3: =COUNTA(L44:L55) -> 12 | AP3: Total Sequences in Block Data | AQ3: =COUNTA(L56:L67) -> 12 | AU3: Total Sequences in Block Data | AV3: =COUNTA(L68:L79) -> 12
P4: Total Sequences in Summary | Q4: =SUM(O7:O14) -> 73 | V4: Total Sequences in Block Summary | W4: =SUM(U7:U14) -> 12 | AA4: Total Sequences in Block Summary | AB4: =SUM(Z7:Z14) -> 12 | AF4: Total Sequences in Block Summary | AG4: =SUM(AE7:AE14) -> 13 | AK4: Total Sequences in Block Summary | AL4: =SUM(AJ7:AJ14) -> 12 | AP4: Total Sequences in Block Summary | AQ4: =SUM(AO7:AO14) -> 12 | AU4: Total Sequences in Block Summary | AV4: =SUM(AT7:AT14) -> 12
T5: Block 1 | Y5: Block 2 | AD5: Block 3 | AI5: Block 4 | AN5: Block 5 | AS5: Block 6
A6: Sequence Component 1 | B6: Time 1 | C6: Sequence Component 2 | D6: Time 2 | E6: Sequence Component 3 | F6: Time 3 | G6: Sequence Component 4 | H6: Time 4 | I6: Sequence Component 5 | J6: Time 5 | K6: Correct? 0=No 1=Yes | L6: Sequence | N6: Frequency | P6: Relative Frequency | Q6: Variability | T6: Frequency | V6: Relative Frequency | W6: Variability | Y6: Frequency | AA6: Relative Frequency | AB6: Variability | AD6: Frequency | AF6: Relative Frequency | AG6: Variability | AI6: Frequency | AK6: Relative Frequency | AL6: Variability | AN6: Frequency | AP6: Relative Frequency | AQ6: Variability | AS6: Frequency | AU6: Relative Frequency | AV6: Variability
A7: 12 | B7: 21 | C7: 13 | D7: 37 | E7: 24 | F7: 53 | K7: 0 | L7: 112 | N7: 111 | O7: =COUNTIF($L$7:$L$500,N7) -> 32 | P7: =O7/$Q$4 -> 0.4383561644 | Q7: =IF(P7=0,0,(P7*((LOG(P7))/LOG(2)))) -> -0.5215669299 | T7: =N7 -> 111 | U7: =COUNTIF(L7:L18,T7) -> 7 | V7: =U7/(W4-U11) -> 0.875 | W7: =IF(V7=0,0,(V7*((LOG(V7))/LOG(2)))) -> -0.1685644432 | Y7: =N7 -> 111 | Z7: =COUNTIF(L19:L30,Y7) -> 8 | AA7: =Z7/(AB4-Z11) -> 1 | AB7: =IF(AA7=0,0,(AA7*((LOG(AA7))/LOG(2)))) -> 0 | AD7: =N7 -> 111 | AE7: =COUNTIF(L31:L43,AD7) -> 9 | AF7: =AE7/(AG4-AE11) -> 1 | AG7: =IF(AF7=0,0,(AF7*((LOG(AF7))/LOG(2)))) -> 0 | AI7: =N7 -> 111 | AJ7: =COUNTIF(L44:L55,AI7) -> 5 | AK7: =AJ7/(AL4-AJ11) -> 0.8333333333 | AL7: =IF(AK7=0,0,(AK7*((LOG(AK7))/LOG(2)))) -> -0.2191953382 | AN7: =N7 -> 111 | AO7: =COUNTIF(L56:L67,AN7) -> 2 | AP7: =AO7/(AQ4-AO11) -> 1 | AQ7: =IF(AP7=0,0,(AP7*((LOG(AP7))/LOG(2)))) -> 0 | AS7: =N7 -> 111 | AT7: =COUNTIF(L68:L79,AS7) -> 1 | AU7: =AT7/(AV4-AT11) -> 1 | AV7: =IF(AU7=0,0,(AU7*((LOG(AU7))/LOG(2)))) -> 0
A8: 12 | B8: 159 | C8: 13 | D8: 168 | E8: 13 | F8: 179 | K8: 0 | L8: 111 | N8: 112 | O8: =COUNTIF($L$7:$L$500,N8) -> 1 | P8: =O8/$Q$4 -> 0.01369863014 | Q8: =IF(P8=0,0,(P8*((LOG(P8))/LOG(2)))) -> -0.08479211724 | T8: =N8 -> 112 | U8: =COUNTIF(L7:L18,T8) -> 1 | V8: =U8/(W4-U11) -> 0.125 | W8: =IF(V8=0,0,(V8*((LOG(V8))/LOG(2)))) -> -0.375 | Y8: =N8 -> 112 | Z8: =COUNTIF(L19:L30,Y8) -> 0 | AA8: =Z8/(AB4-Z11) -> 0 | AB8: =IF(AA8=0,0,(AA8*((LOG(AA8))/LOG(2)))) -> 0 | AD8: =N8 -> 112 | AE8: =COUNTIF(L31:L43,AD8) -> 0 | AF8: =AE8/(AG4-AE11) -> 0 | AG8: =IF(AF8=0,0,(AF8*((LOG(AF8))/LOG(2)))) -> 0 | AI8: =N8 -> 112 | AJ8: =COUNTIF(L44:L55,AI8) -> 0 | AK8: =AJ8/(AL4-AJ11) -> 0 | AL8: =IF(AK8=0,0,(AK8*((LOG(AK8))/LOG(2)))) -> 0 | AN8: =N8 -> 112 | AO8: =COUNTIF(L56:L67,AN8) -> 0 | AP8: =AO8/(AQ4-AO11) -> 0 | AQ8: =IF(AP8=0,0,(AP8*((LOG(AP8))/LOG(2)))) -> 0 | AS8: =N8 -> 112 | AT8: =COUNTIF(L68:L79,AS8) -> 0 | AU8: =AT8/(AV4-AT11) -> 0 | AV8: =IF(AU8=0,0,(AU8*((LOG(AU8))/LOG(2)))) -> 0
A9: 12 | B9: 283 | C9: 13 | D9: 290 | E9: 13 | F9: 319 | K9: 0 | L9: 111 | N9: 121 | O9: =COUNTIF($L$7:$L$500,N9) -> 0 | P9: =O9/$Q$4 -> 0 | Q9: =IF(P9=0,0,(P9*((LOG(P9))/LOG(2)))) -> 0 | T9: =N9 -> 121 | U9: =COUNTIF(L7:L18,T9) -> 0 | V9: =U9/(W4-U11) -> 0 | W9: =IF(V9=0,0,(V9*((LOG(V9))/LOG(2)))) -> 0 | Y9: =N9 -> 121 | Z9: =COUNTIF(L19:L30,Y9) -> 0 | AA9: =Z9/(AB4-Z11) -> 0 | AB9: =IF(AA9=0,0,(AA9*((LOG(AA9))/LOG(2)))) -> 0 | AD9: =N9 -> 121 | AE9: =COUNTIF(L31:L43,AD9) -> 0 | AF9: =AE9/(AG4-AE11) -> 0 | AG9: =IF(AF9=0,0,(AF9*((LOG(AF9))/LOG(2)))) -> 0 | AI9: =N9 -> 121 | AJ9: =COUNTIF(L44:L55,AI9) -> 0 | AK9: =AJ9/(AL4-AJ11) -> 0 | AL9: =IF(AK9=0,0,(AK9*((LOG(AK9))/LOG(2)))) -> 0 | AN9: =N9 -> 121 | AO9: =COUNTIF(L56:L67,AN9) -> 0 | AP9: =AO9/(AQ4-AO11) -> 0 | AQ9: =IF(AP9=0,0,(AP9*((LOG(AP9))/LOG(2)))) -> 0 | AS9: =N9 -> 121 | AT9: =COUNTIF(L68:L79,AS9) -> 0 | AU9: =AT9/(AV4-AT11) -> 0 | AV9: =IF(AU9=0,0,(AU9*((LOG(AU9))/LOG(2)))) -> 0
A10: 12 | B10: 423 | C10: 13 | D10: 432 | E10: 13 | F10: 448 | K10: 0 | L10: 111 | N10: 122 | O10: =COUNTIF($L$7:$L$500,N10) -> 0 | P10: =O10/$Q$4 -> 0 | Q10: =IF(P10=0,0,(P10*((LOG(P10))/LOG(2)))) -> 0 | T10: =N10 -> 122 | U10: =COUNTIF(L7:L18,T10) -> 0 | V10: =U10/(W4-U11) -> 0 | W10: =IF(V10=0,0,(V10*((LOG(V10))/LOG(2)))) -> 0 | Y10: =N10 -> 122 | Z10: =COUNTIF(L19:L30,Y10) -> 0 | AA10: =Z10/(AB4-Z11) -> 0 | AB10: =IF(AA10=0,0,(AA10*((LOG(AA10))/LOG(2)))) -> 0 | AD10: =N10 -> 122 | AE10: =COUNTIF(L31:L43,AD10) -> 0 | AF10: =AE10/(AG4-AE11) -> 0 | AG10: =IF(AF10=0,0,(AF10*((LOG(AF10))/LOG(2)))) -> 0 | AI10: =N10 -> 122 | AJ10: =COUNTIF(L44:L55,AI10) -> 0 | AK10: =AJ10/(AL4-AJ11) -> 0 | AL10: =IF(AK10=0,0,(AK10*((LOG(AK10))/LOG(2)))) -> 0 | AN10: =N10 -> 122 | AO10: =COUNTIF(L56:L67,AN10) -> 0 | AP10: =AO10/(AQ4-AO11) -> 0 | AQ10: =IF(AP10=0,0,(AP10*((LOG(AP10))/LOG(2)))) -> 0 | AS10: =N10 -> 122 | AT10: =COUNTIF(L68:L79,AS10) -> 0 | AU10: =AT10/(AV4-AT11) -> 0 | AV10: =IF(AU10=0,0,(AU10*((LOG(AU10))/LOG(2)))) -> 0
A11: 12 | B11: 552 | C11: 13 | D11: 564 | E11: 13 | F11: 575 | K11: 0 | L11: 111 | N11: 211 | O11: =COUNTIF($L$7:$L$500,N11) -> 39 | P11: =O11/$Q$4 -> 0.5342465753 | Q11: =IF(P11=0,0,(P11*((LOG(P11))/LOG(2)))) -> -0.4831845378 | T11: =N11 -> 211 | U11: =COUNTIF(L7:L18,T11) -> 4 | Y11: =N11 -> 211 | Z11: =COUNTIF(L19:L30,Y11) -> 4 | AD11: =N11 -> 211 | AE11: =COUNTIF(L31:L43,AD11) -> 4 | AI11: =N11 -> 211 | AJ11: =COUNTIF(L44:L55,AI11) -> 6 | AN11: =N11 -> 211 | AO11: =COUNTIF(L56:L67,AN11) -> 10 | AS11: =N11 -> 211 | AT11: =COUNTIF(L68:L79,AS11) -> 11
A12: 21 | B12: 671 | C12: 11 | D12: 679 | E12: 11 | F12: 718 | K12: 0 | L12: 211 | N12: 212 | O12: =COUNTIF($L$7:$L$500,N12) -> 0 | P12: =O12/$Q$4 -> 0 | Q12: =IF(P12=0,0,(P12*((LOG(P12))/LOG(2)))) -> 0 | T12: =N12 -> 212 | U12: =COUNTIF(L7:L18,T12) -> 0 | V12: =U12/(W4-U11) -> 0 | W12: =IF(V12=0,0,(V12*((LOG(V12))/LOG(2)))) -> 0 | Y12: =N12 -> 212 | Z12: =COUNTIF(L19:L30,Y12) -> 0 | AA12: =Z12/(AB4-Z11) -> 0 | AB12: =IF(AA12=0,0,(AA12*((LOG(AA12))/LOG(2)))) -> 0 | AD12: =N12 -> 212 | AE12: =COUNTIF(L31:L43,AD12) -> 0 | AF12: =AE12/(AG4-AE11) -> 0 | AG12: =IF(AF12=0,0,(AF12*((LOG(AF12))/LOG(2)))) -> 0 | AI12: =N12 -> 212 | AJ12: =COUNTIF(L44:L55,AI12) -> 0 | AK12: =AJ12/(AL4-AJ11) -> 0 | AL12: =IF(AK12=0,0,(AK12*((LOG(AK12))/LOG(2)))) -> 0 | AN12: =N12 -> 212 | AO12: =COUNTIF(L56:L67,AN12) -> 0 | AP12: =AO12/(AQ4-AO11) -> 0 | AQ12: =IF(AP12=0,0,(AP12*((LOG(AP12))/LOG(2)))) -> 0 | AS12: =N12 -> 212 | AT12: =COUNTIF(L68:L79,AS12) -> 0 | AU12: =AT12/(AV4-AT11) -> 0 | AV12: =IF(AU12=0,0,(AU12*((LOG(AU12))/LOG(2)))) -> 0
A13: 12 | B13: 824 | C13: 13 | D13: 831 | E13: 13 | F13: 850 | K13: 0 | L13: 111 | N13: 221 | O13: =COUNTIF($L$7:$L$500,N13) -> 1 | P13: =O13/$Q$4 -> 0.01369863014 | Q13: =IF(P13=0,0,(P13*((LOG(P13))/LOG(2)))) -> -0.08479211724 | T13: =N13 -> 221 | U13: =COUNTIF(L7:L18,T13) -> 0 | V13: =U13/(W4-U11) -> 0 | W13: =IF(V13=0,0,(V13*((LOG(V13))/LOG(2)))) -> 0 | Y13: =N13 -> 221 | Z13: =COUNTIF(L19:L30,Y13) -> 0 | AA13: =Z13/(AB4-Z11) -> 0 | AB13: =IF(AA13=0,0,(AA13*((LOG(AA13))/LOG(2)))) -> 0 | AD13: =N13 -> 221 | AE13: =COUNTIF(L31:L43,AD13) -> 0 | AF13: =AE13/(AG4-AE11) -> 0 | AG13: =IF(AF13=0,0,(AF13*((LOG(AF13))/LOG(2)))) -> 0 | AI13: =N13 -> 221 | AJ13: =COUNTIF(L44:L55,AI13) -> 1 | AK13: =AJ13/(AL4-AJ11) -> 0.1666666667 | AL13: =IF(AK13=0,0,(AK13*((LOG(AK13))/LOG(2)))) -> -0.4308270835 | AN13: =N13 -> 221 | AO13: =COUNTIF(L56:L67,AN13) -> 0 | AP13: =AO13/(AQ4-AO11) -> 0 | AQ13: =IF(AP13=0,0,(AP13*((LOG(AP13))/LOG(2)))) -> 0 | AS13: =N13 -> 221 | AT13: =COUNTIF(L68:L79,AS13) -> 0 | AU13: =AT13/(AV4-AT11) -> 0 | AV13: =IF(AU13=0,0,(AU13*((LOG(AU13))/LOG(2)))) -> 0
A14: 12 | B14: 953 | C14: 13 | D14: 968 | E14: 13 | F14: 976 | K14: 0 | L14: 111 | N14: 222 | O14: =COUNTIF($L$7:$L$500,N14) -> 0 | P14: =O14/$Q$4 -> 0 | Q14: =IF(P14=0,0,(P14*((LOG(P14))/LOG(2)))) -> 0 | T14: =N14 -> 222 | U14: =COUNTIF(L7:L18,T14) -> 0 | V14: =U14/(W4-U11) -> 0 | W14: =IF(V14=0,0,(V14*((LOG(V14))/LOG(2)))) -> 0 | Y14: =N14 -> 222 | Z14: =COUNTIF(L19:L30,Y14) -> 0 | AA14: =Z14/(AB4-Z11) -> 0 | AB14: =IF(AA14=0,0,(AA14*((LOG(AA14))/LOG(2)))) -> 0 | AD14: =N14 -> 222 | AE14: =COUNTIF(L31:L43,AD14) -> 0 | AF14: =AE14/(AG4-AE11) -> 0 | AG14: =IF(AF14=0,0,(AF14*((LOG(AF14))/LOG(2)))) -> 0 | AI14: =N14 -> 222 | AJ14: =COUNTIF(L44:L55,AI14) -> 0 | AK14: =AJ14/(AL4-AJ11) -> 0 | AL14: =IF(AK14=0,0,(AK14*((LOG(AK14))/LOG(2)))) -> 0 | AN14: =N14 -> 222 | AO14: =COUNTIF(L56:L67,AN14) -> 0 | AP14: =AO14/(AQ4-AO11) -> 0 | AQ14: =IF(AP14=0,0,(AP14*((LOG(AP14))/LOG(2)))) -> 0 | AS14: =N14 -> 222 | AT14: =COUNTIF(L68:L79,AS14) -> 0 | AU14: =AT14/(AV4-AT11) -> 0 | AV14: =IF(AU14=0,0,(AU14*((LOG(AU14))/LOG(2)))) -> 0
A15: 21 | B15: 1071 | C15: 11 | D15: 1080 | E15: 11 | F15: 1116 | K15: 0 | L15: 211 | P15: =SUM(P7:P14) -> 1 | Q15: =-SUM(Q7:Q14) -> 1.174335702 | V15: =SUM(V7:V14) -> 1 | W15: =-SUM(W7:W14) -> 0.5435644432 | AA15: =SUM(AA7:AA14) -> 1 | AB15: =-SUM(AB7:AB14) -> 0 | AF15: =SUM(AF7:AF14) -> 1 | AG15: =-SUM(AG7:AG14) -> 0 | AK15: =SUM(AK7:AK14) -> 1 | AL15: =-SUM(AL7:AL14) -> 0.6500224216 | AP15: =SUM(AP7:AP14) -> 1 | AQ15: =-SUM(AQ7:AQ14) -> 0 | AU15: =SUM(AU7:AU14) -> 1 | AV15: =-SUM(AV7:AV14) -> 0
A16: 12 | B16: 1230 | C16: 13 | D16: 1237 | E16: 13 | F16: 1246 | K16: 0 | L16: 111 | P16: U= | Q16: =Q15/(LOG(Q4)/LOG(2)) -> 0.1897203533 | V16: U1= | W16: =W15/(LOG(W4)/LOG(2)) -> 0.1516234669 | AA16: U2= | AB16: =AB15/(LOG(AB4)/LOG(2)) -> 0 | AF16: U3= | AG16: =AG15/(LOG(AG4)/LOG(2)) -> 0 | AK16: U4= | AL16: =AL15/(LOG(AL4)/LOG(2)) -> 0.181319169 | AP16: U5= | AQ16: =AQ15/(LOG(AQ4)/LOG(2)) -> 0 | AU16: U6= | AV16: =AV15/(LOG(AV4)/LOG(2)) -> 0
A17: 21 | B17: 1341 | C17: 11 | D17: 1349 | E17: 11 | F17: 1367 | K17: 0 | L17: 211
A18: 21 | B18: 1455 | C18: 11 | D18: 1463 | E18: 11 | F18: 1499 | K18: 0 | L18: 211
A19: 12 | B19: 1601 | C19: 13 | D19: 1608 | E19: 13 | F19: 1623 | K19: 0 | L19: 111 | N19: Total Target Seq
A20: 12 | B20: 1726 | C20: 13 | D20: 1762 | E20: 13 | F20: 1773 | K20: 0 | L20: 111 | N20: =COUNTIF(L7:L79,G3) -> 39 | P20: 12 | Q20: 12 | R20: 13 | S20: 12 | T20: 12 | U20: 12
A21: 21 | B21: 1868 | C21: 11 | D21: 1876 | E21: 11 | F21: 1903 | K21: 0 | L21: 211 | P21: % of reinforcement given in 6 equal intervals based on number of trials
A22: 21 | B22: 1991 | C22: 11 | D22: 1998 | E22: 11 | F22: 2014 | K22: 0 | L22: 211 | P22: %_1 | Q22: %_2 | R22: %_3 | S22: %_4 | T22: %_5 | U22: %_6
A23: 12 | B23: 2115 | C23: 13 | D23: 2141 | E23: 13 | F23: 2152 | K23: 0 | L23: 111 | O23: target sequence | P23: =$G$3 -> 211 | Q23: =$G$3 -> 211 | R23: =$G$3 -> 211 | S23: =$G$3 -> 211 | T23: =$G$3 -> 211 | U23: =$G$3 -> 211
A24: 12 | B24: 2267 | C24: 13 | D24: 2292 | E24: 13 | F24: 2303 | K24: 0 | L24: 111 | O24: total reinforcement | P24: =U11 -> 4 | Q24: =Z11 -> 4 | R24: =AE11 -> 4 | S24: =AJ11 -> 6 | T24: =AO11 -> 10 | U24: =AT11 -> 11
A25: 12 | B25: 2405 | C25: 13 | D25: 2422 | E25: 13 | F25: 2429 | K25: 0 | L25: 111 | O25: % target
A26: 21 | B26: 2525 | C26: 11 | D26: 2531 | E26: 11 | F26: 2560 | K26: 0 | L26: 211 | O26: CCRF
A27: 12 | B27: 2657 | C27: 13 | D27: 2684 | E27: 13 | F27: 2694 | K27: 0 | L27: 111 | O27: % CCRf
A28: 12 | B28: 2804 | C28: 13 | D28: 2818 | E28: 13 | F28: 2832 | K28: 0 | L28: 111 | O28: average response rate | P28: =F18/P20 -> 124.9166667 | Q28: =(F30-F18)/Q20 -> 132.6666667 | R28: =(F43-F30)/R20 -> 129.4615385 | S28: =(F55-F43)/S20 -> 128.5833333 | T28: =(F67-F55)/T20 -> 125.8333333 | U28: =(F79-F67)/U20 -> 120.5833333
A29: 12 | B29: 2944 | C29: 13 | D29: 2960 | E29: 13 | F29: 2977 | K29: 0 | L29: 111
A30: 21 | B30: 3072 | C30: 11 | D30: 3079 | E30: 11 | F30: 3091 | K30: 0 | L30: 211
A31: 21 | B31: 3190 | C31: 11 | D31: 3206 | E31: 11 | F31: 3216 | K31: 0 | L31: 211
A32: 21 | B32: 3304 | C32: 11 | D32: 3311 | E32: 11 | F32: 3323 | K32: 0 | L32: 211
A33: 12 | B33: 3417 | C33: 13 | D33: 3433 | E33: 13 | F33: 3447 | K33: 0 | L33: 111
A34: 12 | B34: 3551 | C34: 13 | D34: 3571 | E34: 13 | F34: 3585 | K34: 0 | L34: 111
A35: 12 | B35: 3689 | C35: 13 | D35: 3700 | E35: 13 | F35: 3723 | K35: 0 | L35: 111
A36: 12 | B36: 3835 | C36: 13 | D36: 3853 | E36: 13 | F36: 3867 | K36: 0 | L36: 111
A37: 12 | B37: 3970 | C37: 13 | D37: 3981 | E37: 13 | F37: 3988 | K37: 0 | L37: 111
A38: 21 | B38: 4088 | C38: 11 | D38: 4095 | E38: 11 | F38: 4116 | K38: 0 | L38: 211
A39: 21 | B39: 4204 | C39: 11 | D39: 4211 | E39: 11 | F39: 4241 | K39: 0 | L39: 211
A40: 12 | B40: 4342 | C40: 13 | D40: 4349 | E40: 13 | F40: 4356 | K40: 0 | L40: 111
A41: 12 | B41: 4481 | C41: 13 | D41: 4496 | E41: 13 | F41: 4507 | K41: 0 | L41: 111
A42: 12 | B42: 4620 | C42: 13 | D42: 4631 | E42: 13 | F42: 4638 | K42: 0 | L42: 111
A43: 12 | B43: 4741 | C43: 13 | D43: 4763 | E43: 13 | F43: 4774 | K43: 0 | L43: 111
A44: 21 | B44: 4869 | C44: 11 | D44: 4876 | E44: 11 | F44: 4923 | K44: 0 | L44: 211
A45: 21 | B45: 5035 | C45: 11 | D45: 5048 | E45: 11 | F45: 5055 | K45: 0 | L45: 211
A46: 12 | B46: 5163 | C46: 13 | D46: 5171 | E46: 13 | F46: 5181 | K46: 0 | L46: 111
A47: 21 | B47: 5282 | C47: 22 | D47: 5302 | E47: 13 | F47: 5311 | K47: 0 | L47: 221
A48: 21 | B48: 5398 | C48: 11 | D48: 5406 | E48: 11 | F48: 5439 | K48: 0 | L48: 211
A49: 12 | B49: 5539 | C49: 13 | D49: 5552 | E49: 13 | F49: 5559 | K49: 0 | L49: 111
A50: 21 | B50: 5653 | C50: 11 | D50: 5660 | E50: 11 | F50: 5690 | K50: 0 | L50: 211
A51: 12 | B51: 5786 | C51: 13 | D51: 5803 | E51: 13 | F51: 5813 | K51: 0 | L51: 111
A52: 21 | B52: 5916 | C52: 11 | D52: 5930 | E52: 11 | F52: 5937 | K52: 0 | L52: 211
A53: 12 | B53: 6033 | C53: 13 | D53: 6048 | E53: 13 | F53: 6059 | K53: 0 | L53: 111
A54: 12 | B54: 6162 | C54: 13 | D54: 6169 | E54: 13 | F54: 6176 | K54: 0 | L54: 111
A55: 21 | B55: 6288 | C55: 11 | D55: 6302 | E55: 11 | F55: 6317 | K55: 0 | L55: 211
A56: 12 | B56: 6414 | C56: 13 | D56: 6428 | E56: 13 | F56: 6436 | K56: 0 | L56: 111
A57: 21 | B57: 6539 | C57: 11 | D57: 6556 | E57: 11 | F57: 6570 | K57: 0 | L57: 211
A58: 21 | B58: 6658 | C58: 11 | D58: 6666 | E58: 11 | F58: 6673 | K58: 0 | L58: 211
A59: 12 | B59: 6766 | C59: 13 | D59: 6830 | E59: 13 | F59: 6849 | K59: 0 | L59: 111
A60: 21 | B60: 6960 | C60: 11 | D60: 6975 | E60: 11 | F60: 6983 | K60: 0 | L60: 211
A61: 21 | B61: 7081 | C61: 11 | D61: 7092 | E61: 11 | F61: 7100 | K61: 0 | L61: 211
A62: 21 | B62: 7193 | C62: 11 | D62: 7204 | E62: 11 | F62: 7211 | K62: 0 | L62: 211
A63: 21 | B63: 7310 | C63: 11 | D63: 7332 | E63: 11 | F63: 7359 | K63: 0 | L63: 211
A64: 21 | B64: 7453 | C64: 11 | D64: 7465 | E64: 11 | F64: 7471 | K64: 0 | L64: 211
A65: 21 | B65: 7565 | C65: 11 | D65: 7593 | E65: 11 | F65: 7608 | K65: 0 | L65: 211
A66: 21 | B66: 7695 | C66: 11 | D66: 7703 | E66: 11 | F66: 7710 | K66: 0 | L66: 211
A67: 21 | B67: 7804 | C67: 11 | D67: 7820 | E67: 11 | F67: 7827 | K67: 0 | L67: 211
A68: 21 | B68: 7918 | C68: 11 | D68: 7925 | E68: 11 | F68: 7934 | K68: 0 | L68: 211
A69: 21 | B69: 8030 | C69: 11 | D69: 8045 | E69: 11 | F69: 8069 | K69: 0 | L69: 211
A70: 21 | B70: 8162 | C70: 11 | D70: 8185 | E70: 11 | F70: 8195 | K70: 0 | L70: 211
A71: 21 | B71: 8283 | C71: 11 | D71: 8290 | E71: 11 | F71: 8322 | K71: 0 | L71: 211
A72: 21 | B72: 8408 | C72: 11 | D72: 8417 | E72: 11 | F72: 8436 | K72: 0 | L72: 211
A73: 12 | B73: 8532 | C73: 13 | D73: 8549 | E73: 13 | F73: 8559 | K73: 0 | L73: 111
A74: 21 | B74: 8654 | C74: 11 | D74: 8661 | E74: 11 | F74: 8679 | K74: 0 | L74: 211
A75: 21 | B75: 8777 | C75: 11 | D75: 8789 | E75: 11 | F75: 8811 | K75: 0 | L75: 211
A76: 21 | B76: 8908 | C76: 11 | D76: 8931 | E76: 11 | F76: 8941 | K76: 0 | L76: 211
A77: 21 | B77: 9030 | C77: 11 | D77: 9038 | E77: 11 | F77: 9045 | K77: 0 | L77: 211
A78: 21 | B78: 9139 | C78: 11 | D78: 9151 | E78: 11 | F78: 9166 | K78: 0 | L78: 211
A79: 21 | B79: 9255 | C79: 11 | D79: 9262 | E79: 11 | F79: 9274 | K79: 1 | L79: 211

Sheet !MB09950.010
A1: Report for:!MB09950.010
A2: Date: | B2: <date>
A3: Hen: | B3: <hen> | F3: Correct Sequence | G3: =Start!J2 -> 211 | P3: Total Sequences in Data | Q3: =4994-COUNTBLANK(L7:L5000) -> 55 | V3: Total Sequences in Block Data | W3: =COUNTA(L7:L15) -> 9 | AA3: Total Sequences in Block Data | AB3: =COUNTA(L16:L24) -> 9 | AF3: Total Sequences in Block Data | AG3: =COUNTA(L25:L34) -> 10 | AK3: Total Sequences in Block Data | AL3: =COUNTA(L35:L43) -> 9 | AP3: Total Sequences in Block Data | AQ3: =COUNTA(L44:L52) -> 9 | AU3: Total Sequences in Block Data | AV3: =COUNTA(L53:L61) -> 9
P4: Total Sequences in Summary | Q4: =SUM(O7:O14) -> 55 | V4: Total Sequences in Block Summary | W4: =SUM(U7:U14) -> 9 | AA4: Total Sequences in Block Summary | AB4: =SUM(Z7:Z14) -> 9 | AF4: Total Sequences in Block Summary | AG4: =SUM(AE7:AE14) -> 10 | AK4: Total Sequences in Block Summary | AL4: =SUM(AJ7:AJ14) -> 9 | AP4: Total Sequences in Block Summary | AQ4: =SUM(AO7:AO14) -> 9 | AU4: Total Sequences in Block Summary | AV4: =SUM(AT7:AT14) -> 9
T5: Block 1 | Y5: Block 2 | AD5: Block 3 | AI5: Block 4 | AN5: Block 5 | AS5: Block 6
A6: Sequence Component 1 | B6: Time 1 | C6: Sequence Component 2 | D6: Time 2 | E6: Sequence Component 3 | F6: Time 3 | G6: Sequence Component 4 | H6: Time 4 | I6: Sequence Component 5 | J6: Time 5 | K6: Correct? 0=No 1=Yes | L6: Sequence | N6: Frequency | P6: Relative Frequency | Q6: Variability | T6: Frequency | V6: Relative Frequency | W6: Variability | Y6: Frequency | AA6: Relative Frequency | AB6: Variability | AD6: Frequency | AF6: Relative Frequency | AG6: Variability | AI6: Frequency | AK6: Relative Frequency | AL6: Variability | AN6: Frequency | AP6: Relative Frequency | AQ6: Variability | AS6: Frequency | AU6: Relative Frequency | AV6: Variability
A7: 12 | B7: 19 | C7: 13 | D7: 32 | E7: 13 | F7: 40 | K7: 0 | L7: 111 | N7: 111 | O7: =COUNTIF($L$7:$L$500,N7) -> 8 | P7: =O7/$Q$4 -> 0.1454545455 | Q7: =IF(P7=0,0,(P7*((LOG(P7))/LOG(2)))) -> -0.4045614129 | T7: =N7 -> 111 | U7: =COUNTIF(L7:L15,T7) -> 4 | V7: =U7/(W4-U11) -> 0.8 | W7: =IF(V7=0,0,(V7*((LOG(V7))/LOG(2)))) -> -0.2575424759 | Y7: =N7 -> 111 | Z7: =COUNTIF(L16:L24,Y7) -> 3 | AA7: =Z7/(AB4-Z11) -> 0.75 | AB7: =IF(AA7=0,0,(AA7*((LOG(AA7))/LOG(2)))) -> -0.3112781245 | AD7: =N7 -> 111 | AE7: =COUNTIF(L25:L34,AD7) -> 1 | AF7: =AE7/(AG4-AE11) -> 0.3333333333 | AG7: =IF(AF7=0,0,(AF7*((LOG(AF7))/LOG(2)))) -> -0.5283208336 | AI7: =N7 -> 111 | AJ7: =COUNTIF(L35:L43,AI7) -> 0 | AK7: =AJ7/(AL4-AJ11) -> 0 | AL7: =IF(AK7=0,0,(AK7*((LOG(AK7))/LOG(2)))) -> 0 | AN7: =N7 -> 111 | AO7: =COUNTIF(L44:L52,AN7) -> 0 | AP7: =AO7/(AQ4-AO11) -> 0 | AQ7: =IF(AP7=0,0,(AP7*((LOG(AP7))/LOG(2)))) -> 0 | AS7: =N7 -> 111 | AT7: =COUNTIF(L53:L61,AS7) -> 0 | AU7: =AT7/(AV4-AT11) -> 0 | AV7: =IF(AU7=0,0,(AU7*((LOG(AU7))/LOG(2)))) -> 0
A8: 12 | B8: 155 | C8: 13 | D8: 181 | E8: 13 | F8: 192 | K8: 0 | L8: 111 | N8: 112 | O8: =COUNTIF($L$7:$L$500,N8) -> 0 | P8: =O8/$Q$4 -> 0 | Q8: =IF(P8=0,0,(P8*((LOG(P8))/LOG(2)))) -> 0 | T8: =N8 -> 112 | U8: =COUNTIF(L7:L15,T8) -> 0 | V8: =U8/(W4-U11) -> 0 | W8: =IF(V8=0,0,(V8*((LOG(V8))/LOG(2)))) -> 0 | Y8: =N8 -> 112 | Z8: =COUNTIF(L16:L24,Y8) -> 0 | AA8: =Z8/(AB4-Z11) -> 0 | AB8: =IF(AA8=0,0,(AA8*((LOG(AA8))/LOG(2)))) -> 0 | AD8: =N8 -> 112 | AE8: =COUNTIF(L25:L34,AD8) -> 0 | AF8: =AE8/(AG4-AE11) -> 0 | AG8: =IF(AF8=0,0,(AF8*((LOG(AF8))/LOG(2)))) -> 0 | AI8: =N8 -> 112 | AJ8: =COUNTIF(L35:L43,AI8) -> 0 | AK8: =AJ8/(AL4-AJ11) -> 0 | AL8: =IF(AK8=0,0,(AK8*((LOG(AK8))/LOG(2)))) -> 0 | AN8: =N8 -> 112 | AO8: =COUNTIF(L44:L52,AN8) -> 0 | AP8: =AO8/(AQ4-AO11) -> 0 | AQ8: =IF(AP8=0,0,(AP8*((LOG(AP8))/LOG(2)))) -> 0 | AS8: =N8 -> 112 | AT8: =COUNTIF(L53:L61,AS8) -> 0 | AU8: =AT8/(AV4-AT11) -> 0 | AV8: =IF(AU8=0,0,(AU8*((LOG(AU8))/LOG(2)))) -> 0
A9: 12 | B9: 302 | C9: 13 | D9: 316 | E9: 13 | F9: 330 | K9: 0 | L9: 111 | N9: 121 | O9: =COUNTIF($L$7:$L$500,N9) -> 0 | P9: =O9/$Q$4 -> 0 | Q9: =IF(P9=0,0,(P9*((LOG(P9))/LOG(2)))) -> 0 | T9: =N9 -> 121 | U9: =COUNTIF(L7:L15,T9) -> 0 | V9: =U9/(W4-U11) -> 0 | W9: =IF(V9=0,0,(V9*((LOG(V9))/LOG(2)))) -> 0 | Y9: =N9 -> 121 | Z9: =COUNTIF(L16:L24,Y9) -> 0 | AA9: =Z9/(AB4-Z11) -> 0 | AB9: =IF(AA9=0,0,(AA9*((LOG(AA9))/LOG(2)))) -> 0 | AD9: =N9 -> 121 | AE9: =COUNTIF(L25:L34,AD9) -> 0 | AF9: =AE9/(AG4-AE11) -> 0 | AG9: =IF(AF9=0,0,(AF9*((LOG(AF9))/LOG(2)))) -> 0 | AI9: =N9 -> 121 | AJ9: =COUNTIF(L35:L43,AI9) -> 0 | AK9: =AJ9/(AL4-AJ11) -> 0 | AL9: =IF(AK9=0,0,(AK9*((LOG(AK9))/LOG(2)))) -> 0 | AN9: =N9 -> 121 | AO9: =COUNTIF(L44:L52,AN9) -> 0 | AP9: =AO9/(AQ4-AO11) -> 0 | AQ9: =IF(AP9=0,0,(AP9*((LOG(AP9))/LOG(2)))) -> 0 | AS9: =N9 -> 121 | AT9: =COUNTIF(L53:L61,AS9) -> 0 | AU9: =AT9/(AV4-AT11) -> 0 | AV9: =IF(AU9=0,0,(AU9*((LOG(AU9))/LOG(2)))) -> 0
A10: 21 | B10: 426 | C10: 11 | D10: 433 | E10: 11 | F10: 447 | K10: 0 | L10: 211 | N10: 122 | O10: =COUNTIF($L$7:$L$500,N10) -> 0 | P10: =O10/$Q$4 -> 0 | Q10: =IF(P10=0,0,(P10*((LOG(P10))/LOG(2)))) -> 0 | T10: =N10 -> 122 | U10: =COUNTIF(L7:L15,T10) -> 0 | V10: =U10/(W4-U11) -> 0 | W10: =IF(V10=0,0,(V10*((LOG(V10))/LOG(2)))) -> 0 | Y10: =N10 -> 122 | Z10: =COUNTIF(L16:L24,Y10) -> 0 | AA10: =Z10/(AB4-Z11) -> 0 | AB10: =IF(AA10=0,0,(AA10*((LOG(AA10))/LOG(2)))) -> 0 | AD10: =N10 -> 122 | AE10: =COUNTIF(L25:L34,AD10) -> 0 | AF10: =AE10/(AG4-AE11) -> 0 | AG10: =IF(AF10=0,0,(AF10*((LOG(AF10))/LOG(2)))) -> 0 | AI10: =N10 -> 122 | AJ10: =COUNTIF(L35:L43,AI10) -> 0 | AK10: =AJ10/(AL4-AJ11) -> 0 | AL10: =IF(AK10=0,0,(AK10*((LOG(AK10))/LOG(2)))) -> 0 | AN10: =N10 -> 122 | AO10: =COUNTIF(L44:L52,AN10) -> 0 | AP10: =AO10/(AQ4-AO11) -> 0 | AQ10: =IF(AP10=0,0,(AP10*((LOG(AP10))/LOG(2)))) -> 0 | AS10: =N10 -> 122 | AT10: =COUNTIF(L53:L61,AS10) -> 0 | AU10: =AT10/(AV4-AT11) -> 0 | AV10: =IF(AU10=0,0,(AU10*((LOG(AU10))/LOG(2)))) -> 0
A11: 21 | B11: 536 | C11: 11 | D11: 560 | E11: 22 | F11: 593 | K11: 0 | L11: 212 | N11: 211 | O11: =COUNTIF($L$7:$L$500,N11) -> 39 | P11: =O11/$Q$4 -> 0.7090909091 | Q11: =IF(P11=0,0,(P11*((LOG(P11))/LOG(2)))) -> -0.3516789508 | T11: =N11 -> 211 | U11: =COUNTIF(L7:L15,T11) -> 4 | Y11: =N11 -> 211 | Z11: =COUNTIF(L16:L24,Y11) -> 5 | AD11: =N11 -> 211 | AE11: =COUNTIF(L25:L34,AD11) -> 7 | AI11: =N11 -> 211 | AJ11: =COUNTIF(L35:L43,AI11) -> 7 | AN11: =N11 -> 211 | AO11: =COUNTIF(L44:L52,AN11) -> 8 | AS11: =N11 -> 211 | AT11: =COUNTIF(L53:L61,AS11) -> 8
A12: 21 | B12: 681 | C12: 11 | D12: 690 | E12: 11 | F12: 712 | K12: 0 | L12: 211 | N12: 212 | O12: =COUNTIF($L$7:$L$500,N12) -> 2 | P12: =O12/$Q$4 -> 0.03636363636 | Q12: =IF(P12=0,0,(P12*((LOG(P12))/LOG(2)))) -> -0.1738676259 | T12: =N12 -> 212 | U12: =COUNTIF(L7:L15,T12) -> 1 | V12: =U12/(W4-U11) -> 0.2 | W12: =IF(V12=0,0,(V12*((LOG(V12))/LOG(2)))) -> -0.464385619 | Y12: =N12 -> 212 | Z12: =COUNTIF(L16:L24,Y12) -> 1 | AA12: =Z12/(AB4-Z11) -> 0.25 | AB12: =IF(AA12=0,0,(AA12*((LOG(AA12))/LOG(2)))) -> -0.5 | AD12: =N12 -> 212 | AE12: =COUNTIF(L25:L34,AD12) -> 0 | AF12: =AE12/(AG4-AE11) -> 0 | AG12: =IF(AF12=0,0,(AF12*((LOG(AF12))/LOG(2)))) -> 0 | AI12: =N12 -> 212 | AJ12: =COUNTIF(L35:L43,AI12) -> 0 | AK12: =AJ12/(AL4-AJ11) -> 0 | AL12: =IF(AK12=0,0,(AK12*((LOG(AK12))/LOG(2)))) -> 0 | AN12: =N12 -> 212 | AO12: =COUNTIF(L44:L52,AN12) -> 0 | AP12: =AO12/(AQ4-AO11) -> 0 | AQ12: =IF(AP12=0,0,(AP12*((LOG(AP12))/LOG(2)))) -> 0 | AS12: =N12 -> 212 | AT12: =COUNTIF(L53:L61,AS12) -> 0 | AU12: =AT12/(AV4-AT11) -> 0 | AV12: =IF(AU12=0,0,(AU12*((LOG(AU12))/LOG(2)))) -> 0
A13: 21 | B13: 800 | C13: 11 | D13: 813 | E13: 11 | F13: 820 | K13: 0 | L13: 211 | N13: 221 | O13: =COUNTIF($L$7:$L$500,N13) -> 6 | P13: =O13/$Q$4 -> 0.1090909091 | Q13: =IF(P13=0,0,(P13*((LOG(P13))/LOG(2)))) -> -0.3486978778 | T13: =N13 -> 221 | U13: =COUNTIF(L7:L15,T13) -> 0 | V13: =U13/(W4-U11) -> 0 | W13: =IF(V13=0,0,(V13*((LOG(V13))/LOG(2)))) -> 0 | Y13: =N13 -> 221 | Z13: =COUNTIF(L16:L24,Y13) -> 0 | AA13: =Z13/(AB4-Z11) -> 0 | AB13: =IF(AA13=0,0,(AA13*((LOG(AA13))/LOG(2)))) -> 0 | AD13: =N13 -> 221 | AE13: =COUNTIF(L25:L34,AD13) -> 2 | AF13: =AE13/(AG4-AE11) -> 0.6666666667 | AG13: =IF(AF13=0,0,(AF13*((LOG(AF13))/LOG(2)))) -> -0.3899750005 | AI13: =N13 -> 221 | AJ13: =COUNTIF(L35:L43,AI13) -> 2 | AK13: =AJ13/(AL4-AJ11) -> 1 | AL13: =IF(AK13=0,0,(AK13*((LOG(AK13))/LOG(2)))) -> 0 | AN13: =N13 -> 221 | AO13: =COUNTIF(L44:L52,AN13) -> 1 | AP13: =AO13/(AQ4-AO11) -> 1 | AQ13: =IF(AP13=0,0,(AP13*((LOG(AP13))/LOG(2)))) -> 0 | AS13: =N13 -> 221 | AT13: =COUNTIF(L53:L61,AS13) -> 1 | AU13: =AT13/(AV4-AT11) -> 1 | AV13: =IF(AU13=0,0,(AU13*((LOG(AU13))/LOG(2)))) -> 0
A14: 12 | B14: 948 | C14: 13 | D14: 963 | E14: 13 | F14: 975 | K14: 0 | L14: 111 | N14: 222 | O14: =COUNTIF($L$7:$L$500,N14) -> 0 | P14: =O14/$Q$4 -> 0 | Q14: =IF(P14=0,0,(P14*((LOG(P14))/LOG(2)))) -> 0 | T14: =N14 -> 222 | U14: =COUNTIF(L7:L15,T14) -> 0 | V14: =U14/(W4-U11) -> 0 | W14: =IF(V14=0,0,(V14*((LOG(V14))/LOG(2)))) -> 0 | Y14: =N14 -> 222 | Z14: =COUNTIF(L16:L24,Y14) -> 0 | AA14: =Z14/(AB4-Z11) -> 0 | AB14: =IF(AA14=0,0,(AA14*((LOG(AA14))/LOG(2)))) -> 0 | AD14: =N14 -> 222 | AE14: =COUNTIF(L25:L34,AD14) -> 0 | AF14: =AE14/(AG4-AE11) -> 0 | AG14: =IF(AF14=0,0,(AF14*((LOG(AF14))/LOG(2)))) -> 0 | AI14: =N14 -> 222 | AJ14: =COUNTIF(L35:L43,AI14) -> 0 | AK14: =AJ14/(AL4-AJ11) -> 0 | AL14: =IF(AK14=0,0,(AK14*((LOG(AK14))/LOG(2)))) -> 0 | AN14: =N14 -> 222 | AO14: =COUNTIF(L44:L52,AN14) -> 0 | AP14: =AO14/(AQ4-AO11) -> 0 | AQ14: =IF(AP14=0,0,(AP14*((LOG(AP14))/LOG(2)))) -> 0 | AS14: =N14 -> 222 | AT14: =COUNTIF(L53:L61,AS14) -> 0 | AU14: =AT14/(AV4-AT11) -> 0 | AV14: =IF(AU14=0,0,(AU14*((LOG(AU14))/LOG(2)))) -> 0
A15: 21 | B15: 1070 | C15: 11 | D15: 1077 | E15: 11 | F15: 1111 | K15: 0 | L15: 211 | P15: =SUM(P7:P14) -> 1 | Q15: =-SUM(Q7:Q14) -> 1.278805867 | V15: =SUM(V7:V14) -> 1 | W15: =-SUM(W7:W14) -> 0.7219280949 | AA15: =SUM(AA7:AA14) -> 1 | AB15: =-SUM(AB7:AB14) -> 0.8112781245 | AF15: =SUM(AF7:AF14) -> 1 | AG15: =-SUM(AG7:AG14) -> 0.9182958341 | AK15: =SUM(AK7:AK14) -> 1 | AL15: =-SUM(AL7:AL14) -> 0 | AP15: =SUM(AP7:AP14) -> 1 | AQ15: =-SUM(AQ7:AQ14) -> 0 | AU15: =SUM(AU7:AU14) -> 1 | AV15: =-SUM(AV7:AV14) -> 0
A16: 21 | B16: 1200 | C16: 11 | D16: 1207 | E16: 11 | F16: 1241 | K16: 0 | L16: 211 | P16: U= | Q16: =Q15/(LOG(Q4)/LOG(2)) -> 0.221194655 | V16: U1= | W16: =W15/(LOG(W4)/LOG(2)) -> 0.2277429575 | AA16: U2= | AB16: =AB15/(LOG(AB4)/LOG(2)) -> 0.2559297536 | AF16: U3= | AG16: =AG15/(LOG(AG4)/LOG(2)) -> 0.2764345909 | AK16: U4= | AL16: =AL15/(LOG(AL4)/LOG(2)) -> 0 | AP16: U5= | AQ16: =AQ15/(LOG(AQ4)/LOG(2)) -> 0 | AU16: U6= | AV16: =AV15/(LOG(AV4)/LOG(2)) -> 0
A17: 12 | B17: 1347 | C17: 13 | D17: 1354 | E17: 13 | F17: 1361 | K17: 0 | L17: 111
A18: 12 | B18: 1467 | C18: 13 | D18: 1483 | E18: 13 | F18: 1500 | K18: 0 | L18: 111
A19: 21 | B19: 1601 | C19: 11 | D19: 1623 | E19: 11 | F19: 1660 | K19: 0 | L19: 211 | N19: Total Target Seq
A20: 21 | B20: 1748 | C20: 11 | D20: 1754 | E20: 11 | F20: 1762 | K20: 0 | L20: 211 | N20: =COUNTIF(L7:L61,G3) -> 39 | P20: 9 | Q20: 9 | R20: 10 | S20: 9 | T20: 9 | U20: 9
A21: 12 | B21: 1862 | C21: 13 | D21: 1874 | E21: 13 | F21: 1878 | K21: 0 | L21: 111 | P21: % of reinforcement given in 6 equal intervals based on number of trials
A22: 21 | B22: 1987 | C22: 11 | D22: 2006 | E22: 22 | F22: 2019 | K22: 0 | L22: 212 | P22: %_1 | Q22: %_2 | R22: %_3 | S22: %_4 | T22: %_5 | U22: %_6
A23: 21 | B23: 2125 | C23: 11 | D23: 2150 | E23: 11 | F23: 2168 | K23: 0 | L23: 211 | O23: target sequence | P23: =$G$3 -> 211 | Q23: =$G$3 -> 211 | R23: =$G$3 -> 211 | S23: =$G$3 -> 211 | T23: =$G$3 -> 211 | U23: =$G$3 -> 211
A24: 21 | B24: 2259 | C24: 11 | D24: 2271 | E24: 11 | F24: 2286 | K24: 0 | L24: 211 | O24: total reinforcement | P24: =U11 -> 4 | Q24: =Z11 -> 5 | R24: =AE11 -> 7 | S24: =AJ11 -> 7 | T24: =AO11 -> 8 | U24: =AT11 -> 8
A25: 12 | B25: 2381 | C25: 13 | D25: 2398 | E25: 13 | F25: 2414 | K25: 0 | L25: 111 | O25: % target
A26: 21 | B26: 2512 | C26: 11 | D26: 2520 | E26: 11 | F26: 2546 | K26: 0 | L26: 211 | O26: CCRF
A27: 21 | B27: 2634 | C27: 11 | D27: 2643 | E27: 11 | F27: 2676 | K27: 0 | L27: 211 | O27: % CCRf
A28: 21 | B28: 2769 | C28: 11 | D28: 2788 | E28: 11 | F28: 2803 | K28: 0 | L28: 211 | O28: average response rate | P28: =F15/P20 -> 123.4444444 | Q28: =(F24-F15)/Q20 -> 130.5555556 | R28: =(F34-F24)/R20 -> 123.1 | S28: =(F43-F34)/S20 -> 116.6666667 | T28: =(F52-F43)/T20 -> 124 | U28: =(F61-F52)/U20 -> 112.8888889
A29: 21 | B29: 2894 | C29: 11 | D29: 2904 | E29: 11 | F29: 2915 | K29: 0 | L29: 211
A30: 21 | B30: 3003 | C30: 22 | D30: 3008 | E30: 13 | F30: 3023 | K30: 0 | L30: 221
A31: 21 | B31: 3125 | C31: 22 | D31: 3133 | E31: 13 | F31: 3147 | K31: 0 | L31: 221
A32: 21 | B32: 3243 | C32: 11 | D32: 3250 | E32: 11 | F32: 3288 | K32: 0 | L32: 211
A33: 21 | B33: 3376 | C33: 11 | D33: 3384 | E33: 11 | F33: 3395 | K33: 0 | L33: 211
A34: 21 | B34: 3496 | C34: 11 | D34: 3507 | E34: 11 | F34: 3517 | K34: 0 | L34: 211
A35: 21 | B35: 3604 | C35: 22 | D35: 3608 | E35: 13 | F35: 3616 | K35: 0 | L35: 221
A36: 21 | B36: 3717 | C36: 22 | D36: 3725 | E36: 13 | F36: 3735 | K36: 0 | L36: 221
A37: 21 | B37: 3836 | C37: 11 | D37: 3847 | E37: 11 | F37: 3858 | K37: 0 | L37: 211
A38: 21 | B38: 3951 | C38: 11 | D38: 3962 | E38: 11 | F38: 3973 | K38: 0 | L38: 211
A39: 21 | B39: 4063 | C39: 11 | D39: 4071 | E39: 11 | F39: 4092 | K39: 0 | L39: 211
A40: 21 | B40: 4183 | C40: 11 | D40: 4191 | E40: 11 | F40: 4210 | K40: 0 | L40: 211
A41: 21 | B41: 4303 | C41: 11 | D41: 4313 | E41: 11 | F41: 4321 | K41: 0 | L41: 211
A42: 21 | B42: 4416 | C42: 11 | D42: 4428 | E42: 11 | F42: 4439 | K42: 0 | L42: 211
A43: 21 | B43: 4532 | C43: 11 | D43: 4556 | E43: 11 | F43: 4567 | K43: 0 | L43: 211
A44: 21 | B44: 4658 | C44: 11 | D44: 4682 | E44: 11 | F44: 4688 | K44: 0 | L44: 211
A45: 21 | B45: 4781 | C45: 11 | D45: 4793 | E45: 11 | F45: 4800 | K45: 0 | L45: 211
A46: 21 | B46: 4890 | C46: 11 | D46: 4919 | E46: 11 | F46: 4933 | K46: 0 | L46: 211
A47: 21 | B47: 5022 | C47: 11 | D47: 5030 | E47: 11 | F47: 5062 | K47: 0 | L47: 211
A48: 21 | B48: 5150 | C48: 22 | D48: 5157 | E48: 13 | F48: 5169 | K48: 0 | L48: 221
A49: 21 | B49: 5265 | C49: 11 | D49: 5272 | E49: 11 | F49: 5318 | K49: 0 | L49: 211
A50: 21 | B50: 5406 | C50: 11 | D50: 5413 | E50: 11 | F50: 5428 | K50: 0 | L50: 211
A51: 21 | B51: 5528 | C51: 11 | D51: 5539 | E51: 11 | F51: 5552 | K51: 0 | L51: 211
A52: 21 | B52: 5639 | C52: 11 | D52: 5670 | E52: 11 | F52: 5683 | K52: 0 | L52: 211
A53: 21 | B53: 5778 | C53: 11 | D53: 5799 | E53: 11 | F53: 5812 | K53: 0 | L53: 211
A54: 21 | B54: 5899 | C54: 11 | D54: 5907 | E54: 11 | F54: 5916 | K54: 0 | L54: 211
A55: 21 | B55: 6008 | C55: 11 | D55: 6020 | E55: 11 | F55: 6027 | K55: 0 | L55: 211
A56: 21 | B56: 6117 | C56: 11 | D56: 6125 | E56: 11 | F56: 6141 | K56: 0 | L56: 211
A57: 21 | B57: 6232 | C57: 11 | D57: 6253 | E57: 11 | F57: 6260 | K57: 0 | L57: 211
A58: 21 | B58: 6346 | C58: 11 | D58: 6354 | E58: 11 | F58: 6365 | K58: 0 | L58: 211
A59: 21 | B59: 6456 | C59: 11 | D59: 6467 | E59: 11 | F59: 6474 | K59: 0 | L59: 211
A60: 21 | B60: 6565 | C60: 22 | D60: 6573 | E60: 13 | F60: 6585 | K60: 0 | L60: 221
A61: 21 | B61: 6680 | C61: 11 | D61: 6687 | E61: 11 | F61: 6699 | K61: 1 | L61: 211

Sheet !MB10840.010
A1: Report for:!MB10840.010
A2: Date: | B2: <date>
A3: Hen: | B3: <hen> | F3: Correct Sequence | G3: =Start!J2 -> 211 | P3: Total Sequences in Data | Q3: =4994-COUNTBLANK(L7:L5000) -> 47 | V3: Total Sequences in Block Data | W3: =COUNTA(L7:L14) -> 8 | AA3: Total Sequences in Block Data | AB3: =COUNTA(L15:L22) -> 8 | AF3: Total Sequences in Block Data | AG3: =COUNTA(L23:L29) -> 7 | AK3: Total Sequences in Block Data | AL3: =COUNTA(L30:L37) -> 8 | AP3: Total Sequences in Block Data | AQ3: =COUNTA(L38:L45) -> 8 | AU3: Total Sequences in Block Data | AV3: =COUNTA(L46:L53) -> 8
P4: Total Sequences in Summary | Q4: =SUM(O7:O14) -> 47 | V4: Total Sequences in Block Summary | W4: =SUM(U7:U14) -> 8 | AA4: Total Sequences in Block Summary | AB4: =SUM(Z7:Z14) -> 8 | AF4: Total Sequences in Block Summary | AG4: =SUM(AE7:AE14) -> 7 | AK4: Total Sequences in Block Summary | AL4: =SUM(AJ7:AJ14) -> 8 | AP4: Total Sequences in Block Summary | AQ4: =SUM(AO7:AO14) -> 8 | AU4: Total Sequences in Block Summary | AV4: =SUM(AT7:AT14) -> 8
T5: Block 1 | Y5: Block 2 | AD5: Block 3 | AI5: Block 4 | AN5: Block 5 | AS5: Block 6
A6: Sequence Component 1 | B6: Time 1 | C6: Sequence Component 2 | D6: Time 2 | E6: Sequence Component 3 | F6: Time 3 | G6: Sequence Component 4 | H6: Time 4 | I6: Sequence Component 5 | J6: Time 5 | K6: Correct? 0=No 1=Yes | L6: Sequence | N6: Frequency | P6: Relative Frequency | Q6: Variability | T6: Frequency | V6: Relative Frequency | W6: Variability | Y6: Frequency | AA6: Relative Frequency | AB6: Variability | AD6: Frequency | AF6: Relative Frequency | AG6: Variability | AI6: Frequency | AK6: Relative Frequency | AL6: Variability | AN6: Frequency | AP6: Relative Frequency | AQ6: Variability | AS6: Frequency | AU6: Relative Frequency | AV6: Variability
A7: 12 | B7: 29 | C7: 13 | D7: 40 | E7: 13 | F7: 67 | K7: 0 | L7: 111 | N7: 111 | O7: =COUNTIF($L$7:$L$500,N7) -> 2 | P7: =O7/$Q$4 -> 0.04255319149 | Q7: =IF(P7=0,0,(P7*((LOG(P7))/LOG(2)))) -> -0.1938122916 | T7: =N7 -> 111 | U7: =COUNTIF(L7:L14,T7) -> 2 | V7: =U7/(W4-U11) -> 0.5 | W7: =IF(V7=0,0,(V7*((LOG(V7))/LOG(2)))) -> -0.5 | Y7: =N7 -> 111 | Z7: =COUNTIF(L15:L22,Y7) -> 0 | AA7: =Z7/(AB4-Z11) -> 0 | AB7: =IF(AA7=0,0,(AA7*((LOG(AA7))/LOG(2)))) -> 0 | AD7: =N7 -> 111 | AE7: =COUNTIF(L23:L29,AD7) -> 0 | AF7: =AE7/(AG4-AE11) -> 0 | AG7: =IF(AF7=0,0,(AF7*((LOG(AF7))/LOG(2)))) -> 0 | AI7: =N7 -> 111 | AJ7: =COUNTIF(L30:L37,AI7) -> 0 | AK7: =AJ7/(AL4-AJ11) -> 0 | AL7: =IF(AK7=0,0,(AK7*((LOG(AK7))/LOG(2)))) -> 0 | AN7: =N7 -> 111 | AO7: =COUNTIF(L38:L45,AN7) -> 0 | AP7: =AO7/(AQ4-AO11) ->  | AQ7: =IF(AP7=0,0,(AP7*((LOG(AP7))/LOG(2)))) ->  | AS7: =N7 -> 111 | AT7: =COUNTIF(L46:L53,AS7) -> 0 | AU7: =AT7/(AV4-AT11) -> 0 | AV7: =IF(AU7=0,0,(AU7*((LOG(AU7))/LOG(2)))) -> 0
A8: 12 | B8: 169 | C8: 13 | D8: 193 | E8: 13 | F8: 236 | K8: 0 | L8: 111 | N8: 112 | O8: =COUNTIF($L$7:$L$500,N8) -> 1 | P8: =O8/$Q$4 -> 0.02127659574 | Q8: =IF(P8=0,0,(P8*((LOG(P8))/LOG(2)))) -> -0.1181827415 | T8: =N8 -> 112 | U8: =COUNTIF(L7:L14,T8) -> 1 | V8: =U8/(W4-U11) -> 0.25 | W8: =IF(V8=0,0,(V8*((LOG(V8))/LOG(2)))) -> -0.5 | Y8: =N8 -> 112 | Z8: =COUNTIF(L15:L22,Y8) -> 0 | AA8: =Z8/(AB4-Z11) -> 0 | AB8: =IF(AA8=0,0,(AA8*((LOG(AA8))/LOG(2)))) -> 0 | AD8: =N8 -> 112 | AE8: =COUNTIF(L23:L29,AD8) -> 0 | AF8: =AE8/(AG4-AE11) -> 0 | AG8: =IF(AF8=0,0,(AF8*((LOG(AF8))/LOG(2)))) -> 0 | AI8: =N8 -> 112 | AJ8: =COUNTIF(L30:L37,AI8) -> 0 | AK8: =AJ8/(AL4-AJ11) -> 0 | AL8: =IF(AK8=0,0,(AK8*((LOG(AK8))/LOG(2)))) -> 0 | AN8: =N8 -> 112 | AO8: =COUNTIF(L38:L45,AN8) -> 0 | AP8: =AO8/(AQ4-AO11) ->  | AQ8: =IF(AP8=0,0,(AP8*((LOG(AP8))/LOG(2)))) ->  | AS8: =N8 -> 112 | AT8: =COUNTIF(L46:L53,AS8) -> 0 | AU8: =AT8/(AV4-AT11) -> 0 | AV8: =IF(AU8=0,0,(AU8*((LOG(AU8))/LOG(2)))) -> 0
A9: 21 | B9: 338 | C9: 11 | D9: 361 | E9: 22 | F9: 379 | K9: 0 | L9: 212 | N9: 121 | O9: =COUNTIF($L$7:$L$500,N9) -> 0 | P9: =O9/$Q$4 -> 0 | Q9: =IF(P9=0,0,(P9*((LOG(P9))/LOG(2)))) -> 0 | T9: =N9 -> 121 | U9: =COUNTIF(L7:L14,T9) -> 0 | V9: =U9/(W4-U11) -> 0 | W9: =IF(V9=0,0,(V9*((LOG(V9))/LOG(2)))) -> 0 | Y9: =N9 -> 121 | Z9: =COUNTIF(L15:L22,Y9) -> 0 | AA9: =Z9/(AB4-Z11) -> 0 | AB9: =IF(AA9=0,0,(AA9*((LOG(AA9))/LOG(2)))) -> 0 | AD9: =N9 -> 121 | AE9: =COUNTIF(L23:L29,AD9) -> 0 | AF9: =AE9/(AG4-AE11) -> 0 | AG9: =IF(AF9=0,0,(AF9*((LOG(AF9))/LOG(2)))) -> 0 | AI9: =N9 -> 121 | AJ9: =COUNTIF(L30:L37,AI9) -> 0 | AK9: =AJ9/(AL4-AJ11) -> 0 | AL9: =IF(AK9=0,0,(AK9*((LOG(AK9))/LOG(2)))) -> 0 | AN9: =N9 -> 121 | AO9: =COUNTIF(L38:L45,AN9) -> 0 | AP9: =AO9/(AQ4-AO11) ->  | AQ9: =IF(AP9=0,0,(AP9*((LOG(AP9))/LOG(2)))) ->  | AS9: =N9 -> 121 | AT9: =COUNTIF(L46:L53,AS9) -> 0 | AU9: =AT9/(AV4-AT11) -> 0 | AV9: =IF(AU9=0,0,(AU9*((LOG(AU9))/LOG(2)))) -> 0
A10: 21 | B10: 482 | C10: 11 | D10: 491 | E10: 11 | F10: 503 | K10: 0 | L10: 211 | N10: 122 | O10: =COUNTIF($L$7:$L$500,N10) -> 0 | P10: =O10/$Q$4 -> 0 | Q10: =IF(P10=0,0,(P10*((LOG(P10))/LOG(2)))) -> 0 | T10: =N10 -> 122 | U10: =COUNTIF(L7:L14,T10) -> 0 | V10: =U10/(W4-U11) -> 0 | W10: =IF(V10=0,0,(V10*((LOG(V10))/LOG(2)))) -> 0 | Y10: =N10 -> 122 | Z10: =COUNTIF(L15:L22,Y10) -> 0 | AA10: =Z10/(AB4-Z11) -> 0 | AB10: =IF(AA10=0,0,(AA10*((LOG(AA10))/LOG(2)))) -> 0 | AD10: =N10 -> 122 | AE10: =COUNTIF(L23:L29,AD10) -> 0 | AF10: =AE10/(AG4-AE11) -> 0 | AG10: =IF(AF10=0,0,(AF10*((LOG(AF10))/LOG(2)))) -> 0 | AI10: =N10 -> 122 | AJ10: =COUNTIF(L30:L37,AI10) -> 0 | AK10: =AJ10/(AL4-AJ11) -> 0 | AL10: =IF(AK10=0,0,(AK10*((LOG(AK10))/LOG(2)))) -> 0 | AN10: =N10 -> 122 | AO10: =COUNTIF(L38:L45,AN10) -> 0 | AP10: =AO10/(AQ4-AO11) ->  | AQ10: =IF(AP10=0,0,(AP10*((LOG(AP10))/LOG(2)))) ->  | AS10: =N10 -> 122 | AT10: =COUNTIF(L46:L53,AS10) -> 0 | AU10: =AT10/(AV4-AT11) -> 0 | AV10: =IF(AU10=0,0,(AU10*((LOG(AU10))/LOG(2)))) -> 0
A11: 12 | B11: 605 | C11: 13 | D11: 644 | E11: 24 | F11: 667 | K11: 0 | L11: 112 | N11: 211 | O11: =COUNTIF($L$7:$L$500,N11) -> 39 | P11: =O11/$Q$4 -> 0.829787234 | Q11: =IF(P11=0,0,(P11*((LOG(P11))/LOG(2)))) -> -0.2233676315 | T11: =N11 -> 211 | U11: =COUNTIF(L7:L14,T11) -> 4 | Y11: =N11 -> 211 | Z11: =COUNTIF(L15:L22,Y11) -> 7 | AD11: =N11 -> 211 | AE11: =COUNTIF(L23:L29,AD11) -> 6 | AI11: =N11 -> 211 | AJ11: =COUNTIF(L30:L37,AI11) -> 7 | AN11: =N11 -> 211 | AO11: =COUNTIF(L38:L45,AN11) -> 8 | AS11: =N11 -> 211 | AT11: =COUNTIF(L46:L53,AS11) -> 7
A12: 21 | B12: 779 | C12: 11 | D12: 787 | E12: 11 | F12: 802 | K12: 0 | L12: 211 | N12: 212 | O12: =COUNTIF($L$7:$L$500,N12) -> 1 | P12: =O12/$Q$4 -> 0.02127659574 | Q12: =IF(P12=0,0,(P12*((LOG(P12))/LOG(2)))) -> -0.1181827415 | T12: =N12 -> 212 | U12: =COUNTIF(L7:L14,T12) -> 1 | V12: =U12/(W4-U11) -> 0.25 | W12: =IF(V12=0,0,(V12*((LOG(V12))/LOG(2)))) -> -0.5 | Y12: =N12 -> 212 | Z12: =COUNTIF(L15:L22,Y12) -> 0 | AA12: =Z12/(AB4-Z11) -> 0 | AB12: =IF(AA12=0,0,(AA12*((LOG(AA12))/LOG(2)))) -> 0 | AD12: =N12 -> 212 | AE12: =COUNTIF(L23:L29,AD12) -> 0 | AF12: =AE12/(AG4-AE11) -> 0 | AG12: =IF(AF12=0,0,(AF12*((LOG(AF12))/LOG(2)))) -> 0 | AI12: =N12 -> 212 | AJ12: =COUNTIF(L30:L37,AI12) -> 0 | AK12: =AJ12/(AL4-AJ11) -> 0 | AL12: =IF(AK12=0,0,(AK12*((LOG(AK12))/LOG(2)))) -> 0 | AN12: =N12 -> 212 | AO12: =COUNTIF(L38:L45,AN12) -> 0 | AP12: =AO12/(AQ4-AO11) ->  | AQ12: =IF(AP12=0,0,(AP12*((LOG(AP12))/LOG(2)))) ->  | AS12: =N12 -> 212 | AT12: =COUNTIF(L46:L53,AS12) -> 0 | AU12: =AT12/(AV4-AT11) -> 0 | AV12: =IF(AU12=0,0,(AU12*((LOG(AU12))/LOG(2)))) -> 0
A13: 21 | B13: 899 | C13: 11 | D13: 911 | E13: 11 | F13: 941 | K13: 0 | L13: 211 | N13: 221 | O13: =COUNTIF($L$7:$L$500,N13) -> 4 | P13: =O13/$Q$4 -> 0.08510638298 | Q13: =IF(P13=0,0,(P13*((LOG(P13))/LOG(2)))) -> -0.3025182001 | T13: =N13 -> 221 | U13: =COUNTIF(L7:L14,T13) -> 0 | V13: =U13/(W4-U11) -> 0 | W13: =IF(V13=0,0,(V13*((LOG(V13))/LOG(2)))) -> 0 | Y13: =N13 -> 221 | Z13: =COUNTIF(L15:L22,Y13) -> 1 | AA13: =Z13/(AB4-Z11) -> 1 | AB13: =IF(AA13=0,0,(AA13*((LOG(AA13))/LOG(2)))) -> 0 | AD13: =N13 -> 221 | AE13: =COUNTIF(L23:L29,AD13) -> 1 | AF13: =AE13/(AG4-AE11) -> 1 | AG13: =IF(AF13=0,0,(AF13*((LOG(AF13))/LOG(2)))) -> 0 | AI13: =N13 -> 221 | AJ13: =COUNTIF(L30:L37,AI13) -> 1 | AK13: =AJ13/(AL4-AJ11) -> 1 | AL13: =IF(AK13=0,0,(AK13*((LOG(AK13))/LOG(2)))) -> 0 | AN13: =N13 -> 221 | AO13: =COUNTIF(L38:L45,AN13) -> 0 | AP13: =AO13/(AQ4-AO11) ->  | AQ13: =IF(AP13=0,0,(AP13*((LOG(AP13))/LOG(2)))) ->  | AS13: =N13 -> 221 | AT13: =COUNTIF(L46:L53,AS13) -> 1 | AU13: =AT13/(AV4-AT11) -> 1 | AV13: =IF(AU13=0,0,(AU13*((LOG(AU13))/LOG(2)))) -> 0
A14: 21 | B14: 1028 | C14: 11 | D14: 1036 | E14: 11 | F14: 1048 | K14: 0 | L14: 211 | N14: 222 | O14: =COUNTIF($L$7:$L$500,N14) -> 0 | P14: =O14/$Q$4 -> 0 | Q14: =IF(P14=0,0,(P14*((LOG(P14))/LOG(2)))) -> 0 | T14: =N14 -> 222 | U14: =COUNTIF(L7:L14,T14) -> 0 | V14: =U14/(W4-U11) -> 0 | W14: =IF(V14=0,0,(V14*((LOG(V14))/LOG(2)))) -> 0 | Y14: =N14 -> 222 | Z14: =COUNTIF(L15:L22,Y14) -> 0 | AA14: =Z14/(AB4-Z11) -> 0 | AB14: =IF(AA14=0,0,(AA14*((LOG(AA14))/LOG(2)))) -> 0 | AD14: =N14 -> 222 | AE14: =COUNTIF(L23:L29,AD14) -> 0 | AF14: =AE14/(AG4-AE11) -> 0 | AG14: =IF(AF14=0,0,(AF14*((LOG(AF14))/LOG(2)))) -> 0 | AI14: =N14 -> 222 | AJ14: =COUNTIF(L30:L37,AI14) -> 0 | AK14: =AJ14/(AL4-AJ11) -> 0 | AL14: =IF(AK14=0,0,(AK14*((LOG(AK14))/LOG(2)))) -> 0 | AN14: =N14 -> 222 | AO14: =COUNTIF(L38:L45,AN14) -> 0 | AP14: =AO14/(AQ4-AO11) ->  | AQ14: =IF(AP14=0,0,(AP14*((LOG(AP14))/LOG(2)))) ->  | AS14: =N14 -> 222 | AT14: =COUNTIF(L46:L53,AS14) -> 0 | AU14: =AT14/(AV4-AT11) -> 0 | AV14: =IF(AU14=0,0,(AU14*((LOG(AU14))/LOG(2)))) -> 0
A15: 21 | B15: 1140 | C15: 11 | D15: 1193 | E15: 11 | F15: 1201 | K15: 0 | L15: 211 | P15: =SUM(P7:P14) -> 1 | Q15: =-SUM(Q7:Q14) -> 0.9560636062 | V15: =SUM(V7:V14) -> 1 | W15: =-SUM(W7:W14) -> 1.5 | AA15: =SUM(AA7:AA14) -> 1 | AB15: =-SUM(AB7:AB14) -> 0 | AF15: =SUM(AF7:AF14) -> 1 | AG15: =-SUM(AG7:AG14) -> 0 | AK15: =SUM(AK7:AK14) -> 1 | AL15: =-SUM(AL7:AL14) -> 0 | AP15: =SUM(AP7:AP14) ->  | AQ15: =-SUM(AQ7:AQ14) ->  | AU15: =SUM(AU7:AU14) -> 1 | AV15: =-SUM(AV7:AV14) -> 0
A16: 21 | B16: 1297 | C16: 11 | D16: 1317 | E16: 11 | F16: 1328 | K16: 0 | L16: 211 | P16: U= | Q16: =Q15/(LOG(Q4)/LOG(2)) -> 0.1721213994 | V16: U1= | W16: =W15/(LOG(W4)/LOG(2)) -> 0.5 | AA16: U2= | AB16: =AB15/(LOG(AB4)/LOG(2)) -> 0 | AF16: U3= | AG16: =AG15/(LOG(AG4)/LOG(2)) -> 0 | AK16: U4= | AL16: =AL15/(LOG(AL4)/LOG(2)) -> 0 | AP16: U5= | AQ16: =AQ15/(LOG(AQ4)/LOG(2)) ->  | AU16: U6= | AV16: =AV15/(LOG(AV4)/LOG(2)) -> 0
A17: 21 | B17: 1424 | C17: 11 | D17: 1454 | E17: 11 | F17: 1461 | K17: 0 | L17: 211
A18: 21 | B18: 1550 | C18: 11 | D18: 1557 | E18: 11 | F18: 1589 | K18: 0 | L18: 211
A19: 21 | B19: 1680 | C19: 11 | D19: 1717 | E19: 11 | F19: 1732 | K19: 0 | L19: 211 | N19: Total Target Seq
A20: 21 | B20: 1825 | C20: 11 | D20: 1833 | E20: 11 | F20: 1844 | K20: 0 | L20: 211 | N20: =COUNTIF(L7:L53,G3) -> 39 | P20: 8 | Q20: 8 | R20: 7 | S20: 8 | T20: 8 | U20: 8
A21: 21 | B21: 1931 | C21: 22 | D21: 1936 | E21: 13 | F21: 1951 | K21: 0 | L21: 221 | P21: % of reinforcement given in 6 equal intervals based on number of trials
A22: 21 | B22: 2041 | C22: 11 | D22: 2048 | E22: 11 | F22: 2065 | K22: 0 | L22: 211 | P22: %_1 | Q22: %_2 | R22: %_3 | S22: %_4 | T22: %_5 | U22: %_6
A23: 21 | B23: 2157 | C23: 11 | D23: 2183 | E23: 11 | F23: 2194 | K23: 0 | L23: 211 | O23: target sequence | P23: =$G$3 -> 211 | Q23: =$G$3 -> 211 | R23: =$G$3 -> 211 | S23: =$G$3 -> 211 | T23: =$G$3 -> 211 | U23: =$G$3 -> 211
A24: 21 | B24: 2283 | C24: 11 | D24: 2290 | E24: 11 | F24: 2314 | K24: 0 | L24: 211 | O24: total reinforcement | P24: =U11 -> 4 | Q24: =Z11 -> 7 | R24: =AE11 -> 6 | S24: =AJ11 -> 7 | T24: =AO11 -> 8 | U24: =AT11 -> 7
A25: 21 | B25: 2402 | C25: 22 | D25: 2406 | E25: 13 | F25: 2414 | K25: 0 | L25: 221 | O25: % target
A26: 21 | B26: 2513 | C26: 11 | D26: 2521 | E26: 11 | F26: 2545 | K26: 0 | L26: 211 | O26: CCRF
A27: 21 | B27: 2632 | C27: 11 | D27: 2639 | E27: 11 | F27: 2656 | K27: 0 | L27: 211 | O27: % CCRf
A28: 21 | B28: 2745 | C28: 11 | D28: 2765 | E28: 11 | F28: 2776 | K28: 0 | L28: 211 | O28: average response rate | P28: =F14/P20 -> 131 | Q28: =(F22-F14)/Q20 -> 127.125 | R28: =(F29-F22)/R20 -> 117 | S28: =(F37-F29)/S20 -> 117.875 | T28: =(F45-F37)/T20 -> 110.375 | U28: =(F53-F45)/U20 -> 121.625
A29: 21 | B29: 2863 | C29: 11 | D29: 2877 | E29: 11 | F29: 2884 | K29: 0 | L29: 211
A30: 21 | B30: 2972 | C30: 22 | D30: 2984 | E30: 13 | F30: 2995 | K30: 0 | L30: 221
A31: 21 | B31: 3091 | C31: 11 | D31: 3099 | E31: 11 | F31: 3110 | K31: 0 | L31: 211
A32: 21 | B32: 3204 | C32: 11 | D32: 3216 | E32: 11 | F32: 3238 | K32: 0 | L32: 211
A33: 21 | B33: 3334 | C33: 11 | D33: 3352 | E33: 11 | F33: 3364 | K33: 0 | L33: 211
A34: 21 | B34: 3451 | C34: 11 | D34: 3458 | E34: 11 | F34: 3478 | K34: 0 | L34: 211
A35: 21 | B35: 3570 | C35: 11 | D35: 3577 | E35: 11 | F35: 3593 | K35: 0 | L35: 211
A36: 21 | B36: 3686 | C36: 11 | D36: 3694 | E36: 11 | F36: 3720 | K36: 0 | L36: 211
A37: 21 | B37: 3806 | C37: 11 | D37: 3813 | E37: 11 | F37: 3827 | K37: 0 | L37: 211
A38: 21 | B38: 3918 | C38: 11 | D38: 3925 | E38: 11 | F38: 3937 | K38: 0 | L38: 211
A39: 21 | B39: 4025 | C39: 11 | D39: 4033 | E39: 11 | F39: 4042 | K39: 0 | L39: 211
A40: 21 | B40: 4132 | C40: 11 | D40: 4144 | E40: 11 | F40: 4151 | K40: 0 | L40: 211
A41: 21 | B41: 4238 | C41: 11 | D41: 4245 | E41: 11 | F41: 4257 | K41: 0 | L41: 211
A42: 21 | B42: 4348 | C42: 11 | D42: 4356 | E42: 11 | F42: 4378 | K42: 0 | L42: 211
A43: 21 | B43: 4467 | C43: 11 | D43: 4474 | E43: 11 | F43: 4492 | K43: 0 | L43: 211
A44: 21 | B44: 4579 | C44: 11 | D44: 4586 | E44: 11 | F44: 4598 | K44: 0 | L44: 211
A45: 21 | B45: 4689 | C45: 11 | D45: 4703 | E45: 11 | F45: 4710 | K45: 0 | L45: 211
A46: 21 | B46: 4800 | C46: 11 | D46: 4807 | E46: 11 | F46: 4863 | K46: 0 | L46: 211
A47: 21 | B47: 4950 | C47: 11 | D47: 4958 | E47: 11 | F47: 4974 | K47: 0 | L47: 211
A48: 21 | B48: 5065 | C48: 11 | D48: 5089 | E48: 11 | F48: 5099 | K48: 0 | L48: 211
A49: 21 | B49: 5187 | C49: 11 | D49: 5195 | E49: 11 | F49: 5205 | K49: 0 | L49: 211
A50: 21 | B50: 5292 | C50: 22 | D50: 5299 | E50: 13 | F50: 5313 | K50: 0 | L50: 221
A51: 21 | B51: 5408 | C51: 11 | D51: 5416 | E51: 11 | F51: 5452 | K51: 0 | L51: 211
A52: 21 | B52: 5543 | C52: 11 | D52: 5550 | E52: 11 | F52: 5568 | K52: 0 | L52: 211
A53: 21 | B53: 5655 | C53: 11 | D53: 5662 | E53: 11 | F53: 5683 | K53: 1 | L53: 211

Sheet !MB11750.010
A1: Report for:!MB11750.010
A2: Date: | B2: <date>
A3: Hen: | B3: <hen> | F3: Correct Sequence | G3: =Start!J2 -> 211 | P3: Total Sequences in Data | Q3: =4994-COUNTBLANK(L7:L5000) -> 48 | V3: Total Sequences in Block Data | W3: =COUNTA(L7:L14) -> 8 | AA3: Total Sequences in Block Data | AB3: =COUNTA(L15:L22) -> 8 | AF3: Total Sequences in Block Data | AG3: =COUNTA(L23:L30) -> 8 | AK3: Total Sequences in Block Data | AL3: =COUNTA(L31:L38) -> 8 | AP3: Total Sequences in Block Data | AQ3: =COUNTA(L39:L46) -> 8 | AU3: Total Sequences in Block Data | AV3: =COUNTA(L47:L54) -> 8
P4: Total Sequences in Summary | Q4: =SUM(O7:O14) -> 48 | V4: Total Sequences in Block Summary | W4: =SUM(U7:U14) -> 8 | AA4: Total Sequences in Block Summary | AB4: =SUM(Z7:Z14) -> 8 | AF4: Total Sequences in Block Summary | AG4: =SUM(AE7:AE14) -> 8 | AK4: Total Sequences in Block Summary | AL4: =SUM(AJ7:AJ14) -> 8 | AP4: Total Sequences in Block Summary | AQ4: =SUM(AO7:AO14) -> 8 | AU4: Total Sequences in Block Summary | AV4: =SUM(AT7:AT14) -> 8
T5: Block 1 | Y5: Block 2 | AD5: Block 3 | AI5: Block 4 | AN5: Block 5 | AS5: Block 6
A6: Sequence Component 1 | B6: Time 1 | C6: Sequence Component 2 | D6: Time 2 | E6: Sequence Component 3 | F6: Time 3 | G6: Sequence Component 4 | H6: Time 4 | I6: Sequence Component 5 | J6: Time 5 | K6: Correct? 0=No 1=Yes | L6: Sequence | N6: Frequency | P6: Relative Frequency | Q6: Variability | T6: Frequency | V6: Relative Frequency | W6: Variability | Y6: Frequency | AA6: Relative Frequency | AB6: Variability | AD6: Frequency | AF6: Relative Frequency | AG6: Variability | AI6: Frequency | AK6: Relative Frequency | AL6: Variability | AN6: Frequency | AP6: Relative Frequency | AQ6: Variability | AS6: Frequency | AU6: Relative Frequency | AV6: Variability
A7: 21 | B7: 14 | C7: 11 | D7: 22 | E7: 11 | F7: 56 | K7: 0 | L7: 211 | N7: 111 | O7: =COUNTIF($L$7:$L$500,N7) -> 3 | P7: =O7/$Q$4 -> 0.0625 | Q7: =IF(P7=0,0,(P7*((LOG(P7))/LOG(2)))) -> -0.25 | T7: =N7 -> 111 | U7: =COUNTIF(L7:L14,T7) -> 2 | V7: =U7/(W4-U11) -> 0.6666666667 | W7: =IF(V7=0,0,(V7*((LOG(V7))/LOG(2)))) -> -0.3899750005 | Y7: =N7 -> 111 | Z7: =COUNTIF(L15:L22,Y7) -> 0 | AA7: =Z7/(AB4-Z11) -> 0 | AB7: =IF(AA7=0,0,(AA7*((LOG(AA7))/LOG(2)))) -> 0 | AD7: =N7 -> 111 | AE7: =COUNTIF(L23:L30,AD7) -> 0 | AF7: =AE7/(AG4-AE11) -> 0 | AG7: =IF(AF7=0,0,(AF7*((LOG(AF7))/LOG(2)))) -> 0 | AI7: =N7 -> 111 | AJ7: =COUNTIF(L31:L38,AI7) -> 1 | AK7: =AJ7/(AL4-AJ11) -> 0.5 | AL7: =IF(AK7=0,0,(AK7*((LOG(AK7))/LOG(2)))) -> -0.5 | AN7: =N7 -> 111 | AO7: =COUNTIF(L39:L46,AN7) -> 0 | AP7: =AO7/(AQ4-AO11) ->  | AQ7: =IF(AP7=0,0,(AP7*((LOG(AP7))/LOG(2)))) ->  | AS7: =N7 -> 111 | AT7: =COUNTIF(L47:L54,AS7) -> 0 | AU7: =AT7/(AV4-AT11) -> 0 | AV7: =IF(AU7=0,0,(AU7*((LOG(AU7))/LOG(2)))) -> 0
A8: 21 | B8: 146 | C8: 11 | D8: 158 | E8: 11 | F8: 199 | K8: 0 | L8: 211 | N8: 112 | O8: =COUNTIF($L$7:$L$500,N8) -> 0 | P8: =O8/$Q$4 -> 0 | Q8: =IF(P8=0,0,(P8*((LOG(P8))/LOG(2)))) -> 0 | T8: =N8 -> 112 | U8: =COUNTIF(L7:L14,T8) -> 0 | V8: =U8/(W4-U11) -> 0 | W8: =IF(V8=0,0,(V8*((LOG(V8))/LOG(2)))) -> 0 | Y8: =N8 -> 112 | Z8: =COUNTIF(L15:L22,Y8) -> 0 | AA8: =Z8/(AB4-Z11) -> 0 | AB8: =IF(AA8=0,0,(AA8*((LOG(AA8))/LOG(2)))) -> 0 | AD8: =N8 -> 112 | AE8: =COUNTIF(L23:L30,AD8) -> 0 | AF8: =AE8/(AG4-AE11) -> 0 | AG8: =IF(AF8=0,0,(AF8*((LOG(AF8))/LOG(2)))) -> 0 | AI8: =N8 -> 112 | AJ8: =COUNTIF(L31:L38,AI8) -> 0 | AK8: =AJ8/(AL4-AJ11) -> 0 | AL8: =IF(AK8=0,0,(AK8*((LOG(AK8))/LOG(2)))) -> 0 | AN8: =N8 -> 112 | AO8: =COUNTIF(L39:L46,AN8) -> 0 | AP8: =AO8/(AQ4-AO11) ->  | AQ8: =IF(AP8=0,0,(AP8*((LOG(AP8))/LOG(2)))) ->  | AS8: =N8 -> 112 | AT8: =COUNTIF(L47:L54,AS8) -> 0 | AU8: =AT8/(AV4-AT11) -> 0 | AV8: =IF(AU8=0,0,(AU8*((LOG(AU8))/LOG(2)))) -> 0
A9: 21 | B9: 287 | C9: 22 | D9: 297 | E9: 13 | F9: 325 | K9: 0 | L9: 221 | N9: 121 | O9: =COUNTIF($L$7:$L$500,N9) -> 0 | P9: =O9/$Q$4 -> 0 | Q9: =IF(P9=0,0,(P9*((LOG(P9))/LOG(2)))) -> 0 | T9: =N9 -> 121 | U9: =COUNTIF(L7:L14,T9) -> 0 | V9: =U9/(W4-U11) -> 0 | W9: =IF(V9=0,0,(V9*((LOG(V9))/LOG(2)))) -> 0 | Y9: =N9 -> 121 | Z9: =COUNTIF(L15:L22,Y9) -> 0 | AA9: =Z9/(AB4-Z11) -> 0 | AB9: =IF(AA9=0,0,(AA9*((LOG(AA9))/LOG(2)))) -> 0 | AD9: =N9 -> 121 | AE9: =COUNTIF(L23:L30,AD9) -> 0 | AF9: =AE9/(AG4-AE11) -> 0 | AG9: =IF(AF9=0,0,(AF9*((LOG(AF9))/LOG(2)))) -> 0 | AI9: =N9 -> 121 | AJ9: =COUNTIF(L31:L38,AI9) -> 0 | AK9: =AJ9/(AL4-AJ11) -> 0 | AL9: =IF(AK9=0,0,(AK9*((LOG(AK9))/LOG(2)))) -> 0 | AN9: =N9 -> 121 | AO9: =COUNTIF(L39:L46,AN9) -> 0 | AP9: =AO9/(AQ4-AO11) ->  | AQ9: =IF(AP9=0,0,(AP9*((LOG(AP9))/LOG(2)))) ->  | AS9: =N9 -> 121 | AT9: =COUNTIF(L47:L54,AS9) -> 0 | AU9: =AT9/(AV4-AT11) -> 0 | AV9: =IF(AU9=0,0,(AU9*((LOG(AU9))/LOG(2)))) -> 0
A10: 21 | B10: 425 | C10: 11 | D10: 437 | E10: 11 | F10: 449 | K10: 0 | L10: 211 | N10: 122 | O10: =COUNTIF($L$7:$L$500,N10) -> 0 | P10: =O10/$Q$4 -> 0 | Q10: =IF(P10=0,0,(P10*((LOG(P10))/LOG(2)))) -> 0 | T10: =N10 -> 122 | U10: =COUNTIF(L7:L14,T10) -> 0 | V10: =U10/(W4-U11) -> 0 | W10: =IF(V10=0,0,(V10*((LOG(V10))/LOG(2)))) -> 0 | Y10: =N10 -> 122 | Z10: =COUNTIF(L15:L22,Y10) -> 0 | AA10: =Z10/(AB4-Z11) -> 0 | AB10: =IF(AA10=0,0,(AA10*((LOG(AA10))/LOG(2)))) -> 0 | AD10: =N10 -> 122 | AE10: =COUNTIF(L23:L30,AD10) -> 0 | AF10: =AE10/(AG4-AE11) -> 0 | AG10: =IF(AF10=0,0,(AF10*((LOG(AF10))/LOG(2)))) -> 0 | AI10: =N10 -> 122 | AJ10: =COUNTIF(L31:L38,AI10) -> 0 | AK10: =AJ10/(AL4-AJ11) -> 0 | AL10: =IF(AK10=0,0,(AK10*((LOG(AK10))/LOG(2)))) -> 0 | AN10: =N10 -> 122 | AO10: =COUNTIF(L39:L46,AN10) -> 0 | AP10: =AO10/(AQ4-AO11) ->  | AQ10: =IF(AP10=0,0,(AP10*((LOG(AP10))/LOG(2)))) ->  | AS10: =N10 -> 122 | AT10: =COUNTIF(L47:L54,AS10) -> 0 | AU10: =AT10/(AV4-AT11) -> 0 | AV10: =IF(AU10=0,0,(AU10*((LOG(AU10))/LOG(2)))) -> 0
A11: 21 | B11: 537 | C11: 11 | D11: 546 | E11: 11 | F11: 565 | K11: 0 | L11: 211 | N11: 211 | O11: =COUNTIF($L$7:$L$500,N11) -> 39 | P11: =O11/$Q$4 -> 0.8125 | Q11: =IF(P11=0,0,(P11*((LOG(P11))/LOG(2)))) -> -0.243392729 | T11: =N11 -> 211 | U11: =COUNTIF(L7:L14,T11) -> 5 | Y11: =N11 -> 211 | Z11: =COUNTIF(L15:L22,Y11) -> 6 | AD11: =N11 -> 211 | AE11: =COUNTIF(L23:L30,AD11) -> 7 | AI11: =N11 -> 211 | AJ11: =COUNTIF(L31:L38,AI11) -> 6 | AN11: =N11 -> 211 | AO11: =COUNTIF(L39:L46,AN11) -> 8 | AS11: =N11 -> 211 | AT11: =COUNTIF(L47:L54,AS11) -> 7
A12: 12 | B12: 672 | C12: 13 | D12: 684 | E12: 13 | F12: 693 | K12: 0 | L12: 111 | N12: 212 | O12: =COUNTIF($L$7:$L$500,N12) -> 0 | P12: =O12/$Q$4 -> 0 | Q12: =IF(P12=0,0,(P12*((LOG(P12))/LOG(2)))) -> 0 | T12: =N12 -> 212 | U12: =COUNTIF(L7:L14,T12) -> 0 | V12: =U12/(W4-U11) -> 0 | W12: =IF(V12=0,0,(V12*((LOG(V12))/LOG(2)))) -> 0 | Y12: =N12 -> 212 | Z12: =COUNTIF(L15:L22,Y12) -> 0 | AA12: =Z12/(AB4-Z11) -> 0 | AB12: =IF(AA12=0,0,(AA12*((LOG(AA12))/LOG(2)))) -> 0 | AD12: =N12 -> 212 | AE12: =COUNTIF(L23:L30,AD12) -> 0 | AF12: =AE12/(AG4-AE11) -> 0 | AG12: =IF(AF12=0,0,(AF12*((LOG(AF12))/LOG(2)))) -> 0 | AI12: =N12 -> 212 | AJ12: =COUNTIF(L31:L38,AI12) -> 0 | AK12: =AJ12/(AL4-AJ11) -> 0 | AL12: =IF(AK12=0,0,(AK12*((LOG(AK12))/LOG(2)))) -> 0 | AN12: =N12 -> 212 | AO12: =COUNTIF(L39:L46,AN12) -> 0 | AP12: =AO12/(AQ4-AO11) ->  | AQ12: =IF(AP12=0,0,(AP12*((LOG(AP12))/LOG(2)))) ->  | AS12: =N12 -> 212 | AT12: =COUNTIF(L47:L54,AS12) -> 0 | AU12: =AT12/(AV4-AT11) -> 0 | AV12: =IF(AU12=0,0,(AU12*((LOG(AU12))/LOG(2)))) -> 0
A13: 12 | B13: 810 | C13: 13 | D13: 821 | E13: 13 | F13: 832 | K13: 0 | L13: 111 | N13: 221 | O13: =COUNTIF($L$7:$L$500,N13) -> 6 | P13: =O13/$Q$4 -> 0.125 | Q13: =IF(P13=0,0,(P13*((LOG(P13))/LOG(2)))) -> -0.375 | T13: =N13 -> 221 | U13: =COUNTIF(L7:L14,T13) -> 1 | V13: =U13/(W4-U11) -> 0.3333333333 | W13: =IF(V13=0,0,(V13*((LOG(V13))/LOG(2)))) -> -0.5283208336 | Y13: =N13 -> 221 | Z13: =COUNTIF(L15:L22,Y13) -> 2 | AA13: =Z13/(AB4-Z11) -> 1 | AB13: =IF(AA13=0,0,(AA13*((LOG(AA13))/LOG(2)))) -> 0 | AD13: =N13 -> 221 | AE13: =COUNTIF(L23:L30,AD13) -> 1 | AF13: =AE13/(AG4-AE11) -> 1 | AG13: =IF(AF13=0,0,(AF13*((LOG(AF13))/LOG(2)))) -> 0 | AI13: =N13 -> 221 | AJ13: =COUNTIF(L31:L38,AI13) -> 1 | AK13: =AJ13/(AL4-AJ11) -> 0.5 | AL13: =IF(AK13=0,0,(AK13*((LOG(AK13))/LOG(2)))) -> -0.5 | AN13: =N13 -> 221 | AO13: =COUNTIF(L39:L46,AN13) -> 0 | AP13: =AO13/(AQ4-AO11) ->  | AQ13: =IF(AP13=0,0,(AP13*((LOG(AP13))/LOG(2)))) ->  | AS13: =N13 -> 221 | AT13: =COUNTIF(L47:L54,AS13) -> 1 | AU13: =AT13/(AV4-AT11) -> 1 | AV13: =IF(AU13=0,0,(AU13*((LOG(AU13))/LOG(2)))) -> 0
A14: 21 | B14: 928 | C14: 11 | D14: 937 | E14: 11 | F14: 961 | K14: 0 | L14: 211 | N14: 222 | O14: =COUNTIF($L$7:$L$500,N14) -> 0 | P14: =O14/$Q$4 -> 0 | Q14: =IF(P14=0,0,(P14*((LOG(P14))/LOG(2)))) -> 0 | T14: =N14 -> 222 | U14: =COUNTIF(L7:L14,T14) -> 0 | V14: =U14/(W4-U11) -> 0 | W14: =IF(V14=0,0,(V14*((LOG(V14))/LOG(2)))) -> 0 | Y14: =N14 -> 222 | Z14: =COUNTIF(L15:L22,Y14) -> 0 | AA14: =Z14/(AB4-Z11) -> 0 | AB14: =IF(AA14=0,0,(AA14*((LOG(AA14))/LOG(2)))) -> 0 | AD14: =N14 -> 222 | AE14: =COUNTIF(L23:L30,AD14) -> 0 | AF14: =AE14/(AG4-AE11) -> 0 | AG14: =IF(AF14=0,0,(AF14*((LOG(AF14))/LOG(2)))) -> 0 | AI14: =N14 -> 222 | AJ14: =COUNTIF(L31:L38,AI14) -> 0 | AK14: =AJ14/(AL4-AJ11) -> 0 | AL14: =IF(AK14=0,0,(AK14*((LOG(AK14))/LOG(2)))) -> 0 | AN14: =N14 -> 222 | AO14: =COUNTIF(L39:L46,AN14) -> 0 | AP14: =AO14/(AQ4-AO11) ->  | AQ14: =IF(AP14=0,0,(AP14*((LOG(AP14))/LOG(2)))) ->  | AS14: =N14 -> 222 | AT14: =COUNTIF(L47:L54,AS14) -> 0 | AU14: =AT14/(AV4-AT11) -> 0 | AV14: =IF(AU14=0,0,(AU14*((LOG(AU14))/LOG(2)))) -> 0
A15: 21 | B15: 1058 | C15: 11 | D15: 1102 | E15: 11 | F15: 1113 | K15: 0 | L15: 211 | P15: =SUM(P7:P14) -> 1 | Q15: =-SUM(Q7:Q14) -> 0.868392729 | V15: =SUM(V7:V14) -> 1 | W15: =-SUM(W7:W14) -> 0.9182958341 | AA15: =SUM(AA7:AA14) -> 1 | AB15: =-SUM(AB7:AB14) -> 0 | AF15: =SUM(AF7:AF14) -> 1 | AG15: =-SUM(AG7:AG14) -> 0 | AK15: =SUM(AK7:AK14) -> 1 | AL15: =-SUM(AL7:AL14) -> 1 | AP15: =SUM(AP7:AP14) ->  | AQ15: =-SUM(AQ7:AQ14) ->  | AU15: =SUM(AU7:AU14) -> 1 | AV15: =-SUM(AV7:AV14) -> 0
A16: 21 | B16: 1201 | C16: 22 | D16: 1205 | E16: 13 | F16: 1213 | K16: 0 | L16: 221 | P16: U= | Q16: =Q15/(LOG(Q4)/LOG(2)) -> 0.1554876562 | V16: U1= | W16: =W15/(LOG(W4)/LOG(2)) -> 0.3060986114 | AA16: U2= | AB16: =AB15/(LOG(AB4)/LOG(2)) -> 0 | AF16: U3= | AG16: =AG15/(LOG(AG4)/LOG(2)) -> 0 | AK16: U4= | AL16: =AL15/(LOG(AL4)/LOG(2)) -> 0.3333333333 | AP16: U5= | AQ16: =AQ15/(LOG(AQ4)/LOG(2)) ->  | AU16: U6= | AV16: =AV15/(LOG(AV4)/LOG(2)) -> 0
A17: 21 | B17: 1310 | C17: 11 | D17: 1352 | E17: 11 | F17: 1367 | K17: 0 | L17: 211
A18: 21 | B18: 1458 | C18: 11 | D18: 1467 | E18: 11 | F18: 1480 | K18: 0 | L18: 211
A19: 21 | B19: 1573 | C19: 11 | D19: 1586 | E19: 11 | F19: 1593 | K19: 0 | L19: 211 | N19: Total Target Seq
A20: 21 | B20: 1682 | C20: 11 | D20: 1699 | E20: 11 | F20: 1709 | K20: 0 | L20: 211 | N20: =COUNTIF(L7:L54,G3) -> 39 | P20: 8 | Q20: 8 | R20: 8 | S20: 8 | T20: 8 | U20: 8
A21: 21 | B21: 1800 | C21: 22 | D21: 1805 | E21: 13 | F21: 1822 | K21: 0 | L21: 221 | P21: % of reinforcement given in 6 equal intervals based on number of trials
A22: 21 | B22: 1921 | C22: 11 | D22: 1929 | E22: 11 | F22: 1957 | K22: 0 | L22: 211 | P22: %_1 | Q22: %_2 | R22: %_3 | S22: %_4 | T22: %_5 | U22: %_6
A23: 21 | B23: 2047 | C23: 11 | D23: 2072 | E23: 11 | F23: 2080 | K23: 0 | L23: 211 | O23: target sequence | P23: =$G$3 -> 211 | Q23: =$G$3 -> 211 | R23: =$G$3 -> 211 | S23: =$G$3 -> 211 | T23: =$G$3 -> 211 | U23: =$G$3 -> 211
A24: 21 | B24: 2169 | C24: 11 | D24: 2184 | E24: 11 | F24: 2200 | K24: 0 | L24: 211 | O24: total reinforcement | P24: =U11 -> 5 | Q24: =Z11 -> 6 | R24: =AE11 -> 7 | S24: =AJ11 -> 6 | T24: =AO11 -> 8 | U24: =AT11 -> 7
A25: 21 | B25: 2289 | C25: 11 | D25: 2297 | E25: 11 | F25: 2310 | K25: 0 | L25: 211 | O25: % target
A26: 21 | B26: 2401 | C26: 11 | D26: 2417 | E26: 11 | F26: 2425 | K26: 0 | L26: 211 | O26: CCRF
A27: 21 | B27: 2512 | C27: 11 | D27: 2520 | E27: 11 | F27: 2528 | K27: 0 | L27: 211 | O27: % CCRf
A28: 21 | B28: 2616 | C28: 22 | D28: 2619 | E28: 13 | F28: 2627 | K28: 0 | L28: 221 | O28: average response rate | P28: =F14/P20 -> 120.125 | Q28: =(F22-F14)/Q20 -> 124.5 | R28: =(F30-F22)/R20 -> 114.25 | S28: =(F38-F30)/S20 -> 127.375 | T28: =(F46-F38)/T20 -> 120.75 | U28: =(F54-F46)/U20 -> 118.75
A29: 21 | B29: 2726 | C29: 11 | D29: 2736 | E29: 11 | F29: 2757 | K29: 0 | L29: 211
A30: 21 | B30: 2846 | C30: 11 | D30: 2855 | E30: 11 | F30: 2871 | K30: 0 | L30: 211
A31: 12 | B31: 2990 | C31: 13 | D31: 2999 | E31: 13 | F31: 3009 | K31: 0 | L31: 111
A32: 21 | B32: 3105 | C32: 11 | D32: 3113 | E32: 11 | F32: 3133 | K32: 0 | L32: 211
A33: 21 | B33: 3225 | C33: 11 | D33: 3270 | E33: 11 | F33: 3279 | K33: 0 | L33: 211
A34: 21 | B34: 3367 | C34: 11 | D34: 3376 | E34: 11 | F34: 3409 | K34: 0 | L34: 211
A35: 21 | B35: 3500 | C35: 11 | D35: 3508 | E35: 11 | F35: 3537 | K35: 0 | L35: 211
A36: 21 | B36: 3626 | C36: 11 | D36: 3634 | E36: 11 | F36: 3665 | K36: 0 | L36: 211
A37: 21 | B37: 3750 | C37: 11 | D37: 3758 | E37: 11 | F37: 3785 | K37: 0 | L37: 211
A38: 21 | B38: 3871 | C38: 22 | D38: 3875 | E38: 13 | F38: 3890 | K38: 0 | L38: 221
A39: 21 | B39: 3987 | C39: 11 | D39: 4015 | E39: 11 | F39: 4022 | K39: 0 | L39: 211
A40: 21 | B40: 4113 | C40: 11 | D40: 4141 | E40: 11 | F40: 4159 | K40: 0 | L40: 211
A41: 21 | B41: 4246 | C41: 11 | D41: 4254 | E41: 11 | F41: 4262 | K41: 0 | L41: 211
A42: 21 | B42: 4352 | C42: 11 | D42: 4365 | E42: 11 | F42: 4382 | K42: 0 | L42: 211
A43: 21 | B43: 4469 | C43: 11 | D43: 4477 | E43: 11 | F43: 4498 | K43: 0 | L43: 211
A44: 21 | B44: 4584 | C44: 11 | D44: 4592 | E44: 11 | F44: 4610 | K44: 0 | L44: 211
A45: 21 | B45: 4700 | C45: 11 | D45: 4716 | E45: 11 | F45: 4723 | K45: 0 | L45: 211
A46: 21 | B46: 4821 | C46: 11 | D46: 4844 | E46: 11 | F46: 4856 | K46: 0 | L46: 211
A47: 21 | B47: 4942 | C47: 11 | D47: 4953 | E47: 11 | F47: 4976 | K47: 0 | L47: 211
A48: 21 | B48: 5062 | C48: 11 | D48: 5070 | E48: 11 | F48: 5090 | K48: 0 | L48: 211
A49: 21 | B49: 5177 | C49: 11 | D49: 5185 | E49: 11 | F49: 5222 | K49: 0 | L49: 211
A50: 21 | B50: 5315 | C50: 11 | D50: 5325 | E50: 11 | F50: 5342 | K50: 0 | L50: 211
A51: 21 | B51: 5433 | C51: 11 | D51: 5440 | E51: 11 | F51: 5460 | K51: 0 | L51: 211
A52: 21 | B52: 5549 | C52: 22 | D52: 5552 | E52: 13 | F52: 5566 | K52: 0 | L52: 221
A53: 21 | B53: 5666 | C53: 11 | D53: 5674 | E53: 11 | F53: 5689 | K53: 0 | L53: 211
A54: 21 | B54: 5777 | C54: 11 | D54: 5786 | E54: 11 | F54: 5806 | K54: 1 | L54: 211

Sheet !MB12840.010
A1: Report for:!MB12840.010
A2: Date: | B2: <date>
A3: Hen: | B3: <hen> | F3: Correct Sequence | G3: =Start!J2 -> 211 | P3: Total Sequences in Data | Q3: =4994-COUNTBLANK(L7:L5000) -> 43 | V3: Total Sequences in Block Data | W3: =COUNTA(L7:L13) -> 7 | AA3: Total Sequences in Block Data | AB3: =COUNTA(L14:L20) -> 7 | AF3: Total Sequences in Block Data | AG3: =COUNTA(L21:L28) -> 8 | AK3: Total Sequences in Block Data | AL3: =COUNTA(L29:L35) -> 7 | AP3: Total Sequences in Block Data | AQ3: =COUNTA(L36:L42) -> 7 | AU3: Total Sequences in Block Data | AV3: =COUNTA(L43:L49) -> 7
P4: Total Sequences in Summary | Q4: =SUM(O7:O14) -> 43 | V4: Total Sequences in Block Summary | W4: =SUM(U7:U14) -> 7 | AA4: Total Sequences in Block Summary | AB4: =SUM(Z7:Z14) -> 7 | AF4: Total Sequences in Block Summary | AG4: =SUM(AE7:AE14) -> 8 | AK4: Total Sequences in Block Summary | AL4: =SUM(AJ7:AJ14) -> 7 | AP4: Total Sequences in Block Summary | AQ4: =SUM(AO7:AO14) -> 7 | AU4: Total Sequences in Block Summary | AV4: =SUM(AT7:AT14) -> 7
T5: Block 1 | Y5: Block 2 | AD5: Block 3 | AI5: Block 4 | AN5: Block 5 | AS5: Block 6
A6: Sequence Component 1 | B6: Time 1 | C6: Sequence Component 2 | D6: Time 2 | E6: Sequence Component 3 | F6: Time 3 | G6: Sequence Component 4 | H6: Time 4 | I6: Sequence Component 5 | J6: Time 5 | K6: Correct? 0=No 1=Yes | L6: Sequence | N6: Frequency | P6: Relative Frequency | Q6: Variability | T6: Frequency | V6: Relative Frequency | W6: Variability | Y6: Frequency | AA6: Relative Frequency | AB6: Variability | AD6: Frequency | AF6: Relative Frequency | AG6: Variability | AI6: Frequency | AK6: Relative Frequency | AL6: Variability | AN6: Frequency | AP6: Relative Frequency | AQ6: Variability | AS6: Frequency | AU6: Relative Frequency | AV6: Variability
A7: 12 | B7: 15 | C7: 13 | D7: 27 | E7: 13 | F7: 46 | K7: 0 | L7: 111 | N7: 111 | O7: =COUNTIF($L$7:$L$500,N7) -> 3 | P7: =O7/$Q$4 -> 0.06976744186 | Q7: =IF(P7=0,0,(P7*((LOG(P7))/LOG(2)))) -> -0.2679978317 | T7: =N7 -> 111 | U7: =COUNTIF(L7:L13,T7) -> 2 | V7: =U7/(W4-U11) -> 1 | W7: =IF(V7=0,0,(V7*((LOG(V7))/LOG(2)))) -> 0 | Y7: =N7 -> 111 | Z7: =COUNTIF(L14:L20,Y7) -> 1 | AA7: =Z7/(AB4-Z11) -> 1 | AB7: =IF(AA7=0,0,(AA7*((LOG(AA7))/LOG(2)))) -> 0 | AD7: =N7 -> 111 | AE7: =COUNTIF(L21:L28,AD7) -> 0 | AF7: =AE7/(AG4-AE11) ->  | AG7: =IF(AF7=0,0,(AF7*((LOG(AF7))/LOG(2)))) ->  | AI7: =N7 -> 111 | AJ7: =COUNTIF(L29:L35,AI7) -> 0 | AK7: =AJ7/(AL4-AJ11) ->  | AL7: =IF(AK7=0,0,(AK7*((LOG(AK7))/LOG(2)))) ->  | AN7: =N7 -> 111 | AO7: =COUNTIF(L36:L42,AN7) -> 0 | AP7: =AO7/(AQ4-AO11) -> 0 | AQ7: =IF(AP7=0,0,(AP7*((LOG(AP7))/LOG(2)))) -> 0 | AS7: =N7 -> 111 | AT7: =COUNTIF(L43:L49,AS7) -> 0 | AU7: =AT7/(AV4-AT11) ->  | AV7: =IF(AU7=0,0,(AU7*((LOG(AU7))/LOG(2)))) -> 
A8: 21 | B8: 142 | C8: 11 | D8: 174 | E8: 11 | F8: 183 | K8: 0 | L8: 211 | N8: 112 | O8: =COUNTIF($L$7:$L$500,N8) -> 0 | P8: =O8/$Q$4 -> 0 | Q8: =IF(P8=0,0,(P8*((LOG(P8))/LOG(2)))) -> 0 | T8: =N8 -> 112 | U8: =COUNTIF(L7:L13,T8) -> 0 | V8: =U8/(W4-U11) -> 0 | W8: =IF(V8=0,0,(V8*((LOG(V8))/LOG(2)))) -> 0 | Y8: =N8 -> 112 | Z8: =COUNTIF(L14:L20,Y8) -> 0 | AA8: =Z8/(AB4-Z11) -> 0 | AB8: =IF(AA8=0,0,(AA8*((LOG(AA8))/LOG(2)))) -> 0 | AD8: =N8 -> 112 | AE8: =COUNTIF(L21:L28,AD8) -> 0 | AF8: =AE8/(AG4-AE11) ->  | AG8: =IF(AF8=0,0,(AF8*((LOG(AF8))/LOG(2)))) ->  | AI8: =N8 -> 112 | AJ8: =COUNTIF(L29:L35,AI8) -> 0 | AK8: =AJ8/(AL4-AJ11) ->  | AL8: =IF(AK8=0,0,(AK8*((LOG(AK8))/LOG(2)))) ->  | AN8: =N8 -> 112 | AO8: =COUNTIF(L36:L42,AN8) -> 0 | AP8: =AO8/(AQ4-AO11) -> 0 | AQ8: =IF(AP8=0,0,(AP8*((LOG(AP8))/LOG(2)))) -> 0 | AS8: =N8 -> 112 | AT8: =COUNTIF(L43:L49,AS8) -> 0 | AU8: =AT8/(AV4-AT11) ->  | AV8: =IF(AU8=0,0,(AU8*((LOG(AU8))/LOG(2)))) -> 
A9: 12 | B9: 354 | C9: 13 | D9: 369 | E9: 13 | F9: 378 | K9: 0 | L9: 111 | N9: 121 | O9: =COUNTIF($L$7:$L$500,N9) -> 0 | P9: =O9/$Q$4 -> 0 | Q9: =IF(P9=0,0,(P9*((LOG(P9))/LOG(2)))) -> 0 | T9: =N9 -> 121 | U9: =COUNTIF(L7:L13,T9) -> 0 | V9: =U9/(W4-U11) -> 0 | W9: =IF(V9=0,0,(V9*((LOG(V9))/LOG(2)))) -> 0 | Y9: =N9 -> 121 | Z9: =COUNTIF(L14:L20,Y9) -> 0 | AA9: =Z9/(AB4-Z11) -> 0 | AB9: =IF(AA9=0,0,(AA9*((LOG(AA9))/LOG(2)))) -> 0 | AD9: =N9 -> 121 | AE9: =COUNTIF(L21:L28,AD9) -> 0 | AF9: =AE9/(AG4-AE11) ->  | AG9: =IF(AF9=0,0,(AF9*((LOG(AF9))/LOG(2)))) ->  | AI9: =N9 -> 121 | AJ9: =COUNTIF(L29:L35,AI9) -> 0 | AK9: =AJ9/(AL4-AJ11) ->  | AL9: =IF(AK9=0,0,(AK9*((LOG(AK9))/LOG(2)))) ->  | AN9: =N9 -> 121 | AO9: =COUNTIF(L36:L42,AN9) -> 0 | AP9: =AO9/(AQ4-AO11) -> 0 | AQ9: =IF(AP9=0,0,(AP9*((LOG(AP9))/LOG(2)))) -> 0 | AS9: =N9 -> 121 | AT9: =COUNTIF(L43:L49,AS9) -> 0 | AU9: =AT9/(AV4-AT11) ->  | AV9: =IF(AU9=0,0,(AU9*((LOG(AU9))/LOG(2)))) -> 
A10: 21 | B10: 476 | C10: 11 | D10: 493 | E10: 11 | F10: 500 | K10: 0 | L10: 211 | N10: 122 | O10: =COUNTIF($L$7:$L$500,N10) -> 0 | P10: =O10/$Q$4 -> 0 | Q10: =IF(P10=0,0,(P10*((LOG(P10))/LOG(2)))) -> 0 | T10: =N10 -> 122 | U10: =COUNTIF(L7:L13,T10) -> 0 | V10: =U10/(W4-U11) -> 0 | W10: =IF(V10=0,0,(V10*((LOG(V10))/LOG(2)))) -> 0 | Y10: =N10 -> 122 | Z10: =COUNTIF(L14:L20,Y10) -> 0 | AA10: =Z10/(AB4-Z11) -> 0 | AB10: =IF(AA10=0,0,(AA10*((LOG(AA10))/LOG(2)))) -> 0 | AD10: =N10 -> 122 | AE10: =COUNTIF(L21:L28,AD10) -> 0 | AF10: =AE10/(AG4-AE11) ->  | AG10: =IF(AF10=0,0,(AF10*((LOG(AF10))/LOG(2)))) ->  | AI10: =N10 -> 122 | AJ10: =COUNTIF(L29:L35,AI10) -> 0 | AK10: =AJ10/(AL4-AJ11) ->  | AL10: =IF(AK10=0,0,(AK10*((LOG(AK10))/LOG(2)))) ->  | AN10: =N10 -> 122 | AO10: =COUNTIF(L36:L42,AN10) -> 0 | AP10: =AO10/(AQ4-AO11) -> 0 | AQ10: =IF(AP10=0,0,(AP10*((LOG(AP10))/LOG(2)))) -> 0 | AS10: =N10 -> 122 | AT10: =COUNTIF(L43:L49,AS10) -> 0 | AU10: =AT10/(AV4-AT11) ->  | AV10: =IF(AU10=0,0,(AU10*((LOG(AU10))/LOG(2)))) -> 
A11: 21 | B11: 588 | C11: 11 | D11: 597 | E11: 11 | F11: 620 | K11: 0 | L11: 211 | N11: 211 | O11: =COUNTIF($L$7:$L$500,N11) -> 39 | P11: =O11/$Q$4 -> 0.9069767442 | Q11: =IF(P11=0,0,(P11*((LOG(P11))/LOG(2)))) -> -0.1277590441 | T11: =N11 -> 211 | U11: =COUNTIF(L7:L13,T11) -> 5 | Y11: =N11 -> 211 | Z11: =COUNTIF(L14:L20,Y11) -> 6 | AD11: =N11 -> 211 | AE11: =COUNTIF(L21:L28,AD11) -> 8 | AI11: =N11 -> 211 | AJ11: =COUNTIF(L29:L35,AI11) -> 7 | AN11: =N11 -> 211 | AO11: =COUNTIF(L36:L42,AN11) -> 6 | AS11: =N11 -> 211 | AT11: =COUNTIF(L43:L49,AS11) -> 7
A12: 21 | B12: 709 | C12: 11 | D12: 719 | E12: 11 | F12: 736 | K12: 0 | L12: 211 | N12: 212 | O12: =COUNTIF($L$7:$L$500,N12) -> 0 | P12: =O12/$Q$4 -> 0 | Q12: =IF(P12=0,0,(P12*((LOG(P12))/LOG(2)))) -> 0 | T12: =N12 -> 212 | U12: =COUNTIF(L7:L13,T12) -> 0 | V12: =U12/(W4-U11) -> 0 | W12: =IF(V12=0,0,(V12*((LOG(V12))/LOG(2)))) -> 0 | Y12: =N12 -> 212 | Z12: =COUNTIF(L14:L20,Y12) -> 0 | AA12: =Z12/(AB4-Z11) -> 0 | AB12: =IF(AA12=0,0,(AA12*((LOG(AA12))/LOG(2)))) -> 0 | AD12: =N12 -> 212 | AE12: =COUNTIF(L21:L28,AD12) -> 0 | AF12: =AE12/(AG4-AE11) ->  | AG12: =IF(AF12=0,0,(AF12*((LOG(AF12))/LOG(2)))) ->  | AI12: =N12 -> 212 | AJ12: =COUNTIF(L29:L35,AI12) -> 0 | AK12: =AJ12/(AL4-AJ11) ->  | AL12: =IF(AK12=0,0,(AK12*((LOG(AK12))/LOG(2)))) ->  | AN12: =N12 -> 212 | AO12: =COUNTIF(L36:L42,AN12) -> 0 | AP12: =AO12/(AQ4-AO11) -> 0 | AQ12: =IF(AP12=0,0,(AP12*((LOG(AP12))/LOG(2)))) -> 0 | AS12: =N12 -> 212 | AT12: =COUNTIF(L43:L49,AS12) -> 0 | AU12: =AT12/(AV4-AT11) ->  | AV12: =IF(AU12=0,0,(AU12*((LOG(AU12))/LOG(2)))) -> 
A13: 21 | B13: 824 | C13: 11 | D13: 833 | E13: 11 | F13: 868 | K13: 0 | L13: 211 | N13: 221 | O13: =COUNTIF($L$7:$L$500,N13) -> 1 | P13: =O13/$Q$4 -> 0.02325581395 | Q13: =IF(P13=0,0,(P13*((LOG(P13))/LOG(2)))) -> -0.1261922036 | T13: =N13 -> 221 | U13: =COUNTIF(L7:L13,T13) -> 0 | V13: =U13/(W4-U11) -> 0 | W13: =IF(V13=0,0,(V13*((LOG(V13))/LOG(2)))) -> 0 | Y13: =N13 -> 221 | Z13: =COUNTIF(L14:L20,Y13) -> 0 | AA13: =Z13/(AB4-Z11) -> 0 | AB13: =IF(AA13=0,0,(AA13*((LOG(AA13))/LOG(2)))) -> 0 | AD13: =N13 -> 221 | AE13: =COUNTIF(L21:L28,AD13) -> 0 | AF13: =AE13/(AG4-AE11) ->  | AG13: =IF(AF13=0,0,(AF13*((LOG(AF13))/LOG(2)))) ->  | AI13: =N13 -> 221 | AJ13: =COUNTIF(L29:L35,AI13) -> 0 | AK13: =AJ13/(AL4-AJ11) ->  | AL13: =IF(AK13=0,0,(AK13*((LOG(AK13))/LOG(2)))) ->  | AN13: =N13 -> 221 | AO13: =COUNTIF(L36:L42,AN13) -> 1 | AP13: =AO13/(AQ4-AO11) -> 1 | AQ13: =IF(AP13=0,0,(AP13*((LOG(AP13))/LOG(2)))) -> 0 | AS13: =N13 -> 221 | AT13: =COUNTIF(L43:L49,AS13) -> 0 | AU13: =AT13/(AV4-AT11) ->  | AV13: =IF(AU13=0,0,(AU13*((LOG(AU13))/LOG(2)))) -> 
A14: 21 | B14: 960 | C14: 11 | D14: 968 | E14: 11 | F14: 991 | K14: 0 | L14: 211 | N14: 222 | O14: =COUNTIF($L$7:$L$500,N14) -> 0 | P14: =O14/$Q$4 -> 0 | Q14: =IF(P14=0,0,(P14*((LOG(P14))/LOG(2)))) -> 0 | T14: =N14 -> 222 | U14: =COUNTIF(L7:L13,T14) -> 0 | V14: =U14/(W4-U11) -> 0 | W14: =IF(V14=0,0,(V14*((LOG(V14))/LOG(2)))) -> 0 | Y14: =N14 -> 222 | Z14: =COUNTIF(L14:L20,Y14) -> 0 | AA14: =Z14/(AB4-Z11) -> 0 | AB14: =IF(AA14=0,0,(AA14*((LOG(AA14))/LOG(2)))) -> 0 | AD14: =N14 -> 222 | AE14: =COUNTIF(L21:L28,AD14) -> 0 | AF14: =AE14/(AG4-AE11) ->  | AG14: =IF(AF14=0,0,(AF14*((LOG(AF14))/LOG(2)))) ->  | AI14: =N14 -> 222 | AJ14: =COUNTIF(L29:L35,AI14) -> 0 | AK14: =AJ14/(AL4-AJ11) ->  | AL14: =IF(AK14=0,0,(AK14*((LOG(AK14))/LOG(2)))) ->  | AN14: =N14 -> 222 | AO14: =COUNTIF(L36:L42,AN14) -> 0 | AP14: =AO14/(AQ4-AO11) -> 0 | AQ14: =IF(AP14=0,0,(AP14*((LOG(AP14))/LOG(2)))) -> 0 | AS14: =N14 -> 222 | AT14: =COUNTIF(L43:L49,AS14) -> 0 | AU14: =AT14/(AV4-AT11) ->  | AV14: =IF(AU14=0,0,(AU14*((LOG(AU14))/LOG(2)))) -> 
A15: 21 | B15: 1087 | C15: 11 | D15: 1100 | E15: 11 | F15: 1111 | K15: 0 | L15: 211 | P15: =SUM(P7:P14) -> 1 | Q15: =-SUM(Q7:Q14) -> 0.5219490794 | V15: =SUM(V7:V14) -> 1 | W15: =-SUM(W7:W14) -> 0 | AA15: =SUM(AA7:AA14) -> 1 | AB15: =-SUM(AB7:AB14) -> 0 | AF15: =SUM(AF7:AF14) ->  | AG15: =-SUM(AG7:AG14) ->  | AK15: =SUM(AK7:AK14) ->  | AL15: =-SUM(AL7:AL14) ->  | AP15: =SUM(AP7:AP14) -> 1 | AQ15: =-SUM(AQ7:AQ14) -> 0 | AU15: =SUM(AU7:AU14) ->  | AV15: =-SUM(AV7:AV14) -> 
A16: 21 | B16: 1198 | C16: 11 | D16: 1206 | E16: 11 | F16: 1220 | K16: 0 | L16: 211 | P16: U= | Q16: =Q15/(LOG(Q4)/LOG(2)) -> 0.09618938681 | V16: U1= | W16: =W15/(LOG(W4)/LOG(2)) -> 0 | AA16: U2= | AB16: =AB15/(LOG(AB4)/LOG(2)) -> 0 | AF16: U3= | AG16: =AG15/(LOG(AG4)/LOG(2)) ->  | AK16: U4= | AL16: =AL15/(LOG(AL4)/LOG(2)) ->  | AP16: U5= | AQ16: =AQ15/(LOG(AQ4)/LOG(2)) -> 0 | AU16: U6= | AV16: =AV15/(LOG(AV4)/LOG(2)) -> 
A17: 21 | B17: 1311 | C17: 11 | D17: 1320 | E17: 11 | F17: 1329 | K17: 0 | L17: 211
A18: 21 | B18: 1420 | C18: 11 | D18: 1444 | E18: 11 | F18: 1475 | K18: 0 | L18: 211
A19: 21 | B19: 1565 | C19: 11 | D19: 1574 | E19: 11 | F19: 1604 | K19: 0 | L19: 211 | N19: Total Target Seq
A20: 12 | B20: 1724 | C20: 13 | D20: 1738 | E20: 13 | F20: 1746 | K20: 0 | L20: 111 | N20: =COUNTIF(L7:L49,G3) -> 39 | P20: 7 | Q20: 7 | R20: 8 | S20: 7 | T20: 7 | U20: 7
A21: 21 | B21: 1846 | C21: 11 | D21: 1854 | E21: 11 | F21: 1883 | K21: 0 | L21: 211 | P21: % of reinforcement given in 6 equal intervals based on number of trials
A22: 21 | B22: 1971 | C22: 11 | D22: 1978 | E22: 11 | F22: 2014 | K22: 0 | L22: 211 | P22: %_1 | Q22: %_2 | R22: %_3 | S22: %_4 | T22: %_5 | U22: %_6
A23: 21 | B23: 2102 | C23: 11 | D23: 2111 | E23: 11 | F23: 2124 | K23: 0 | L23: 211 | O23: target sequence | P23: =$G$3 -> 211 | Q23: =$G$3 -> 211 | R23: =$G$3 -> 211 | S23: =$G$3 -> 211 | T23: =$G$3 -> 211 | U23: =$G$3 -> 211
A24: 21 | B24: 2213 | C24: 11 | D24: 2221 | E24: 11 | F24: 2242 | K24: 0 | L24: 211 | O24: total reinforcement | P24: =U11 -> 5 | Q24: =Z11 -> 6 | R24: =AE11 -> 8 | S24: =AJ11 -> 7 | T24: =AO11 -> 6 | U24: =AT11 -> 7
A25: 21 | B25: 2329 | C25: 11 | D25: 2337 | E25: 11 | F25: 2356 | K25: 0 | L25: 211 | O25: % target
A26: 21 | B26: 2443 | C26: 11 | D26: 2453 | E26: 11 | F26: 2484 | K26: 0 | L26: 211 | O26: CCRF
A27: 21 | B27: 2573 | C27: 11 | D27: 2583 | E27: 11 | F27: 2594 | K27: 0 | L27: 211 | O27: % CCRf
A28: 21 | B28: 2683 | C28: 11 | D28: 2692 | E28: 11 | F28: 2702 | K28: 0 | L28: 211 | O28: average response rate | P28: =F13/P20 -> 124 | Q28: =(F20-F13)/Q20 -> 125.4285714 | R28: =(F28-F20)/R20 -> 119.5 | S28: =(F35-F28)/S20 -> 115.4285714 | T28: =(F42-F35)/T20 -> 111.2857143 | U28: =(F49-F42)/U20 -> 113.2857143
A29: 21 | B29: 2790 | C29: 11 | D29: 2797 | E29: 11 | F29: 2812 | K29: 0 | L29: 211
A30: 21 | B30: 2903 | C30: 11 | D30: 2931 | E30: 11 | F30: 2954 | K30: 0 | L30: 211
A31: 21 | B31: 3040 | C31: 11 | D31: 3048 | E31: 11 | F31: 3055 | K31: 0 | L31: 211
A32: 21 | B32: 3148 | C32: 11 | D32: 3156 | E32: 11 | F32: 3167 | K32: 0 | L32: 211
A33: 21 | B33: 3254 | C33: 11 | D33: 3272 | E33: 11 | F33: 3284 | K33: 0 | L33: 211
A34: 21 | B34: 3375 | C34: 11 | D34: 3386 | E34: 11 | F34: 3394 | K34: 0 | L34: 211
A35: 21 | B35: 3481 | C35: 11 | D35: 3489 | E35: 11 | F35: 3510 | K35: 0 | L35: 211
A36: 21 | B36: 3597 | C36: 11 | D36: 3604 | E36: 11 | F36: 3625 | K36: 0 | L36: 211
A37: 21 | B37: 3711 | C37: 11 | D37: 3719 | E37: 11 | F37: 3726 | K37: 0 | L37: 211
A38: 21 | B38: 3812 | C38: 11 | D38: 3824 | E38: 11 | F38: 3834 | K38: 0 | L38: 211
A39: 21 | B39: 3923 | C39: 11 | D39: 3931 | E39: 11 | F39: 3938 | K39: 0 | L39: 211
A40: 21 | B40: 4028 | C40: 11 | D40: 4036 | E40: 11 | F40: 4079 | K40: 0 | L40: 211
A41: 21 | B41: 4167 | C41: 11 | D41: 4174 | E41: 11 | F41: 4192 | K41: 0 | L41: 211
A42: 21 | B42: 4278 | C42: 22 | D42: 4282 | E42: 13 | F42: 4289 | K42: 0 | L42: 221
A43: 21 | B43: 4377 | C43: 11 | D43: 4385 | E43: 11 | F43: 4401 | K43: 0 | L43: 211
A44: 21 | B44: 4489 | C44: 11 | D44: 4496 | E44: 11 | F44: 4524 | K44: 0 | L44: 211
A45: 21 | B45: 4610 | C45: 11 | D45: 4624 | E45: 11 | F45: 4635 | K45: 0 | L45: 211
A46: 21 | B46: 4722 | C46: 11 | D46: 4730 | E46: 11 | F46: 4740 | K46: 0 | L46: 211
A47: 21 | B47: 4827 | C47: 11 | D47: 4834 | E47: 11 | F47: 4848 | K47: 0 | L47: 211
A48: 21 | B48: 4935 | C48: 11 | D48: 4950 | E48: 11 | F48: 4962 | K48: 0 | L48: 211
A49: 21 | B49: 5051 | C49: 11 | D49: 5070 | E49: 11 | F49: 5082 | K49: 1 | L49: 211

Sheet !MB13940.010
A1: Report for:!MB13940.010
A2: Date: | B2: <date>
A3: Hen: | B3: <hen> | F3: Correct Sequence | G3: =Start!J2 -> 211 | P3: Total Sequences in Data | Q3: =4994-COUNTBLANK(L7:L5000) -> 56 | V3: Total Sequences in Block Data | W3: =COUNTA(L7:L15) -> 9 | AA3: Total Sequences in Block Data | AB3: =COUNTA(L16:L25) -> 10 | AF3: Total Sequences in Block Data | AG3: =COUNTA(L26:L34) -> 9 | AK3: Total Sequences in Block Data | AL3: =COUNTA(L35:L43) -> 9 | AP3: Total Sequences in Block Data | AQ3: =COUNTA(L44:L53) -> 10 | AU3: Total Sequences in Block Data | AV3: =COUNTA(L54:L62) -> 9
P4: Total Sequences in Summary | Q4: =SUM(O7:O14) -> 56 | V4: Total Sequences in Block Summary | W4: =SUM(U7:U14) -> 9 | AA4: Total Sequences in Block Summary | AB4: =SUM(Z7:Z14) -> 10 | AF4: Total Sequences in Block Summary | AG4: =SUM(AE7:AE14) -> 9 | AK4: Total Sequences in Block Summary | AL4: =SUM(AJ7:AJ14) -> 9 | AP4: Total Sequences in Block Summary | AQ4: =SUM(AO7:AO14) -> 10 | AU4: Total Sequences in Block Summary | AV4: =SUM(AT7:AT14) -> 9
T5: Block 1 | Y5: Block 2 | AD5: Block 3 | AI5: Block 4 | AN5: Block 5 | AS5: Block 6
A6: Sequence Component 1 | B6: Time 1 | C6: Sequence Component 2 | D6: Time 2 | E6: Sequence Component 3 | F6: Time 3 | G6: Sequence Component 4 | H6: Time 4 | I6: Sequence Component 5 | J6: Time 5 | K6: Correct? 0=No 1=Yes | L6: Sequence | N6: Frequency | P6: Relative Frequency | Q6: Variability | T6: Frequency | V6: Relative Frequency | W6: Variability | Y6: Frequency | AA6: Relative Frequency | AB6: Variability | AD6: Frequency | AF6: Relative Frequency | AG6: Variability | AI6: Frequency | AK6: Relative Frequency | AL6: Variability | AN6: Frequency | AP6: Relative Frequency | AQ6: Variability | AS6: Frequency | AU6: Relative Frequency | AV6: Variability
A7: 21 | B7: 6 | C7: 11 | D7: 26 | E7: 22 | F7: 41 | K7: 0 | L7: 212 | N7: 111 | O7: =COUNTIF($L$7:$L$500,N7) -> 3 | P7: =O7/$Q$4 -> 0.05357142857 | Q7: =IF(P7=0,0,(P7*((LOG(P7))/LOG(2)))) -> -0.226199594 | T7: =N7 -> 111 | U7: =COUNTIF(L7:L15,T7) -> 1 | V7: =U7/(W4-U11) -> 0.2 | W7: =IF(V7=0,0,(V7*((LOG(V7))/LOG(2)))) -> -0.464385619 | Y7: =N7 -> 111 | Z7: =COUNTIF(L16:L25,Y7) -> 1 | AA7: =Z7/(AB4-Z11) -> 0.25 | AB7: =IF(AA7=0,0,(AA7*((LOG(AA7))/LOG(2)))) -> -0.5 | AD7: =N7 -> 111 | AE7: =COUNTIF(L26:L34,AD7) -> 0 | AF7: =AE7/(AG4-AE11) -> 0 | AG7: =IF(AF7=0,0,(AF7*((LOG(AF7))/LOG(2)))) -> 0 | AI7: =N7 -> 111 | AJ7: =COUNTIF(L35:L43,AI7) -> 0 | AK7: =AJ7/(AL4-AJ11) -> 0 | AL7: =IF(AK7=0,0,(AK7*((LOG(AK7))/LOG(2)))) -> 0 | AN7: =N7 -> 111 | AO7: =COUNTIF(L44:L53,AN7) -> 0 | AP7: =AO7/(AQ4-AO11) -> 0 | AQ7: =IF(AP7=0,0,(AP7*((LOG(AP7))/LOG(2)))) -> 0 | AS7: =N7 -> 111 | AT7: =COUNTIF(L54:L62,AS7) -> 1 | AU7: =AT7/(AV4-AT11) -> 1 | AV7: =IF(AU7=0,0,(AU7*((LOG(AU7))/LOG(2)))) -> 0
A8: 21 | B8: 137 | C8: 11 | D8: 146 | E8: 11 | F8: 178 | K8: 0 | L8: 211 | N8: 112 | O8: =COUNTIF($L$7:$L$500,N8) -> 0 | P8: =O8/$Q$4 -> 0 | Q8: =IF(P8=0,0,(P8*((LOG(P8))/LOG(2)))) -> 0 | T8: =N8 -> 112 | U8: =COUNTIF(L7:L15,T8) -> 0 | V8: =U8/(W4-U11) -> 0 | W8: =IF(V8=0,0,(V8*((LOG(V8))/LOG(2)))) -> 0 | Y8: =N8 -> 112 | Z8: =COUNTIF(L16:L25,Y8) -> 0 | AA8: =Z8/(AB4-Z11) -> 0 | AB8: =IF(AA8=0,0,(AA8*((LOG(AA8))/LOG(2)))) -> 0 | AD8: =N8 -> 112 | AE8: =COUNTIF(L26:L34,AD8) -> 0 | AF8: =AE8/(AG4-AE11) -> 0 | AG8: =IF(AF8=0,0,(AF8*((LOG(AF8))/LOG(2)))) -> 0 | AI8: =N8 -> 112 | AJ8: =COUNTIF(L35:L43,AI8) -> 0 | AK8: =AJ8/(AL4-AJ11) -> 0 | AL8: =IF(AK8=0,0,(AK8*((LOG(AK8))/LOG(2)))) -> 0 | AN8: =N8 -> 112 | AO8: =COUNTIF(L44:L53,AN8) -> 0 | AP8: =AO8/(AQ4-AO11) -> 0 | AQ8: =IF(AP8=0,0,(AP8*((LOG(AP8))/LOG(2)))) -> 0 | AS8: =N8 -> 112 | AT8: =COUNTIF(L54:L62,AS8) -> 0 | AU8: =AT8/(AV4-AT11) -> 0 | AV8: =IF(AU8=0,0,(AU8*((LOG(AU8))/LOG(2)))) -> 0
A9: 21 | B9: 267 | C9: 11 | D9: 276 | E9: 11 | F9: 297 | K9: 0 | L9: 211 | N9: 121 | O9: =COUNTIF($L$7:$L$500,N9) -> 0 | P9: =O9/$Q$4 -> 0 | Q9: =IF(P9=0,0,(P9*((LOG(P9))/LOG(2)))) -> 0 | T9: =N9 -> 121 | U9: =COUNTIF(L7:L15,T9) -> 0 | V9: =U9/(W4-U11) -> 0 | W9: =IF(V9=0,0,(V9*((LOG(V9))/LOG(2)))) -> 0 | Y9: =N9 -> 121 | Z9: =COUNTIF(L16:L25,Y9) -> 0 | AA9: =Z9/(AB4-Z11) -> 0 | AB9: =IF(AA9=0,0,(AA9*((LOG(AA9))/LOG(2)))) -> 0 | AD9: =N9 -> 121 | AE9: =COUNTIF(L26:L34,AD9) -> 0 | AF9: =AE9/(AG4-AE11) -> 0 | AG9: =IF(AF9=0,0,(AF9*((LOG(AF9))/LOG(2)))) -> 0 | AI9: =N9 -> 121 | AJ9: =COUNTIF(L35:L43,AI9) -> 0 | AK9: =AJ9/(AL4-AJ11) -> 0 | AL9: =IF(AK9=0,0,(AK9*((LOG(AK9))/LOG(2)))) -> 0 | AN9: =N9 -> 121 | AO9: =COUNTIF(L44:L53,AN9) -> 0 | AP9: =AO9/(AQ4-AO11) -> 0 | AQ9: =IF(AP9=0,0,(AP9*((LOG(AP9))/LOG(2)))) -> 0 | AS9: =N9 -> 121 | AT9: =COUNTIF(L54:L62,AS9) -> 0 | AU9: =AT9/(AV4-AT11) -> 0 | AV9: =IF(AU9=0,0,(AU9*((LOG(AU9))/LOG(2)))) -> 0
A10: 21 | B10: 385 | C10: 11 | D10: 408 | E10: 22 | F10: 425 | K10: 0 | L10: 212 | N10: 122 | O10: =COUNTIF($L$7:$L$500,N10) -> 0 | P10: =O10/$Q$4 -> 0 | Q10: =IF(P10=0,0,(P10*((LOG(P10))/LOG(2)))) -> 0 | T10: =N10 -> 122 | U10: =COUNTIF(L7:L15,T10) -> 0 | V10: =U10/(W4-U11) -> 0 | W10: =IF(V10=0,0,(V10*((LOG(V10))/LOG(2)))) -> 0 | Y10: =N10 -> 122 | Z10: =COUNTIF(L16:L25,Y10) -> 0 | AA10: =Z10/(AB4-Z11) -> 0 | AB10: =IF(AA10=0,0,(AA10*((LOG(AA10))/LOG(2)))) -> 0 | AD10: =N10 -> 122 | AE10: =COUNTIF(L26:L34,AD10) -> 0 | AF10: =AE10/(AG4-AE11) -> 0 | AG10: =IF(AF10=0,0,(AF10*((LOG(AF10))/LOG(2)))) -> 0 | AI10: =N10 -> 122 | AJ10: =COUNTIF(L35:L43,AI10) -> 0 | AK10: =AJ10/(AL4-AJ11) -> 0 | AL10: =IF(AK10=0,0,(AK10*((LOG(AK10))/LOG(2)))) -> 0 | AN10: =N10 -> 122 | AO10: =COUNTIF(L44:L53,AN10) -> 0 | AP10: =AO10/(AQ4-AO11) -> 0 | AQ10: =IF(AP10=0,0,(AP10*((LOG(AP10))/LOG(2)))) -> 0 | AS10: =N10 -> 122 | AT10: =COUNTIF(L54:L62,AS10) -> 0 | AU10: =AT10/(AV4-AT11) -> 0 | AV10: =IF(AU10=0,0,(AU10*((LOG(AU10))/LOG(2)))) -> 0
A11: 21 | B11: 525 | C11: 11 | D11: 533 | E11: 11 | F11: 549 | K11: 0 | L11: 211 | N11: 211 | O11: =COUNTIF($L$7:$L$500,N11) -> 39 | P11: =O11/$Q$4 -> 0.6964285714 | Q11: =IF(P11=0,0,(P11*((LOG(P11))/LOG(2)))) -> -0.3635027754 | T11: =N11 -> 211 | U11: =COUNTIF(L7:L15,T11) -> 4 | Y11: =N11 -> 211 | Z11: =COUNTIF(L16:L25,Y11) -> 6 | AD11: =N11 -> 211 | AE11: =COUNTIF(L26:L34,AD11) -> 6 | AI11: =N11 -> 211 | AJ11: =COUNTIF(L35:L43,AI11) -> 8 | AN11: =N11 -> 211 | AO11: =COUNTIF(L44:L53,AN11) -> 7 | AS11: =N11 -> 211 | AT11: =COUNTIF(L54:L62,AS11) -> 8
A12: 21 | B12: 635 | C12: 22 | D12: 641 | E12: 13 | F12: 673 | K12: 0 | L12: 221 | N12: 212 | O12: =COUNTIF($L$7:$L$500,N12) -> 3 | P12: =O12/$Q$4 -> 0.05357142857 | Q12: =IF(P12=0,0,(P12*((LOG(P12))/LOG(2)))) -> -0.226199594 | T12: =N12 -> 212 | U12: =COUNTIF(L7:L15,T12) -> 2 | V12: =U12/(W4-U11) -> 0.4 | W12: =IF(V12=0,0,(V12*((LOG(V12))/LOG(2)))) -> -0.528771238 | Y12: =N12 -> 212 | Z12: =COUNTIF(L16:L25,Y12) -> 1 | AA12: =Z12/(AB4-Z11) -> 0.25 | AB12: =IF(AA12=0,0,(AA12*((LOG(AA12))/LOG(2)))) -> -0.5 | AD12: =N12 -> 212 | AE12: =COUNTIF(L26:L34,AD12) -> 0 | AF12: =AE12/(AG4-AE11) -> 0 | AG12: =IF(AF12=0,0,(AF12*((LOG(AF12))/LOG(2)))) -> 0 | AI12: =N12 -> 212 | AJ12: =COUNTIF(L35:L43,AI12) -> 0 | AK12: =AJ12/(AL4-AJ11) -> 0 | AL12: =IF(AK12=0,0,(AK12*((LOG(AK12))/LOG(2)))) -> 0 | AN12: =N12 -> 212 | AO12: =COUNTIF(L44:L53,AN12) -> 0 | AP12: =AO12/(AQ4-AO11) -> 0 | AQ12: =IF(AP12=0,0,(AP12*((LOG(AP12))/LOG(2)))) -> 0 | AS12: =N12 -> 212 | AT12: =COUNTIF(L54:L62,AS12) -> 0 | AU12: =AT12/(AV4-AT11) -> 0 | AV12: =IF(AU12=0,0,(AU12*((LOG(AU12))/LOG(2)))) -> 0
A13: 12 | B13: 779 | C13: 13 | D13: 790 | E13: 13 | F13: 798 | K13: 0 | L13: 111 | N13: 221 | O13: =COUNTIF($L$7:$L$500,N13) -> 11 | P13: =O13/$Q$4 -> 0.1964285714 | Q13: =IF(P13=0,0,(P13*((LOG(P13))/LOG(2)))) -> -0.4611992203 | T13: =N13 -> 221 | U13: =COUNTIF(L7:L15,T13) -> 2 | V13: =U13/(W4-U11) -> 0.4 | W13: =IF(V13=0,0,(V13*((LOG(V13))/LOG(2)))) -> -0.528771238 | Y13: =N13 -> 221 | Z13: =COUNTIF(L16:L25,Y13) -> 2 | AA13: =Z13/(AB4-Z11) -> 0.5 | AB13: =IF(AA13=0,0,(AA13*((LOG(AA13))/LOG(2)))) -> -0.5 | AD13: =N13 -> 221 | AE13: =COUNTIF(L26:L34,AD13) -> 3 | AF13: =AE13/(AG4-AE11) -> 1 | AG13: =IF(AF13=0,0,(AF13*((LOG(AF13))/LOG(2)))) -> 0 | AI13: =N13 -> 221 | AJ13: =COUNTIF(L35:L43,AI13) -> 1 | AK13: =AJ13/(AL4-AJ11) -> 1 | AL13: =IF(AK13=0,0,(AK13*((LOG(AK13))/LOG(2)))) -> 0 | AN13: =N13 -> 221 | AO13: =COUNTIF(L44:L53,AN13) -> 3 | AP13: =AO13/(AQ4-AO11) -> 1 | AQ13: =IF(AP13=0,0,(AP13*((LOG(AP13))/LOG(2)))) -> 0 | AS13: =N13 -> 221 | AT13: =COUNTIF(L54:L62,AS13) -> 0 | AU13: =AT13/(AV4-AT11) -> 0 | AV13: =IF(AU13=0,0,(AU13*((LOG(AU13))/LOG(2)))) -> 0
A14: 21 | B14: 894 | C14: 22 | D14: 902 | E14: 13 | F14: 926 | K14: 0 | L14: 221 | N14: 222 | O14: =COUNTIF($L$7:$L$500,N14) -> 0 | P14: =O14/$Q$4 -> 0 | Q14: =IF(P14=0,0,(P14*((LOG(P14))/LOG(2)))) -> 0 | T14: =N14 -> 222 | U14: =COUNTIF(L7:L15,T14) -> 0 | V14: =U14/(W4-U11) -> 0 | W14: =IF(V14=0,0,(V14*((LOG(V14))/LOG(2)))) -> 0 | Y14: =N14 -> 222 | Z14: =COUNTIF(L16:L25,Y14) -> 0 | AA14: =Z14/(AB4-Z11) -> 0 | AB14: =IF(AA14=0,0,(AA14*((LOG(AA14))/LOG(2)))) -> 0 | AD14: =N14 -> 222 | AE14: =COUNTIF(L26:L34,AD14) -> 0 | AF14: =AE14/(AG4-AE11) -> 0 | AG14: =IF(AF14=0,0,(AF14*((LOG(AF14))/LOG(2)))) -> 0 | AI14: =N14 -> 222 | AJ14: =COUNTIF(L35:L43,AI14) -> 0 | AK14: =AJ14/(AL4-AJ11) -> 0 | AL14: =IF(AK14=0,0,(AK14*((LOG(AK14))/LOG(2)))) -> 0 | AN14: =N14 -> 222 | AO14: =COUNTIF(L44:L53,AN14) -> 0 | AP14: =AO14/(AQ4-AO11) -> 0 | AQ14: =IF(AP14=0,0,(AP14*((LOG(AP14))/LOG(2)))) -> 0 | AS14: =N14 -> 222 | AT14: =COUNTIF(L54:L62,AS14) -> 0 | AU14: =AT14/(AV4-AT11) -> 0 | AV14: =IF(AU14=0,0,(AU14*((LOG(AU14))/LOG(2)))) -> 0
A15: 21 | B15: 1023 | C15: 11 | D15: 1031 | E15: 11 | F15: 1048 | K15: 0 | L15: 211 | P15: =SUM(P7:P14) -> 1 | Q15: =-SUM(Q7:Q14) -> 1.277101184 | V15: =SUM(V7:V14) -> 1 | W15: =-SUM(W7:W14) -> 1.521928095 | AA15: =SUM(AA7:AA14) -> 1 | AB15: =-SUM(AB7:AB14) -> 1.5 | AF15: =SUM(AF7:AF14) -> 1 | AG15: =-SUM(AG7:AG14) -> 0 | AK15: =SUM(AK7:AK14) -> 1 | AL15: =-SUM(AL7:AL14) -> 0 | AP15: =SUM(AP7:AP14) -> 1 | AQ15: =-SUM(AQ7:AQ14) -> 0 | AU15: =SUM(AU7:AU14) -> 1 | AV15: =-SUM(AV7:AV14) -> 0
A16: 21 | B16: 1134 | C16: 11 | D16: 1142 | E16: 11 | F16: 1159 | K16: 0 | L16: 211 | P16: U= | Q16: =Q15/(LOG(Q4)/LOG(2)) -> 0.2199109923 | V16: U1= | W16: =W15/(LOG(W4)/LOG(2)) -> 0.4801148589 | AA16: U2= | AB16: =AB15/(LOG(AB4)/LOG(2)) -> 0.4515449935 | AF16: U3= | AG16: =AG15/(LOG(AG4)/LOG(2)) -> 0 | AK16: U4= | AL16: =AL15/(LOG(AL4)/LOG(2)) -> 0 | AP16: U5= | AQ16: =AQ15/(LOG(AQ4)/LOG(2)) -> 0 | AU16: U6= | AV16: =AV15/(LOG(AV4)/LOG(2)) -> 0
A17: 21 | B17: 1248 | C17: 11 | D17: 1256 | E17: 11 | F17: 1268 | K17: 0 | L17: 211
A18: 12 | B18: 1374 | C18: 13 | D18: 1394 | E18: 13 | F18: 1414 | K18: 0 | L18: 111
A19: 21 | B19: 1509 | C19: 22 | D19: 1513 | E19: 13 | F19: 1537 | K19: 0 | L19: 221 | N19: Total Target Seq
A20: 21 | B20: 1636 | C20: 11 | D20: 1645 | E20: 11 | F20: 1662 | K20: 0 | L20: 211 | N20: =COUNTIF(L7:L62,G3) -> 39 | P20: 9 | Q20: 10 | R20: 9 | S20: 9 | T20: 10 | U20: 9
A21: 21 | B21: 1766 | C21: 11 | D21: 1795 | E21: 22 | F21: 1810 | K21: 0 | L21: 212 | P21: % of reinforcement given in 6 equal intervals based on number of trials
A22: 21 | B22: 1907 | C22: 22 | D22: 1915 | E22: 13 | F22: 1927 | K22: 0 | L22: 221 | P22: %_1 | Q22: %_2 | R22: %_3 | S22: %_4 | T22: %_5 | U22: %_6
A23: 21 | B23: 2022 | C23: 11 | D23: 2031 | E23: 11 | F23: 2044 | K23: 0 | L23: 211 | O23: target sequence | P23: =$G$3 -> 211 | Q23: =$G$3 -> 211 | R23: =$G$3 -> 211 | S23: =$G$3 -> 211 | T23: =$G$3 -> 211 | U23: =$G$3 -> 211
A24: 21 | B24: 2133 | C24: 11 | D24: 2141 | E24: 11 | F24: 2159 | K24: 0 | L24: 211 | O24: total reinforcement | P24: =U11 -> 4 | Q24: =Z11 -> 6 | R24: =AE11 -> 6 | S24: =AJ11 -> 8 | T24: =AO11 -> 7 | U24: =AT11 -> 8
A25: 21 | B25: 2247 | C25: 11 | D25: 2256 | E25: 11 | F25: 2272 | K25: 0 | L25: 211 | O25: % target
A26: 21 | B26: 2359 | C26: 11 | D26: 2366 | E26: 11 | F26: 2374 | K26: 0 | L26: 211 | O26: CCRF
A27: 21 | B27: 2462 | C27: 22 | D27: 2466 | E27: 13 | F27: 2478 | K27: 0 | L27: 221 | O27: % CCRf
A28: 21 | B28: 2577 | C28: 11 | D28: 2585 | E28: 11 | F28: 2596 | K28: 0 | L28: 211 | O28: average response rate | P28: =F15/P20 -> 116.4444444 | Q28: =(F25-F15)/Q20 -> 122.4 | R28: =(F34-F25)/R20 -> 111.3333333 | S28: =(F43-F34)/S20 -> 112.8888889 | T28: =(F53-F43)/T20 -> 116.3 | U28: =(F62-F53)/U20 -> 114.6666667
A29: 21 | B29: 2683 | C29: 11 | D29: 2691 | E29: 11 | F29: 2708 | K29: 0 | L29: 211
A30: 21 | B30: 2798 | C30: 11 | D30: 2812 | E30: 11 | F30: 2835 | K30: 0 | L30: 211
A31: 21 | B31: 2922 | C31: 11 | D31: 2930 | E31: 11 | F31: 2946 | K31: 0 | L31: 211
A32: 21 | B32: 3032 | C32: 22 | D32: 3036 | E32: 13 | F32: 3048 | K32: 0 | L32: 221
A33: 21 | B33: 3147 | C33: 11 | D33: 3155 | E33: 11 | F33: 3172 | K33: 0 | L33: 211
A34: 21 | B34: 3258 | C34: 22 | D34: 3262 | E34: 13 | F34: 3274 | K34: 0 | L34: 221
A35: 21 | B35: 3370 | C35: 22 | D35: 3373 | E35: 13 | F35: 3381 | K35: 0 | L35: 221
A36: 21 | B36: 3477 | C36: 11 | D36: 3485 | E36: 11 | F36: 3497 | K36: 0 | L36: 211
A37: 21 | B37: 3594 | C37: 11 | D37: 3602 | E37: 11 | F37: 3609 | K37: 0 | L37: 211
A38: 21 | B38: 3696 | C38: 11 | D38: 3704 | E38: 11 | F38: 3720 | K38: 0 | L38: 211
A39: 21 | B39: 3808 | C39: 11 | D39: 3816 | E39: 11 | F39: 3827 | K39: 0 | L39: 211
A40: 21 | B40: 3914 | C40: 11 | D40: 3922 | E40: 11 | F40: 3939 | K40: 0 | L40: 211
A41: 21 | B41: 4028 | C41: 11 | D41: 4046 | E41: 11 | F41: 4055 | K41: 0 | L41: 211
A42: 21 | B42: 4143 | C42: 11 | D42: 4152 | E42: 11 | F42: 4163 | K42: 0 | L42: 211
A43: 21 | B43: 4250 | C43: 11 | D43: 4258 | E43: 11 | F43: 4290 | K43: 0 | L43: 211
A44: 21 | B44: 4375 | C44: 11 | D44: 4382 | E44: 11 | F44: 4398 | K44: 0 | L44: 211
A45: 21 | B45: 4483 | C45: 22 | D45: 4487 | E45: 13 | F45: 4495 | K45: 0 | L45: 221
A46: 21 | B46: 4594 | C46: 11 | D46: 4622 | E46: 11 | F46: 4635 | K46: 0 | L46: 211
A47: 21 | B47: 4722 | C47: 22 | D47: 4726 | E47: 13 | F47: 4734 | K47: 0 | L47: 221
A48: 21 | B48: 4829 | C48: 11 | D48: 4851 | E48: 11 | F48: 4863 | K48: 0 | L48: 211
A49: 21 | B49: 4952 | C49: 11 | D49: 4971 | E49: 11 | F49: 4986 | K49: 0 | L49: 211
A50: 21 | B50: 5073 | C50: 11 | D50: 5091 | E50: 11 | F50: 5101 | K50: 0 | L50: 211
A51: 21 | B51: 5188 | C51: 11 | D51: 5196 | E51: 11 | F51: 5222 | K51: 0 | L51: 211
A52: 21 | B52: 5308 | C52: 22 | D52: 5311 | E52: 13 | F52: 5324 | K52: 0 | L52: 221
A53: 21 | B53: 5423 | C53: 11 | D53: 5431 | E53: 11 | F53: 5453 | K53: 0 | L53: 211
A54: 21 | B54: 5541 | C54: 11 | D54: 5548 | E54: 11 | F54: 5562 | K54: 0 | L54: 211
A55: 21 | B55: 5653 | C55: 11 | D55: 5676 | E55: 11 | F55: 5686 | K55: 0 | L55: 211
A56: 21 | B56: 5773 | C56: 11 | D56: 5780 | E56: 11 | F56: 5799 | K56: 0 | L56: 211
A57: 21 | B57: 5888 | C57: 11 | D57: 5899 | E57: 11 | F57: 5910 | K57: 0 | L57: 211
A58: 21 | B58: 5997 | C58: 11 | D58: 6003 | E58: 11 | F58: 6026 | K58: 0 | L58: 211
A59: 12 | B59: 6132 | C59: 13 | D59: 6141 | E59: 13 | F59: 6152 | K59: 0 | L59: 111
A60: 21 | B60: 6248 | C60: 11 | D60: 6255 | E60: 11 | F60: 6270 | K60: 0 | L60: 211
A61: 21 | B61: 6357 | C61: 11 | D61: 6364 | E61: 11 | F61: 6375 | K61: 0 | L61: 211
A62: 21 | B62: 6466 | C62: 11 | D62: 6474 | E62: 11 | F62: 6485 | K62: 1 | L62: 211

Sheet !MB14820.010
A1: Report for:!MB14820.010
A2: Date: | B2: <date>
A3: Hen: | B3: <hen> | F3: Correct Sequence | G3: =Start!J2 -> 211 | P3: Total Sequences in Data | Q3: =4994-COUNTBLANK(L7:L5000) -> 46 | V3: Total Sequences in Block Data | W3: =COUNTA(L7:L14) -> 8 | AA3: Total Sequences in Block Data | AB3: =COUNTA(L15:L21) -> 7 | AF3: Total Sequences in Block Data | AG3: =COUNTA(L22:L29) -> 8 | AK3: Total Sequences in Block Data | AL3: =COUNTA(L30:L37) -> 8 | AP3: Total Sequences in Block Data | AQ3: =COUNTA(L38:L44) -> 7 | AU3: Total Sequences in Block Data | AV3: =COUNTA(L45:L52) -> 8
P4: Total Sequences in Summary | Q4: =SUM(O7:O14) -> 46 | V4: Total Sequences in Block Summary | W4: =SUM(U7:U14) -> 8 | AA4: Total Sequences in Block Summary | AB4: =SUM(Z7:Z14) -> 7 | AF4: Total Sequences in Block Summary | AG4: =SUM(AE7:AE14) -> 8 | AK4: Total Sequences in Block Summary | AL4: =SUM(AJ7:AJ14) -> 8 | AP4: Total Sequences in Block Summary | AQ4: =SUM(AO7:AO14) -> 7 | AU4: Total Sequences in Block Summary | AV4: =SUM(AT7:AT14) -> 8
T5: Block 1 | Y5: Block 2 | AD5: Block 3 | AI5: Block 4 | AN5: Block 5 | AS5: Block 6
A6: Sequence Component 1 | B6: Time 1 | C6: Sequence Component 2 | D6: Time 2 | E6: Sequence Component 3 | F6: Time 3 | G6: Sequence Component 4 | H6: Time 4 | I6: Sequence Component 5 | J6: Time 5 | K6: Correct? 0=No 1=Yes | L6: Sequence | N6: Frequency | P6: Relative Frequency | Q6: Variability | T6: Frequency | V6: Relative Frequency | W6: Variability | Y6: Frequency | AA6: Relative Frequency | AB6: Variability | AD6: Frequency | AF6: Relative Frequency | AG6: Variability | AI6: Frequency | AK6: Relative Frequency | AL6: Variability | AN6: Frequency | AP6: Relative Frequency | AQ6: Variability | AS6: Frequency | AU6: Relative Frequency | AV6: Variability
A7: 21 | B7: 6 | C7: 11 | D7: 14 | E7: 11 | F7: 43 | K7: 0 | L7: 211 | N7: 111 | O7: =COUNTIF($L$7:$L$500,N7) -> 1 | P7: =O7/$Q$4 -> 0.02173913043 | Q7: =IF(P7=0,0,(P7*((LOG(P7))/LOG(2)))) -> -0.1200774338 | T7: =N7 -> 111 | U7: =COUNTIF(L7:L14,T7) -> 0 | V7: =U7/(W4-U11) -> 0 | W7: =IF(V7=0,0,(V7*((LOG(V7))/LOG(2)))) -> 0 | Y7: =N7 -> 111 | Z7: =COUNTIF(L15:L21,Y7) -> 0 | AA7: =Z7/(AB4-Z11) -> 0 | AB7: =IF(AA7=0,0,(AA7*((LOG(AA7))/LOG(2)))) -> 0 | AD7: =N7 -> 111 | AE7: =COUNTIF(L22:L29,AD7) -> 0 | AF7: =AE7/(AG4-AE11) -> 0 | AG7: =IF(AF7=0,0,(AF7*((LOG(AF7))/LOG(2)))) -> 0 | AI7: =N7 -> 111 | AJ7: =COUNTIF(L30:L37,AI7) -> 0 | AK7: =AJ7/(AL4-AJ11) ->  | AL7: =IF(AK7=0,0,(AK7*((LOG(AK7))/LOG(2)))) ->  | AN7: =N7 -> 111 | AO7: =COUNTIF(L38:L44,AN7) -> 1 | AP7: =AO7/(AQ4-AO11) -> 0.3333333333 | AQ7: =IF(AP7=0,0,(AP7*((LOG(AP7))/LOG(2)))) -> -0.5283208336 | AS7: =N7 -> 111 | AT7: =COUNTIF(L45:L52,AS7) -> 0 | AU7: =AT7/(AV4-AT11) ->  | AV7: =IF(AU7=0,0,(AU7*((LOG(AU7))/LOG(2)))) -> 
A8: 21 | B8: 172 | C8: 11 | D8: 194 | E8: 11 | F8: 208 | K8: 0 | L8: 211 | N8: 112 | O8: =COUNTIF($L$7:$L$500,N8) -> 0 | P8: =O8/$Q$4 -> 0 | Q8: =IF(P8=0,0,(P8*((LOG(P8))/LOG(2)))) -> 0 | T8: =N8 -> 112 | U8: =COUNTIF(L7:L14,T8) -> 0 | V8: =U8/(W4-U11) -> 0 | W8: =IF(V8=0,0,(V8*((LOG(V8))/LOG(2)))) -> 0 | Y8: =N8 -> 112 | Z8: =COUNTIF(L15:L21,Y8) -> 0 | AA8: =Z8/(AB4-Z11) -> 0 | AB8: =IF(AA8=0,0,(AA8*((LOG(AA8))/LOG(2)))) -> 0 | AD8: =N8 -> 112 | AE8: =COUNTIF(L22:L29,AD8) -> 0 | AF8: =AE8/(AG4-AE11) -> 0 | AG8: =IF(AF8=0,0,(AF8*((LOG(AF8))/LOG(2)))) -> 0 | AI8: =N8 -> 112 | AJ8: =COUNTIF(L30:L37,AI8) -> 0 | AK8: =AJ8/(AL4-AJ11) ->  | AL8: =IF(AK8=0,0,(AK8*((LOG(AK8))/LOG(2)))) ->  | AN8: =N8 -> 112 | AO8: =COUNTIF(L38:L44,AN8) -> 0 | AP8: =AO8/(AQ4-AO11) -> 0 | AQ8: =IF(AP8=0,0,(AP8*((LOG(AP8))/LOG(2)))) -> 0 | AS8: =N8 -> 112 | AT8: =COUNTIF(L45:L52,AS8) -> 0 | AU8: =AT8/(AV4-AT11) ->  | AV8: =IF(AU8=0,0,(AU8*((LOG(AU8))/LOG(2)))) -> 
A9: 21 | B9: 297 | C9: 11 | D9: 319 | E9: 11 | F9: 328 | K9: 0 | L9: 211 | N9: 121 | O9: =COUNTIF($L$7:$L$500,N9) -> 0 | P9: =O9/$Q$4 -> 0 | Q9: =IF(P9=0,0,(P9*((LOG(P9))/LOG(2)))) -> 0 | T9: =N9 -> 121 | U9: =COUNTIF(L7:L14,T9) -> 0 | V9: =U9/(W4-U11) -> 0 | W9: =IF(V9=0,0,(V9*((LOG(V9))/LOG(2)))) -> 0 | Y9: =N9 -> 121 | Z9: =COUNTIF(L15:L21,Y9) -> 0 | AA9: =Z9/(AB4-Z11) -> 0 | AB9: =IF(AA9=0,0,(AA9*((LOG(AA9))/LOG(2)))) -> 0 | AD9: =N9 -> 121 | AE9: =COUNTIF(L22:L29,AD9) -> 0 | AF9: =AE9/(AG4-AE11) -> 0 | AG9: =IF(AF9=0,0,(AF9*((LOG(AF9))/LOG(2)))) -> 0 | AI9: =N9 -> 121 | AJ9: =COUNTIF(L30:L37,AI9) -> 0 | AK9: =AJ9/(AL4-AJ11) ->  | AL9: =IF(AK9=0,0,(AK9*((LOG(AK9))/LOG(2)))) ->  | AN9: =N9 -> 121 | AO9: =COUNTIF(L38:L44,AN9) -> 0 | AP9: =AO9/(AQ4-AO11) -> 0 | AQ9: =IF(AP9=0,0,(AP9*((LOG(AP9))/LOG(2)))) -> 0 | AS9: =N9 -> 121 | AT9: =COUNTIF(L45:L52,AS9) -> 0 | AU9: =AT9/(AV4-AT11) ->  | AV9: =IF(AU9=0,0,(AU9*((LOG(AU9))/LOG(2)))) -> 
A10: 21 | B10: 416 | C10: 11 | D10: 425 | E10: 11 | F10: 462 | K10: 0 | L10: 211 | N10: 122 | O10: =COUNTIF($L$7:$L$500,N10) -> 0 | P10: =O10/$Q$4 -> 0 | Q10: =IF(P10=0,0,(P10*((LOG(P10))/LOG(2)))) -> 0 | T10: =N10 -> 122 | U10: =COUNTIF(L7:L14,T10) -> 0 | V10: =U10/(W4-U11) -> 0 | W10: =IF(V10=0,0,(V10*((LOG(V10))/LOG(2)))) -> 0 | Y10: =N10 -> 122 | Z10: =COUNTIF(L15:L21,Y10) -> 0 | AA10: =Z10/(AB4-Z11) -> 0 | AB10: =IF(AA10=0,0,(AA10*((LOG(AA10))/LOG(2)))) -> 0 | AD10: =N10 -> 122 | AE10: =COUNTIF(L22:L29,AD10) -> 0 | AF10: =AE10/(AG4-AE11) -> 0 | AG10: =IF(AF10=0,0,(AF10*((LOG(AF10))/LOG(2)))) -> 0 | AI10: =N10 -> 122 | AJ10: =COUNTIF(L30:L37,AI10) -> 0 | AK10: =AJ10/(AL4-AJ11) ->  | AL10: =IF(AK10=0,0,(AK10*((LOG(AK10))/LOG(2)))) ->  | AN10: =N10 -> 122 | AO10: =COUNTIF(L38:L44,AN10) -> 0 | AP10: =AO10/(AQ4-AO11) -> 0 | AQ10: =IF(AP10=0,0,(AP10*((LOG(AP10))/LOG(2)))) -> 0 | AS10: =N10 -> 122 | AT10: =COUNTIF(L45:L52,AS10) -> 0 | AU10: =AT10/(AV4-AT11) ->  | AV10: =IF(AU10=0,0,(AU10*((LOG(AU10))/LOG(2)))) -> 
A11: 21 | B11: 553 | C11: 11 | D11: 562 | E11: 11 | F11: 569 | K11: 0 | L11: 211 | N11: 211 | O11: =COUNTIF($L$7:$L$500,N11) -> 39 | P11: =O11/$Q$4 -> 0.847826087 | Q11: =IF(P11=0,0,(P11*((LOG(P11))/LOG(2)))) -> -0.2019180381 | T11: =N11 -> 211 | U11: =COUNTIF(L7:L14,T11) -> 7 | Y11: =N11 -> 211 | Z11: =COUNTIF(L15:L21,Y11) -> 6 | AD11: =N11 -> 211 | AE11: =COUNTIF(L22:L29,AD11) -> 6 | AI11: =N11 -> 211 | AJ11: =COUNTIF(L30:L37,AI11) -> 8 | AN11: =N11 -> 211 | AO11: =COUNTIF(L38:L44,AN11) -> 4 | AS11: =N11 -> 211 | AT11: =COUNTIF(L45:L52,AS11) -> 8
A12: 21 | B12: 663 | C12: 11 | D12: 694 | E12: 11 | F12: 705 | K12: 0 | L12: 211 | N12: 212 | O12: =COUNTIF($L$7:$L$500,N12) -> 0 | P12: =O12/$Q$4 -> 0 | Q12: =IF(P12=0,0,(P12*((LOG(P12))/LOG(2)))) -> 0 | T12: =N12 -> 212 | U12: =COUNTIF(L7:L14,T12) -> 0 | V12: =U12/(W4-U11) -> 0 | W12: =IF(V12=0,0,(V12*((LOG(V12))/LOG(2)))) -> 0 | Y12: =N12 -> 212 | Z12: =COUNTIF(L15:L21,Y12) -> 0 | AA12: =Z12/(AB4-Z11) -> 0 | AB12: =IF(AA12=0,0,(AA12*((LOG(AA12))/LOG(2)))) -> 0 | AD12: =N12 -> 212 | AE12: =COUNTIF(L22:L29,AD12) -> 0 | AF12: =AE12/(AG4-AE11) -> 0 | AG12: =IF(AF12=0,0,(AF12*((LOG(AF12))/LOG(2)))) -> 0 | AI12: =N12 -> 212 | AJ12: =COUNTIF(L30:L37,AI12) -> 0 | AK12: =AJ12/(AL4-AJ11) ->  | AL12: =IF(AK12=0,0,(AK12*((LOG(AK12))/LOG(2)))) ->  | AN12: =N12 -> 212 | AO12: =COUNTIF(L38:L44,AN12) -> 0 | AP12: =AO12/(AQ4-AO11) -> 0 | AQ12: =IF(AP12=0,0,(AP12*((LOG(AP12))/LOG(2)))) -> 0 | AS12: =N12 -> 212 | AT12: =COUNTIF(L45:L52,AS12) -> 0 | AU12: =AT12/(AV4-AT11) ->  | AV12: =IF(AU12=0,0,(AU12*((LOG(AU12))/LOG(2)))) -> 
A13: 21 | B13: 792 | C13: 11 | D13: 833 | E13: 11 | F13: 847 | K13: 0 | L13: 211 | N13: 221 | O13: =COUNTIF($L$7:$L$500,N13) -> 6 | P13: =O13/$Q$4 -> 0.1304347826 | Q13: =IF(P13=0,0,(P13*((LOG(P13))/LOG(2)))) -> -0.3832955811 | T13: =N13 -> 221 | U13: =COUNTIF(L7:L14,T13) -> 1 | V13: =U13/(W4-U11) -> 1 | W13: =IF(V13=0,0,(V13*((LOG(V13))/LOG(2)))) -> 0 | Y13: =N13 -> 221 | Z13: =COUNTIF(L15:L21,Y13) -> 1 | AA13: =Z13/(AB4-Z11) -> 1 | AB13: =IF(AA13=0,0,(AA13*((LOG(AA13))/LOG(2)))) -> 0 | AD13: =N13 -> 221 | AE13: =COUNTIF(L22:L29,AD13) -> 2 | AF13: =AE13/(AG4-AE11) -> 1 | AG13: =IF(AF13=0,0,(AF13*((LOG(AF13))/LOG(2)))) -> 0 | AI13: =N13 -> 221 | AJ13: =COUNTIF(L30:L37,AI13) -> 0 | AK13: =AJ13/(AL4-AJ11) ->  | AL13: =IF(AK13=0,0,(AK13*((LOG(AK13))/LOG(2)))) ->  | AN13: =N13 -> 221 | AO13: =COUNTIF(L38:L44,AN13) -> 2 | AP13: =AO13/(AQ4-AO11) -> 0.6666666667 | AQ13: =IF(AP13=0,0,(AP13*((LOG(AP13))/LOG(2)))) -> -0.3899750005 | AS13: =N13 -> 221 | AT13: =COUNTIF(L45:L52,AS13) -> 0 | AU13: =AT13/(AV4-AT11) ->  | AV13: =IF(AU13=0,0,(AU13*((LOG(AU13))/LOG(2)))) -> 
A14: 21 | B14: 935 | C14: 22 | D14: 939 | E14: 13 | F14: 964 | K14: 0 | L14: 221 | N14: 222 | O14: =COUNTIF($L$7:$L$500,N14) -> 0 | P14: =O14/$Q$4 -> 0 | Q14: =IF(P14=0,0,(P14*((LOG(P14))/LOG(2)))) -> 0 | T14: =N14 -> 222 | U14: =COUNTIF(L7:L14,T14) -> 0 | V14: =U14/(W4-U11) -> 0 | W14: =IF(V14=0,0,(V14*((LOG(V14))/LOG(2)))) -> 0 | Y14: =N14 -> 222 | Z14: =COUNTIF(L15:L21,Y14) -> 0 | AA14: =Z14/(AB4-Z11) -> 0 | AB14: =IF(AA14=0,0,(AA14*((LOG(AA14))/LOG(2)))) -> 0 | AD14: =N14 -> 222 | AE14: =COUNTIF(L22:L29,AD14) -> 0 | AF14: =AE14/(AG4-AE11) -> 0 | AG14: =IF(AF14=0,0,(AF14*((LOG(AF14))/LOG(2)))) -> 0 | AI14: =N14 -> 222 | AJ14: =COUNTIF(L30:L37,AI14) -> 0 | AK14: =AJ14/(AL4-AJ11) ->  | AL14: =IF(AK14=0,0,(AK14*((LOG(AK14))/LOG(2)))) ->  | AN14: =N14 -> 222 | AO14: =COUNTIF(L38:L44,AN14) -> 0 | AP14: =AO14/(AQ4-AO11) -> 0 | AQ14: =IF(AP14=0,0,(AP14*((LOG(AP14))/LOG(2)))) -> 0 | AS14: =N14 -> 222 | AT14: =COUNTIF(L45:L52,AS14) -> 0 | AU14: =AT14/(AV4-AT11) ->  | AV14: =IF(AU14=0,0,(AU14*((LOG(AU14))/LOG(2)))) -> 
A15: 21 | B15: 1056 | C15: 11 | D15: 1065 | E15: 11 | F15: 1076 | K15: 0 | L15: 211 | P15: =SUM(P7:P14) -> 1 | Q15: =-SUM(Q7:Q14) -> 0.705291053 | V15: =SUM(V7:V14) -> 1 | W15: =-SUM(W7:W14) -> 0 | AA15: =SUM(AA7:AA14) -> 1 | AB15: =-SUM(AB7:AB14) -> 0 | AF15: =SUM(AF7:AF14) -> 1 | AG15: =-SUM(AG7:AG14) -> 0 | AK15: =SUM(AK7:AK14) ->  | AL15: =-SUM(AL7:AL14) ->  | AP15: =SUM(AP7:AP14) -> 1 | AQ15: =-SUM(AQ7:AQ14) -> 0.9182958341 | AU15: =SUM(AU7:AU14) ->  | AV15: =-SUM(AV7:AV14) -> 
A16: 21 | B16: 1169 | C16: 11 | D16: 1186 | E16: 11 | F16: 1198 | K16: 0 | L16: 211 | P16: U= | Q16: =Q15/(LOG(Q4)/LOG(2)) -> 0.1276877237 | V16: U1= | W16: =W15/(LOG(W4)/LOG(2)) -> 0 | AA16: U2= | AB16: =AB15/(LOG(AB4)/LOG(2)) -> 0 | AF16: U3= | AG16: =AG15/(LOG(AG4)/LOG(2)) -> 0 | AK16: U4= | AL16: =AL15/(LOG(AL4)/LOG(2)) ->  | AP16: U5= | AQ16: =AQ15/(LOG(AQ4)/LOG(2)) -> 0.327103576 | AU16: U6= | AV16: =AV15/(LOG(AV4)/LOG(2)) -> 
A17: 21 | B17: 1286 | C17: 11 | D17: 1315 | E17: 11 | F17: 1324 | K17: 0 | L17: 211
A18: 21 | B18: 1413 | C18: 11 | D18: 1421 | E18: 11 | F18: 1437 | K18: 0 | L18: 211
A19: 21 | B19: 1527 | C19: 22 | D19: 1532 | E19: 13 | F19: 1541 | K19: 0 | L19: 221 | N19: Total Target Seq
A20: 21 | B20: 1641 | C20: 11 | D20: 1661 | E20: 11 | F20: 1672 | K20: 0 | L20: 211 | N20: =COUNTIF(L7:L52,G3) -> 39 | P20: 8 | Q20: 7 | R20: 8 | S20: 8 | T20: 7 | U20: 8
A21: 21 | B21: 1758 | C21: 11 | D21: 1769 | E21: 11 | F21: 1785 | K21: 0 | L21: 211 | P21: % of reinforcement given in 6 equal intervals based on number of trials
A22: 21 | B22: 1872 | C22: 11 | D22: 1880 | E22: 11 | F22: 1895 | K22: 0 | L22: 211 | P22: %_1 | Q22: %_2 | R22: %_3 | S22: %_4 | T22: %_5 | U22: %_6
A23: 21 | B23: 1985 | C23: 11 | D23: 1993 | E23: 11 | F23: 2009 | K23: 0 | L23: 211 | O23: target sequence | P23: =$G$3 -> 211 | Q23: =$G$3 -> 211 | R23: =$G$3 -> 211 | S23: =$G$3 -> 211 | T23: =$G$3 -> 211 | U23: =$G$3 -> 211
A24: 21 | B24: 2097 | C24: 11 | D24: 2105 | E24: 11 | F24: 2124 | K24: 0 | L24: 211 | O24: total reinforcement | P24: =U11 -> 7 | Q24: =Z11 -> 6 | R24: =AE11 -> 6 | S24: =AJ11 -> 8 | T24: =AO11 -> 4 | U24: =AT11 -> 8
A25: 21 | B25: 2214 | C25: 22 | D25: 2222 | E25: 13 | F25: 2238 | K25: 0 | L25: 221 | O25: % target
A26: 21 | B26: 2335 | C26: 11 | D26: 2343 | E26: 11 | F26: 2360 | K26: 0 | L26: 211 | O26: CCRF
A27: 21 | B27: 2448 | C27: 22 | D27: 2452 | E27: 13 | F27: 2460 | K27: 0 | L27: 221 | O27: % CCRf
A28: 21 | B28: 2556 | C28: 11 | D28: 2564 | E28: 11 | F28: 2593 | K28: 0 | L28: 211 | O28: average response rate | P28: =F14/P20 -> 120.5 | Q28: =(F21-F14)/Q20 -> 117.2857143 | R28: =(F29-F21)/R20 -> 115.875 | S28: =(F37-F29)/S20 -> 112.25 | T28: =(F44-F37)/T20 -> 120.1428571 | U28: =(F52-F44)/U20 -> 113.875
A29: 21 | B29: 2680 | C29: 11 | D29: 2689 | E29: 11 | F29: 2712 | K29: 0 | L29: 211
A30: 21 | B30: 2801 | C30: 11 | D30: 2808 | E30: 11 | F30: 2819 | K30: 0 | L30: 211
A31: 21 | B31: 2906 | C31: 11 | D31: 2915 | E31: 11 | F31: 2929 | K31: 0 | L31: 211
A32: 21 | B32: 3017 | C32: 11 | D32: 3025 | E32: 11 | F32: 3039 | K32: 0 | L32: 211
A33: 21 | B33: 3128 | C33: 11 | D33: 3136 | E33: 11 | F33: 3157 | K33: 0 | L33: 211
A34: 21 | B34: 3243 | C34: 11 | D34: 3251 | E34: 11 | F34: 3270 | K34: 0 | L34: 211
A35: 21 | B35: 3359 | C35: 11 | D35: 3367 | E35: 11 | F35: 3378 | K35: 0 | L35: 211
A36: 21 | B36: 3467 | C36: 11 | D36: 3474 | E36: 11 | F36: 3485 | K36: 0 | L36: 211
A37: 21 | B37: 3572 | C37: 11 | D37: 3597 | E37: 11 | F37: 3610 | K37: 0 | L37: 211
A38: 12 | B38: 3720 | C38: 13 | D38: 3727 | E38: 13 | F38: 3735 | K38: 0 | L38: 111
A39: 21 | B39: 3835 | C39: 11 | D39: 3843 | E39: 11 | F39: 3860 | K39: 0 | L39: 211
A40: 21 | B40: 3953 | C40: 11 | D40: 3981 | E40: 11 | F40: 4002 | K40: 0 | L40: 211
A41: 21 | B41: 4091 | C41: 22 | D41: 4096 | E41: 13 | F41: 4109 | K41: 0 | L41: 221
A42: 21 | B42: 4204 | C42: 11 | D42: 4213 | E42: 11 | F42: 4227 | K42: 0 | L42: 211
A43: 21 | B43: 4315 | C43: 22 | D43: 4320 | E43: 13 | F43: 4332 | K43: 0 | L43: 221
A44: 21 | B44: 4429 | C44: 11 | D44: 4436 | E44: 11 | F44: 4451 | K44: 0 | L44: 211
A45: 21 | B45: 4537 | C45: 11 | D45: 4545 | E45: 11 | F45: 4556 | K45: 0 | L45: 211
A46: 21 | B46: 4649 | C46: 11 | D46: 4657 | E46: 11 | F46: 4675 | K46: 0 | L46: 211
A47: 21 | B47: 4762 | C47: 11 | D47: 4769 | E47: 11 | F47: 4780 | K47: 0 | L47: 211
A48: 21 | B48: 4873 | C48: 11 | D48: 4894 | E48: 11 | F48: 4911 | K48: 0 | L48: 211
A49: 21 | B49: 4998 | C49: 11 | D49: 5007 | E49: 11 | F49: 5033 | K49: 0 | L49: 211
A50: 21 | B50: 5120 | C50: 11 | D50: 5127 | E50: 11 | F50: 5133 | K50: 0 | L50: 211
A51: 21 | B51: 5222 | C51: 11 | D51: 5231 | E51: 11 | F51: 5250 | K51: 0 | L51: 211
A52: 21 | B52: 5336 | C52: 11 | D52: 5345 | E52: 11 | F52: 5362 | K52: 1 | L52: 211

Sheet !MB15920.010
A1: Report for:!MB15920.010
A2: Date: | B2: <date>
A3: Hen: | B3: <hen> | F3: Correct Sequence | G3: =Start!J2 -> 211 | P3: Total Sequences in Data | Q3: =4994-COUNTBLANK(L7:L5000) -> 50 | V3: Total Sequences in Block Data | W3: =COUNTA(L7:L14) -> 8 | AA3: Total Sequences in Block Data | AB3: =COUNTA(L15:L23) -> 9 | AF3: Total Sequences in Block Data | AG3: =COUNTA(L24:L31) -> 8 | AK3: Total Sequences in Block Data | AL3: =COUNTA(L32:L39) -> 8 | AP3: Total Sequences in Block Data | AQ3: =COUNTA(L40:L48) -> 9 | AU3: Total Sequences in Block Data | AV3: =COUNTA(L49:L56) -> 8
P4: Total Sequences in Summary | Q4: =SUM(O7:O14) -> 50 | V4: Total Sequences in Block Summary | W4: =SUM(U7:U14) -> 8 | AA4: Total Sequences in Block Summary | AB4: =SUM(Z7:Z14) -> 9 | AF4: Total Sequences in Block Summary | AG4: =SUM(AE7:AE14) -> 8 | AK4: Total Sequences in Block Summary | AL4: =SUM(AJ7:AJ14) -> 8 | AP4: Total Sequences in Block Summary | AQ4: =SUM(AO7:AO14) -> 9 | AU4: Total Sequences in Block Summary | AV4: =SUM(AT7:AT14) -> 8
T5: Block 1 | Y5: Block 2 | AD5: Block 3 | AI5: Block 4 | AN5: Block 5 | AS5: Block 6
A6: Sequence Component 1 | B6: Time 1 | C6: Sequence Component 2 | D6: Time 2 | E6: Sequence Component 3 | F6: Time 3 | G6: Sequence Component 4 | H6: Time 4 | I6: Sequence Component 5 | J6: Time 5 | K6: Correct? 0=No 1=Yes | L6: Sequence | N6: Frequency | P6: Relative Frequency | Q6: Variability | T6: Frequency | V6: Relative Frequency | W6: Variability | Y6: Frequency | AA6: Relative Frequency | AB6: Variability | AD6: Frequency | AF6: Relative Frequency | AG6: Variability | AI6: Frequency | AK6: Relative Frequency | AL6: Variability | AN6: Frequency | AP6: Relative Frequency | AQ6: Variability | AS6: Frequency | AU6: Relative Frequency | AV6: Variability
A7: 21 | B7: 6 | C7: 11 | D7: 16 | E7: 22 | F7: 45 | K7: 0 | L7: 212 | N7: 111 | O7: =COUNTIF($L$7:$L$500,N7) -> 1 | P7: =O7/$Q$4 -> 0.02 | Q7: =IF(P7=0,0,(P7*((LOG(P7))/LOG(2)))) -> -0.1128771238 | T7: =N7 -> 111 | U7: =COUNTIF(L7:L14,T7) -> 1 | V7: =U7/(W4-U11) -> 0.3333333333 | W7: =IF(V7=0,0,(V7*((LOG(V7))/LOG(2)))) -> -0.5283208336 | Y7: =N7 -> 111 | Z7: =COUNTIF(L15:L23,Y7) -> 0 | AA7: =Z7/(AB4-Z11) -> 0 | AB7: =IF(AA7=0,0,(AA7*((LOG(AA7))/LOG(2)))) -> 0 | AD7: =N7 -> 111 | AE7: =COUNTIF(L24:L31,AD7) -> 0 | AF7: =AE7/(AG4-AE11) -> 0 | AG7: =IF(AF7=0,0,(AF7*((LOG(AF7))/LOG(2)))) -> 0 | AI7: =N7 -> 111 | AJ7: =COUNTIF(L32:L39,AI7) -> 0 | AK7: =AJ7/(AL4-AJ11) ->  | AL7: =IF(AK7=0,0,(AK7*((LOG(AK7))/LOG(2)))) ->  | AN7: =N7 -> 111 | AO7: =COUNTIF(L40:L48,AN7) -> 0 | AP7: =AO7/(AQ4-AO11) -> 0 | AQ7: =IF(AP7=0,0,(AP7*((LOG(AP7))/LOG(2)))) -> 0 | AS7: =N7 -> 111 | AT7: =COUNTIF(L49:L56,AS7) -> 0 | AU7: =AT7/(AV4-AT11) -> 0 | AV7: =IF(AU7=0,0,(AU7*((LOG(AU7))/LOG(2)))) -> 0
A8: 21 | B8: 150 | C8: 11 | D8: 205 | E8: 22 | F8: 220 | K8: 0 | L8: 212 | N8: 112 | O8: =COUNTIF($L$7:$L$500,N8) -> 0 | P8: =O8/$Q$4 -> 0 | Q8: =IF(P8=0,0,(P8*((LOG(P8))/LOG(2)))) -> 0 | T8: =N8 -> 112 | U8: =COUNTIF(L7:L14,T8) -> 0 | V8: =U8/(W4-U11) -> 0 | W8: =IF(V8=0,0,(V8*((LOG(V8))/LOG(2)))) -> 0 | Y8: =N8 -> 112 | Z8: =COUNTIF(L15:L23,Y8) -> 0 | AA8: =Z8/(AB4-Z11) -> 0 | AB8: =IF(AA8=0,0,(AA8*((LOG(AA8))/LOG(2)))) -> 0 | AD8: =N8 -> 112 | AE8: =COUNTIF(L24:L31,AD8) -> 0 | AF8: =AE8/(AG4-AE11) -> 0 | AG8: =IF(AF8=0,0,(AF8*((LOG(AF8))/LOG(2)))) -> 0 | AI8: =N8 -> 112 | AJ8: =COUNTIF(L32:L39,AI8) -> 0 | AK8: =AJ8/(AL4-AJ11) ->  | AL8: =IF(AK8=0,0,(AK8*((LOG(AK8))/LOG(2)))) ->  | AN8: =N8 -> 112 | AO8: =COUNTIF(L40:L48,AN8) -> 0 | AP8: =AO8/(AQ4-AO11) -> 0 | AQ8: =IF(AP8=0,0,(AP8*((LOG(AP8))/LOG(2)))) -> 0 | AS8: =N8 -> 112 | AT8: =COUNTIF(L49:L56,AS8) -> 0 | AU8: =AT8/(AV4-AT11) -> 0 | AV8: =IF(AU8=0,0,(AU8*((LOG(AU8))/LOG(2)))) -> 0
A9: 21 | B9: 324 | C9: 11 | D9: 355 | E9: 11 | F9: 366 | K9: 0 | L9: 211 | N9: 121 | O9: =COUNTIF($L$7:$L$500,N9) -> 0 | P9: =O9/$Q$4 -> 0 | Q9: =IF(P9=0,0,(P9*((LOG(P9))/LOG(2)))) -> 0 | T9: =N9 -> 121 | U9: =COUNTIF(L7:L14,T9) -> 0 | V9: =U9/(W4-U11) -> 0 | W9: =IF(V9=0,0,(V9*((LOG(V9))/LOG(2)))) -> 0 | Y9: =N9 -> 121 | Z9: =COUNTIF(L15:L23,Y9) -> 0 | AA9: =Z9/(AB4-Z11) -> 0 | AB9: =IF(AA9=0,0,(AA9*((LOG(AA9))/LOG(2)))) -> 0 | AD9: =N9 -> 121 | AE9: =COUNTIF(L24:L31,AD9) -> 0 | AF9: =AE9/(AG4-AE11) -> 0 | AG9: =IF(AF9=0,0,(AF9*((LOG(AF9))/LOG(2)))) -> 0 | AI9: =N9 -> 121 | AJ9: =COUNTIF(L32:L39,AI9) -> 0 | AK9: =AJ9/(AL4-AJ11) ->  | AL9: =IF(AK9=0,0,(AK9*((LOG(AK9))/LOG(2)))) ->  | AN9: =N9 -> 121 | AO9: =COUNTIF(L40:L48,AN9) -> 0 | AP9: =AO9/(AQ4-AO11) -> 0 | AQ9: =IF(AP9=0,0,(AP9*((LOG(AP9))/LOG(2)))) -> 0 | AS9: =N9 -> 121 | AT9: =COUNTIF(L49:L56,AS9) -> 0 | AU9: =AT9/(AV4-AT11) -> 0 | AV9: =IF(AU9=0,0,(AU9*((LOG(AU9))/LOG(2)))) -> 0
A10: 21 | B10: 457 | C10: 11 | D10: 470 | E10: 11 | F10: 486 | K10: 0 | L10: 211 | N10: 122 | O10: =COUNTIF($L$7:$L$500,N10) -> 0 | P10: =O10/$Q$4 -> 0 | Q10: =IF(P10=0,0,(P10*((LOG(P10))/LOG(2)))) -> 0 | T10: =N10 -> 122 | U10: =COUNTIF(L7:L14,T10) -> 0 | V10: =U10/(W4-U11) -> 0 | W10: =IF(V10=0,0,(V10*((LOG(V10))/LOG(2)))) -> 0 | Y10: =N10 -> 122 | Z10: =COUNTIF(L15:L23,Y10) -> 0 | AA10: =Z10/(AB4-Z11) -> 0 | AB10: =IF(AA10=0,0,(AA10*((LOG(AA10))/LOG(2)))) -> 0 | AD10: =N10 -> 122 | AE10: =COUNTIF(L24:L31,AD10) -> 0 | AF10: =AE10/(AG4-AE11) -> 0 | AG10: =IF(AF10=0,0,(AF10*((LOG(AF10))/LOG(2)))) -> 0 | AI10: =N10 -> 122 | AJ10: =COUNTIF(L32:L39,AI10) -> 0 | AK10: =AJ10/(AL4-AJ11) ->  | AL10: =IF(AK10=0,0,(AK10*((LOG(AK10))/LOG(2)))) ->  | AN10: =N10 -> 122 | AO10: =COUNTIF(L40:L48,AN10) -> 0 | AP10: =AO10/(AQ4-AO11) -> 0 | AQ10: =IF(AP10=0,0,(AP10*((LOG(AP10))/LOG(2)))) -> 0 | AS10: =N10 -> 122 | AT10: =COUNTIF(L49:L56,AS10) -> 0 | AU10: =AT10/(AV4-AT11) -> 0 | AV10: =IF(AU10=0,0,(AU10*((LOG(AU10))/LOG(2)))) -> 0
A11: 21 | B11: 573 | C11: 11 | D11: 597 | E11: 11 | F11: 606 | K11: 0 | L11: 211 | N11: 211 | O11: =COUNTIF($L$7:$L$500,N11) -> 39 | P11: =O11/$Q$4 -> 0.78 | Q11: =IF(P11=0,0,(P11*((LOG(P11))/LOG(2)))) -> -0.2795940973 | T11: =N11 -> 211 | U11: =COUNTIF(L7:L14,T11) -> 5 | Y11: =N11 -> 211 | Z11: =COUNTIF(L15:L23,Y11) -> 6 | AD11: =N11 -> 211 | AE11: =COUNTIF(L24:L31,AD11) -> 7 | AI11: =N11 -> 211 | AJ11: =COUNTIF(L32:L39,AI11) -> 8 | AN11: =N11 -> 211 | AO11: =COUNTIF(L40:L48,AN11) -> 7 | AS11: =N11 -> 211 | AT11: =COUNTIF(L49:L56,AS11) -> 6
A12: 12 | B12: 717 | C12: 13 | D12: 728 | E12: 13 | F12: 753 | K12: 0 | L12: 111 | N12: 212 | O12: =COUNTIF($L$7:$L$500,N12) -> 2 | P12: =O12/$Q$4 -> 0.04 | Q12: =IF(P12=0,0,(P12*((LOG(P12))/LOG(2)))) -> -0.1857542476 | T12: =N12 -> 212 | U12: =COUNTIF(L7:L14,T12) -> 2 | V12: =U12/(W4-U11) -> 0.6666666667 | W12: =IF(V12=0,0,(V12*((LOG(V12))/LOG(2)))) -> -0.3899750005 | Y12: =N12 -> 212 | Z12: =COUNTIF(L15:L23,Y12) -> 0 | AA12: =Z12/(AB4-Z11) -> 0 | AB12: =IF(AA12=0,0,(AA12*((LOG(AA12))/LOG(2)))) -> 0 | AD12: =N12 -> 212 | AE12: =COUNTIF(L24:L31,AD12) -> 0 | AF12: =AE12/(AG4-AE11) -> 0 | AG12: =IF(AF12=0,0,(AF12*((LOG(AF12))/LOG(2)))) -> 0 | AI12: =N12 -> 212 | AJ12: =COUNTIF(L32:L39,AI12) -> 0 | AK12: =AJ12/(AL4-AJ11) ->  | AL12: =IF(AK12=0,0,(AK12*((LOG(AK12))/LOG(2)))) ->  | AN12: =N12 -> 212 | AO12: =COUNTIF(L40:L48,AN12) -> 0 | AP12: =AO12/(AQ4-AO11) -> 0 | AQ12: =IF(AP12=0,0,(AP12*((LOG(AP12))/LOG(2)))) -> 0 | AS12: =N12 -> 212 | AT12: =COUNTIF(L49:L56,AS12) -> 0 | AU12: =AT12/(AV4-AT11) -> 0 | AV12: =IF(AU12=0,0,(AU12*((LOG(AU12))/LOG(2)))) -> 0
A13: 21 | B13: 840 | C13: 11 | D13: 863 | E13: 11 | F13: 877 | K13: 0 | L13: 211 | N13: 221 | O13: =COUNTIF($L$7:$L$500,N13) -> 8 | P13: =O13/$Q$4 -> 0.16 | Q13: =IF(P13=0,0,(P13*((LOG(P13))/LOG(2)))) -> -0.4230169904 | T13: =N13 -> 221 | U13: =COUNTIF(L7:L14,T13) -> 0 | V13: =U13/(W4-U11) -> 0 | W13: =IF(V13=0,0,(V13*((LOG(V13))/LOG(2)))) -> 0 | Y13: =N13 -> 221 | Z13: =COUNTIF(L15:L23,Y13) -> 3 | AA13: =Z13/(AB4-Z11) -> 1 | AB13: =IF(AA13=0,0,(AA13*((LOG(AA13))/LOG(2)))) -> 0 | AD13: =N13 -> 221 | AE13: =COUNTIF(L24:L31,AD13) -> 1 | AF13: =AE13/(AG4-AE11) -> 1 | AG13: =IF(AF13=0,0,(AF13*((LOG(AF13))/LOG(2)))) -> 0 | AI13: =N13 -> 221 | AJ13: =COUNTIF(L32:L39,AI13) -> 0 | AK13: =AJ13/(AL4-AJ11) ->  | AL13: =IF(AK13=0,0,(AK13*((LOG(AK13))/LOG(2)))) ->  | AN13: =N13 -> 221 | AO13: =COUNTIF(L40:L48,AN13) -> 2 | AP13: =AO13/(AQ4-AO11) -> 1 | AQ13: =IF(AP13=0,0,(AP13*((LOG(AP13))/LOG(2)))) -> 0 | AS13: =N13 -> 221 | AT13: =COUNTIF(L49:L56,AS13) -> 2 | AU13: =AT13/(AV4-AT11) -> 1 | AV13: =IF(AU13=0,0,(AU13*((LOG(AU13))/LOG(2)))) -> 0
A14: 21 | B14: 968 | C14: 11 | D14: 989 | E14: 11 | F14: 1009 | K14: 0 | L14: 211 | N14: 222 | O14: =COUNTIF($L$7:$L$500,N14) -> 0 | P14: =O14/$Q$4 -> 0 | Q14: =IF(P14=0,0,(P14*((LOG(P14))/LOG(2)))) -> 0 | T14: =N14 -> 222 | U14: =COUNTIF(L7:L14,T14) -> 0 | V14: =U14/(W4-U11) -> 0 | W14: =IF(V14=0,0,(V14*((LOG(V14))/LOG(2)))) -> 0 | Y14: =N14 -> 222 | Z14: =COUNTIF(L15:L23,Y14) -> 0 | AA14: =Z14/(AB4-Z11) -> 0 | AB14: =IF(AA14=0,0,(AA14*((LOG(AA14))/LOG(2)))) -> 0 | AD14: =N14 -> 222 | AE14: =COUNTIF(L24:L31,AD14) -> 0 | AF14: =AE14/(AG4-AE11) -> 0 | AG14: =IF(AF14=0,0,(AF14*((LOG(AF14))/LOG(2)))) -> 0 | AI14: =N14 -> 222 | AJ14: =COUNTIF(L32:L39,AI14) -> 0 | AK14: =AJ14/(AL4-AJ11) ->  | AL14: =IF(AK14=0,0,(AK14*((LOG(AK14))/LOG(2)))) ->  | AN14: =N14 -> 222 | AO14: =COUNTIF(L40:L48,AN14) -> 0 | AP14: =AO14/(AQ4-AO11) -> 0 | AQ14: =IF(AP14=0,0,(AP14*((LOG(AP14))/LOG(2)))) -> 0 | AS14: =N14 -> 222 | AT14: =COUNTIF(L49:L56,AS14) -> 0 | AU14: =AT14/(AV4-AT11) -> 0 | AV14: =IF(AU14=0,0,(AU14*((LOG(AU14))/LOG(2)))) -> 0
A15: 21 | B15: 1097 | C15: 22 | D15: 1138 | E15: 13 | F15: 1157 | K15: 0 | L15: 221 | P15: =SUM(P7:P14) -> 1 | Q15: =-SUM(Q7:Q14) -> 1.001242459 | V15: =SUM(V7:V14) -> 1 | W15: =-SUM(W7:W14) -> 0.9182958341 | AA15: =SUM(AA7:AA14) -> 1 | AB15: =-SUM(AB7:AB14) -> 0 | AF15: =SUM(AF7:AF14) -> 1 | AG15: =-SUM(AG7:AG14) -> 0 | AK15: =SUM(AK7:AK14) ->  | AL15: =-SUM(AL7:AL14) ->  | AP15: =SUM(AP7:AP14) -> 1 | AQ15: =-SUM(AQ7:AQ14) -> 0 | AU15: =SUM(AU7:AU14) -> 1 | AV15: =-SUM(AV7:AV14) -> 0
A16: 21 | B16: 1253 | C16: 22 | D16: 1257 | E16: 13 | F16: 1269 | K16: 0 | L16: 221 | P16: U= | Q16: =Q15/(LOG(Q4)/LOG(2)) -> 0.1774039638 | V16: U1= | W16: =W15/(LOG(W4)/LOG(2)) -> 0.3060986114 | AA16: U2= | AB16: =AB15/(LOG(AB4)/LOG(2)) -> 0 | AF16: U3= | AG16: =AG15/(LOG(AG4)/LOG(2)) -> 0 | AK16: U4= | AL16: =AL15/(LOG(AL4)/LOG(2)) ->  | AP16: U5= | AQ16: =AQ15/(LOG(AQ4)/LOG(2)) -> 0 | AU16: U6= | AV16: =AV15/(LOG(AV4)/LOG(2)) -> 0
A17: 21 | B17: 1365 | C17: 22 | D17: 1369 | E17: 13 | F17: 1381 | K17: 0 | L17: 221
A18: 21 | B18: 1477 | C18: 11 | D18: 1486 | E18: 11 | F18: 1498 | K18: 0 | L18: 211
A19: 21 | B19: 1584 | C19: 11 | D19: 1598 | E19: 11 | F19: 1609 | K19: 0 | L19: 211 | N19: Total Target Seq
A20: 21 | B20: 1696 | C20: 11 | D20: 1710 | E20: 11 | F20: 1721 | K20: 0 | L20: 211 | N20: =COUNTIF(L7:L56,G3) -> 39 | P20: 8 | Q20: 9 | R20: 8 | S20: 8 | T20: 9 | U20: 8
A21: 21 | B21: 1808 | C21: 11 | D21: 1829 | E21: 11 | F21: 1838 | K21: 0 | L21: 211 | P21: % of reinforcement given in 6 equal intervals based on number of trials
A22: 21 | B22: 1925 | C22: 11 | D22: 1954 | E22: 11 | F22: 1965 | K22: 0 | L22: 211 | P22: %_1 | Q22: %_2 | R22: %_3 | S22: %_4 | T22: %_5 | U22: %_6
A23: 21 | B23: 2052 | C23: 11 | D23: 2061 | E23: 11 | F23: 2080 | K23: 0 | L23: 211 | O23: target sequence | P23: =$G$3 -> 211 | Q23: =$G$3 -> 211 | R23: =$G$3 -> 211 | S23: =$G$3 -> 211 | T23: =$G$3 -> 211 | U23: =$G$3 -> 211
A24: 21 | B24: 2166 | C24: 22 | D24: 2169 | E24: 13 | F24: 2190 | K24: 0 | L24: 221 | O24: total reinforcement | P24: =U11 -> 5 | Q24: =Z11 -> 6 | R24: =AE11 -> 7 | S24: =AJ11 -> 8 | T24: =AO11 -> 7 | U24: =AT11 -> 6
A25: 21 | B25: 2286 | C25: 11 | D25: 2295 | E25: 11 | F25: 2306 | K25: 0 | L25: 211 | O25: % target
A26: 21 | B26: 2393 | C26: 11 | D26: 2400 | E26: 11 | F26: 2412 | K26: 0 | L26: 211 | O26: CCRF
A27: 21 | B27: 2501 | C27: 11 | D27: 2517 | E27: 11 | F27: 2531 | K27: 0 | L27: 211 | O27: % CCRf
A28: 21 | B28: 2618 | C28: 11 | D28: 2633 | E28: 11 | F28: 2645 | K28: 0 | L28: 211 | O28: average response rate | P28: =F14/P20 -> 126.125 | Q28: =(F23-F14)/Q20 -> 119 | R28: =(F31-F23)/R20 -> 110.125 | S28: =(F39-F31)/S20 -> 115.125 | T28: =(F48-F39)/T20 -> 107.5555556 | U28: =(F56-F48)/U20 -> 116.875
A29: 21 | B29: 2732 | C29: 11 | D29: 2741 | E29: 11 | F29: 2752 | K29: 0 | L29: 211
A30: 21 | B30: 2838 | C30: 11 | D30: 2847 | E30: 11 | F30: 2858 | K30: 0 | L30: 211
A31: 21 | B31: 2946 | C31: 11 | D31: 2954 | E31: 11 | F31: 2961 | K31: 0 | L31: 211
A32: 21 | B32: 3047 | C32: 11 | D32: 3055 | E32: 11 | F32: 3066 | K32: 0 | L32: 211
A33: 21 | B33: 3151 | C33: 11 | D33: 3172 | E33: 11 | F33: 3195 | K33: 0 | L33: 211
A34: 21 | B34: 3286 | C34: 11 | D34: 3305 | E34: 11 | F34: 3312 | K34: 0 | L34: 211
A35: 21 | B35: 3399 | C35: 11 | D35: 3407 | E35: 11 | F35: 3418 | K35: 0 | L35: 211
A36: 21 | B36: 3505 | C36: 11 | D36: 3513 | E36: 11 | F36: 3524 | K36: 0 | L36: 211
A37: 21 | B37: 3611 | C37: 11 | D37: 3633 | E37: 11 | F37: 3644 | K37: 0 | L37: 211
A38: 21 | B38: 3734 | C38: 11 | D38: 3761 | E38: 11 | F38: 3774 | K38: 0 | L38: 211
A39: 21 | B39: 3861 | C39: 11 | D39: 3870 | E39: 11 | F39: 3882 | K39: 0 | L39: 211
A40: 21 | B40: 3968 | C40: 11 | D40: 3977 | E40: 11 | F40: 3989 | K40: 0 | L40: 211
A41: 21 | B41: 4076 | C41: 11 | D41: 4084 | E41: 11 | F41: 4102 | K41: 0 | L41: 211
A42: 21 | B42: 4190 | C42: 22 | D42: 4194 | E42: 13 | F42: 4209 | K42: 0 | L42: 221
A43: 21 | B43: 4305 | C43: 11 | D43: 4313 | E43: 11 | F43: 4320 | K43: 0 | L43: 211
A44: 21 | B44: 4407 | C44: 11 | D44: 4415 | E44: 11 | F44: 4426 | K44: 0 | L44: 211
A45: 21 | B45: 4512 | C45: 11 | D45: 4519 | E45: 11 | F45: 4535 | K45: 0 | L45: 211
A46: 21 | B46: 4620 | C46: 11 | D46: 4628 | E46: 11 | F46: 4643 | K46: 0 | L46: 211
A47: 21 | B47: 4730 | C47: 11 | D47: 4737 | E47: 11 | F47: 4747 | K47: 0 | L47: 211
A48: 21 | B48: 4835 | C48: 22 | D48: 4838 | E48: 13 | F48: 4850 | K48: 0 | L48: 221
A49: 21 | B49: 4946 | C49: 11 | D49: 4968 | E49: 11 | F49: 4992 | K49: 0 | L49: 211
A50: 21 | B50: 5078 | C50: 11 | D50: 5086 | E50: 11 | F50: 5101 | K50: 0 | L50: 211
A51: 21 | B51: 5187 | C51: 11 | D51: 5196 | E51: 11 | F51: 5210 | K51: 0 | L51: 211
A52: 21 | B52: 5297 | C52: 11 | D52: 5325 | E52: 11 | F52: 5340 | K52: 0 | L52: 211
A53: 21 | B53: 5427 | C53: 22 | D53: 5431 | E53: 13 | F53: 5446 | K53: 0 | L53: 221
A54: 21 | B54: 5541 | C54: 22 | D54: 5545 | E54: 13 | F54: 5552 | K54: 0 | L54: 221
A55: 21 | B55: 5647 | C55: 11 | D55: 5656 | E55: 11 | F55: 5671 | K55: 0 | L55: 211
A56: 21 | B56: 5759 | C56: 11 | D56: 5767 | E56: 11 | F56: 5785 | K56: 1 | L56: 211

Sheet !MB16930.010
A1: Report for:!MB16930.010
A2: Date: | B2: <date>
A3: Hen: | B3: <hen> | F3: Correct Sequence | G3: =Start!J2 -> 211 | P3: Total Sequences in Data | Q3: =4994-COUNTBLANK(L7:L5000) -> 54 | V3: Total Sequences in Block Data | W3: =COUNTA(L7:L15) -> 9 | AA3: Total Sequences in Block Data | AB3: =COUNTA(L16:L24) -> 9 | AF3: Total Sequences in Block Data | AG3: =COUNTA(L25:L33) -> 9 | AK3: Total Sequences in Block Data | AL3: =COUNTA(L34:L42) -> 9 | AP3: Total Sequences in Block Data | AQ3: =COUNTA(L43:L51) -> 9 | AU3: Total Sequences in Block Data | AV3: =COUNTA(L52:L60) -> 9
P4: Total Sequences in Summary | Q4: =SUM(O7:O14) -> 54 | V4: Total Sequences in Block Summary | W4: =SUM(U7:U14) -> 9 | AA4: Total Sequences in Block Summary | AB4: =SUM(Z7:Z14) -> 9 | AF4: Total Sequences in Block Summary | AG4: =SUM(AE7:AE14) -> 9 | AK4: Total Sequences in Block Summary | AL4: =SUM(AJ7:AJ14) -> 9 | AP4: Total Sequences in Block Summary | AQ4: =SUM(AO7:AO14) -> 9 | AU4: Total Sequences in Block Summary | AV4: =SUM(AT7:AT14) -> 9
T5: Block 1 | Y5: Block 2 | AD5: Block 3 | AI5: Block 4 | AN5: Block 5 | AS5: Block 6
A6: Sequence Component 1 | B6: Time 1 | C6: Sequence Component 2 | D6: Time 2 | E6: Sequence Component 3 | F6: Time 3 | G6: Sequence Component 4 | H6: Time 4 | I6: Sequence Component 5 | J6: Time 5 | K6: Correct? 0=No 1=Yes | L6: Sequence | N6: Frequency | P6: Relative Frequency | Q6: Variability | T6: Frequency | V6: Relative Frequency | W6: Variability | Y6: Frequency | AA6: Relative Frequency | AB6: Variability | AD6: Frequency | AF6: Relative Frequency | AG6: Variability | AI6: Frequency | AK6: Relative Frequency | AL6: Variability | AN6: Frequency | AP6: Relative Frequency | AQ6: Variability | AS6: Frequency | AU6: Relative Frequency | AV6: Variability
A7: 21 | B7: 41 | C7: 11 | D7: 55 | E7: 11 | F7: 71 | K7: 0 | L7: 211 | N7: 111 | O7: =COUNTIF($L$7:$L$500,N7) -> 0 | P7: =O7/$Q$4 -> 0 | Q7: =IF(P7=0,0,(P7*((LOG(P7))/LOG(2)))) -> 0 | T7: =N7 -> 111 | U7: =COUNTIF(L7:L15,T7) -> 0 | V7: =U7/(W4-U11) -> 0 | W7: =IF(V7=0,0,(V7*((LOG(V7))/LOG(2)))) -> 0 | Y7: =N7 -> 111 | Z7: =COUNTIF(L16:L24,Y7) -> 0 | AA7: =Z7/(AB4-Z11) -> 0 | AB7: =IF(AA7=0,0,(AA7*((LOG(AA7))/LOG(2)))) -> 0 | AD7: =N7 -> 111 | AE7: =COUNTIF(L25:L33,AD7) -> 0 | AF7: =AE7/(AG4-AE11) -> 0 | AG7: =IF(AF7=0,0,(AF7*((LOG(AF7))/LOG(2)))) -> 0 | AI7: =N7 -> 111 | AJ7: =COUNTIF(L34:L42,AI7) -> 0 | AK7: =AJ7/(AL4-AJ11) -> 0 | AL7: =IF(AK7=0,0,(AK7*((LOG(AK7))/LOG(2)))) -> 0 | AN7: =N7 -> 111 | AO7: =COUNTIF(L43:L51,AN7) -> 0 | AP7: =AO7/(AQ4-AO11) -> 0 | AQ7: =IF(AP7=0,0,(AP7*((LOG(AP7))/LOG(2)))) -> 0 | AS7: =N7 -> 111 | AT7: =COUNTIF(L52:L60,AS7) -> 0 | AU7: =AT7/(AV4-AT11) -> 0 | AV7: =IF(AU7=0,0,(AU7*((LOG(AU7))/LOG(2)))) -> 0
A8: 21 | B8: 167 | C8: 11 | D8: 177 | E8: 11 | F8: 189 | K8: 0 | L8: 211 | N8: 112 | O8: =COUNTIF($L$7:$L$500,N8) -> 0 | P8: =O8/$Q$4 -> 0 | Q8: =IF(P8=0,0,(P8*((LOG(P8))/LOG(2)))) -> 0 | T8: =N8 -> 112 | U8: =COUNTIF(L7:L15,T8) -> 0 | V8: =U8/(W4-U11) -> 0 | W8: =IF(V8=0,0,(V8*((LOG(V8))/LOG(2)))) -> 0 | Y8: =N8 -> 112 | Z8: =COUNTIF(L16:L24,Y8) -> 0 | AA8: =Z8/(AB4-Z11) -> 0 | AB8: =IF(AA8=0,0,(AA8*((LOG(AA8))/LOG(2)))) -> 0 | AD8: =N8 -> 112 | AE8: =COUNTIF(L25:L33,AD8) -> 0 | AF8: =AE8/(AG4-AE11) -> 0 | AG8: =IF(AF8=0,0,(AF8*((LOG(AF8))/LOG(2)))) -> 0 | AI8: =N8 -> 112 | AJ8: =COUNTIF(L34:L42,AI8) -> 0 | AK8: =AJ8/(AL4-AJ11) -> 0 | AL8: =IF(AK8=0,0,(AK8*((LOG(AK8))/LOG(2)))) -> 0 | AN8: =N8 -> 112 | AO8: =COUNTIF(L43:L51,AN8) -> 0 | AP8: =AO8/(AQ4-AO11) -> 0 | AQ8: =IF(AP8=0,0,(AP8*((LOG(AP8))/LOG(2)))) -> 0 | AS8: =N8 -> 112 | AT8: =COUNTIF(L52:L60,AS8) -> 0 | AU8: =AT8/(AV4-AT11) -> 0 | AV8: =IF(AU8=0,0,(AU8*((LOG(AU8))/LOG(2)))) -> 0
A9: 21 | B9: 276 | C9: 11 | D9: 285 | E9: 11 | F9: 301 | K9: 0 | L9: 211 | N9: 121 | O9: =COUNTIF($L$7:$L$500,N9) -> 0 | P9: =O9/$Q$4 -> 0 | Q9: =IF(P9=0,0,(P9*((LOG(P9))/LOG(2)))) -> 0 | T9: =N9 -> 121 | U9: =COUNTIF(L7:L15,T9) -> 0 | V9: =U9/(W4-U11) -> 0 | W9: =IF(V9=0,0,(V9*((LOG(V9))/LOG(2)))) -> 0 | Y9: =N9 -> 121 | Z9: =COUNTIF(L16:L24,Y9) -> 0 | AA9: =Z9/(AB4-Z11) -> 0 | AB9: =IF(AA9=0,0,(AA9*((LOG(AA9))/LOG(2)))) -> 0 | AD9: =N9 -> 121 | AE9: =COUNTIF(L25:L33,AD9) -> 0 | AF9: =AE9/(AG4-AE11) -> 0 | AG9: =IF(AF9=0,0,(AF9*((LOG(AF9))/LOG(2)))) -> 0 | AI9: =N9 -> 121 | AJ9: =COUNTIF(L34:L42,AI9) -> 0 | AK9: =AJ9/(AL4-AJ11) -> 0 | AL9: =IF(AK9=0,0,(AK9*((LOG(AK9))/LOG(2)))) -> 0 | AN9: =N9 -> 121 | AO9: =COUNTIF(L43:L51,AN9) -> 0 | AP9: =AO9/(AQ4-AO11) -> 0 | AQ9: =IF(AP9=0,0,(AP9*((LOG(AP9))/LOG(2)))) -> 0 | AS9: =N9 -> 121 | AT9: =COUNTIF(L52:L60,AS9) -> 0 | AU9: =AT9/(AV4-AT11) -> 0 | AV9: =IF(AU9=0,0,(AU9*((LOG(AU9))/LOG(2)))) -> 0
A10: 21 | B10: 388 | C10: 11 | D10: 397 | E10: 11 | F10: 406 | K10: 0 | L10: 211 | N10: 122 | O10: =COUNTIF($L$7:$L$500,N10) -> 0 | P10: =O10/$Q$4 -> 0 | Q10: =IF(P10=0,0,(P10*((LOG(P10))/LOG(2)))) -> 0 | T10: =N10 -> 122 | U10: =COUNTIF(L7:L15,T10) -> 0 | V10: =U10/(W4-U11) -> 0 | W10: =IF(V10=0,0,(V10*((LOG(V10))/LOG(2)))) -> 0 | Y10: =N10 -> 122 | Z10: =COUNTIF(L16:L24,Y10) -> 0 | AA10: =Z10/(AB4-Z11) -> 0 | AB10: =IF(AA10=0,0,(AA10*((LOG(AA10))/LOG(2)))) -> 0 | AD10: =N10 -> 122 | AE10: =COUNTIF(L25:L33,AD10) -> 0 | AF10: =AE10/(AG4-AE11) -> 0 | AG10: =IF(AF10=0,0,(AF10*((LOG(AF10))/LOG(2)))) -> 0 | AI10: =N10 -> 122 | AJ10: =COUNTIF(L34:L42,AI10) -> 0 | AK10: =AJ10/(AL4-AJ11) -> 0 | AL10: =IF(AK10=0,0,(AK10*((LOG(AK10))/LOG(2)))) -> 0 | AN10: =N10 -> 122 | AO10: =COUNTIF(L43:L51,AN10) -> 0 | AP10: =AO10/(AQ4-AO11) -> 0 | AQ10: =IF(AP10=0,0,(AP10*((LOG(AP10))/LOG(2)))) -> 0 | AS10: =N10 -> 122 | AT10: =COUNTIF(L52:L60,AS10) -> 0 | AU10: =AT10/(AV4-AT11) -> 0 | AV10: =IF(AU10=0,0,(AU10*((LOG(AU10))/LOG(2)))) -> 0
A11: 21 | B11: 497 | C11: 11 | D11: 514 | E11: 11 | F11: 525 | K11: 0 | L11: 211 | N11: 211 | O11: =COUNTIF($L$7:$L$500,N11) -> 39 | P11: =O11/$Q$4 -> 0.7222222222 | Q11: =IF(P11=0,0,(P11*((LOG(P11))/LOG(2)))) -> -0.3390727046 | T11: =N11 -> 211 | U11: =COUNTIF(L7:L15,T11) -> 8 | Y11: =N11 -> 211 | Z11: =COUNTIF(L16:L24,Y11) -> 6 | AD11: =N11 -> 211 | AE11: =COUNTIF(L25:L33,AD11) -> 7 | AI11: =N11 -> 211 | AJ11: =COUNTIF(L34:L42,AI11) -> 4 | AN11: =N11 -> 211 | AO11: =COUNTIF(L43:L51,AN11) -> 8 | AS11: =N11 -> 211 | AT11: =COUNTIF(L52:L60,AS11) -> 6
A12: 21 | B12: 611 | C12: 11 | D12: 621 | E12: 11 | F12: 640 | K12: 0 | L12: 211 | N12: 212 | O12: =COUNTIF($L$7:$L$500,N12) -> 0 | P12: =O12/$Q$4 -> 0 | Q12: =IF(P12=0,0,(P12*((LOG(P12))/LOG(2)))) -> 0 | T12: =N12 -> 212 | U12: =COUNTIF(L7:L15,T12) -> 0 | V12: =U12/(W4-U11) -> 0 | W12: =IF(V12=0,0,(V12*((LOG(V12))/LOG(2)))) -> 0 | Y12: =N12 -> 212 | Z12: =COUNTIF(L16:L24,Y12) -> 0 | AA12: =Z12/(AB4-Z11) -> 0 | AB12: =IF(AA12=0,0,(AA12*((LOG(AA12))/LOG(2)))) -> 0 | AD12: =N12 -> 212 | AE12: =COUNTIF(L25:L33,AD12) -> 0 | AF12: =AE12/(AG4-AE11) -> 0 | AG12: =IF(AF12=0,0,(AF12*((LOG(AF12))/LOG(2)))) -> 0 | AI12: =N12 -> 212 | AJ12: =COUNTIF(L34:L42,AI12) -> 0 | AK12: =AJ12/(AL4-AJ11) -> 0 | AL12: =IF(AK12=0,0,(AK12*((LOG(AK12))/LOG(2)))) -> 0 | AN12: =N12 -> 212 | AO12: =COUNTIF(L43:L51,AN12) -> 0 | AP12: =AO12/(AQ4-AO11) -> 0 | AQ12: =IF(AP12=0,0,(AP12*((LOG(AP12))/LOG(2)))) -> 0 | AS12: =N12 -> 212 | AT12: =COUNTIF(L52:L60,AS12) -> 0 | AU12: =AT12/(AV4-AT11) -> 0 | AV12: =IF(AU12=0,0,(AU12*((LOG(AU12))/LOG(2)))) -> 0
A13: 21 | B13: 729 | C13: 11 | D13: 754 | E13: 11 | F13: 766 | K13: 0 | L13: 211 | N13: 221 | O13: =COUNTIF($L$7:$L$500,N13) -> 15 | P13: =O13/$Q$4 -> 0.2777777778 | Q13: =IF(P13=0,0,(P13*((LOG(P13))/LOG(2)))) -> -0.513332474 | T13: =N13 -> 221 | U13: =COUNTIF(L7:L15,T13) -> 1 | V13: =U13/(W4-U11) -> 1 | W13: =IF(V13=0,0,(V13*((LOG(V13))/LOG(2)))) -> 0 | Y13: =N13 -> 221 | Z13: =COUNTIF(L16:L24,Y13) -> 3 | AA13: =Z13/(AB4-Z11) -> 1 | AB13: =IF(AA13=0,0,(AA13*((LOG(AA13))/LOG(2)))) -> 0 | AD13: =N13 -> 221 | AE13: =COUNTIF(L25:L33,AD13) -> 2 | AF13: =AE13/(AG4-AE11) -> 1 | AG13: =IF(AF13=0,0,(AF13*((LOG(AF13))/LOG(2)))) -> 0 | AI13: =N13 -> 221 | AJ13: =COUNTIF(L34:L42,AI13) -> 5 | AK13: =AJ13/(AL4-AJ11) -> 1 | AL13: =IF(AK13=0,0,(AK13*((LOG(AK13))/LOG(2)))) -> 0 | AN13: =N13 -> 221 | AO13: =COUNTIF(L43:L51,AN13) -> 1 | AP13: =AO13/(AQ4-AO11) -> 1 | AQ13: =IF(AP13=0,0,(AP13*((LOG(AP13))/LOG(2)))) -> 0 | AS13: =N13 -> 221 | AT13: =COUNTIF(L52:L60,AS13) -> 3 | AU13: =AT13/(AV4-AT11) -> 1 | AV13: =IF(AU13=0,0,(AU13*((LOG(AU13))/LOG(2)))) -> 0
A14: 21 | B14: 853 | C14: 11 | D14: 862 | E14: 11 | F14: 877 | K14: 0 | L14: 211 | N14: 222 | O14: =COUNTIF($L$7:$L$500,N14) -> 0 | P14: =O14/$Q$4 -> 0 | Q14: =IF(P14=0,0,(P14*((LOG(P14))/LOG(2)))) -> 0 | T14: =N14 -> 222 | U14: =COUNTIF(L7:L15,T14) -> 0 | V14: =U14/(W4-U11) -> 0 | W14: =IF(V14=0,0,(V14*((LOG(V14))/LOG(2)))) -> 0 | Y14: =N14 -> 222 | Z14: =COUNTIF(L16:L24,Y14) -> 0 | AA14: =Z14/(AB4-Z11) -> 0 | AB14: =IF(AA14=0,0,(AA14*((LOG(AA14))/LOG(2)))) -> 0 | AD14: =N14 -> 222 | AE14: =COUNTIF(L25:L33,AD14) -> 0 | AF14: =AE14/(AG4-AE11) -> 0 | AG14: =IF(AF14=0,0,(AF14*((LOG(AF14))/LOG(2)))) -> 0 | AI14: =N14 -> 222 | AJ14: =COUNTIF(L34:L42,AI14) -> 0 | AK14: =AJ14/(AL4-AJ11) -> 0 | AL14: =IF(AK14=0,0,(AK14*((LOG(AK14))/LOG(2)))) -> 0 | AN14: =N14 -> 222 | AO14: =COUNTIF(L43:L51,AN14) -> 0 | AP14: =AO14/(AQ4-AO11) -> 0 | AQ14: =IF(AP14=0,0,(AP14*((LOG(AP14))/LOG(2)))) -> 0 | AS14: =N14 -> 222 | AT14: =COUNTIF(L52:L60,AS14) -> 0 | AU14: =AT14/(AV4-AT11) -> 0 | AV14: =IF(AU14=0,0,(AU14*((LOG(AU14))/LOG(2)))) -> 0
A15: 21 | B15: 963 | C15: 22 | D15: 967 | E15: 13 | F15: 980 | K15: 0 | L15: 221 | P15: =SUM(P7:P14) -> 1 | Q15: =-SUM(Q7:Q14) -> 0.8524051786 | V15: =SUM(V7:V14) -> 1 | W15: =-SUM(W7:W14) -> 0 | AA15: =SUM(AA7:AA14) -> 1 | AB15: =-SUM(AB7:AB14) -> 0 | AF15: =SUM(AF7:AF14) -> 1 | AG15: =-SUM(AG7:AG14) -> 0 | AK15: =SUM(AK7:AK14) -> 1 | AL15: =-SUM(AL7:AL14) -> 0 | AP15: =SUM(AP7:AP14) -> 1 | AQ15: =-SUM(AQ7:AQ14) -> 0 | AU15: =SUM(AU7:AU14) -> 1 | AV15: =-SUM(AV7:AV14) -> 0
A16: 21 | B16: 1067 | C16: 22 | D16: 1071 | E16: 13 | F16: 1083 | K16: 0 | L16: 221 | P16: U= | Q16: =Q15/(LOG(Q4)/LOG(2)) -> 0.1481184781 | V16: U1= | W16: =W15/(LOG(W4)/LOG(2)) -> 0 | AA16: U2= | AB16: =AB15/(LOG(AB4)/LOG(2)) -> 0 | AF16: U3= | AG16: =AG15/(LOG(AG4)/LOG(2)) -> 0 | AK16: U4= | AL16: =AL15/(LOG(AL4)/LOG(2)) -> 0 | AP16: U5= | AQ16: =AQ15/(LOG(AQ4)/LOG(2)) -> 0 | AU16: U6= | AV16: =AV15/(LOG(AV4)/LOG(2)) -> 0
A17: 21 | B17: 1179 | C17: 11 | D17: 1189 | E17: 11 | F17: 1209 | K17: 0 | L17: 211
A18: 21 | B18: 1295 | C18: 11 | D18: 1303 | E18: 11 | F18: 1315 | K18: 0 | L18: 211
A19: 21 | B19: 1402 | C19: 11 | D19: 1415 | E19: 11 | F19: 1427 | K19: 0 | L19: 211 | N19: Total Target Seq
A20: 21 | B20: 1519 | C20: 11 | D20: 1528 | E20: 11 | F20: 1548 | K20: 0 | L20: 211 | N20: =COUNTIF(L7:L60,G3) -> 39 | P20: 9 | Q20: 9 | R20: 9 | S20: 9 | T20: 9 | U20: 9
A21: 21 | B21: 1636 | C21: 11 | D21: 1646 | E21: 11 | F21: 1662 | K21: 0 | L21: 211 | P21: % of reinforcement given in 6 equal intervals based on number of trials
A22: 21 | B22: 1748 | C22: 22 | D22: 1752 | E22: 13 | F22: 1768 | K22: 0 | L22: 221 | P22: %_1 | Q22: %_2 | R22: %_3 | S22: %_4 | T22: %_5 | U22: %_6
A23: 21 | B23: 1864 | C23: 11 | D23: 1872 | E23: 11 | F23: 1881 | K23: 0 | L23: 211 | O23: target sequence | P23: =$G$3 -> 211 | Q23: =$G$3 -> 211 | R23: =$G$3 -> 211 | S23: =$G$3 -> 211 | T23: =$G$3 -> 211 | U23: =$G$3 -> 211
A24: 21 | B24: 1968 | C24: 22 | D24: 1975 | E24: 13 | F24: 1999 | K24: 0 | L24: 221 | O24: total reinforcement | P24: =U11 -> 8 | Q24: =Z11 -> 6 | R24: =AE11 -> 7 | S24: =AJ11 -> 4 | T24: =AO11 -> 8 | U24: =AT11 -> 6
A25: 21 | B25: 2095 | C25: 11 | D25: 2103 | E25: 11 | F25: 2111 | K25: 0 | L25: 211 | O25: % target
A26: 21 | B26: 2197 | C26: 22 | D26: 2201 | E26: 13 | F26: 2217 | K26: 0 | L26: 221 | O26: CCRF
A27: 21 | B27: 2312 | C27: 11 | D27: 2319 | E27: 11 | F27: 2330 | K27: 0 | L27: 211 | O27: % CCRf
A28: 21 | B28: 2418 | C28: 11 | D28: 2446 | E28: 11 | F28: 2457 | K28: 0 | L28: 211 | O28: average response rate | P28: =F15/P20 -> 108.8888889 | Q28: =(F24-F15)/Q20 -> 113.2222222 | R28: =(F33-F24)/R20 -> 111.2222222 | S28: =(F42-F33)/S20 -> 111.2222222 | T28: =(F51-F42)/T20 -> 111.7777778 | U28: =(F60-F51)/U20 -> 116.1111111
A29: 21 | B29: 2542 | C29: 22 | D29: 2546 | E29: 13 | F29: 2554 | K29: 0 | L29: 221
A30: 21 | B30: 2650 | C30: 11 | D30: 2659 | E30: 11 | F30: 2674 | K30: 0 | L30: 211
A31: 21 | B31: 2760 | C31: 11 | D31: 2768 | E31: 11 | F31: 2776 | K31: 0 | L31: 211
A32: 21 | B32: 2862 | C32: 11 | D32: 2871 | E32: 11 | F32: 2891 | K32: 0 | L32: 211
A33: 21 | B33: 2977 | C33: 11 | D33: 2987 | E33: 11 | F33: 3000 | K33: 0 | L33: 211
A34: 21 | B34: 3087 | C34: 22 | D34: 3091 | E34: 13 | F34: 3099 | K34: 0 | L34: 221
A35: 21 | B35: 3194 | C35: 22 | D35: 3198 | E35: 13 | F35: 3207 | K35: 0 | L35: 221
A36: 21 | B36: 3303 | C36: 11 | D36: 3311 | E36: 11 | F36: 3327 | K36: 0 | L36: 211
A37: 21 | B37: 3414 | C37: 11 | D37: 3432 | E37: 11 | F37: 3449 | K37: 0 | L37: 211
A38: 21 | B38: 3535 | C38: 11 | D38: 3543 | E38: 11 | F38: 3562 | K38: 0 | L38: 211
A39: 21 | B39: 3655 | C39: 11 | D39: 3663 | E39: 11 | F39: 3677 | K39: 0 | L39: 211
A40: 21 | B40: 3763 | C40: 22 | D40: 3766 | E40: 13 | F40: 3777 | K40: 0 | L40: 221
A41: 21 | B41: 3873 | C41: 22 | D41: 3877 | E41: 13 | F41: 3884 | K41: 0 | L41: 221
A42: 21 | B42: 3981 | C42: 22 | D42: 3984 | E42: 13 | F42: 4001 | K42: 0 | L42: 221
A43: 21 | B43: 4097 | C43: 11 | D43: 4105 | E43: 11 | F43: 4122 | K43: 0 | L43: 211
A44: 21 | B44: 4209 | C44: 11 | D44: 4217 | E44: 11 | F44: 4236 | K44: 0 | L44: 211
A45: 21 | B45: 4325 | C45: 11 | D45: 4332 | E45: 11 | F45: 4343 | K45: 0 | L45: 211
A46: 21 | B46: 4430 | C46: 22 | D46: 4434 | E46: 13 | F46: 4445 | K46: 0 | L46: 221
A47: 21 | B47: 4541 | C47: 11 | D47: 4549 | E47: 11 | F47: 4560 | K47: 0 | L47: 211
A48: 21 | B48: 4645 | C48: 11 | D48: 4652 | E48: 11 | F48: 4664 | K48: 0 | L48: 211
A49: 21 | B49: 4757 | C49: 11 | D49: 4767 | E49: 11 | F49: 4777 | K49: 0 | L49: 211
A50: 21 | B50: 4864 | C50: 11 | D50: 4886 | E50: 11 | F50: 4897 | K50: 0 | L50: 211
A51: 21 | B51: 4988 | C51: 11 | D51: 4996 | E51: 11 | F51: 5007 | K51: 0 | L51: 211
A52: 21 | B52: 5097 | C52: 11 | D52: 5108 | E52: 11 | F52: 5123 | K52: 0 | L52: 211
A53: 21 | B53: 5210 | C53: 22 | D53: 5214 | E53: 13 | F53: 5222 | K53: 0 | L53: 221
A54: 21 | B54: 5318 | C54: 11 | D54: 5327 | E54: 11 | F54: 5337 | K54: 0 | L54: 211
A55: 21 | B55: 5424 | C55: 11 | D55: 5432 | E55: 11 | F55: 5445 | K55: 0 | L55: 211
A56: 21 | B56: 5534 | C56: 11 | D56: 5542 | E56: 11 | F56: 5577 | K56: 0 | L56: 211
A57: 21 | B57: 5664 | C57: 22 | D57: 5667 | E57: 13 | F57: 5708 | K57: 0 | L57: 221
A58: 21 | B58: 5807 | C58: 11 | D58: 5818 | E58: 11 | F58: 5828 | K58: 0 | L58: 211
A59: 21 | B59: 5915 | C59: 22 | D59: 5918 | E59: 13 | F59: 5926 | K59: 0 | L59: 221
A60: 21 | B60: 6022 | C60: 11 | D60: 6029 | E60: 11 | F60: 6052 | K60: 1 | L60: 211

Sheet !MB17A10.010
A1: Report for:!MB17A10.010
A2: Date: | B2: <date>
A3: Hen: | B3: <hen> | F3: Correct Sequence | G3: =Start!J2 -> 211 | P3: Total Sequences in Data | Q3: =4994-COUNTBLANK(L7:L5000) -> 57 | V3: Total Sequences in Block Data | W3: =COUNTA(L7:L16) -> 10 | AA3: Total Sequences in Block Data | AB3: =COUNTA(L17:L25) -> 9 | AF3: Total Sequences in Block Data | AG3: =COUNTA(L26:L35) -> 10 | AK3: Total Sequences in Block Data | AL3: =COUNTA(L36:L44) -> 9 | AP3: Total Sequences in Block Data | AQ3: =COUNTA(L45:L54) -> 10 | AU3: Total Sequences in Block Data | AV3: =COUNTA(L55:L63) -> 9
P4: Total Sequences in Summary | Q4: =SUM(O7:O14) -> 57 | V4: Total Sequences in Block Summary | W4: =SUM(U7:U14) -> 10 | AA4: Total Sequences in Block Summary | AB4: =SUM(Z7:Z14) -> 9 | AF4: Total Sequences in Block Summary | AG4: =SUM(AE7:AE14) -> 10 | AK4: Total Sequences in Block Summary | AL4: =SUM(AJ7:AJ14) -> 9 | AP4: Total Sequences in Block Summary | AQ4: =SUM(AO7:AO14) -> 10 | AU4: Total Sequences in Block Summary | AV4: =SUM(AT7:AT14) -> 9
T5: Block 1 | Y5: Block 2 | AD5: Block 3 | AI5: Block 4 | AN5: Block 5 | AS5: Block 6
A6: Sequence Component 1 | B6: Time 1 | C6: Sequence Component 2 | D6: Time 2 | E6: Sequence Component 3 | F6: Time 3 | G6: Sequence Component 4 | H6: Time 4 | I6: Sequence Component 5 | J6: Time 5 | K6: Correct? 0=No 1=Yes | L6: Sequence | N6: Frequency | P6: Relative Frequency | Q6: Variability | T6: Frequency | V6: Relative Frequency | W6: Variability | Y6: Frequency | AA6: Relative Frequency | AB6: Variability | AD6: Frequency | AF6: Relative Frequency | AG6: Variability | AI6: Frequency | AK6: Relative Frequency | AL6: Variability | AN6: Frequency | AP6: Relative Frequency | AQ6: Variability | AS6: Frequency | AU6: Relative Frequency | AV6: Variability
A7: 12 | B7: 19 | C7: 24 | D7: 67 | E7: 13 | F7: 83 | K7: 0 | L7: 121 | N7: 111 | O7: =COUNTIF($L$7:$L$500,N7) -> 0 | P7: =O7/$Q$4 -> 0 | Q7: =IF(P7=0,0,(P7*((LOG(P7))/LOG(2)))) -> 0 | T7: =N7 -> 111 | U7: =COUNTIF(L7:L16,T7) -> 0 | V7: =U7/(W4-U11) -> 0 | W7: =IF(V7=0,0,(V7*((LOG(V7))/LOG(2)))) -> 0 | Y7: =N7 -> 111 | Z7: =COUNTIF(L17:L25,Y7) -> 0 | AA7: =Z7/(AB4-Z11) -> 0 | AB7: =IF(AA7=0,0,(AA7*((LOG(AA7))/LOG(2)))) -> 0 | AD7: =N7 -> 111 | AE7: =COUNTIF(L26:L35,AD7) -> 0 | AF7: =AE7/(AG4-AE11) -> 0 | AG7: =IF(AF7=0,0,(AF7*((LOG(AF7))/LOG(2)))) -> 0 | AI7: =N7 -> 111 | AJ7: =COUNTIF(L36:L44,AI7) -> 0 | AK7: =AJ7/(AL4-AJ11) -> 0 | AL7: =IF(AK7=0,0,(AK7*((LOG(AK7))/LOG(2)))) -> 0 | AN7: =N7 -> 111 | AO7: =COUNTIF(L45:L54,AN7) -> 0 | AP7: =AO7/(AQ4-AO11) -> 0 | AQ7: =IF(AP7=0,0,(AP7*((LOG(AP7))/LOG(2)))) -> 0 | AS7: =N7 -> 111 | AT7: =COUNTIF(L55:L63,AS7) -> 0 | AU7: =AT7/(AV4-AT11) -> 0 | AV7: =IF(AU7=0,0,(AU7*((LOG(AU7))/LOG(2)))) -> 0
A8: 21 | B8: 178 | C8: 11 | D8: 189 | E8: 11 | F8: 202 | K8: 0 | L8: 211 | N8: 112 | O8: =COUNTIF($L$7:$L$500,N8) -> 0 | P8: =O8/$Q$4 -> 0 | Q8: =IF(P8=0,0,(P8*((LOG(P8))/LOG(2)))) -> 0 | T8: =N8 -> 112 | U8: =COUNTIF(L7:L16,T8) -> 0 | V8: =U8/(W4-U11) -> 0 | W8: =IF(V8=0,0,(V8*((LOG(V8))/LOG(2)))) -> 0 | Y8: =N8 -> 112 | Z8: =COUNTIF(L17:L25,Y8) -> 0 | AA8: =Z8/(AB4-Z11) -> 0 | AB8: =IF(AA8=0,0,(AA8*((LOG(AA8))/LOG(2)))) -> 0 | AD8: =N8 -> 112 | AE8: =COUNTIF(L26:L35,AD8) -> 0 | AF8: =AE8/(AG4-AE11) -> 0 | AG8: =IF(AF8=0,0,(AF8*((LOG(AF8))/LOG(2)))) -> 0 | AI8: =N8 -> 112 | AJ8: =COUNTIF(L36:L44,AI8) -> 0 | AK8: =AJ8/(AL4-AJ11) -> 0 | AL8: =IF(AK8=0,0,(AK8*((LOG(AK8))/LOG(2)))) -> 0 | AN8: =N8 -> 112 | AO8: =COUNTIF(L45:L54,AN8) -> 0 | AP8: =AO8/(AQ4-AO11) -> 0 | AQ8: =IF(AP8=0,0,(AP8*((LOG(AP8))/LOG(2)))) -> 0 | AS8: =N8 -> 112 | AT8: =COUNTIF(L55:L63,AS8) -> 0 | AU8: =AT8/(AV4-AT11) -> 0 | AV8: =IF(AU8=0,0,(AU8*((LOG(AU8))/LOG(2)))) -> 0
A9: 21 | B9: 293 | C9: 11 | D9: 323 | E9: 11 | F9: 336 | K9: 0 | L9: 211 | N9: 121 | O9: =COUNTIF($L$7:$L$500,N9) -> 1 | P9: =O9/$Q$4 -> 0.01754385965 | Q9: =IF(P9=0,0,(P9*((LOG(P9))/LOG(2)))) -> -0.1023314038 | T9: =N9 -> 121 | U9: =COUNTIF(L7:L16,T9) -> 1 | V9: =U9/(W4-U11) -> 0.25 | W9: =IF(V9=0,0,(V9*((LOG(V9))/LOG(2)))) -> -0.5 | Y9: =N9 -> 121 | Z9: =COUNTIF(L17:L25,Y9) -> 0 | AA9: =Z9/(AB4-Z11) -> 0 | AB9: =IF(AA9=0,0,(AA9*((LOG(AA9))/LOG(2)))) -> 0 | AD9: =N9 -> 121 | AE9: =COUNTIF(L26:L35,AD9) -> 0 | AF9: =AE9/(AG4-AE11) -> 0 | AG9: =IF(AF9=0,0,(AF9*((LOG(AF9))/LOG(2)))) -> 0 | AI9: =N9 -> 121 | AJ9: =COUNTIF(L36:L44,AI9) -> 0 | AK9: =AJ9/(AL4-AJ11) -> 0 | AL9: =IF(AK9=0,0,(AK9*((LOG(AK9))/LOG(2)))) -> 0 | AN9: =N9 -> 121 | AO9: =COUNTIF(L45:L54,AN9) -> 0 | AP9: =AO9/(AQ4-AO11) -> 0 | AQ9: =IF(AP9=0,0,(AP9*((LOG(AP9))/LOG(2)))) -> 0 | AS9: =N9 -> 121 | AT9: =COUNTIF(L55:L63,AS9) -> 0 | AU9: =AT9/(AV4-AT11) -> 0 | AV9: =IF(AU9=0,0,(AU9*((LOG(AU9))/LOG(2)))) -> 0
A10: 21 | B10: 423 | C10: 11 | D10: 442 | E10: 11 | F10: 453 | K10: 0 | L10: 211 | N10: 122 | O10: =COUNTIF($L$7:$L$500,N10) -> 0 | P10: =O10/$Q$4 -> 0 | Q10: =IF(P10=0,0,(P10*((LOG(P10))/LOG(2)))) -> 0 | T10: =N10 -> 122 | U10: =COUNTIF(L7:L16,T10) -> 0 | V10: =U10/(W4-U11) -> 0 | W10: =IF(V10=0,0,(V10*((LOG(V10))/LOG(2)))) -> 0 | Y10: =N10 -> 122 | Z10: =COUNTIF(L17:L25,Y10) -> 0 | AA10: =Z10/(AB4-Z11) -> 0 | AB10: =IF(AA10=0,0,(AA10*((LOG(AA10))/LOG(2)))) -> 0 | AD10: =N10 -> 122 | AE10: =COUNTIF(L26:L35,AD10) -> 0 | AF10: =AE10/(AG4-AE11) -> 0 | AG10: =IF(AF10=0,0,(AF10*((LOG(AF10))/LOG(2)))) -> 0 | AI10: =N10 -> 122 | AJ10: =COUNTIF(L36:L44,AI10) -> 0 | AK10: =AJ10/(AL4-AJ11) -> 0 | AL10: =IF(AK10=0,0,(AK10*((LOG(AK10))/LOG(2)))) -> 0 | AN10: =N10 -> 122 | AO10: =COUNTIF(L45:L54,AN10) -> 0 | AP10: =AO10/(AQ4-AO11) -> 0 | AQ10: =IF(AP10=0,0,(AP10*((LOG(AP10))/LOG(2)))) -> 0 | AS10: =N10 -> 122 | AT10: =COUNTIF(L55:L63,AS10) -> 0 | AU10: =AT10/(AV4-AT11) -> 0 | AV10: =IF(AU10=0,0,(AU10*((LOG(AU10))/LOG(2)))) -> 0
A11: 21 | B11: 539 | C11: 11 | D11: 560 | E11: 11 | F11: 568 | K11: 0 | L11: 211 | N11: 211 | O11: =COUNTIF($L$7:$L$500,N11) -> 38 | P11: =O11/$Q$4 -> 0.6666666667 | Q11: =IF(P11=0,0,(P11*((LOG(P11))/LOG(2)))) -> -0.3899750005 | T11: =N11 -> 211 | U11: =COUNTIF(L7:L16,T11) -> 6 | Y11: =N11 -> 211 | Z11: =COUNTIF(L17:L25,Y11) -> 3 | AD11: =N11 -> 211 | AE11: =COUNTIF(L26:L35,AD11) -> 6 | AI11: =N11 -> 211 | AJ11: =COUNTIF(L36:L44,AI11) -> 7 | AN11: =N11 -> 211 | AO11: =COUNTIF(L45:L54,AN11) -> 9 | AS11: =N11 -> 211 | AT11: =COUNTIF(L55:L63,AS11) -> 7
A12: 21 | B12: 653 | C12: 22 | D12: 659 | E12: 13 | F12: 674 | K12: 0 | L12: 221 | N12: 212 | O12: =COUNTIF($L$7:$L$500,N12) -> 0 | P12: =O12/$Q$4 -> 0 | Q12: =IF(P12=0,0,(P12*((LOG(P12))/LOG(2)))) -> 0 | T12: =N12 -> 212 | U12: =COUNTIF(L7:L16,T12) -> 0 | V12: =U12/(W4-U11) -> 0 | W12: =IF(V12=0,0,(V12*((LOG(V12))/LOG(2)))) -> 0 | Y12: =N12 -> 212 | Z12: =COUNTIF(L17:L25,Y12) -> 0 | AA12: =Z12/(AB4-Z11) -> 0 | AB12: =IF(AA12=0,0,(AA12*((LOG(AA12))/LOG(2)))) -> 0 | AD12: =N12 -> 212 | AE12: =COUNTIF(L26:L35,AD12) -> 0 | AF12: =AE12/(AG4-AE11) -> 0 | AG12: =IF(AF12=0,0,(AF12*((LOG(AF12))/LOG(2)))) -> 0 | AI12: =N12 -> 212 | AJ12: =COUNTIF(L36:L44,AI12) -> 0 | AK12: =AJ12/(AL4-AJ11) -> 0 | AL12: =IF(AK12=0,0,(AK12*((LOG(AK12))/LOG(2)))) -> 0 | AN12: =N12 -> 212 | AO12: =COUNTIF(L45:L54,AN12) -> 0 | AP12: =AO12/(AQ4-AO11) -> 0 | AQ12: =IF(AP12=0,0,(AP12*((LOG(AP12))/LOG(2)))) -> 0 | AS12: =N12 -> 212 | AT12: =COUNTIF(L55:L63,AS12) -> 0 | AU12: =AT12/(AV4-AT11) -> 0 | AV12: =IF(AU12=0,0,(AU12*((LOG(AU12))/LOG(2)))) -> 0
A13: 21 | B13: 761 | C13: 11 | D13: 780 | E13: 11 | F13: 788 | K13: 0 | L13: 211 | N13: 221 | O13: =COUNTIF($L$7:$L$500,N13) -> 16 | P13: =O13/$Q$4 -> 0.2807017544 | Q13: =IF(P13=0,0,(P13*((LOG(P13))/LOG(2)))) -> -0.5144954426 | T13: =N13 -> 221 | U13: =COUNTIF(L7:L16,T13) -> 3 | V13: =U13/(W4-U11) -> 0.75 | W13: =IF(V13=0,0,(V13*((LOG(V13))/LOG(2)))) -> -0.3112781245 | Y13: =N13 -> 221 | Z13: =COUNTIF(L17:L25,Y13) -> 5 | AA13: =Z13/(AB4-Z11) -> 0.8333333333 | AB13: =IF(AA13=0,0,(AA13*((LOG(AA13))/LOG(2)))) -> -0.2191953382 | AD13: =N13 -> 221 | AE13: =COUNTIF(L26:L35,AD13) -> 4 | AF13: =AE13/(AG4-AE11) -> 1 | AG13: =IF(AF13=0,0,(AF13*((LOG(AF13))/LOG(2)))) -> 0 | AI13: =N13 -> 221 | AJ13: =COUNTIF(L36:L44,AI13) -> 2 | AK13: =AJ13/(AL4-AJ11) -> 1 | AL13: =IF(AK13=0,0,(AK13*((LOG(AK13))/LOG(2)))) -> 0 | AN13: =N13 -> 221 | AO13: =COUNTIF(L45:L54,AN13) -> 0 | AP13: =AO13/(AQ4-AO11) -> 0 | AQ13: =IF(AP13=0,0,(AP13*((LOG(AP13))/LOG(2)))) -> 0 | AS13: =N13 -> 221 | AT13: =COUNTIF(L55:L63,AS13) -> 2 | AU13: =AT13/(AV4-AT11) -> 1 | AV13: =IF(AU13=0,0,(AU13*((LOG(AU13))/LOG(2)))) -> 0
A14: 21 | B14: 873 | C14: 22 | D14: 877 | E14: 13 | F14: 889 | K14: 0 | L14: 221 | N14: 222 | O14: =COUNTIF($L$7:$L$500,N14) -> 2 | P14: =O14/$Q$4 -> 0.0350877193 | Q14: =IF(P14=0,0,(P14*((LOG(P14))/LOG(2)))) -> -0.1695750882 | T14: =N14 -> 222 | U14: =COUNTIF(L7:L16,T14) -> 0 | V14: =U14/(W4-U11) -> 0 | W14: =IF(V14=0,0,(V14*((LOG(V14))/LOG(2)))) -> 0 | Y14: =N14 -> 222 | Z14: =COUNTIF(L17:L25,Y14) -> 1 | AA14: =Z14/(AB4-Z11) -> 0.1666666667 | AB14: =IF(AA14=0,0,(AA14*((LOG(AA14))/LOG(2)))) -> -0.4308270835 | AD14: =N14 -> 222 | AE14: =COUNTIF(L26:L35,AD14) -> 0 | AF14: =AE14/(AG4-AE11) -> 0 | AG14: =IF(AF14=0,0,(AF14*((LOG(AF14))/LOG(2)))) -> 0 | AI14: =N14 -> 222 | AJ14: =COUNTIF(L36:L44,AI14) -> 0 | AK14: =AJ14/(AL4-AJ11) -> 0 | AL14: =IF(AK14=0,0,(AK14*((LOG(AK14))/LOG(2)))) -> 0 | AN14: =N14 -> 222 | AO14: =COUNTIF(L45:L54,AN14) -> 1 | AP14: =AO14/(AQ4-AO11) -> 1 | AQ14: =IF(AP14=0,0,(AP14*((LOG(AP14))/LOG(2)))) -> 0 | AS14: =N14 -> 222 | AT14: =COUNTIF(L55:L63,AS14) -> 0 | AU14: =AT14/(AV4-AT11) -> 0 | AV14: =IF(AU14=0,0,(AU14*((LOG(AU14))/LOG(2)))) -> 0
A15: 21 | B15: 985 | C15: 22 | D15: 989 | E15: 13 | F15: 1018 | K15: 0 | L15: 221 | P15: =SUM(P7:P14) -> 1 | Q15: =-SUM(Q7:Q14) -> 1.176376935 | V15: =SUM(V7:V14) -> 1 | W15: =-SUM(W7:W14) -> 0.8112781245 | AA15: =SUM(AA7:AA14) -> 1 | AB15: =-SUM(AB7:AB14) -> 0.6500224216 | AF15: =SUM(AF7:AF14) -> 1 | AG15: =-SUM(AG7:AG14) -> 0 | AK15: =SUM(AK7:AK14) -> 1 | AL15: =-SUM(AL7:AL14) -> 0 | AP15: =SUM(AP7:AP14) -> 1 | AQ15: =-SUM(AQ7:AQ14) -> 0 | AU15: =SUM(AU7:AU14) -> 1 | AV15: =-SUM(AV7:AV14) -> 0
A16: 21 | B16: 1114 | C16: 11 | D16: 1144 | E16: 11 | F16: 1155 | K16: 0 | L16: 211 | P16: U= | Q16: =Q15/(LOG(Q4)/LOG(2)) -> 0.2016799446 | V16: U1= | W16: =W15/(LOG(W4)/LOG(2)) -> 0.2442190503 | AA16: U2= | AB16: =AB15/(LOG(AB4)/LOG(2)) -> 0.2050592432 | AF16: U3= | AG16: =AG15/(LOG(AG4)/LOG(2)) -> 0 | AK16: U4= | AL16: =AL15/(LOG(AL4)/LOG(2)) -> 0 | AP16: U5= | AQ16: =AQ15/(LOG(AQ4)/LOG(2)) -> 0 | AU16: U6= | AV16: =AV15/(LOG(AV4)/LOG(2)) -> 0
A17: 21 | B17: 1244 | C17: 22 | D17: 1247 | E17: 13 | F17: 1275 | K17: 0 | L17: 221
A18: 21 | B18: 1370 | C18: 22 | D18: 1374 | E18: 13 | F18: 1393 | K18: 0 | L18: 221
A19: 21 | B19: 1489 | C19: 22 | D19: 1496 | E19: 13 | F19: 1505 | K19: 0 | L19: 221 | N19: Total Target Seq
A20: 21 | B20: 1600 | C20: 22 | D20: 1607 | E20: 13 | F20: 1630 | K20: 0 | L20: 221 | N20: =COUNTIF(L7:L63,G3) -> 38 | P20: 10 | Q20: 9 | R20: 10 | S20: 9 | T20: 10 | U20: 9
A21: 21 | B21: 1726 | C21: 22 | D21: 1729 | E21: 24 | F21: 1739 | K21: 0 | L21: 222 | P21: % of reinforcement given in 6 equal intervals based on number of trials
A22: 21 | B22: 1830 | C22: 11 | D22: 1839 | E22: 11 | F22: 1851 | K22: 0 | L22: 211 | P22: %_1 | Q22: %_2 | R22: %_3 | S22: %_4 | T22: %_5 | U22: %_6
A23: 21 | B23: 1943 | C23: 11 | D23: 1956 | E23: 11 | F23: 1967 | K23: 0 | L23: 211 | O23: target sequence | P23: =$G$3 -> 211 | Q23: =$G$3 -> 211 | R23: =$G$3 -> 211 | S23: =$G$3 -> 211 | T23: =$G$3 -> 211 | U23: =$G$3 -> 211
A24: 21 | B24: 2053 | C24: 22 | D24: 2057 | E24: 13 | F24: 2070 | K24: 0 | L24: 221 | O24: total reinforcement | P24: =U11 -> 6 | Q24: =Z11 -> 3 | R24: =AE11 -> 6 | S24: =AJ11 -> 7 | T24: =AO11 -> 9 | U24: =AT11 -> 7
A25: 21 | B25: 2166 | C25: 11 | D25: 2174 | E25: 11 | F25: 2188 | K25: 0 | L25: 211 | O25: % target
A26: 21 | B26: 2274 | C26: 11 | D26: 2283 | E26: 11 | F26: 2301 | K26: 0 | L26: 211 | O26: CCRF
A27: 21 | B27: 2389 | C27: 11 | D27: 2400 | E27: 11 | F27: 2410 | K27: 0 | L27: 211 | O27: % CCRf
A28: 21 | B28: 2496 | C28: 11 | D28: 2518 | E28: 11 | F28: 2533 | K28: 0 | L28: 211 | O28: average response rate | P28: =F16/P20 -> 115.5 | Q28: =(F25-F16)/Q20 -> 114.7777778 | R28: =(F35-F25)/R20 -> 111.5 | S28: =(F44-F35)/S20 -> 115.1111111 | T28: =(F54-F44)/T20 -> 113.5 | U28: =(F63-F54)/U20 -> 113
A29: 21 | B29: 2620 | C29: 11 | D29: 2630 | E29: 11 | F29: 2642 | K29: 0 | L29: 211
A30: 21 | B30: 2732 | C30: 11 | D30: 2740 | E30: 11 | F30: 2763 | K30: 0 | L30: 211
A31: 21 | B31: 2848 | C31: 11 | D31: 2856 | E31: 11 | F31: 2879 | K31: 0 | L31: 211
A32: 21 | B32: 2963 | C32: 22 | D32: 2967 | E32: 13 | F32: 2976 | K32: 0 | L32: 221
A33: 21 | B33: 3072 | C33: 22 | D33: 3075 | E33: 13 | F33: 3084 | K33: 0 | L33: 221
A34: 21 | B34: 3180 | C34: 22 | D34: 3184 | E34: 13 | F34: 3195 | K34: 0 | L34: 221
A35: 21 | B35: 3290 | C35: 22 | D35: 3294 | E35: 13 | F35: 3303 | K35: 0 | L35: 221
A36: 21 | B36: 3398 | C36: 11 | D36: 3406 | E36: 11 | F36: 3422 | K36: 0 | L36: 211
A37: 21 | B37: 3506 | C37: 22 | D37: 3510 | E37: 13 | F37: 3540 | K37: 0 | L37: 221
A38: 21 | B38: 3636 | C38: 11 | D38: 3643 | E38: 11 | F38: 3658 | K38: 0 | L38: 211
A39: 21 | B39: 3743 | C39: 11 | D39: 3750 | E39: 11 | F39: 3757 | K39: 0 | L39: 211
A40: 21 | B40: 3845 | C40: 22 | D40: 3849 | E40: 13 | F40: 3868 | K40: 0 | L40: 221
A41: 21 | B41: 3963 | C41: 11 | D41: 3971 | E41: 11 | F41: 3985 | K41: 0 | L41: 211
A42: 21 | B42: 4073 | C42: 11 | D42: 4080 | E42: 11 | F42: 4101 | K42: 0 | L42: 211
A43: 21 | B43: 4189 | C43: 11 | D43: 4206 | E43: 11 | F43: 4221 | K43: 0 | L43: 211
A44: 21 | B44: 4313 | C44: 11 | D44: 4328 | E44: 11 | F44: 4339 | K44: 0 | L44: 211
A45: 21 | B45: 4427 | C45: 22 | D45: 4431 | E45: 24 | F45: 4435 | K45: 0 | L45: 222
A46: 21 | B46: 4533 | C46: 11 | D46: 4556 | E46: 11 | F46: 4573 | K46: 0 | L46: 211
A47: 21 | B47: 4658 | C47: 11 | D47: 4666 | E47: 11 | F47: 4679 | K47: 0 | L47: 211
A48: 21 | B48: 4777 | C48: 11 | D48: 4796 | E48: 11 | F48: 4807 | K48: 0 | L48: 211
A49: 21 | B49: 4896 | C49: 11 | D49: 4903 | E49: 11 | F49: 4915 | K49: 0 | L49: 211
A50: 21 | B50: 5003 | C50: 11 | D50: 5010 | E50: 11 | F50: 5026 | K50: 0 | L50: 211
A51: 21 | B51: 5113 | C51: 11 | D51: 5120 | E51: 11 | F51: 5131 | K51: 0 | L51: 211
A52: 21 | B52: 5219 | C52: 11 | D52: 5238 | E52: 11 | F52: 5257 | K52: 0 | L52: 211
A53: 21 | B53: 5347 | C53: 11 | D53: 5358 | E53: 11 | F53: 5369 | K53: 0 | L53: 211
A54: 21 | B54: 5457 | C54: 11 | D54: 5465 | E54: 11 | F54: 5474 | K54: 0 | L54: 211
A55: 21 | B55: 5562 | C55: 11 | D55: 5580 | E55: 11 | F55: 5591 | K55: 0 | L55: 211
A56: 21 | B56: 5676 | C56: 22 | D56: 5679 | E56: 13 | F56: 5704 | K56: 0 | L56: 221
A57: 21 | B57: 5803 | C57: 11 | D57: 5811 | E57: 11 | F57: 5826 | K57: 0 | L57: 211
A58: 21 | B58: 5911 | C58: 11 | D58: 5920 | E58: 11 | F58: 5935 | K58: 0 | L58: 211
A59: 21 | B59: 6022 | C59: 11 | D59: 6030 | E59: 11 | F59: 6048 | K59: 0 | L59: 211
A60: 21 | B60: 6133 | C60: 22 | D60: 6137 | E60: 13 | F60: 6144 | K60: 0 | L60: 221
A61: 21 | B61: 6239 | C61: 11 | D61: 6247 | E61: 11 | F61: 6260 | K61: 0 | L61: 211
A62: 21 | B62: 6351 | C62: 11 | D62: 6363 | E62: 11 | F62: 6370 | K62: 0 | L62: 211
A63: 21 | B63: 6456 | C63: 11 | D63: 6463 | E63: 11 | F63: 6491 | K63: 1 | L63: 211

Sheet !MB18A00.010
A1: Report for:!MB18A00.010
A2: Date: | B2: <date>
A3: Hen: | B3: <hen> | F3: Correct Sequence | G3: =Start!J2 -> 211 | P3: Total Sequences in Data | Q3: =4994-COUNTBLANK(L7:L5000) -> 54 | V3: Total Sequences in Block Data | W3: =COUNTA(L7:L15) -> 9 | AA3: Total Sequences in Block Data | AB3: =COUNTA(L16:L24) -> 9 | AF3: Total Sequences in Block Data | AG3: =COUNTA(L25:L33) -> 9 | AK3: Total Sequences in Block Data | AL3: =COUNTA(L34:L42) -> 9 | AP3: Total Sequences in Block Data | AQ3: =COUNTA(L43:L51) -> 9 | AU3: Total Sequences in Block Data | AV3: =COUNTA(L52:L60) -> 9
P4: Total Sequences in Summary | Q4: =SUM(O7:O14) -> 54 | V4: Total Sequences in Block Summary | W4: =SUM(U7:U14) -> 9 | AA4: Total Sequences in Block Summary | AB4: =SUM(Z7:Z14) -> 9 | AF4: Total Sequences in Block Summary | AG4: =SUM(AE7:AE14) -> 9 | AK4: Total Sequences in Block Summary | AL4: =SUM(AJ7:AJ14) -> 9 | AP4: Total Sequences in Block Summary | AQ4: =SUM(AO7:AO14) -> 9 | AU4: Total Sequences in Block Summary | AV4: =SUM(AT7:AT14) -> 9
T5: Block 1 | Y5: Block 2 | AD5: Block 3 | AI5: Block 4 | AN5: Block 5 | AS5: Block 6
A6: Sequence Component 1 | B6: Time 1 | C6: Sequence Component 2 | D6: Time 2 | E6: Sequence Component 3 | F6: Time 3 | G6: Sequence Component 4 | H6: Time 4 | I6: Sequence Component 5 | J6: Time 5 | K6: Correct? 0=No 1=Yes | L6: Sequence | N6: Frequency | P6: Relative Frequency | Q6: Variability | T6: Frequency | V6: Relative Frequency | W6: Variability | Y6: Frequency | AA6: Relative Frequency | AB6: Variability | AD6: Frequency | AF6: Relative Frequency | AG6: Variability | AI6: Frequency | AK6: Relative Frequency | AL6: Variability | AN6: Frequency | AP6: Relative Frequency | AQ6: Variability | AS6: Frequency | AU6: Relative Frequency | AV6: Variability
